Workbook

Sheet Summary
B2: =C4&" Watershed Plan" -> Watershed Plan
B3: Project Information
B4: Project Name:
B5: Project Address:
B7: Contact Information: | D7: Designer's Name
D8: Company Name
D9: Company Address
D10: Contact Phone #
D11: Contact Email
B12: Watershed Information
B13: Description:
B14: Total Site Area (Ac):
B15: Total Baseline Impervious Area (Ac):
B16: River Basin:
B17: Regulatory Watershed:
B18: Precipitation Data
B19: Design Storm Frequency (yr): | C19: 1 | K19: Type I | L19: 1 | M19: 1
B20: Design Storm Duration (hr): | C20: 24 | K20: Type IA | L20: 2 | M20: 2
B21: Precipitation Depth (in): | C21: 3.87 | K21: Type II | L21: 5 | M21: 3
B22: 2-Year, 24-Hour Rainfall (in): | C22: 2 | D22: Note: Used in Tc calculations | K22: Type III | L22: 10 | M22: 6
B23: NOAA's National Weater Service Website | L23: 25 | M23: 12
B24: Hydrograph Data | L24: 50 | M24: 24
B25: Rainfall Distribution Type: | C25: Type III | L25: 100
B26: Time Interval (min): | C26: 5 | D26: 5 minute default

Sheet Watershed Data
B2: Baseline Conditions | I2: Scenario 1 Conditions | P2: Scenario 2 Conditions | W2: Scenario 3 Conditions
B3: Description: | I3: Description: | P3: Description: | W3: Description:
B4: Total Drainage Area (ac): | F4: =SUM(G7:G13,G15:G21) -> 0 | I4: Total Drainage Area (ac): | M4: =SUM(N7:N13,N15:N21) -> 0 | P4: Total Drainage Area (ac): | T4: =SUM(U7:U13,U15:U21) -> 0 | W4: Total Drainage Area (ac): | AA4: =SUM(AB7:AB13,AB15:AB21) -> 0
B5: HSG | C5: Land Use | F5: CN | G5: Area (acres) | H5: % | I5: HSG | J5: Land Use | M5: CN | N5: Area (acres) | O5: % | P5: HSG | Q5: Land Use | T5: CN | U5: Area (acres) | V5: % | W5: HSG | X5: Land Use | AA5: CN | AB5: Area (acres) | AC5: %
B6: Land Use | I6: Land Use | P6: Land Use | W6: Land Use
F7: =IF(OR(B7="",C7=""),"",INDEX(References!$D$5:$H$7,MATCH(C7,References!$B$5:$B$7),MATCH(B7,References!$D$4:$H$4))) ->  | H7: =IF(G7="","",G7/SUM($G$7:$G$21)) ->  | M7: =IF(OR(I7="",J7=""),"",INDEX(References!$D$5:$H$7,MATCH(J7,References!$B$5:$B$7),MATCH(I7,References!$D$4:$H$4))) ->  | O7: =IF(N7="","",N7/SUM($N$7:$N$21)) ->  | T7: =IF(OR(P7="",Q7=""),"",INDEX(References!$D$5:$H$7,MATCH(Q7,References!$B$5:$B$7),MATCH(P7,References!$D$4:$H$4))) ->  | V7: =IF(U7="","",U7/SUM($U$7:$U$21)) ->  | AA7: =IF(OR(W7="",X7=""),"",INDEX(References!$D$5:$H$7,MATCH(X7,References!$B$5:$B$7),MATCH(W7,References!$D$4:$H$4))) ->  | AC7: =IF(AB7="","",AB7/SUM($AB$7:$AB$21)) ->  | AG7: =IF(AND(NOT(F7=""),NOT(H7="")),F7*G7,"") ->  | AH7: =IF(AND(NOT(M7=""),NOT(O7="")),M7*N7,"") ->  | AI7: =IF(AND(NOT(T7=""),NOT(V7="")),T7*U7,"") ->  | AJ7: =IF(AND(NOT(AA7=""),NOT(AC7="")),AA7*AB7,"") -> 
F8: =IF(OR(B8="",C8=""),"",INDEX(References!$D$5:$H$7,MATCH(C8,References!$B$5:$B$7),MATCH(B8,References!$D$4:$H$4))) ->  | H8: =IF(G8="","",G8/SUM($G$7:$G$21)) ->  | M8: =IF(OR(I8="",J8=""),"",INDEX(References!$D$5:$H$7,MATCH(J8,References!$B$5:$B$7),MATCH(I8,References!$D$4:$H$4))) ->  | O8: =IF(N8="","",N8/SUM($N$7:$N$21)) ->  | T8: =IF(OR(P8="",Q8=""),"",INDEX(References!$D$5:$H$7,MATCH(Q8,References!$B$5:$B$7),MATCH(P8,References!$D$4:$H$4))) ->  | V8: =IF(U8="","",U8/SUM($U$7:$U$21)) ->  | AA8: =IF(OR(W8="",X8=""),"",INDEX(References!$D$5:$H$7,MATCH(X8,References!$B$5:$B$7),MATCH(W8,References!$D$4:$H$4))) ->  | AC8: =IF(AB8="","",AB8/SUM($AB$7:$AB$21)) ->  | AG8: =IF(AND(NOT(F8=""),NOT(H8="")),F8*G8,"") ->  | AH8: =IF(AND(NOT(M8=""),NOT(O8="")),M8*N8,"") ->  | AI8: =IF(AND(NOT(T8=""),NOT(V8="")),T8*U8,"") ->  | AJ8: =IF(AND(NOT(AA8=""),NOT(AC8="")),AA8*AB8,"") -> 
F9: =IF(OR(B9="",C9=""),"",INDEX(References!$D$5:$H$7,MATCH(C9,References!$B$5:$B$7),MATCH(B9,References!$D$4:$H$4))) ->  | H9: =IF(G9="","",G9/SUM($G$7:$G$21)) ->  | M9: =IF(OR(I9="",J9=""),"",INDEX(References!$D$5:$H$7,MATCH(J9,References!$B$5:$B$7),MATCH(I9,References!$D$4:$H$4))) ->  | T9: =IF(OR(P9="",Q9=""),"",INDEX(References!$D$5:$H$7,MATCH(Q9,References!$B$5:$B$7),MATCH(P9,References!$D$4:$H$4))) ->  | AA9: =IF(OR(W9="",X9=""),"",INDEX(References!$D$5:$H$7,MATCH(X9,References!$B$5:$B$7),MATCH(W9,References!$D$4:$H$4))) -> 
F10: =IF(OR(B10="",C10=""),"",INDEX(References!$D$5:$H$7,MATCH(C10,References!$B$5:$B$7),MATCH(B10,References!$D$4:$H$4))) ->  | H10: =IF(G10="","",G10/SUM($G$7:$G$21)) ->  | M10: =IF(OR(I10="",J10=""),"",INDEX(References!$D$5:$H$7,MATCH(J10,References!$B$5:$B$7),MATCH(I10,References!$D$4:$H$4))) ->  | T10: =IF(OR(P10="",Q10=""),"",INDEX(References!$D$5:$H$7,MATCH(Q10,References!$B$5:$B$7),MATCH(P10,References!$D$4:$H$4))) ->  | AA10: =IF(OR(W10="",X10=""),"",INDEX(References!$D$5:$H$7,MATCH(X10,References!$B$5:$B$7),MATCH(W10,References!$D$4:$H$4))) -> 
F11: =IF(OR(B11="",C11=""),"",INDEX(References!$D$5:$H$7,MATCH(C11,References!$B$5:$B$7),MATCH(B11,References!$D$4:$H$4))) ->  | M11: =IF(OR(I11="",J11=""),"",INDEX(References!$D$5:$H$7,MATCH(J11,References!$B$5:$B$7),MATCH(I11,References!$D$4:$H$4))) ->  | T11: =IF(OR(P11="",Q11=""),"",INDEX(References!$D$5:$H$7,MATCH(Q11,References!$B$5:$B$7),MATCH(P11,References!$D$4:$H$4))) ->  | AA11: =IF(OR(W11="",X11=""),"",INDEX(References!$D$5:$H$7,MATCH(X11,References!$B$5:$B$7),MATCH(W11,References!$D$4:$H$4))) -> 
F12: =IF(OR(B12="",C12=""),"",INDEX(References!$D$5:$H$7,MATCH(C12,References!$B$5:$B$7),MATCH(B12,References!$D$4:$H$4))) ->  | M12: =IF(OR(I12="",J12=""),"",INDEX(References!$D$5:$H$7,MATCH(J12,References!$B$5:$B$7),MATCH(I12,References!$D$4:$H$4))) ->  | T12: =IF(OR(P12="",Q12=""),"",INDEX(References!$D$5:$H$7,MATCH(Q12,References!$B$5:$B$7),MATCH(P12,References!$D$4:$H$4))) ->  | AA12: =IF(OR(W12="",X12=""),"",INDEX(References!$D$5:$H$7,MATCH(X12,References!$B$5:$B$7),MATCH(W12,References!$D$4:$H$4))) -> 
F13: =IF(OR(B13="",C13=""),"",INDEX(References!$D$5:$H$7,MATCH(C13,References!$B$5:$B$7),MATCH(B13,References!$D$4:$H$4))) ->  | M13: =IF(OR(I13="",J13=""),"",INDEX(References!$D$5:$H$7,MATCH(J13,References!$B$5:$B$7),MATCH(I13,References!$D$4:$H$4))) ->  | T13: =IF(OR(P13="",Q13=""),"",INDEX(References!$D$5:$H$7,MATCH(Q13,References!$B$5:$B$7),MATCH(P13,References!$D$4:$H$4))) ->  | AA13: =IF(OR(W13="",X13=""),"",INDEX(References!$D$5:$H$7,MATCH(X13,References!$B$5:$B$7),MATCH(W13,References!$D$4:$H$4))) -> 
B14: User Defined Land Uses | I14: User Defined Land Uses | P14: User Defined Land Uses | W14: User Defined Land Uses
H15: =IF(G15="","",G15/SUM($G$7:$G$21)) ->  | O15: =IF(N15="","",N15/SUM($N$7:$N$21)) ->  | V15: =IF(U15="","",U15/SUM($U$7:$U$21)) ->  | AC15: =IF(AB15="","",AB15/SUM($AB$7:$AB$21)) -> 
O16: =IF(N16="","",N16/SUM($N$7:$N$21)) ->  | V16: =IF(U16="","",U16/SUM($U$7:$U$21)) ->  | AC16: =IF(AB16="","",AB16/SUM($AB$7:$AB$21)) -> 
B22: =B2&" Composite Curve Number = " -> Baseline Conditions Composite Curve Number = | H22: =IF(AG22>0,ROUND(SUM($AG$22)/F4,0),"") ->  | I22: =I2&" Composite Curve Number = " -> Scenario 1 Conditions Composite Curve Number = | O22: =IF(AH22>0,ROUND(SUM($AH$22)/M4,0),"") ->  | P22: =P2&" Composite Curve Number = " -> Scenario 2 Conditions Composite Curve Number = | V22: =IF(AI22>0,ROUND(SUM($AI$22)/T4,0),"") ->  | W22: =W2&" Composite Curve Number = " -> Scenario 3 Conditions Composite Curve Number = | AC22: =IF(AJ22>0,ROUND(SUM($AJ$22)/AA4,0),"") ->  | AG22: =SUM(AG7:AG21) -> 0 | AH22: =SUM(AH7:AH21) -> 0 | AI22: =SUM(AI7:AI21) -> 0 | AJ22: 0
B23: =B2&" Tc" -> Baseline Conditions Tc | I23: =I2&" Tc" -> Scenario 1 Conditions Tc | P23: =P2&" Tc" -> Scenario 2 Conditions Tc | W23: =W2&" Tc" -> Scenario 3 Conditions Tc
B24: User Defined Tc (hours) | F24: 0.12 | I24: User Defined Tc (hours) | M24: 0.12 | P24: User Defined Tc (hours) | T24: 0.12 | W24: User Defined Tc (hours) | AA24: 0.12
B25: OR | I25: OR | P25: OR | W25: OR
B26: Sheet Flow | I26: Sheet Flow | P26: Sheet Flow | W26: Sheet Flow
B27: Length (ft): | I27: Length (ft): | P27: Length (ft): | W27: Length (ft):
B28: Slope (ft/ft): | I28: Slope (ft/ft): | P28: Slope (ft/ft): | W28: Slope (ft/ft):
B29: Surface Cover: | I29: Surface Cover: | P29: Surface Cover: | W29: Surface Cover:
B30: Manning's n-value: | F30: =IF(F29="","",INDEX(References!$B$15:$D$24,MATCH(F29,References!$B$15:$B$24,1),3)) ->  | I30: Manning's n-value: | M30: =IF(M29="","",INDEX(References!$B$15:$D$24,MATCH(M29,References!$B$15:$B$24),3)) ->  | P30: Manning's n-value: | T30: =IF(T29="","",INDEX(References!$B$15:$D$24,MATCH(T29,References!$B$15:$B$24,1),3)) ->  | W30: Manning's n-value: | AA30: =IF(AA29="","",INDEX(References!$B$15:$D$24,MATCH(AA29,References!$B$15:$B$24),3)) -> 
B31: Tt (hrs): | F31: =IF(OR(F27="", F27>300,F28="",F29=""),"",(0.007*(F30*F27)^0.8)/(Summary!$C$22^0.5*F28^0.4)) ->  | I31: Tt (hrs): | M31: =IF(OR(M27="", M27>300,M28="",M29=""),"",(0.007*(M30*M27)^0.8)/(Summary!$C$22^0.5*M28^0.4)) ->  | P31: Tt (hrs): | T31: =IF(OR(T27="", T27>300,T28="",T29=""),"",(0.007*(T30*T27)^0.8)/(Summary!$C$22^0.5*T28^0.4)) ->  | W31: Tt (hrs): | AA31: =IF(OR(AA27="", AA27>300,AA28="",AA29=""),"",(0.007*(AA30*AA27)^0.8)/(Summary!$C$22^0.5*AA28^0.4)) -> 
B32: Shallow Flow | I32: Shallow Flow | P32: Shallow Flow | W32: Shallow Flow
B33: Length (ft): | I33: Length (ft): | P33: Length (ft): | W33: Length (ft):
B34: Slope (ft/ft): | I34: Slope (ft/ft): | P34: Slope (ft/ft): | W34: Slope (ft/ft):
B35: Surface Cover: | I35: Surface Cover: | P35: Surface Cover: | W35: Surface Cover:
B36: Tt (hrs): | F36: =IF(OR(F33="",F34="",F35=""),"",IF(F35="Paved",F33/(3600*20.3282*F34^0.5),F33/(3600*16.1345*F34^0.5))) ->  | I36: Tt (hrs): | M36: =IF(OR(M33="",M34="",M35=""),"",IF(M35="Paved",M33/(3600*20.3282*M34^0.5),M33/(3600*16.1345*M34^0.5))) ->  | P36: Tt (hrs): | T36: =IF(OR(T33="",T34="",T35=""),"",IF(T35="Paved",T33/(3600*20.3282*T34^0.5),T33/(3600*16.1345*T34^0.5))) ->  | W36: Tt (hrs): | AA36: =IF(OR(AA33="",AA34="",AA35=""),"",IF(AA35="Paved",AA33/(3600*20.3282*AA34^0.5),AA33/(3600*16.1345*AA34^0.5))) -> 
B37: Channel Flow | I37: Channel Flow | P37: Channel Flow | W37: Channel Flow
B38: Length (ft): | I38: Length (ft): | P38: Length (ft): | W38: Length (ft):
B39: Slope (ft/ft): | I39: Slope (ft/ft): | P39: Slope (ft/ft): | W39: Slope (ft/ft):
B40: Manning's n-value: | I40: Manning's n-value: | P40: Manning's n-value: | W40: Manning's n-value:
B41: Flow Area (ft2): | I41: Flow Area (ft2): | P41: Flow Area (ft2): | W41: Flow Area (ft2):
B42: Wetted Perimeter (ft): | I42: Wetted Perimeter (ft): | P42: Wetted Perimeter (ft): | W42: Wetted Perimeter (ft):
B43: Tt (hrs): | F43: =IF(OR(F38="",F39="",F40="",F41="",F42=""),"",((F38/3600)/((1.49*(F41/F42)^(2/3)*F39^0.5)/F40))) ->  | I43: Tt (hrs): | M43: =IF(OR(M38="",M39="",M40="",M41="",M42=""),"",((M38/3600)/((1.49*(M41/M42)^(2/3)*M39^0.5)/M40))) ->  | P43: Tt (hrs): | T43: =IF(OR(T38="",T39="",T40="",T41="",T42=""),"",((T38/3600)/((1.49*(T41/T42)^(2/3)*T39^0.5)/T40))) ->  | W43: Tt (hrs): | AA43: =IF(OR(AA38="",AA39="",AA40="",AA41="",AA42=""),"",((AA38/3600)/((1.49*(AA41/AA42)^(2/3)*AA39^0.5)/AA40))) -> 
B44: =B2&" Tc " -> Baseline Conditions Tc | H44: =IF(F24="",IF(AND(F31="",F36="",F43=""),"",IF(SUM(F31,F36,F43)<0.0833,0.0833,SUM(F31,F36,F43))),F24) -> 0.12 | I44: =I2&" Tc " -> Scenario 1 Conditions Tc | O44: =IF(M24="",IF(AND(M31="",M36="",M43=""),"",IF(SUM(M31,M36,M43)<0.0833,0.0833,SUM(M31,M36,M43))),M24) -> 0.12 | P44: =P2&" Tc " -> Scenario 2 Conditions Tc | V44: =IF(T24="",IF(AND(T31="",T36="",T43=""),"",IF(SUM(T31,T36,T43)<0.0833,0.0833,SUM(T31,T36,T43))),T24) -> 0.12 | W44: =W2&" Tc " -> Scenario 3 Conditions Tc | AC44: =IF(AA24="",IF(AND(AA31="",AA36="",AA43=""),"",IF(SUM(AA31,AA36,AA43)<0.0833,0.0833,SUM(AA31,AA36,AA43))),AA24) -> 0.12
B70: =B2&" Peak Flow = " -> Baseline Conditions Peak Flow = | H70: ='Baseline Data'!Y7 ->  | I70: =I2&" Peak Flow = " -> Scenario 1 Conditions Peak Flow = | O70: ='Goal #1 Data'!Y7 ->  | P70: =P2&" Peak Flow = " -> Scenario 2 Conditions Peak Flow = | V70: ='Goal #2 Data'!Y7 ->  | W70: =W2&" Peak Flow = " -> Scenario 3 Conditions Peak Flow = | AC70: ='Goal #3 Data'!Y7 -> 
B71: =B2&" Runoff Volume = " -> Baseline Conditions Runoff Volume = | H71: ='Baseline Data'!Y8 ->  | I71: =I2&" Runoff Volume = " -> Scenario 1 Conditions Runoff Volume = | O71: ='Goal #1 Data'!Y8 ->  | P71: =P2&" Runoff Volume = " -> Scenario 2 Conditions Runoff Volume = | V71: ='Goal #2 Data'!Y8 ->  | W71: =W2&" Runoff Volume = " -> Scenario 3 Conditions Runoff Volume = | AC71: ='Goal #3 Data'!Y8 -> 
B72: ="Volume change from "&$B$2&" = " -> Volume change from Baseline Conditions = | H72: =0 -> 0 | I72: =B72 -> Volume change from Baseline Conditions = | O72: =O71-$H$71 ->  | P72: =I72 -> Volume change from Baseline Conditions = | V72: =V71-$H$71 ->  | W72: =P72 -> Volume change from Baseline Conditions = | AC72: =AC71-$H$71 -> 
B73: Target Volume Reudction = | H73: 0 | I73: Target Volume Reudction = | O73: =O72*43560*7.47/(M4*43560) ->  | P73: Target Volume Reudction = | V73: =V72*43560*7.47/(T4*43560) ->  | W73: Target Volume Reudction = | AC73: =AC72*43560*7.47/(AA4*43560) -> 

Sheet Volume Reduction
B2: =Summary!C4&" Volume Reduction Measures" -> Volume Reduction Measures
B3: Total Drainage Area (ac): | F3: ='Watershed Data'!M4 -> 0
B4: Device Type | D4: Storage Volume (ac-ft) | F4: Soil Type | G4: Volume Reduction (ac-ft) | P4: BMP Volume Reduction Credits
G5: =IF(D5=0,"",D5*VLOOKUP(B5,Volume,O5)) ->  | O5: =IF(F5="",6,IF(F5="A",2,IF(F5="B",3,IF(F5="C",4,IF(F5="D",5,6))))) -> 6 | P5: Soil Type | Q5: A | R5: B | S5: C | T5: D | U5: Other
O6: =IF(F6="",6,IF(F6="A",2,IF(F6="B",3,IF(F6="C",4,IF(F6="D",5,6))))) -> 6 | P6: Bioretention | Q6: 1.49 | R6: 1.12 | S6: 0.97 | T6: 0.9 | U6: 0
O7: 6 | P7: Bioretention w/ IWS | Q7: 1.9 | R7: 1.7 | S7: 1.33 | T7: 1.09 | U7: 0
O8: 6 | P8: Blue Roof | Q8: 0.05 | R8: 0.05 | S8: 0.05 | T8: 0.05 | U8: 0
O9: 6 | P9: Closed Sand Filter | Q9: 0.1 | R9: 0.1 | S9: 0.1 | T9: 0.1 | U9: 0
O10: 6 | P10: Constructed Wetland | Q10: 0.25 | R10: 0.2 | S10: 0.15 | T10: 0.1 | U10: 0
O11: 6 | P11: Dry Detention | Q11: 0.2 | R11: 0.1 | S11: 0.05 | T11: 0 | U11: 0
O12: 6 | P12: Grass Swale | Q12: 0.4 | R12: 0.3 | S12: 0.1 | T12: 0.05 | U12: 0
O13: 6 | P13: Infiltration Device | Q13: 1.5 | R13: 1.4 | S13: 1.3 | T13: 1.2 | U13: 0
O14: 6 | P14: Open Sand Filter | Q14: 0.3 | R14: 0.2 | S14: 0.2 | T14: 0.15 | U14: 0
O15: 6 | P15: Permeable Pavement (Detention) | Q15: 0.2 | R15: 0.2 | S15: 0.2 | T15: 0.2 | U15: 0
B16: Volume Reduction From Scenario Tool = | P16: Permeable Pavement (Infiltration) | Q16: 1.5 | R16: 1.4 | S16: 1.3 | T16: 1.2 | U16: 0
B17: Total Volume Reduction: | G17: =SUM(G5:H16) -> 0 | P17: Rainwater Harvesting | Q17: 1 | R17: 1 | S17: 1 | T17: 1 | U17: 0
P18: Wet Detention | Q18: 0.15 | R18: 0.1 | S18: 0.05 | T18: 0.05 | U18: 0

Sheet Baseline Data (hidden)
B1: Distribution Type: | C1: =Summary!C25 -> Type III | E1: P | I1: K | J1: =484/645.333 -> 0.7500003874
B2: Frequency: | C2: =Summary!C19 -> 1 | I2: Tr/Tp | J2: =2/J1-1 -> 1.666665289
B3: Duration: | C3: =Summary!C20 -> 24
B4: 2-Yr,24-Hr Rainfall: | C4: =Summary!C22 -> 2
B5: Drainage Area (A): | C5: ='Watershed Data'!F4 -> 0 | D5: =C5/639.99 -> 0
B6: Precipitaion (P): | C6: =Summary!C21 -> 3.87 | AJ6: Ia/P | AK6: C0 | AL6: C1 | AM6: C2 | AN6: log(qu)
B7: Max Retention (S): | C7: =1000/PreCN-10 ->  | X7: Peak Flow Rate (cfs): | Y7: =MAX(X21:X2246) ->  | AI7: Type I | AJ7: =INDEX(References!B62:G69,MATCH(MIN(References!B62:B69),References!B62:B69),2) ->  | AK7: =INDEX(References!B62:G69,MATCH(MIN(References!B62:B69),References!B62:B69),3) ->  | AL7: =INDEX(References!B62:G69,MATCH(MIN(References!B62:B69),References!B62:B69),4) ->  | AM7: =INDEX(References!B62:G69,MATCH(MIN(References!B62:B69),References!B62:B69),5) ->  | AN7: =AK7+AL7*LOG(Tc)+AM7*LOG(Tc)^2 -> 
B8: Initial Abstraction (Ia): | C8: =0.2*C7 ->  | X8: Total Runoff (ac-ft) | Y8: =SUM(V21:V2246)/43560 ->  | AI8: Type IA | AJ8: =INDEX(References!B72:G76,MATCH(MIN(References!B72:B76),References!B72:B76,0),2) ->  | AK8: =INDEX(References!B72:G76,MATCH(MIN(References!B72:B76),References!B72:B76,0),3) ->  | AL8: =INDEX(References!B72:G76,MATCH(MIN(References!B72:B76),References!B72:B76,0),4) ->  | AM8: =INDEX(References!B72:G76,MATCH(MIN(References!B72:B76),References!B72:B76,0),5) ->  | AN8: =AK8+AL8*LOG(Tc)+AM8*LOG(Tc)^2 -> 
B9: Ia/P: | C9: =Ia/P ->  | AI9: Type II | AJ9: =INDEX(References!B79:G84,MATCH(MIN(References!B79:B84),References!B79:B84,0),2) ->  | AK9: =INDEX(References!B79:G84,MATCH(MIN(References!B79:B84),References!B79:B84,0),3) ->  | AL9: =INDEX(References!B79:G84,MATCH(MIN(References!B79:B84),References!B79:B84,0),4) ->  | AM9: =INDEX(References!B79:G84,MATCH(MIN(References!B79:B84),References!B79:B84,0),5) ->  | AN9: =AK9+AL9*LOG(Tc)+AM9*LOG(Tc)^2 -> 
B10: Runoff (Q): | C10: =(P-Ia)^2/((P-Ia)+S) ->  | AI10: Type III | AJ10: =INDEX(References!B87:G92,MATCH(MIN(References!B87:B92),References!B87:B92,0),2) ->  | AK10: =INDEX(References!B87:G92,MATCH(MIN(References!B87:B92),References!B87:B92,0),3) ->  | AL10: =INDEX(References!B87:G92,MATCH(MIN(References!B87:B92),References!B87:B92,0),4) ->  | AM10: =INDEX(References!B87:G92,MATCH(MIN(References!B87:B92),References!B87:B92,0),5) ->  | AN10: =AK10+AL10*LOG(Tc)+AM10*LOG(Tc)^2 -> 
B11: Time of Concentration (Tc): | C11: ='Watershed Data'!H44 -> 0.12 | D11: =Tc*60 -> 7.2 | AM11: Unit Peak Discharge (qu): | AN11: =10^AN8 -> 
B12: Time Interval (D): | C12: =Tc*0.133 -> 0.01596 | D12: =C12*60 -> 0.9576
B13: Burst Duration (D): | C13: =Tc/7.5 -> 0.016 | D13: =C13*60 -> 0.96
B14: Time to Peak (Tp): | C14: =(Tc+C12)/1.7 -> 0.07997647059 | D14: 4.798588235
B15: Unit Peak Discharge (qp UH): | C15: =(484*D5*1)/C14 -> 0 | D15: per 1" of precipitation
B16: Peak Discharge (qp): | C16: =484*D5*P/C14 -> 0
B17: Retention Volume (in): | C17: 0
B20: Index | C20: t/tp | D20: q/qp | E20: t UH (hr) | F20: q UH (cfs) | G20: T Storm (hr) | I20: Q Storm | J20: TypeTime | K20: Type I | L20: Type IA | M20: Type II | N20: Type III | O20: TStorm (hr) | P20: Cumulative Fraction (in) | Q20: Incremental P (in) | R20: Cumulative P (in) | S20: Cumulative P-Ia (in) | T20: Cumulative Q-R (in) | U20: Incremental Q-R (in) | W20: Time (hr) | X20: Sum UH | Y20: UH1 | Z20: UH2 | AA20: UH3 | AB20: UH4 | AC20: UH5 | AD20: UH6 | AE20: UH7 | AF20: UH8 | AG20: UH9 | AH20: UH10 | AI20: UH11 | AJ20: UH12 | AK20: UH13 | AL20: UH14 | AM20: UH15 | AN20: UH16 | AO20: UH17 | AP20: UH18 | AQ20: UH19 | AR20: UH20 | AS20: UH21 | AT20: UH22 | AU20: UH23 | AV20: UH24 | AW20: UH25 | AX20: UH26
B21: 1 | C21: 0 | D21: 0 | E21: =C21*$C$14 -> 0 | F21: =$C$15*D21 -> 0 | G21: 0 | H21: 0 | I21: 0 | J21: 0 | K21: 0 | L21: 0 | M21: 0 | N21: 0 | O21: 0 | P21: 0 | Q21: 0 | R21: =P*P21 -> 0 | S21: =MAX(0,R21-Ia) ->  | T21: =MAX(0,(S*(Q21-Ia))/(Q21-Ia+S)) ->  | U21: =Q21-S21-T21 ->  | V21: =(X21+X22)/2*$C$12*60*60 ->  | W21: 0 | X21: =SUM(Y21:AX21) ->  | Y21: =$I$21*$U21 -> 
B22: 2 | C22: 0.1 | D22: 0.03 | E22: =C22*$C$14 -> 0.007997647059 | F22: =$C$15*D22 -> 0 | G22: =MIN(24,G21+$C$12) -> 0.01596 | H22: =MATCH(G22,$E$21:$E$53,1) -> 2 | I22: =IF(H22=33,0,FORECAST(G22,INDEX($F$21:$F$53,H22,1):INDEX($F$21:$F$53,H22+1),INDEX($E$21:$E$53,H22,1):INDEX($E$21:$E$53,H22+1))) -> 0 | J22: 0.1 | K22: 0.00174 | L22: 0.00224 | M22: 0.00101 | N22: 0.001 | O22: =MIN(24,O21+$C$12) -> 0.01596 | P22: =IF($C$1="Type I",IF(O21=24,1,FORECAST(O22,INDEX(TypeI,MATCH(O22,TypeTime,1),1):INDEX(TypeI,MATCH(O22,TypeTime,1)+1,1),INDEX(TypeTime,MATCH(O22,TypeTime,1),1):INDEX(TypeTime,MATCH(O22,TypeTime)+1,1))), IF($C$1="Type IA",IF(O21=24,1,FORECAST(O22,INDEX(TypeIA,MATCH(O22,TypeTime,1),1):INDEX(TypeIA,MATCH(O22,TypeTime,1)+1,1),INDEX(TypeTime,MATCH(O22,TypeTime,1),1):INDEX(TypeTime,MATCH(O22,TypeTime)+1,1))), IF($C$1="Type II",IF(O21=24,1,FORECAST(O22,INDEX(TypeII,MATCH(O22,TypeTime,1),1):INDEX(TypeII,MATCH(O22,TypeTime,1)+1,1),INDEX(TypeTime,MATCH(O22,TypeTime,1),1):INDEX(TypeTime,MATCH(O22,TypeTime)+1,1))), IF($C$1="Type III",IF(O21=24,1,FORECAST(O22,INDEX(TypeIII,MATCH(O22,TypeTime,1),1):INDEX(TypeIII,MATCH(O22,TypeTime,1)+1,1),INDEX(TypeTime,MATCH(O22,TypeTime,1),1):INDEX(TypeTime,MATCH(O22,TypeTime)+1,1))), "Choose Type")))) -> 0.0001596 | Q22: =P*(P22-P21) -> 0.000617652 | R22: =P*P22 -> 0.000617652 | T22: =MAX(0,S22^2/(S22+S)-RVol) ->  | U22: =T22-T21 ->  | V22: =(X22+X23)/2*$C$12*60*60 ->  | W22: =W21+$C$12 -> 0.01596 | X22: =SUM(Y22:AX22) ->  | Y22: =$I$21*$U22 ->  | Z22: =$I$22*$U21 -> 
B23: 3 | C23: 0.2 | D23: 0.1 | E23: =C23*$C$14 -> 0.01599529412 | F23: =$C$15*D23 -> 0 | G23: =MIN(24,G22+$C$12) -> 0.03192 | H23: =MATCH(G23,$E$21:$E$53,1) -> 4 | I23: =IF(H23=33,0,FORECAST(G23,INDEX($F$21:$F$53,H23,1):INDEX($F$21:$F$53,H23+1,1),INDEX($E$21:$E$53,H23,1):INDEX($E$21:$E$53,H23+1))) -> 0 | J23: 0.2 | K23: 0.00348 | L23: 0.00432 | M23: 0.00202 | N23: 0.002 | O23: =MIN(24,O22+$C$12) -> 0.03192 | P23: =IF($C$1="Type I",IF(O22=24,1,FORECAST(O23,INDEX(TypeI,MATCH(O23,TypeTime,1),1):INDEX(TypeI,MATCH(O23,TypeTime,1)+1,1),INDEX(TypeTime,MATCH(O23,TypeTime,1),1):INDEX(TypeTime,MATCH(O23,TypeTime)+1,1))), IF($C$1="Type IA",IF(O22=24,1,FORECAST(O23,INDEX(TypeIA,MATCH(O23,TypeTime,1),1):INDEX(TypeIA,MATCH(O23,TypeTime,1)+1,1),INDEX(TypeTime,MATCH(O23,TypeTime,1),1):INDEX(TypeTime,MATCH(O23,TypeTime)+1,1))), IF($C$1="Type II",IF(O22=24,1,FORECAST(O23,INDEX(TypeII,MATCH(O23,TypeTime,1),1):INDEX(TypeII,MATCH(O23,TypeTime,1)+1,1),INDEX(TypeTime,MATCH(O23,TypeTime,1),1):INDEX(TypeTime,MATCH(O23,TypeTime)+1,1))), IF($C$1="Type III",IF(O22=24,1,FORECAST(O23,INDEX(TypeIII,MATCH(O23,TypeTime,1),1):INDEX(TypeIII,MATCH(O23,TypeTime,1)+1,1),INDEX(TypeTime,MATCH(O23,TypeTime,1),1):INDEX(TypeTime,MATCH(O23,TypeTime)+1,1))), "Choose Type")))) -> 0.0003192 | Q23: =P*(P23-P22) -> 0.000617652 | R23: =P*P23 -> 0.001235304 | T23: =MAX(0,(S23^2/(S23+S)-RVol)) ->  | U23: =T23-T22 ->  | W23: =W22+$C$12 -> 0.03192 | Z23: =$I$22*$U22 ->  | AA23: =$I$23*$U21 -> 
B24: 4 | C24: 0.3 | D24: 0.19 | E24: 0.02399294118 | F24: 0 | G24: 0.04788 | H24: =MATCH(G24,$E$21:$E$53,1) -> 6 | I24: =IF(H24=33,0,FORECAST(G24,INDEX($F$21:$F$53,H24,1):INDEX($F$21:$F$53,H24+1,1),INDEX($E$21:$E$53,H24,1):INDEX($E$21:$E$53,H24+1))) -> 0 | J24: 0.3 | K24: 0.00522 | L24: 0.00628 | M24: 0.00305 | N24: 0.003 | O24: 0.04788 | P24: =IF($C$1="Type I",IF(O23=24,1,FORECAST(O24,INDEX(TypeI,MATCH(O24,TypeTime,1),1):INDEX(TypeI,MATCH(O24,TypeTime,1)+1,1),INDEX(TypeTime,MATCH(O24,TypeTime,1),1):INDEX(TypeTime,MATCH(O24,TypeTime)+1,1))), IF($C$1="Type IA",IF(O23=24,1,FORECAST(O24,INDEX(TypeIA,MATCH(O24,TypeTime,1),1):INDEX(TypeIA,MATCH(O24,TypeTime,1)+1,1),INDEX(TypeTime,MATCH(O24,TypeTime,1),1):INDEX(TypeTime,MATCH(O24,TypeTime)+1,1))), IF($C$1="Type II",IF(O23=24,1,FORECAST(O24,INDEX(TypeII,MATCH(O24,TypeTime,1),1):INDEX(TypeII,MATCH(O24,TypeTime,1)+1,1),INDEX(TypeTime,MATCH(O24,TypeTime,1),1):INDEX(TypeTime,MATCH(O24,TypeTime)+1,1))), IF($C$1="Type III",IF(O23=24,1,FORECAST(O24,INDEX(TypeIII,MATCH(O24,TypeTime,1),1):INDEX(TypeIII,MATCH(O24,TypeTime,1)+1,1),INDEX(TypeTime,MATCH(O24,TypeTime,1),1):INDEX(TypeTime,MATCH(O24,TypeTime)+1,1))), "Choose Type")))) -> 0.0004788 | Q24: 0.000617652 | R24: 0.001852956 | W24: 0.04788 | AB24: =$I$24*$U21 -> 
B25: 5 | C25: 0.4 | D25: 0.31 | E25: 0.03199058824 | F25: 0 | G25: 0.06384 | H25: 8 | I25: =IF(H25=33,0,FORECAST(G25,INDEX($F$21:$F$53,H25,1):INDEX($F$21:$F$53,H25+1,1),INDEX($E$21:$E$53,H25,1):INDEX($E$21:$E$53,H25+1))) -> 0 | J25: 0.4 | K25: 0.00697 | L25: 0.00816 | M25: 0.00408 | N25: 0.004 | O25: 0.06384 | P25: =IF($C$1="Type I",IF(O24=24,1,FORECAST(O25,INDEX(TypeI,MATCH(O25,TypeTime,1),1):INDEX(TypeI,MATCH(O25,TypeTime,1)+1,1),INDEX(TypeTime,MATCH(O25,TypeTime,1),1):INDEX(TypeTime,MATCH(O25,TypeTime)+1,1))), IF($C$1="Type IA",IF(O24=24,1,FORECAST(O25,INDEX(TypeIA,MATCH(O25,TypeTime,1),1):INDEX(TypeIA,MATCH(O25,TypeTime,1)+1,1),INDEX(TypeTime,MATCH(O25,TypeTime,1),1):INDEX(TypeTime,MATCH(O25,TypeTime)+1,1))), IF($C$1="Type II",IF(O24=24,1,FORECAST(O25,INDEX(TypeII,MATCH(O25,TypeTime,1),1):INDEX(TypeII,MATCH(O25,TypeTime,1)+1,1),INDEX(TypeTime,MATCH(O25,TypeTime,1),1):INDEX(TypeTime,MATCH(O25,TypeTime)+1,1))), IF($C$1="Type III",IF(O24=24,1,FORECAST(O25,INDEX(TypeIII,MATCH(O25,TypeTime,1),1):INDEX(TypeIII,MATCH(O25,TypeTime,1)+1,1),INDEX(TypeTime,MATCH(O25,TypeTime,1),1):INDEX(TypeTime,MATCH(O25,TypeTime)+1,1))), "Choose Type")))) -> 0.0006384 | Q25: 0.000617652 | R25: 0.002470608 | W25: 0.06384 | AC25: =$I$25*$U21 -> 
B26: 6 | C26: 0.5 | D26: 0.47 | E26: 0.03998823529 | F26: 0 | G26: 0.0798 | H26: 10 | I26: =IF(H26=33,0,FORECAST(G26,INDEX($F$21:$F$53,H26,1):INDEX($F$21:$F$53,H26+1,1),INDEX($E$21:$E$53,H26,1):INDEX($E$21:$E$53,H26+1))) -> 0 | J26: 0.5 | K26: 0.00871 | L26: 0.01 | M26: 0.00513 | N26: 0.005 | O26: 0.0798 | P26: =IF($C$1="Type I",IF(O25=24,1,FORECAST(O26,INDEX(TypeI,MATCH(O26,TypeTime,1),1):INDEX(TypeI,MATCH(O26,TypeTime,1)+1,1),INDEX(TypeTime,MATCH(O26,TypeTime,1),1):INDEX(TypeTime,MATCH(O26,TypeTime)+1,1))), IF($C$1="Type IA",IF(O25=24,1,FORECAST(O26,INDEX(TypeIA,MATCH(O26,TypeTime,1),1):INDEX(TypeIA,MATCH(O26,TypeTime,1)+1,1),INDEX(TypeTime,MATCH(O26,TypeTime,1),1):INDEX(TypeTime,MATCH(O26,TypeTime)+1,1))), IF($C$1="Type II",IF(O25=24,1,FORECAST(O26,INDEX(TypeII,MATCH(O26,TypeTime,1),1):INDEX(TypeII,MATCH(O26,TypeTime,1)+1,1),INDEX(TypeTime,MATCH(O26,TypeTime,1),1):INDEX(TypeTime,MATCH(O26,TypeTime)+1,1))), IF($C$1="Type III",IF(O25=24,1,FORECAST(O26,INDEX(TypeIII,MATCH(O26,TypeTime,1),1):INDEX(TypeIII,MATCH(O26,TypeTime,1)+1,1),INDEX(TypeTime,MATCH(O26,TypeTime,1),1):INDEX(TypeTime,MATCH(O26,TypeTime)+1,1))), "Choose Type")))) -> 0.000798 | Q26: 0.000617652 | R26: 0.00308826 | W26: 0.0798 | AD26: =$I$26*$U21 -> 
B27: 7 | C27: 0.6 | D27: 0.66 | E27: 0.04798588235 | F27: 0 | G27: 0.09576 | H27: 12 | I27: =IF(H27=33,0,FORECAST(G27,INDEX($F$21:$F$53,H27,1):INDEX($F$21:$F$53,H27+1,1),INDEX($E$21:$E$53,H27,1):INDEX($E$21:$E$53,H27+1))) -> 0 | J27: 0.6 | K27: 0.01046 | L27: 0.01184 | M27: 0.00618 | N27: 0.006 | O27: 0.09576 | P27: =IF($C$1="Type I",IF(O26=24,1,FORECAST(O27,INDEX(TypeI,MATCH(O27,TypeTime,1),1):INDEX(TypeI,MATCH(O27,TypeTime,1)+1,1),INDEX(TypeTime,MATCH(O27,TypeTime,1),1):INDEX(TypeTime,MATCH(O27,TypeTime)+1,1))), IF($C$1="Type IA",IF(O26=24,1,FORECAST(O27,INDEX(TypeIA,MATCH(O27,TypeTime,1),1):INDEX(TypeIA,MATCH(O27,TypeTime,1)+1,1),INDEX(TypeTime,MATCH(O27,TypeTime,1),1):INDEX(TypeTime,MATCH(O27,TypeTime)+1,1))), IF($C$1="Type II",IF(O26=24,1,FORECAST(O27,INDEX(TypeII,MATCH(O27,TypeTime,1),1):INDEX(TypeII,MATCH(O27,TypeTime,1)+1,1),INDEX(TypeTime,MATCH(O27,TypeTime,1),1):INDEX(TypeTime,MATCH(O27,TypeTime)+1,1))), IF($C$1="Type III",IF(O26=24,1,FORECAST(O27,INDEX(TypeIII,MATCH(O27,TypeTime,1),1):INDEX(TypeIII,MATCH(O27,TypeTime,1)+1,1),INDEX(TypeTime,MATCH(O27,TypeTime,1),1):INDEX(TypeTime,MATCH(O27,TypeTime)+1,1))), "Choose Type")))) -> 0.0009576 | Q27: 0.000617652 | R27: 0.003705912 | W27: 0.09576 | AE27: =$I$27*$U21 -> 
B28: 8 | C28: 0.7 | D28: 0.82 | E28: 0.05598352941 | F28: 0 | G28: 0.11172 | H28: 14 | I28: =IF(H28=33,0,FORECAST(G28,INDEX($F$21:$F$53,H28,1):INDEX($F$21:$F$53,H28+1,1),INDEX($E$21:$E$53,H28,1):INDEX($E$21:$E$53,H28+1))) -> 0 | J28: 0.7 | K28: 0.0122 | L28: 0.01372 | M28: 0.00725 | N28: 0.007 | O28: 0.11172 | P28: =IF($C$1="Type I",IF(O27=24,1,FORECAST(O28,INDEX(TypeI,MATCH(O28,TypeTime,1),1):INDEX(TypeI,MATCH(O28,TypeTime,1)+1,1),INDEX(TypeTime,MATCH(O28,TypeTime,1),1):INDEX(TypeTime,MATCH(O28,TypeTime)+1,1))), IF($C$1="Type IA",IF(O27=24,1,FORECAST(O28,INDEX(TypeIA,MATCH(O28,TypeTime,1),1):INDEX(TypeIA,MATCH(O28,TypeTime,1)+1,1),INDEX(TypeTime,MATCH(O28,TypeTime,1),1):INDEX(TypeTime,MATCH(O28,TypeTime)+1,1))), IF($C$1="Type II",IF(O27=24,1,FORECAST(O28,INDEX(TypeII,MATCH(O28,TypeTime,1),1):INDEX(TypeII,MATCH(O28,TypeTime,1)+1,1),INDEX(TypeTime,MATCH(O28,TypeTime,1),1):INDEX(TypeTime,MATCH(O28,TypeTime)+1,1))), IF($C$1="Type III",IF(O27=24,1,FORECAST(O28,INDEX(TypeIII,MATCH(O28,TypeTime,1),1):INDEX(TypeIII,MATCH(O28,TypeTime,1)+1,1),INDEX(TypeTime,MATCH(O28,TypeTime,1),1):INDEX(TypeTime,MATCH(O28,TypeTime)+1,1))), "Choose Type")))) -> 0.0011172 | Q28: 0.000617652 | R28: 0.004323564 | W28: 0.11172 | AF28: =$I$28*$U21 -> 
B29: 9 | C29: 0.8 | D29: 0.93 | E29: 0.06398117647 | F29: 0 | G29: 0.12768 | H29: 16 | I29: =IF(H29=33,0,FORECAST(G29,INDEX($F$21:$F$53,H29,1):INDEX($F$21:$F$53,H29+1,1),INDEX($E$21:$E$53,H29,1):INDEX($E$21:$E$53,H29+1))) -> 0 | J29: 0.8 | K29: 0.01395 | L29: 0.01568 | M29: 0.00832 | N29: 0.008 | O29: 0.12768 | P29: =IF($C$1="Type I",IF(O28=24,1,FORECAST(O29,INDEX(TypeI,MATCH(O29,TypeTime,1),1):INDEX(TypeI,MATCH(O29,TypeTime,1)+1,1),INDEX(TypeTime,MATCH(O29,TypeTime,1),1):INDEX(TypeTime,MATCH(O29,TypeTime)+1,1))), IF($C$1="Type IA",IF(O28=24,1,FORECAST(O29,INDEX(TypeIA,MATCH(O29,TypeTime,1),1):INDEX(TypeIA,MATCH(O29,TypeTime,1)+1,1),INDEX(TypeTime,MATCH(O29,TypeTime,1),1):INDEX(TypeTime,MATCH(O29,TypeTime)+1,1))), IF($C$1="Type II",IF(O28=24,1,FORECAST(O29,INDEX(TypeII,MATCH(O29,TypeTime,1),1):INDEX(TypeII,MATCH(O29,TypeTime,1)+1,1),INDEX(TypeTime,MATCH(O29,TypeTime,1),1):INDEX(TypeTime,MATCH(O29,TypeTime)+1,1))), IF($C$1="Type III",IF(O28=24,1,FORECAST(O29,INDEX(TypeIII,MATCH(O29,TypeTime,1),1):INDEX(TypeIII,MATCH(O29,TypeTime,1)+1,1),INDEX(TypeTime,MATCH(O29,TypeTime,1),1):INDEX(TypeTime,MATCH(O29,TypeTime)+1,1))), "Choose Type")))) -> 0.0012768 | Q29: 0.000617652 | R29: 0.004941216 | W29: 0.12768 | AG29: =$I$29*$U21 -> 
B30: 10 | C30: 0.9 | D30: 0.99 | E30: 0.07197882353 | F30: 0 | G30: 0.14364 | H30: 18 | I30: =IF(H30=33,0,FORECAST(G30,INDEX($F$21:$F$53,H30,1):INDEX($F$21:$F$53,H30+1,1),INDEX($E$21:$E$53,H30,1):INDEX($E$21:$E$53,H30+1))) -> 0 | J30: 0.9 | K30: 0.0157 | L30: 0.01776 | M30: 0.00941 | N30: 0.009 | O30: 0.14364 | P30: =IF($C$1="Type I",IF(O29=24,1,FORECAST(O30,INDEX(TypeI,MATCH(O30,TypeTime,1),1):INDEX(TypeI,MATCH(O30,TypeTime,1)+1,1),INDEX(TypeTime,MATCH(O30,TypeTime,1),1):INDEX(TypeTime,MATCH(O30,TypeTime)+1,1))), IF($C$1="Type IA",IF(O29=24,1,FORECAST(O30,INDEX(TypeIA,MATCH(O30,TypeTime,1),1):INDEX(TypeIA,MATCH(O30,TypeTime,1)+1,1),INDEX(TypeTime,MATCH(O30,TypeTime,1),1):INDEX(TypeTime,MATCH(O30,TypeTime)+1,1))), IF($C$1="Type II",IF(O29=24,1,FORECAST(O30,INDEX(TypeII,MATCH(O30,TypeTime,1),1):INDEX(TypeII,MATCH(O30,TypeTime,1)+1,1),INDEX(TypeTime,MATCH(O30,TypeTime,1),1):INDEX(TypeTime,MATCH(O30,TypeTime)+1,1))), IF($C$1="Type III",IF(O29=24,1,FORECAST(O30,INDEX(TypeIII,MATCH(O30,TypeTime,1),1):INDEX(TypeIII,MATCH(O30,TypeTime,1)+1,1),INDEX(TypeTime,MATCH(O30,TypeTime,1),1):INDEX(TypeTime,MATCH(O30,TypeTime)+1,1))), "Choose Type")))) -> 0.0014364 | Q30: 0.000617652 | R30: 0.005558868 | W30: 0.14364 | AH30: =$I$30*$U21 -> 
B31: 11 | C31: 1 | D31: 1 | E31: 0.07997647059 | F31: 0 | G31: 0.1596 | H31: 20 | I31: =IF(H31=33,0,FORECAST(G31,INDEX($F$21:$F$53,H31,1):INDEX($F$21:$F$53,H31+1,1),INDEX($E$21:$E$53,H31,1):INDEX($E$21:$E$53,H31+1))) -> 0 | J31: 1 | K31: 0.01745 | L31: 0.02 | M31: 0.0105 | N31: 0.01 | O31: 0.1596 | P31: =IF($C$1="Type I",IF(O30=24,1,FORECAST(O31,INDEX(TypeI,MATCH(O31,TypeTime,1),1):INDEX(TypeI,MATCH(O31,TypeTime,1)+1,1),INDEX(TypeTime,MATCH(O31,TypeTime,1),1):INDEX(TypeTime,MATCH(O31,TypeTime)+1,1))), IF($C$1="Type IA",IF(O30=24,1,FORECAST(O31,INDEX(TypeIA,MATCH(O31,TypeTime,1),1):INDEX(TypeIA,MATCH(O31,TypeTime,1)+1,1),INDEX(TypeTime,MATCH(O31,TypeTime,1),1):INDEX(TypeTime,MATCH(O31,TypeTime)+1,1))), IF($C$1="Type II",IF(O30=24,1,FORECAST(O31,INDEX(TypeII,MATCH(O31,TypeTime,1),1):INDEX(TypeII,MATCH(O31,TypeTime,1)+1,1),INDEX(TypeTime,MATCH(O31,TypeTime,1),1):INDEX(TypeTime,MATCH(O31,TypeTime)+1,1))), IF($C$1="Type III",IF(O30=24,1,FORECAST(O31,INDEX(TypeIII,MATCH(O31,TypeTime,1),1):INDEX(TypeIII,MATCH(O31,TypeTime,1)+1,1),INDEX(TypeTime,MATCH(O31,TypeTime,1),1):INDEX(TypeTime,MATCH(O31,TypeTime)+1,1))), "Choose Type")))) -> 0.001596 | Q31: 0.000617652 | R31: 0.00617652 | W31: 0.1596 | AI31: =$I$31*$U21 -> 
B32: 12 | C32: 1.1 | D32: 0.99 | E32: 0.08797411765 | F32: 0 | G32: 0.17556 | H32: 21 | I32: =IF(H32=33,0,FORECAST(G32,INDEX($F$21:$F$53,H32,1):INDEX($F$21:$F$53,H32+1,1),INDEX($E$21:$E$53,H32,1):INDEX($E$21:$E$53,H32+1))) -> 0 | J32: 1.1 | K32: 0.0192 | L32: 0.02276 | M32: 0.01161 | N32: 0.011 | O32: 0.17556 | P32: =IF($C$1="Type I",IF(O31=24,1,FORECAST(O32,INDEX(TypeI,MATCH(O32,TypeTime,1),1):INDEX(TypeI,MATCH(O32,TypeTime,1)+1,1),INDEX(TypeTime,MATCH(O32,TypeTime,1),1):INDEX(TypeTime,MATCH(O32,TypeTime)+1,1))), IF($C$1="Type IA",IF(O31=24,1,FORECAST(O32,INDEX(TypeIA,MATCH(O32,TypeTime,1),1):INDEX(TypeIA,MATCH(O32,TypeTime,1)+1,1),INDEX(TypeTime,MATCH(O32,TypeTime,1),1):INDEX(TypeTime,MATCH(O32,TypeTime)+1,1))), IF($C$1="Type II",IF(O31=24,1,FORECAST(O32,INDEX(TypeII,MATCH(O32,TypeTime,1),1):INDEX(TypeII,MATCH(O32,TypeTime,1)+1,1),INDEX(TypeTime,MATCH(O32,TypeTime,1),1):INDEX(TypeTime,MATCH(O32,TypeTime)+1,1))), IF($C$1="Type III",IF(O31=24,1,FORECAST(O32,INDEX(TypeIII,MATCH(O32,TypeTime,1),1):INDEX(TypeIII,MATCH(O32,TypeTime,1)+1,1),INDEX(TypeTime,MATCH(O32,TypeTime,1),1):INDEX(TypeTime,MATCH(O32,TypeTime)+1,1))), "Choose Type")))) -> 0.0017556 | Q32: 0.000617652 | R32: 0.006794172 | W32: 0.17556 | AJ32: =$I$32*$U21 -> 
B33: 13 | C33: 1.2 | D33: 0.93 | E33: 0.09597176471 | F33: 0 | G33: 0.19152 | H33: 22 | I33: =IF(H33=33,0,FORECAST(G33,INDEX($F$21:$F$53,H33,1):INDEX($F$21:$F$53,H33+1,1),INDEX($E$21:$E$53,H33,1):INDEX($E$21:$E$53,H33+1))) -> 0 | J33: 1.2 | K33: 0.02095 | L33: 0.02568 | M33: 0.01272 | N33: 0.012 | O33: 0.19152 | P33: =IF($C$1="Type I",IF(O32=24,1,FORECAST(O33,INDEX(TypeI,MATCH(O33,TypeTime,1),1):INDEX(TypeI,MATCH(O33,TypeTime,1)+1,1),INDEX(TypeTime,MATCH(O33,TypeTime,1),1):INDEX(TypeTime,MATCH(O33,TypeTime)+1,1))), IF($C$1="Type IA",IF(O32=24,1,FORECAST(O33,INDEX(TypeIA,MATCH(O33,TypeTime,1),1):INDEX(TypeIA,MATCH(O33,TypeTime,1)+1,1),INDEX(TypeTime,MATCH(O33,TypeTime,1),1):INDEX(TypeTime,MATCH(O33,TypeTime)+1,1))), IF($C$1="Type II",IF(O32=24,1,FORECAST(O33,INDEX(TypeII,MATCH(O33,TypeTime,1),1):INDEX(TypeII,MATCH(O33,TypeTime,1)+1,1),INDEX(TypeTime,MATCH(O33,TypeTime,1),1):INDEX(TypeTime,MATCH(O33,TypeTime)+1,1))), IF($C$1="Type III",IF(O32=24,1,FORECAST(O33,INDEX(TypeIII,MATCH(O33,TypeTime,1),1):INDEX(TypeIII,MATCH(O33,TypeTime,1)+1,1),INDEX(TypeTime,MATCH(O33,TypeTime,1),1):INDEX(TypeTime,MATCH(O33,TypeTime)+1,1))), "Choose Type")))) -> 0.0019152 | Q33: 0.000617652 | R33: 0.007411824 | W33: 0.19152 | AK33: =$I$33*$U21 -> 
B34: 14 | C34: 1.3 | D34: 0.86 | E34: 0.1039694118 | F34: 0 | G34: 0.20748 | H34: 23 | I34: =IF(H34=33,0,FORECAST(G34,INDEX($F$21:$F$53,H34,1):INDEX($F$21:$F$53,H34+1,1),INDEX($E$21:$E$53,H34,1):INDEX($E$21:$E$53,H34+1))) -> 0 | J34: 1.3 | K34: 0.0227 | L34: 0.02872 | M34: 0.01385 | N34: 0.013 | O34: 0.20748 | P34: =IF($C$1="Type I",IF(O33=24,1,FORECAST(O34,INDEX(TypeI,MATCH(O34,TypeTime,1),1):INDEX(TypeI,MATCH(O34,TypeTime,1)+1,1),INDEX(TypeTime,MATCH(O34,TypeTime,1),1):INDEX(TypeTime,MATCH(O34,TypeTime)+1,1))), IF($C$1="Type IA",IF(O33=24,1,FORECAST(O34,INDEX(TypeIA,MATCH(O34,TypeTime,1),1):INDEX(TypeIA,MATCH(O34,TypeTime,1)+1,1),INDEX(TypeTime,MATCH(O34,TypeTime,1),1):INDEX(TypeTime,MATCH(O34,TypeTime)+1,1))), IF($C$1="Type II",IF(O33=24,1,FORECAST(O34,INDEX(TypeII,MATCH(O34,TypeTime,1),1):INDEX(TypeII,MATCH(O34,TypeTime,1)+1,1),INDEX(TypeTime,MATCH(O34,TypeTime,1),1):INDEX(TypeTime,MATCH(O34,TypeTime)+1,1))), IF($C$1="Type III",IF(O33=24,1,FORECAST(O34,INDEX(TypeIII,MATCH(O34,TypeTime,1),1):INDEX(TypeIII,MATCH(O34,TypeTime,1)+1,1),INDEX(TypeTime,MATCH(O34,TypeTime,1),1):INDEX(TypeTime,MATCH(O34,TypeTime)+1,1))), "Choose Type")))) -> 0.0020748 | Q34: 0.000617652 | R34: 0.008029476 | W34: 0.20748 | AL34: =$I$34*$U21 -> 
B35: 15 | C35: 1.4 | D35: 0.78 | E35: 0.1119670588 | F35: 0 | G35: 0.22344 | H35: 24 | I35: =IF(H35=33,0,FORECAST(G35,INDEX($F$21:$F$53,H35,1):INDEX($F$21:$F$53,H35+1,1),INDEX($E$21:$E$53,H35,1):INDEX($E$21:$E$53,H35+1))) -> 0 | J35: 1.4 | K35: 0.02446 | L35: 0.03184 | M35: 0.01498 | N35: 0.014 | O35: 0.22344 | P35: =IF($C$1="Type I",IF(O34=24,1,FORECAST(O35,INDEX(TypeI,MATCH(O35,TypeTime,1),1):INDEX(TypeI,MATCH(O35,TypeTime,1)+1,1),INDEX(TypeTime,MATCH(O35,TypeTime,1),1):INDEX(TypeTime,MATCH(O35,TypeTime)+1,1))), IF($C$1="Type IA",IF(O34=24,1,FORECAST(O35,INDEX(TypeIA,MATCH(O35,TypeTime,1),1):INDEX(TypeIA,MATCH(O35,TypeTime,1)+1,1),INDEX(TypeTime,MATCH(O35,TypeTime,1),1):INDEX(TypeTime,MATCH(O35,TypeTime)+1,1))), IF($C$1="Type II",IF(O34=24,1,FORECAST(O35,INDEX(TypeII,MATCH(O35,TypeTime,1),1):INDEX(TypeII,MATCH(O35,TypeTime,1)+1,1),INDEX(TypeTime,MATCH(O35,TypeTime,1),1):INDEX(TypeTime,MATCH(O35,TypeTime)+1,1))), IF($C$1="Type III",IF(O34=24,1,FORECAST(O35,INDEX(TypeIII,MATCH(O35,TypeTime,1),1):INDEX(TypeIII,MATCH(O35,TypeTime,1)+1,1),INDEX(TypeTime,MATCH(O35,TypeTime,1),1):INDEX(TypeTime,MATCH(O35,TypeTime)+1,1))), "Choose Type")))) -> 0.0022344 | Q35: 0.000617652 | R35: 0.008647128 | W35: 0.22344 | AM35: =$I$35*$U21 -> 
B36: 16 | C36: 1.5 | D36: 0.68 | E36: 0.1199647059 | F36: 0 | G36: 0.2394 | H36: 25 | I36: =IF(H36=33,0,FORECAST(G36,INDEX($F$21:$F$53,H36,1):INDEX($F$21:$F$53,H36+1,1),INDEX($E$21:$E$53,H36,1):INDEX($E$21:$E$53,H36+1))) -> 0 | J36: 1.5 | K36: 0.02621 | L36: 0.035 | M36: 0.01613 | N36: 0.015 | O36: 0.2394 | P36: =IF($C$1="Type I",IF(O35=24,1,FORECAST(O36,INDEX(TypeI,MATCH(O36,TypeTime,1),1):INDEX(TypeI,MATCH(O36,TypeTime,1)+1,1),INDEX(TypeTime,MATCH(O36,TypeTime,1),1):INDEX(TypeTime,MATCH(O36,TypeTime)+1,1))), IF($C$1="Type IA",IF(O35=24,1,FORECAST(O36,INDEX(TypeIA,MATCH(O36,TypeTime,1),1):INDEX(TypeIA,MATCH(O36,TypeTime,1)+1,1),INDEX(TypeTime,MATCH(O36,TypeTime,1),1):INDEX(TypeTime,MATCH(O36,TypeTime)+1,1))), IF($C$1="Type II",IF(O35=24,1,FORECAST(O36,INDEX(TypeII,MATCH(O36,TypeTime,1),1):INDEX(TypeII,MATCH(O36,TypeTime,1)+1,1),INDEX(TypeTime,MATCH(O36,TypeTime,1),1):INDEX(TypeTime,MATCH(O36,TypeTime)+1,1))), IF($C$1="Type III",IF(O35=24,1,FORECAST(O36,INDEX(TypeIII,MATCH(O36,TypeTime,1),1):INDEX(TypeIII,MATCH(O36,TypeTime,1)+1,1),INDEX(TypeTime,MATCH(O36,TypeTime,1),1):INDEX(TypeTime,MATCH(O36,TypeTime)+1,1))), "Choose Type")))) -> 0.002394 | Q36: 0.000617652 | R36: 0.00926478 | W36: 0.2394 | AN36: =$I$36*$U21 -> 
B37: 17 | C37: 1.6 | D37: 0.56 | E37: 0.1279623529 | F37: 0 | G37: 0.25536 | H37: 26 | I37: =IF(H37=33,0,FORECAST(G37,INDEX($F$21:$F$53,H37,1):INDEX($F$21:$F$53,H37+1,1),INDEX($E$21:$E$53,H37,1):INDEX($E$21:$E$53,H37+1))) -> 0 | J37: 1.6 | K37: 0.02797 | L37: 0.03797 | M37: 0.01728 | N37: 0.016 | O37: 0.25536 | P37: =IF($C$1="Type I",IF(O36=24,1,FORECAST(O37,INDEX(TypeI,MATCH(O37,TypeTime,1),1):INDEX(TypeI,MATCH(O37,TypeTime,1)+1,1),INDEX(TypeTime,MATCH(O37,TypeTime,1),1):INDEX(TypeTime,MATCH(O37,TypeTime)+1,1))), IF($C$1="Type IA",IF(O36=24,1,FORECAST(O37,INDEX(TypeIA,MATCH(O37,TypeTime,1),1):INDEX(TypeIA,MATCH(O37,TypeTime,1)+1,1),INDEX(TypeTime,MATCH(O37,TypeTime,1),1):INDEX(TypeTime,MATCH(O37,TypeTime)+1,1))), IF($C$1="Type II",IF(O36=24,1,FORECAST(O37,INDEX(TypeII,MATCH(O37,TypeTime,1),1):INDEX(TypeII,MATCH(O37,TypeTime,1)+1,1),INDEX(TypeTime,MATCH(O37,TypeTime,1),1):INDEX(TypeTime,MATCH(O37,TypeTime)+1,1))), IF($C$1="Type III",IF(O36=24,1,FORECAST(O37,INDEX(TypeIII,MATCH(O37,TypeTime,1),1):INDEX(TypeIII,MATCH(O37,TypeTime,1)+1,1),INDEX(TypeTime,MATCH(O37,TypeTime,1),1):INDEX(TypeTime,MATCH(O37,TypeTime)+1,1))), "Choose Type")))) -> 0.0025536 | Q37: 0.000617652 | R37: 0.009882432 | W37: 0.25536 | AO37: =$I$37*$U21 -> 
B38: 18 | C38: 1.7 | D38: 0.46 | E38: 0.13596 | F38: 0 | G38: 0.27132 | H38: 27 | I38: =IF(H38=33,0,FORECAST(G38,INDEX($F$21:$F$53,H38,1):INDEX($F$21:$F$53,H38+1,1),INDEX($E$21:$E$53,H38,1):INDEX($E$21:$E$53,H38+1))) -> 0 | J38: 1.7 | K38: 0.02972 | L38: 0.04095 | M38: 0.01845 | N38: 0.017 | O38: 0.27132 | P38: =IF($C$1="Type I",IF(O37=24,1,FORECAST(O38,INDEX(TypeI,MATCH(O38,TypeTime,1),1):INDEX(TypeI,MATCH(O38,TypeTime,1)+1,1),INDEX(TypeTime,MATCH(O38,TypeTime,1),1):INDEX(TypeTime,MATCH(O38,TypeTime)+1,1))), IF($C$1="Type IA",IF(O37=24,1,FORECAST(O38,INDEX(TypeIA,MATCH(O38,TypeTime,1),1):INDEX(TypeIA,MATCH(O38,TypeTime,1)+1,1),INDEX(TypeTime,MATCH(O38,TypeTime,1),1):INDEX(TypeTime,MATCH(O38,TypeTime)+1,1))), IF($C$1="Type II",IF(O37=24,1,FORECAST(O38,INDEX(TypeII,MATCH(O38,TypeTime,1),1):INDEX(TypeII,MATCH(O38,TypeTime,1)+1,1),INDEX(TypeTime,MATCH(O38,TypeTime,1),1):INDEX(TypeTime,MATCH(O38,TypeTime)+1,1))), IF($C$1="Type III",IF(O37=24,1,FORECAST(O38,INDEX(TypeIII,MATCH(O38,TypeTime,1),1):INDEX(TypeIII,MATCH(O38,TypeTime,1)+1,1),INDEX(TypeTime,MATCH(O38,TypeTime,1),1):INDEX(TypeTime,MATCH(O38,TypeTime)+1,1))), "Choose Type")))) -> 0.0027132 | Q38: 0.000617652 | R38: 0.010500084 | W38: 0.27132 | AP38: =$I$38*$U21 -> 
B39: 19 | C39: 1.8 | D39: 0.39 | E39: 0.1439576471 | F39: 0 | G39: =MIN(24,G38+$C$12) -> 0.28728 | H39: 28 | I39: =IF(H39=33,0,FORECAST(G39,INDEX($F$21:$F$53,H39,1):INDEX($F$21:$F$53,H39+1,1),INDEX($E$21:$E$53,H39,1):INDEX($E$21:$E$53,H39+1))) -> 0 | J39: 1.8 | K39: 0.03148 | L39: 0.04394 | M39: 0.01962 | N39: 0.018 | O39: 0.28728 | P39: =IF($C$1="Type I",IF(O38=24,1,FORECAST(O39,INDEX(TypeI,MATCH(O39,TypeTime,1),1):INDEX(TypeI,MATCH(O39,TypeTime,1)+1,1),INDEX(TypeTime,MATCH(O39,TypeTime,1),1):INDEX(TypeTime,MATCH(O39,TypeTime)+1,1))), IF($C$1="Type IA",IF(O38=24,1,FORECAST(O39,INDEX(TypeIA,MATCH(O39,TypeTime,1),1):INDEX(TypeIA,MATCH(O39,TypeTime,1)+1,1),INDEX(TypeTime,MATCH(O39,TypeTime,1),1):INDEX(TypeTime,MATCH(O39,TypeTime)+1,1))), IF($C$1="Type II",IF(O38=24,1,FORECAST(O39,INDEX(TypeII,MATCH(O39,TypeTime,1),1):INDEX(TypeII,MATCH(O39,TypeTime,1)+1,1),INDEX(TypeTime,MATCH(O39,TypeTime,1),1):INDEX(TypeTime,MATCH(O39,TypeTime)+1,1))), IF($C$1="Type III",IF(O38=24,1,FORECAST(O39,INDEX(TypeIII,MATCH(O39,TypeTime,1),1):INDEX(TypeIII,MATCH(O39,TypeTime,1)+1,1),INDEX(TypeTime,MATCH(O39,TypeTime,1),1):INDEX(TypeTime,MATCH(O39,TypeTime)+1,1))), "Choose Type")))) -> 0.0028728 | Q39: 0.000617652 | R39: 0.011117736 | W39: 0.28728 | AQ39: =$I$39*$U21 -> 
B40: 20 | C40: 1.9 | D40: 0.33 | E40: 0.1519552941 | F40: 0 | G40: 0.30324 | H40: 29 | I40: =IF(H40=33,0,FORECAST(G40,INDEX($F$21:$F$53,H40,1):INDEX($F$21:$F$53,H40+1,1),INDEX($E$21:$E$53,H40,1):INDEX($E$21:$E$53,H40+1))) -> 0 | J40: 1.9 | K40: 0.03324 | L40: 0.04695 | M40: 0.02081 | N40: 0.019 | O40: 0.30324 | P40: =IF($C$1="Type I",IF(O39=24,1,FORECAST(O40,INDEX(TypeI,MATCH(O40,TypeTime,1),1):INDEX(TypeI,MATCH(O40,TypeTime,1)+1,1),INDEX(TypeTime,MATCH(O40,TypeTime,1),1):INDEX(TypeTime,MATCH(O40,TypeTime)+1,1))), IF($C$1="Type IA",IF(O39=24,1,FORECAST(O40,INDEX(TypeIA,MATCH(O40,TypeTime,1),1):INDEX(TypeIA,MATCH(O40,TypeTime,1)+1,1),INDEX(TypeTime,MATCH(O40,TypeTime,1),1):INDEX(TypeTime,MATCH(O40,TypeTime)+1,1))), IF($C$1="Type II",IF(O39=24,1,FORECAST(O40,INDEX(TypeII,MATCH(O40,TypeTime,1),1):INDEX(TypeII,MATCH(O40,TypeTime,1)+1,1),INDEX(TypeTime,MATCH(O40,TypeTime,1),1):INDEX(TypeTime,MATCH(O40,TypeTime)+1,1))), IF($C$1="Type III",IF(O39=24,1,FORECAST(O40,INDEX(TypeIII,MATCH(O40,TypeTime,1),1):INDEX(TypeIII,MATCH(O40,TypeTime,1)+1,1),INDEX(TypeTime,MATCH(O40,TypeTime,1),1):INDEX(TypeTime,MATCH(O40,TypeTime)+1,1))), "Choose Type")))) -> 0.0030324 | Q40: 0.000617652 | R40: 0.011735388 | W40: 0.30324 | AR40: =$I$40*$U21 -> 
B41: 21 | C41: 2 | D41: 0.28 | E41: 0.1599529412 | F41: 0 | G41: 0.3192 | H41: 30 | I41: =IF(H41=33,0,FORECAST(G41,INDEX($F$21:$F$53,H41,1):INDEX($F$21:$F$53,H41+1,1),INDEX($E$21:$E$53,H41,1):INDEX($E$21:$E$53,H41+1))) -> 0 | J41: 2 | K41: 0.035 | L41: 0.05 | M41: 0.022 | N41: 0.02 | O41: 0.3192 | P41: =IF($C$1="Type I",IF(O40=24,1,FORECAST(O41,INDEX(TypeI,MATCH(O41,TypeTime,1),1):INDEX(TypeI,MATCH(O41,TypeTime,1)+1,1),INDEX(TypeTime,MATCH(O41,TypeTime,1),1):INDEX(TypeTime,MATCH(O41,TypeTime)+1,1))), IF($C$1="Type IA",IF(O40=24,1,FORECAST(O41,INDEX(TypeIA,MATCH(O41,TypeTime,1),1):INDEX(TypeIA,MATCH(O41,TypeTime,1)+1,1),INDEX(TypeTime,MATCH(O41,TypeTime,1),1):INDEX(TypeTime,MATCH(O41,TypeTime)+1,1))), IF($C$1="Type II",IF(O40=24,1,FORECAST(O41,INDEX(TypeII,MATCH(O41,TypeTime,1),1):INDEX(TypeII,MATCH(O41,TypeTime,1)+1,1),INDEX(TypeTime,MATCH(O41,TypeTime,1),1):INDEX(TypeTime,MATCH(O41,TypeTime)+1,1))), IF($C$1="Type III",IF(O40=24,1,FORECAST(O41,INDEX(TypeIII,MATCH(O41,TypeTime,1),1):INDEX(TypeIII,MATCH(O41,TypeTime,1)+1,1),INDEX(TypeTime,MATCH(O41,TypeTime,1),1):INDEX(TypeTime,MATCH(O41,TypeTime)+1,1))), "Choose Type")))) -> 0.003192 | Q41: 0.000617652 | R41: 0.01235304 | W41: 0.3192 | AS41: =$I$41*$U21 -> 
B42: 22 | C42: 2.2 | D42: 0.207 | E42: 0.1759482353 | F42: 0 | G42: 0.33516 | H42: 31 | I42: =IF(H42=33,0,FORECAST(G42,INDEX($F$21:$F$53,H42,1):INDEX($F$21:$F$53,H42+1,1),INDEX($E$21:$E$53,H42,1):INDEX($E$21:$E$53,H42+1))) -> 0 | J42: 2.1 | K42: 0.03677 | L42: 0.05315 | M42: 0.02321 | N42: 0.02101 | O42: 0.33516 | P42: =IF($C$1="Type I",IF(O41=24,1,FORECAST(O42,INDEX(TypeI,MATCH(O42,TypeTime,1),1):INDEX(TypeI,MATCH(O42,TypeTime,1)+1,1),INDEX(TypeTime,MATCH(O42,TypeTime,1),1):INDEX(TypeTime,MATCH(O42,TypeTime)+1,1))), IF($C$1="Type IA",IF(O41=24,1,FORECAST(O42,INDEX(TypeIA,MATCH(O42,TypeTime,1),1):INDEX(TypeIA,MATCH(O42,TypeTime,1)+1,1),INDEX(TypeTime,MATCH(O42,TypeTime,1),1):INDEX(TypeTime,MATCH(O42,TypeTime)+1,1))), IF($C$1="Type II",IF(O41=24,1,FORECAST(O42,INDEX(TypeII,MATCH(O42,TypeTime,1),1):INDEX(TypeII,MATCH(O42,TypeTime,1)+1,1),INDEX(TypeTime,MATCH(O42,TypeTime,1),1):INDEX(TypeTime,MATCH(O42,TypeTime)+1,1))), IF($C$1="Type III",IF(O41=24,1,FORECAST(O42,INDEX(TypeIII,MATCH(O42,TypeTime,1),1):INDEX(TypeIII,MATCH(O42,TypeTime,1)+1,1),INDEX(TypeTime,MATCH(O42,TypeTime,1),1):INDEX(TypeTime,MATCH(O42,TypeTime)+1,1))), "Choose Type")))) -> 0.0033516 | Q42: 0.000617652 | R42: 0.012970692 | W42: 0.33516 | AT42: =$I$42*$U21 -> 
B43: 23 | C43: 2.4 | D43: 0.147 | E43: 0.1919435294 | F43: 0 | G43: 0.35112 | H43: 31 | I43: =IF(H43=33,0,FORECAST(G43,INDEX($F$21:$F$53,H43,1):INDEX($F$21:$F$53,H43+1,1),INDEX($E$21:$E$53,H43,1):INDEX($E$21:$E$53,H43+1))) -> 0 | J43: 2.2 | K43: 0.03858 | L43: 0.05633 | M43: 0.02442 | N43: 0.02203 | O43: 0.35112 | P43: =IF($C$1="Type I",IF(O42=24,1,FORECAST(O43,INDEX(TypeI,MATCH(O43,TypeTime,1),1):INDEX(TypeI,MATCH(O43,TypeTime,1)+1,1),INDEX(TypeTime,MATCH(O43,TypeTime,1),1):INDEX(TypeTime,MATCH(O43,TypeTime)+1,1))), IF($C$1="Type IA",IF(O42=24,1,FORECAST(O43,INDEX(TypeIA,MATCH(O43,TypeTime,1),1):INDEX(TypeIA,MATCH(O43,TypeTime,1)+1,1),INDEX(TypeTime,MATCH(O43,TypeTime,1),1):INDEX(TypeTime,MATCH(O43,TypeTime)+1,1))), IF($C$1="Type II",IF(O42=24,1,FORECAST(O43,INDEX(TypeII,MATCH(O43,TypeTime,1),1):INDEX(TypeII,MATCH(O43,TypeTime,1)+1,1),INDEX(TypeTime,MATCH(O43,TypeTime,1),1):INDEX(TypeTime,MATCH(O43,TypeTime)+1,1))), IF($C$1="Type III",IF(O42=24,1,FORECAST(O43,INDEX(TypeIII,MATCH(O43,TypeTime,1),1):INDEX(TypeIII,MATCH(O43,TypeTime,1)+1,1),INDEX(TypeTime,MATCH(O43,TypeTime,1),1):INDEX(TypeTime,MATCH(O43,TypeTime)+1,1))), "Choose Type")))) -> 0.0035112 | Q43: 0.000617652 | R43: 0.013588344 | W43: 0.35112 | AU43: =$I$43*$U21 -> 
B44: 24 | C44: 2.6 | D44: 0.107 | E44: 0.2079388235 | F44: 0 | G44: 0.36708 | H44: 32 | I44: =IF(H44=33,0,FORECAST(G44,INDEX($F$21:$F$53,H44,1):INDEX($F$21:$F$53,H44+1,1),INDEX($E$21:$E$53,H44,1):INDEX($E$21:$E$53,H44+1))) -> 0 | J44: 2.3 | K44: 0.04041 | L44: 0.05954 | M44: 0.02565 | N44: 0.02307 | O44: 0.36708 | P44: =IF($C$1="Type I",IF(O43=24,1,FORECAST(O44,INDEX(TypeI,MATCH(O44,TypeTime,1),1):INDEX(TypeI,MATCH(O44,TypeTime,1)+1,1),INDEX(TypeTime,MATCH(O44,TypeTime,1),1):INDEX(TypeTime,MATCH(O44,TypeTime)+1,1))), IF($C$1="Type IA",IF(O43=24,1,FORECAST(O44,INDEX(TypeIA,MATCH(O44,TypeTime,1),1):INDEX(TypeIA,MATCH(O44,TypeTime,1)+1,1),INDEX(TypeTime,MATCH(O44,TypeTime,1),1):INDEX(TypeTime,MATCH(O44,TypeTime)+1,1))), IF($C$1="Type II",IF(O43=24,1,FORECAST(O44,INDEX(TypeII,MATCH(O44,TypeTime,1),1):INDEX(TypeII,MATCH(O44,TypeTime,1)+1,1),INDEX(TypeTime,MATCH(O44,TypeTime,1),1):INDEX(TypeTime,MATCH(O44,TypeTime)+1,1))), IF($C$1="Type III",IF(O43=24,1,FORECAST(O44,INDEX(TypeIII,MATCH(O44,TypeTime,1),1):INDEX(TypeIII,MATCH(O44,TypeTime,1)+1,1),INDEX(TypeTime,MATCH(O44,TypeTime,1),1):INDEX(TypeTime,MATCH(O44,TypeTime)+1,1))), "Choose Type")))) -> 0.0036708 | Q44: 0.000617652 | R44: 0.014205996 | W44: 0.36708 | AV44: =$I$44*$U21 -> 
B45: 25 | C45: 2.8 | D45: 0.077 | E45: 0.2239341176 | F45: 0 | G45: 0.38304 | H45: 32 | I45: =IF(H45=33,0,FORECAST(G45,INDEX($F$21:$F$53,H45,1):INDEX($F$21:$F$53,H45+1,1),INDEX($E$21:$E$53,H45,1):INDEX($E$21:$E$53,H45+1))) -> 0 | J45: 2.4 | K45: 0.04227 | L45: 0.06276 | M45: 0.02688 | N45: 0.02412 | O45: 0.38304 | P45: =IF($C$1="Type I",IF(O44=24,1,FORECAST(O45,INDEX(TypeI,MATCH(O45,TypeTime,1),1):INDEX(TypeI,MATCH(O45,TypeTime,1)+1,1),INDEX(TypeTime,MATCH(O45,TypeTime,1),1):INDEX(TypeTime,MATCH(O45,TypeTime)+1,1))), IF($C$1="Type IA",IF(O44=24,1,FORECAST(O45,INDEX(TypeIA,MATCH(O45,TypeTime,1),1):INDEX(TypeIA,MATCH(O45,TypeTime,1)+1,1),INDEX(TypeTime,MATCH(O45,TypeTime,1),1):INDEX(TypeTime,MATCH(O45,TypeTime)+1,1))), IF($C$1="Type II",IF(O44=24,1,FORECAST(O45,INDEX(TypeII,MATCH(O45,TypeTime,1),1):INDEX(TypeII,MATCH(O45,TypeTime,1)+1,1),INDEX(TypeTime,MATCH(O45,TypeTime,1),1):INDEX(TypeTime,MATCH(O45,TypeTime)+1,1))), IF($C$1="Type III",IF(O44=24,1,FORECAST(O45,INDEX(TypeIII,MATCH(O45,TypeTime,1),1):INDEX(TypeIII,MATCH(O45,TypeTime,1)+1,1),INDEX(TypeTime,MATCH(O45,TypeTime,1),1):INDEX(TypeTime,MATCH(O45,TypeTime)+1,1))), "Choose Type")))) -> 0.0038304 | Q45: 0.000617652 | R45: 0.014823648 | W45: 0.38304 | AW45: =$I$45*$U21 -> 
B46: 26 | C46: 3 | D46: 0.06 | E46: 0.2399294118 | F46: 0 | G46: 0.399 | H46: 32 | I46: =IF(H46=33,0,FORECAST(G46,INDEX($F$21:$F$53,H46,1):INDEX($F$21:$F$53,H46+1,1),INDEX($E$21:$E$53,H46,1):INDEX($E$21:$E$53,H46+1))) -> 0 | J46: 2.5 | K46: 0.04416 | L46: 0.066 | M46: 0.02813 | N46: 0.02519 | O46: 0.399 | P46: =IF($C$1="Type I",IF(O45=24,1,FORECAST(O46,INDEX(TypeI,MATCH(O46,TypeTime,1),1):INDEX(TypeI,MATCH(O46,TypeTime,1)+1,1),INDEX(TypeTime,MATCH(O46,TypeTime,1),1):INDEX(TypeTime,MATCH(O46,TypeTime)+1,1))), IF($C$1="Type IA",IF(O45=24,1,FORECAST(O46,INDEX(TypeIA,MATCH(O46,TypeTime,1),1):INDEX(TypeIA,MATCH(O46,TypeTime,1)+1,1),INDEX(TypeTime,MATCH(O46,TypeTime,1),1):INDEX(TypeTime,MATCH(O46,TypeTime)+1,1))), IF($C$1="Type II",IF(O45=24,1,FORECAST(O46,INDEX(TypeII,MATCH(O46,TypeTime,1),1):INDEX(TypeII,MATCH(O46,TypeTime,1)+1,1),INDEX(TypeTime,MATCH(O46,TypeTime,1),1):INDEX(TypeTime,MATCH(O46,TypeTime)+1,1))), IF($C$1="Type III",IF(O45=24,1,FORECAST(O46,INDEX(TypeIII,MATCH(O46,TypeTime,1),1):INDEX(TypeIII,MATCH(O46,TypeTime,1)+1,1),INDEX(TypeTime,MATCH(O46,TypeTime,1),1):INDEX(TypeTime,MATCH(O46,TypeTime)+1,1))), "Choose Type")))) -> 0.00399 | Q46: 0.000617652 | R46: 0.0154413 | W46: 0.399 | AX46: =$I$46*$U21 -> 
B47: 27 | C47: 3.2 | D47: 0.04 | E47: 0.2559247059 | F47: 0 | G47: 0.41496 | H47: 33 | I47: =IF(H47=33,0,FORECAST(G47,INDEX($F$21:$F$53,H47,1):INDEX($F$21:$F$53,H47+1,1),INDEX($E$21:$E$53,H47,1):INDEX($E$21:$E$53,H47+1))) -> 0 | J47: 2.6 | K47: 0.04608 | L47: 0.0692 | M47: 0.02938 | N47: 0.02627 | O47: 0.41496 | P47: =IF($C$1="Type I",IF(O46=24,1,FORECAST(O47,INDEX(TypeI,MATCH(O47,TypeTime,1),1):INDEX(TypeI,MATCH(O47,TypeTime,1)+1,1),INDEX(TypeTime,MATCH(O47,TypeTime,1),1):INDEX(TypeTime,MATCH(O47,TypeTime)+1,1))), IF($C$1="Type IA",IF(O46=24,1,FORECAST(O47,INDEX(TypeIA,MATCH(O47,TypeTime,1),1):INDEX(TypeIA,MATCH(O47,TypeTime,1)+1,1),INDEX(TypeTime,MATCH(O47,TypeTime,1),1):INDEX(TypeTime,MATCH(O47,TypeTime)+1,1))), IF($C$1="Type II",IF(O46=24,1,FORECAST(O47,INDEX(TypeII,MATCH(O47,TypeTime,1),1):INDEX(TypeII,MATCH(O47,TypeTime,1)+1,1),INDEX(TypeTime,MATCH(O47,TypeTime,1),1):INDEX(TypeTime,MATCH(O47,TypeTime)+1,1))), IF($C$1="Type III",IF(O46=24,1,FORECAST(O47,INDEX(TypeIII,MATCH(O47,TypeTime,1),1):INDEX(TypeIII,MATCH(O47,TypeTime,1)+1,1),INDEX(TypeTime,MATCH(O47,TypeTime,1),1):INDEX(TypeTime,MATCH(O47,TypeTime)+1,1))), "Choose Type")))) -> 0.0041496 | Q47: 0.000617652 | R47: 0.016058952 | W47: 0.41496
B48: 28 | C48: 3.4 | D48: 0.029 | E48: 0.27192 | F48: 0 | G48: 0.43092 | H48: 33 | I48: =IF(H48=33,0,FORECAST(G48,INDEX($F$21:$F$53,H48,1):INDEX($F$21:$F$53,H48+1,1),INDEX($E$21:$E$53,H48,1):INDEX($E$21:$E$53,H48+1))) -> 0 | J48: 2.7 | K48: 0.04803 | L48: 0.0724 | M48: 0.03065 | N48: 0.02737 | O48: 0.43092 | P48: =IF($C$1="Type I",IF(O47=24,1,FORECAST(O48,INDEX(TypeI,MATCH(O48,TypeTime,1),1):INDEX(TypeI,MATCH(O48,TypeTime,1)+1,1),INDEX(TypeTime,MATCH(O48,TypeTime,1),1):INDEX(TypeTime,MATCH(O48,TypeTime)+1,1))), IF($C$1="Type IA",IF(O47=24,1,FORECAST(O48,INDEX(TypeIA,MATCH(O48,TypeTime,1),1):INDEX(TypeIA,MATCH(O48,TypeTime,1)+1,1),INDEX(TypeTime,MATCH(O48,TypeTime,1),1):INDEX(TypeTime,MATCH(O48,TypeTime)+1,1))), IF($C$1="Type II",IF(O47=24,1,FORECAST(O48,INDEX(TypeII,MATCH(O48,TypeTime,1),1):INDEX(TypeII,MATCH(O48,TypeTime,1)+1,1),INDEX(TypeTime,MATCH(O48,TypeTime,1),1):INDEX(TypeTime,MATCH(O48,TypeTime)+1,1))), IF($C$1="Type III",IF(O47=24,1,FORECAST(O48,INDEX(TypeIII,MATCH(O48,TypeTime,1),1):INDEX(TypeIII,MATCH(O48,TypeTime,1)+1,1),INDEX(TypeTime,MATCH(O48,TypeTime,1),1):INDEX(TypeTime,MATCH(O48,TypeTime)+1,1))), "Choose Type")))) -> 0.0043092 | Q48: 0.000617652 | R48: 0.016676604 | W48: 0.43092
B49: 29 | C49: 3.6 | D49: 0.021 | E49: 0.2879152941 | F49: 0 | G49: 0.44688 | H49: 33 | I49: =IF(H49=33,0,FORECAST(G49,INDEX($F$21:$F$53,H49,1):INDEX($F$21:$F$53,H49+1,1),INDEX($E$21:$E$53,H49,1):INDEX($E$21:$E$53,H49+1))) -> 0 | J49: 2.8 | K49: 0.05001 | L49: 0.0756 | M49: 0.03192 | N49: 0.02848 | O49: 0.44688 | P49: =IF($C$1="Type I",IF(O48=24,1,FORECAST(O49,INDEX(TypeI,MATCH(O49,TypeTime,1),1):INDEX(TypeI,MATCH(O49,TypeTime,1)+1,1),INDEX(TypeTime,MATCH(O49,TypeTime,1),1):INDEX(TypeTime,MATCH(O49,TypeTime)+1,1))), IF($C$1="Type IA",IF(O48=24,1,FORECAST(O49,INDEX(TypeIA,MATCH(O49,TypeTime,1),1):INDEX(TypeIA,MATCH(O49,TypeTime,1)+1,1),INDEX(TypeTime,MATCH(O49,TypeTime,1),1):INDEX(TypeTime,MATCH(O49,TypeTime)+1,1))), IF($C$1="Type II",IF(O48=24,1,FORECAST(O49,INDEX(TypeII,MATCH(O49,TypeTime,1),1):INDEX(TypeII,MATCH(O49,TypeTime,1)+1,1),INDEX(TypeTime,MATCH(O49,TypeTime,1),1):INDEX(TypeTime,MATCH(O49,TypeTime)+1,1))), IF($C$1="Type III",IF(O48=24,1,FORECAST(O49,INDEX(TypeIII,MATCH(O49,TypeTime,1),1):INDEX(TypeIII,MATCH(O49,TypeTime,1)+1,1),INDEX(TypeTime,MATCH(O49,TypeTime,1),1):INDEX(TypeTime,MATCH(O49,TypeTime)+1,1))), "Choose Type")))) -> 0.0044688 | Q49: 0.000617652 | R49: 0.017294256 | W49: 0.44688
B50: 30 | C50: 3.8 | D50: 0.015 | E50: 0.3039105882 | F50: 0 | G50: 0.46284 | H50: 33 | I50: =IF(H50=33,0,FORECAST(G50,INDEX($F$21:$F$53,H50,1):INDEX($F$21:$F$53,H50+1,1),INDEX($E$21:$E$53,H50,1):INDEX($E$21:$E$53,H50+1))) -> 0 | J50: 2.9 | K50: 0.05201 | L50: 0.0788 | M50: 0.03321 | N50: 0.02961 | O50: 0.46284 | P50: =IF($C$1="Type I",IF(O49=24,1,FORECAST(O50,INDEX(TypeI,MATCH(O50,TypeTime,1),1):INDEX(TypeI,MATCH(O50,TypeTime,1)+1,1),INDEX(TypeTime,MATCH(O50,TypeTime,1),1):INDEX(TypeTime,MATCH(O50,TypeTime)+1,1))), IF($C$1="Type IA",IF(O49=24,1,FORECAST(O50,INDEX(TypeIA,MATCH(O50,TypeTime,1),1):INDEX(TypeIA,MATCH(O50,TypeTime,1)+1,1),INDEX(TypeTime,MATCH(O50,TypeTime,1),1):INDEX(TypeTime,MATCH(O50,TypeTime)+1,1))), IF($C$1="Type II",IF(O49=24,1,FORECAST(O50,INDEX(TypeII,MATCH(O50,TypeTime,1),1):INDEX(TypeII,MATCH(O50,TypeTime,1)+1,1),INDEX(TypeTime,MATCH(O50,TypeTime,1),1):INDEX(TypeTime,MATCH(O50,TypeTime)+1,1))), IF($C$1="Type III",IF(O49=24,1,FORECAST(O50,INDEX(TypeIII,MATCH(O50,TypeTime,1),1):INDEX(TypeIII,MATCH(O50,TypeTime,1)+1,1),INDEX(TypeTime,MATCH(O50,TypeTime,1),1):INDEX(TypeTime,MATCH(O50,TypeTime)+1,1))), "Choose Type")))) -> 0.0046284 | Q50: 0.000617652 | R50: 0.017911908 | W50: 0.46284
B51: 31 | C51: 4 | D51: 0.01 | E51: 0.3199058824 | F51: 0 | G51: 0.4788 | H51: 33 | I51: =IF(H51=33,0,FORECAST(G51,INDEX($F$21:$F$53,H51,1):INDEX($F$21:$F$53,H51+1,1),INDEX($E$21:$E$53,H51,1):INDEX($E$21:$E$53,H51+1))) -> 0 | J51: 3 | K51: 0.05405 | L51: 0.082 | M51: 0.0345 | N51: 0.03075 | O51: 0.4788 | P51: =IF($C$1="Type I",IF(O50=24,1,FORECAST(O51,INDEX(TypeI,MATCH(O51,TypeTime,1),1):INDEX(TypeI,MATCH(O51,TypeTime,1)+1,1),INDEX(TypeTime,MATCH(O51,TypeTime,1),1):INDEX(TypeTime,MATCH(O51,TypeTime)+1,1))), IF($C$1="Type IA",IF(O50=24,1,FORECAST(O51,INDEX(TypeIA,MATCH(O51,TypeTime,1),1):INDEX(TypeIA,MATCH(O51,TypeTime,1)+1,1),INDEX(TypeTime,MATCH(O51,TypeTime,1),1):INDEX(TypeTime,MATCH(O51,TypeTime)+1,1))), IF($C$1="Type II",IF(O50=24,1,FORECAST(O51,INDEX(TypeII,MATCH(O51,TypeTime,1),1):INDEX(TypeII,MATCH(O51,TypeTime,1)+1,1),INDEX(TypeTime,MATCH(O51,TypeTime,1),1):INDEX(TypeTime,MATCH(O51,TypeTime)+1,1))), IF($C$1="Type III",IF(O50=24,1,FORECAST(O51,INDEX(TypeIII,MATCH(O51,TypeTime,1),1):INDEX(TypeIII,MATCH(O51,TypeTime,1)+1,1),INDEX(TypeTime,MATCH(O51,TypeTime,1),1):INDEX(TypeTime,MATCH(O51,TypeTime)+1,1))), "Choose Type")))) -> 0.004788 | Q51: 0.000617652 | R51: 0.01852956 | W51: 0.4788
B52: 32 | C52: 4.5 | D52: 0.005 | E52: 0.3598941176 | F52: 0 | G52: 0.49476 | H52: 33 | I52: =IF(H52=33,0,FORECAST(G52,INDEX($F$21:$F$53,H52,1):INDEX($F$21:$F$53,H52+1,1),INDEX($E$21:$E$53,H52,1):INDEX($E$21:$E$53,H52+1))) -> 0 | J52: 3.1 | K52: 0.05611 | L52: 0.08514 | M52: 0.03581 | N52: 0.03191 | O52: 0.49476 | P52: =IF($C$1="Type I",IF(O51=24,1,FORECAST(O52,INDEX(TypeI,MATCH(O52,TypeTime,1),1):INDEX(TypeI,MATCH(O52,TypeTime,1)+1,1),INDEX(TypeTime,MATCH(O52,TypeTime,1),1):INDEX(TypeTime,MATCH(O52,TypeTime)+1,1))), IF($C$1="Type IA",IF(O51=24,1,FORECAST(O52,INDEX(TypeIA,MATCH(O52,TypeTime,1),1):INDEX(TypeIA,MATCH(O52,TypeTime,1)+1,1),INDEX(TypeTime,MATCH(O52,TypeTime,1),1):INDEX(TypeTime,MATCH(O52,TypeTime)+1,1))), IF($C$1="Type II",IF(O51=24,1,FORECAST(O52,INDEX(TypeII,MATCH(O52,TypeTime,1),1):INDEX(TypeII,MATCH(O52,TypeTime,1)+1,1),INDEX(TypeTime,MATCH(O52,TypeTime,1),1):INDEX(TypeTime,MATCH(O52,TypeTime)+1,1))), IF($C$1="Type III",IF(O51=24,1,FORECAST(O52,INDEX(TypeIII,MATCH(O52,TypeTime,1),1):INDEX(TypeIII,MATCH(O52,TypeTime,1)+1,1),INDEX(TypeTime,MATCH(O52,TypeTime,1),1):INDEX(TypeTime,MATCH(O52,TypeTime)+1,1))), "Choose Type")))) -> 0.0049476 | Q52: 0.000617652 | R52: 0.019147212 | W52: 0.49476
B53: 33 | C53: 5 | D53: 0 | E53: 0.3998823529 | F53: 0 | G53: 0.51072 | H53: 33 | I53: =IF(H53=33,0,FORECAST(G53,INDEX($F$21:$F$53,H53,1):INDEX($F$21:$F$53,H53+1,1),INDEX($E$21:$E$53,H53,1):INDEX($E$21:$E$53,H53+1))) -> 0 | J53: 3.2 | K53: 0.05821 | L53: 0.08829 | M53: 0.03712 | N53: 0.03308 | O53: 0.51072 | P53: =IF($C$1="Type I",IF(O52=24,1,FORECAST(O53,INDEX(TypeI,MATCH(O53,TypeTime,1),1):INDEX(TypeI,MATCH(O53,TypeTime,1)+1,1),INDEX(TypeTime,MATCH(O53,TypeTime,1),1):INDEX(TypeTime,MATCH(O53,TypeTime)+1,1))), IF($C$1="Type IA",IF(O52=24,1,FORECAST(O53,INDEX(TypeIA,MATCH(O53,TypeTime,1),1):INDEX(TypeIA,MATCH(O53,TypeTime,1)+1,1),INDEX(TypeTime,MATCH(O53,TypeTime,1),1):INDEX(TypeTime,MATCH(O53,TypeTime)+1,1))), IF($C$1="Type II",IF(O52=24,1,FORECAST(O53,INDEX(TypeII,MATCH(O53,TypeTime,1),1):INDEX(TypeII,MATCH(O53,TypeTime,1)+1,1),INDEX(TypeTime,MATCH(O53,TypeTime,1),1):INDEX(TypeTime,MATCH(O53,TypeTime)+1,1))), IF($C$1="Type III",IF(O52=24,1,FORECAST(O53,INDEX(TypeIII,MATCH(O53,TypeTime,1),1):INDEX(TypeIII,MATCH(O53,TypeTime,1)+1,1),INDEX(TypeTime,MATCH(O53,TypeTime,1),1):INDEX(TypeTime,MATCH(O53,TypeTime)+1,1))), "Choose Type")))) -> 0.0051072 | Q53: 0.000617652 | R53: 0.019764864 | W53: 0.51072
B54: 34 | G54: 0.52668 | H54: 33 | I54: =IF(H54=33,0,FORECAST(G54,INDEX($F$21:$F$53,H54,1):INDEX($F$21:$F$53,H54+1,1),INDEX($E$21:$E$53,H54,1):INDEX($E$21:$E$53,H54+1))) -> 0 | J54: 3.3 | K54: 0.06033 | L54: 0.09147 | M54: 0.03845 | N54: 0.03427 | O54: 0.52668 | P54: =IF($C$1="Type I",IF(O53=24,1,FORECAST(O54,INDEX(TypeI,MATCH(O54,TypeTime,1),1):INDEX(TypeI,MATCH(O54,TypeTime,1)+1,1),INDEX(TypeTime,MATCH(O54,TypeTime,1),1):INDEX(TypeTime,MATCH(O54,TypeTime)+1,1))), IF($C$1="Type IA",IF(O53=24,1,FORECAST(O54,INDEX(TypeIA,MATCH(O54,TypeTime,1),1):INDEX(TypeIA,MATCH(O54,TypeTime,1)+1,1),INDEX(TypeTime,MATCH(O54,TypeTime,1),1):INDEX(TypeTime,MATCH(O54,TypeTime)+1,1))), IF($C$1="Type II",IF(O53=24,1,FORECAST(O54,INDEX(TypeII,MATCH(O54,TypeTime,1),1):INDEX(TypeII,MATCH(O54,TypeTime,1)+1,1),INDEX(TypeTime,MATCH(O54,TypeTime,1),1):INDEX(TypeTime,MATCH(O54,TypeTime)+1,1))), IF($C$1="Type III",IF(O53=24,1,FORECAST(O54,INDEX(TypeIII,MATCH(O54,TypeTime,1),1):INDEX(TypeIII,MATCH(O54,TypeTime,1)+1,1),INDEX(TypeTime,MATCH(O54,TypeTime,1),1):INDEX(TypeTime,MATCH(O54,TypeTime)+1,1))), "Choose Type")))) -> 0.0052668 | Q54: 0.000617652 | R54: 0.020382516 | W54: 0.52668
B55: 35 | G55: 0.54264 | H55: 33 | I55: =IF(H55=33,0,FORECAST(G55,INDEX($F$21:$F$53,H55,1):INDEX($F$21:$F$53,H55+1,1),INDEX($E$21:$E$53,H55,1):INDEX($E$21:$E$53,H55+1))) -> 0 | J55: 3.4 | K55: 0.06248 | L55: 0.09471 | M55: 0.03978 | N55: 0.03547 | O55: 0.54264 | P55: =IF($C$1="Type I",IF(O54=24,1,FORECAST(O55,INDEX(TypeI,MATCH(O55,TypeTime,1),1):INDEX(TypeI,MATCH(O55,TypeTime,1)+1,1),INDEX(TypeTime,MATCH(O55,TypeTime,1),1):INDEX(TypeTime,MATCH(O55,TypeTime)+1,1))), IF($C$1="Type IA",IF(O54=24,1,FORECAST(O55,INDEX(TypeIA,MATCH(O55,TypeTime,1),1):INDEX(TypeIA,MATCH(O55,TypeTime,1)+1,1),INDEX(TypeTime,MATCH(O55,TypeTime,1),1):INDEX(TypeTime,MATCH(O55,TypeTime)+1,1))), IF($C$1="Type II",IF(O54=24,1,FORECAST(O55,INDEX(TypeII,MATCH(O55,TypeTime,1),1):INDEX(TypeII,MATCH(O55,TypeTime,1)+1,1),INDEX(TypeTime,MATCH(O55,TypeTime,1),1):INDEX(TypeTime,MATCH(O55,TypeTime)+1,1))), IF($C$1="Type III",IF(O54=24,1,FORECAST(O55,INDEX(TypeIII,MATCH(O55,TypeTime,1),1):INDEX(TypeIII,MATCH(O55,TypeTime,1)+1,1),INDEX(TypeTime,MATCH(O55,TypeTime,1),1):INDEX(TypeTime,MATCH(O55,TypeTime)+1,1))), "Choose Type")))) -> 0.0054264 | Q55: 0.000617652 | R55: 0.021000168 | W55: 0.54264
B56: 36 | G56: 0.5586 | H56: 33 | I56: =IF(H56=33,0,FORECAST(G56,INDEX($F$21:$F$53,H56,1):INDEX($F$21:$F$53,H56+1,1),INDEX($E$21:$E$53,H56,1):INDEX($E$21:$E$53,H56+1))) -> 0 | J56: 3.5 | K56: 0.06466 | L56: 0.098 | M56: 0.04113 | N56: 0.03669 | O56: 0.5586 | P56: =IF($C$1="Type I",IF(O55=24,1,FORECAST(O56,INDEX(TypeI,MATCH(O56,TypeTime,1),1):INDEX(TypeI,MATCH(O56,TypeTime,1)+1,1),INDEX(TypeTime,MATCH(O56,TypeTime,1),1):INDEX(TypeTime,MATCH(O56,TypeTime)+1,1))), IF($C$1="Type IA",IF(O55=24,1,FORECAST(O56,INDEX(TypeIA,MATCH(O56,TypeTime,1),1):INDEX(TypeIA,MATCH(O56,TypeTime,1)+1,1),INDEX(TypeTime,MATCH(O56,TypeTime,1),1):INDEX(TypeTime,MATCH(O56,TypeTime)+1,1))), IF($C$1="Type II",IF(O55=24,1,FORECAST(O56,INDEX(TypeII,MATCH(O56,TypeTime,1),1):INDEX(TypeII,MATCH(O56,TypeTime,1)+1,1),INDEX(TypeTime,MATCH(O56,TypeTime,1),1):INDEX(TypeTime,MATCH(O56,TypeTime)+1,1))), IF($C$1="Type III",IF(O55=24,1,FORECAST(O56,INDEX(TypeIII,MATCH(O56,TypeTime,1),1):INDEX(TypeIII,MATCH(O56,TypeTime,1)+1,1),INDEX(TypeTime,MATCH(O56,TypeTime,1),1):INDEX(TypeTime,MATCH(O56,TypeTime)+1,1))), "Choose Type")))) -> 0.005586 | Q56: 0.000617652 | R56: 0.02161782 | W56: 0.5586
B57: 37 | G57: 0.57456 | H57: 33 | I57: =IF(H57=33,0,FORECAST(G57,INDEX($F$21:$F$53,H57,1):INDEX($F$21:$F$53,H57+1,1),INDEX($E$21:$E$53,H57,1):INDEX($E$21:$E$53,H57+1))) -> 0 | J57: 3.6 | K57: 0.06687 | L57: 0.10147 | M57: 0.04248 | N57: 0.03792 | O57: 0.57456 | P57: =IF($C$1="Type I",IF(O56=24,1,FORECAST(O57,INDEX(TypeI,MATCH(O57,TypeTime,1),1):INDEX(TypeI,MATCH(O57,TypeTime,1)+1,1),INDEX(TypeTime,MATCH(O57,TypeTime,1),1):INDEX(TypeTime,MATCH(O57,TypeTime)+1,1))), IF($C$1="Type IA",IF(O56=24,1,FORECAST(O57,INDEX(TypeIA,MATCH(O57,TypeTime,1),1):INDEX(TypeIA,MATCH(O57,TypeTime,1)+1,1),INDEX(TypeTime,MATCH(O57,TypeTime,1),1):INDEX(TypeTime,MATCH(O57,TypeTime)+1,1))), IF($C$1="Type II",IF(O56=24,1,FORECAST(O57,INDEX(TypeII,MATCH(O57,TypeTime,1),1):INDEX(TypeII,MATCH(O57,TypeTime,1)+1,1),INDEX(TypeTime,MATCH(O57,TypeTime,1),1):INDEX(TypeTime,MATCH(O57,TypeTime)+1,1))), IF($C$1="Type III",IF(O56=24,1,FORECAST(O57,INDEX(TypeIII,MATCH(O57,TypeTime,1),1):INDEX(TypeIII,MATCH(O57,TypeTime,1)+1,1),INDEX(TypeTime,MATCH(O57,TypeTime,1),1):INDEX(TypeTime,MATCH(O57,TypeTime)+1,1))), "Choose Type")))) -> 0.0057456 | Q57: 0.000617652 | R57: 0.022235472 | W57: 0.57456
B58: 38 | G58: 0.59052 | H58: 33 | I58: =IF(H58=33,0,FORECAST(G58,INDEX($F$21:$F$53,H58,1):INDEX($F$21:$F$53,H58+1,1),INDEX($E$21:$E$53,H58,1):INDEX($E$21:$E$53,H58+1))) -> 0 | J58: 3.7 | K58: 0.06911 | L58: 0.10502 | M58: 0.04385 | N58: 0.03917 | O58: 0.59052 | P58: =IF($C$1="Type I",IF(O57=24,1,FORECAST(O58,INDEX(TypeI,MATCH(O58,TypeTime,1),1):INDEX(TypeI,MATCH(O58,TypeTime,1)+1,1),INDEX(TypeTime,MATCH(O58,TypeTime,1),1):INDEX(TypeTime,MATCH(O58,TypeTime)+1,1))), IF($C$1="Type IA",IF(O57=24,1,FORECAST(O58,INDEX(TypeIA,MATCH(O58,TypeTime,1),1):INDEX(TypeIA,MATCH(O58,TypeTime,1)+1,1),INDEX(TypeTime,MATCH(O58,TypeTime,1),1):INDEX(TypeTime,MATCH(O58,TypeTime)+1,1))), IF($C$1="Type II",IF(O57=24,1,FORECAST(O58,INDEX(TypeII,MATCH(O58,TypeTime,1),1):INDEX(TypeII,MATCH(O58,TypeTime,1)+1,1),INDEX(TypeTime,MATCH(O58,TypeTime,1),1):INDEX(TypeTime,MATCH(O58,TypeTime)+1,1))), IF($C$1="Type III",IF(O57=24,1,FORECAST(O58,INDEX(TypeIII,MATCH(O58,TypeTime,1),1):INDEX(TypeIII,MATCH(O58,TypeTime,1)+1,1),INDEX(TypeTime,MATCH(O58,TypeTime,1),1):INDEX(TypeTime,MATCH(O58,TypeTime)+1,1))), "Choose Type")))) -> 0.0059052 | Q58: 0.000617652 | R58: 0.022853124 | W58: 0.59052
B59: 39 | G59: 0.60648 | H59: 33 | I59: =IF(H59=33,0,FORECAST(G59,INDEX($F$21:$F$53,H59,1):INDEX($F$21:$F$53,H59+1,1),INDEX($E$21:$E$53,H59,1):INDEX($E$21:$E$53,H59+1))) -> 0 | J59: 3.8 | K59: 0.07138 | L59: 0.10862 | M59: 0.04522 | N59: 0.04043 | O59: 0.60648 | P59: =IF($C$1="Type I",IF(O58=24,1,FORECAST(O59,INDEX(TypeI,MATCH(O59,TypeTime,1),1):INDEX(TypeI,MATCH(O59,TypeTime,1)+1,1),INDEX(TypeTime,MATCH(O59,TypeTime,1),1):INDEX(TypeTime,MATCH(O59,TypeTime)+1,1))), IF($C$1="Type IA",IF(O58=24,1,FORECAST(O59,INDEX(TypeIA,MATCH(O59,TypeTime,1),1):INDEX(TypeIA,MATCH(O59,TypeTime,1)+1,1),INDEX(TypeTime,MATCH(O59,TypeTime,1),1):INDEX(TypeTime,MATCH(O59,TypeTime)+1,1))), IF($C$1="Type II",IF(O58=24,1,FORECAST(O59,INDEX(TypeII,MATCH(O59,TypeTime,1),1):INDEX(TypeII,MATCH(O59,TypeTime,1)+1,1),INDEX(TypeTime,MATCH(O59,TypeTime,1),1):INDEX(TypeTime,MATCH(O59,TypeTime)+1,1))), IF($C$1="Type III",IF(O58=24,1,FORECAST(O59,INDEX(TypeIII,MATCH(O59,TypeTime,1),1):INDEX(TypeIII,MATCH(O59,TypeTime,1)+1,1),INDEX(TypeTime,MATCH(O59,TypeTime,1),1):INDEX(TypeTime,MATCH(O59,TypeTime)+1,1))), "Choose Type")))) -> 0.0060648 | Q59: 0.000617652 | R59: 0.023470776 | W59: 0.60648
B60: 40 | G60: 0.62244 | H60: 33 | I60: =IF(H60=33,0,FORECAST(G60,INDEX($F$21:$F$53,H60,1):INDEX($F$21:$F$53,H60+1,1),INDEX($E$21:$E$53,H60,1):INDEX($E$21:$E$53,H60+1))) -> 0 | J60: 3.9 | K60: 0.07367 | L60: 0.11229 | M60: 0.04661 | N60: 0.04171 | O60: 0.62244 | P60: =IF($C$1="Type I",IF(O59=24,1,FORECAST(O60,INDEX(TypeI,MATCH(O60,TypeTime,1),1):INDEX(TypeI,MATCH(O60,TypeTime,1)+1,1),INDEX(TypeTime,MATCH(O60,TypeTime,1),1):INDEX(TypeTime,MATCH(O60,TypeTime)+1,1))), IF($C$1="Type IA",IF(O59=24,1,FORECAST(O60,INDEX(TypeIA,MATCH(O60,TypeTime,1),1):INDEX(TypeIA,MATCH(O60,TypeTime,1)+1,1),INDEX(TypeTime,MATCH(O60,TypeTime,1),1):INDEX(TypeTime,MATCH(O60,TypeTime)+1,1))), IF($C$1="Type II",IF(O59=24,1,FORECAST(O60,INDEX(TypeII,MATCH(O60,TypeTime,1),1):INDEX(TypeII,MATCH(O60,TypeTime,1)+1,1),INDEX(TypeTime,MATCH(O60,TypeTime,1),1):INDEX(TypeTime,MATCH(O60,TypeTime)+1,1))), IF($C$1="Type III",IF(O59=24,1,FORECAST(O60,INDEX(TypeIII,MATCH(O60,TypeTime,1),1):INDEX(TypeIII,MATCH(O60,TypeTime,1)+1,1),INDEX(TypeTime,MATCH(O60,TypeTime,1),1):INDEX(TypeTime,MATCH(O60,TypeTime)+1,1))), "Choose Type")))) -> 0.0062244 | Q60: 0.000617652 | R60: 0.024088428 | W60: 0.62244
B61: 41 | G61: 0.6384 | H61: 33 | I61: =IF(H61=33,0,FORECAST(G61,INDEX($F$21:$F$53,H61,1):INDEX($F$21:$F$53,H61+1,1),INDEX($E$21:$E$53,H61,1):INDEX($E$21:$E$53,H61+1))) -> 0 | J61: 4 | K61: 0.076 | L61: 0.116 | M61: 0.048 | N61: 0.043 | O61: 0.6384 | P61: =IF($C$1="Type I",IF(O60=24,1,FORECAST(O61,INDEX(TypeI,MATCH(O61,TypeTime,1),1):INDEX(TypeI,MATCH(O61,TypeTime,1)+1,1),INDEX(TypeTime,MATCH(O61,TypeTime,1),1):INDEX(TypeTime,MATCH(O61,TypeTime)+1,1))), IF($C$1="Type IA",IF(O60=24,1,FORECAST(O61,INDEX(TypeIA,MATCH(O61,TypeTime,1),1):INDEX(TypeIA,MATCH(O61,TypeTime,1)+1,1),INDEX(TypeTime,MATCH(O61,TypeTime,1),1):INDEX(TypeTime,MATCH(O61,TypeTime)+1,1))), IF($C$1="Type II",IF(O60=24,1,FORECAST(O61,INDEX(TypeII,MATCH(O61,TypeTime,1),1):INDEX(TypeII,MATCH(O61,TypeTime,1)+1,1),INDEX(TypeTime,MATCH(O61,TypeTime,1),1):INDEX(TypeTime,MATCH(O61,TypeTime)+1,1))), IF($C$1="Type III",IF(O60=24,1,FORECAST(O61,INDEX(TypeIII,MATCH(O61,TypeTime,1),1):INDEX(TypeIII,MATCH(O61,TypeTime,1)+1,1),INDEX(TypeTime,MATCH(O61,TypeTime,1),1):INDEX(TypeTime,MATCH(O61,TypeTime)+1,1))), "Choose Type")))) -> 0.006384 | Q61: 0.000617652 | R61: 0.02470608 | W61: 0.6384
B62: 42 | G62: 0.65436 | H62: 33 | I62: =IF(H62=33,0,FORECAST(G62,INDEX($F$21:$F$53,H62,1):INDEX($F$21:$F$53,H62+1,1),INDEX($E$21:$E$53,H62,1):INDEX($E$21:$E$53,H62+1))) -> 0 | J62: 4.1 | K62: 0.07835 | L62: 0.11969 | M62: 0.04941 | N62: 0.04431 | O62: 0.65436 | P62: =IF($C$1="Type I",IF(O61=24,1,FORECAST(O62,INDEX(TypeI,MATCH(O62,TypeTime,1),1):INDEX(TypeI,MATCH(O62,TypeTime,1)+1,1),INDEX(TypeTime,MATCH(O62,TypeTime,1),1):INDEX(TypeTime,MATCH(O62,TypeTime)+1,1))), IF($C$1="Type IA",IF(O61=24,1,FORECAST(O62,INDEX(TypeIA,MATCH(O62,TypeTime,1),1):INDEX(TypeIA,MATCH(O62,TypeTime,1)+1,1),INDEX(TypeTime,MATCH(O62,TypeTime,1),1):INDEX(TypeTime,MATCH(O62,TypeTime)+1,1))), IF($C$1="Type II",IF(O61=24,1,FORECAST(O62,INDEX(TypeII,MATCH(O62,TypeTime,1),1):INDEX(TypeII,MATCH(O62,TypeTime,1)+1,1),INDEX(TypeTime,MATCH(O62,TypeTime,1),1):INDEX(TypeTime,MATCH(O62,TypeTime)+1,1))), IF($C$1="Type III",IF(O61=24,1,FORECAST(O62,INDEX(TypeIII,MATCH(O62,TypeTime,1),1):INDEX(TypeIII,MATCH(O62,TypeTime,1)+1,1),INDEX(TypeTime,MATCH(O62,TypeTime,1),1):INDEX(TypeTime,MATCH(O62,TypeTime)+1,1))), "Choose Type")))) -> 0.0065436 | Q62: 0.000617652 | R62: 0.025323732 | W62: 0.65436
B63: 43 | G63: 0.67032 | H63: 33 | I63: =IF(H63=33,0,FORECAST(G63,INDEX($F$21:$F$53,H63,1):INDEX($F$21:$F$53,H63+1,1),INDEX($E$21:$E$53,H63,1):INDEX($E$21:$E$53,H63+1))) -> 0 | J63: 4.2 | K63: 0.0807 | L63: 0.12342 | M63: 0.05084 | N63: 0.04563 | O63: 0.67032 | P63: =IF($C$1="Type I",IF(O62=24,1,FORECAST(O63,INDEX(TypeI,MATCH(O63,TypeTime,1),1):INDEX(TypeI,MATCH(O63,TypeTime,1)+1,1),INDEX(TypeTime,MATCH(O63,TypeTime,1),1):INDEX(TypeTime,MATCH(O63,TypeTime)+1,1))), IF($C$1="Type IA",IF(O62=24,1,FORECAST(O63,INDEX(TypeIA,MATCH(O63,TypeTime,1),1):INDEX(TypeIA,MATCH(O63,TypeTime,1)+1,1),INDEX(TypeTime,MATCH(O63,TypeTime,1),1):INDEX(TypeTime,MATCH(O63,TypeTime)+1,1))), IF($C$1="Type II",IF(O62=24,1,FORECAST(O63,INDEX(TypeII,MATCH(O63,TypeTime,1),1):INDEX(TypeII,MATCH(O63,TypeTime,1)+1,1),INDEX(TypeTime,MATCH(O63,TypeTime,1),1):INDEX(TypeTime,MATCH(O63,TypeTime)+1,1))), IF($C$1="Type III",IF(O62=24,1,FORECAST(O63,INDEX(TypeIII,MATCH(O63,TypeTime,1),1):INDEX(TypeIII,MATCH(O63,TypeTime,1)+1,1),INDEX(TypeTime,MATCH(O63,TypeTime,1),1):INDEX(TypeTime,MATCH(O63,TypeTime)+1,1))), "Choose Type")))) -> 0.0067032 | Q63: 0.000617652 | R63: 0.025941384 | W63: 0.67032
B64: 44 | G64: 0.68628 | H64: 33 | I64: =IF(H64=33,0,FORECAST(G64,INDEX($F$21:$F$53,H64,1):INDEX($F$21:$F$53,H64+1,1),INDEX($E$21:$E$53,H64,1):INDEX($E$21:$E$53,H64+1))) -> 0 | J64: 4.3 | K64: 0.08307 | L64: 0.12721 | M64: 0.05229 | N64: 0.04697 | O64: 0.68628 | P64: =IF($C$1="Type I",IF(O63=24,1,FORECAST(O64,INDEX(TypeI,MATCH(O64,TypeTime,1),1):INDEX(TypeI,MATCH(O64,TypeTime,1)+1,1),INDEX(TypeTime,MATCH(O64,TypeTime,1),1):INDEX(TypeTime,MATCH(O64,TypeTime)+1,1))), IF($C$1="Type IA",IF(O63=24,1,FORECAST(O64,INDEX(TypeIA,MATCH(O64,TypeTime,1),1):INDEX(TypeIA,MATCH(O64,TypeTime,1)+1,1),INDEX(TypeTime,MATCH(O64,TypeTime,1),1):INDEX(TypeTime,MATCH(O64,TypeTime)+1,1))), IF($C$1="Type II",IF(O63=24,1,FORECAST(O64,INDEX(TypeII,MATCH(O64,TypeTime,1),1):INDEX(TypeII,MATCH(O64,TypeTime,1)+1,1),INDEX(TypeTime,MATCH(O64,TypeTime,1),1):INDEX(TypeTime,MATCH(O64,TypeTime)+1,1))), IF($C$1="Type III",IF(O63=24,1,FORECAST(O64,INDEX(TypeIII,MATCH(O64,TypeTime,1),1):INDEX(TypeIII,MATCH(O64,TypeTime,1)+1,1),INDEX(TypeTime,MATCH(O64,TypeTime,1),1):INDEX(TypeTime,MATCH(O64,TypeTime)+1,1))), "Choose Type")))) -> 0.0068628 | Q64: 0.000617652 | R64: 0.026559036 | W64: 0.68628
B65: 45 | G65: 0.70224 | H65: 33 | I65: =IF(H65=33,0,FORECAST(G65,INDEX($F$21:$F$53,H65,1):INDEX($F$21:$F$53,H65+1,1),INDEX($E$21:$E$53,H65,1):INDEX($E$21:$E$53,H65+1))) -> 0 | J65: 4.4 | K65: 0.08545 | L65: 0.13107 | M65: 0.05376 | N65: 0.04832 | O65: 0.70224 | P65: =IF($C$1="Type I",IF(O64=24,1,FORECAST(O65,INDEX(TypeI,MATCH(O65,TypeTime,1),1):INDEX(TypeI,MATCH(O65,TypeTime,1)+1,1),INDEX(TypeTime,MATCH(O65,TypeTime,1),1):INDEX(TypeTime,MATCH(O65,TypeTime)+1,1))), IF($C$1="Type IA",IF(O64=24,1,FORECAST(O65,INDEX(TypeIA,MATCH(O65,TypeTime,1),1):INDEX(TypeIA,MATCH(O65,TypeTime,1)+1,1),INDEX(TypeTime,MATCH(O65,TypeTime,1),1):INDEX(TypeTime,MATCH(O65,TypeTime)+1,1))), IF($C$1="Type II",IF(O64=24,1,FORECAST(O65,INDEX(TypeII,MATCH(O65,TypeTime,1),1):INDEX(TypeII,MATCH(O65,TypeTime,1)+1,1),INDEX(TypeTime,MATCH(O65,TypeTime,1),1):INDEX(TypeTime,MATCH(O65,TypeTime)+1,1))), IF($C$1="Type III",IF(O64=24,1,FORECAST(O65,INDEX(TypeIII,MATCH(O65,TypeTime,1),1):INDEX(TypeIII,MATCH(O65,TypeTime,1)+1,1),INDEX(TypeTime,MATCH(O65,TypeTime,1),1):INDEX(TypeTime,MATCH(O65,TypeTime)+1,1))), "Choose Type")))) -> 0.0070224 | Q65: 0.000617652 | R65: 0.027176688 | W65: 0.70224
B66: 46 | G66: 0.7182 | H66: 33 | I66: =IF(H66=33,0,FORECAST(G66,INDEX($F$21:$F$53,H66,1):INDEX($F$21:$F$53,H66+1,1),INDEX($E$21:$E$53,H66,1):INDEX($E$21:$E$53,H66+1))) -> 0 | J66: 4.5 | K66: 0.08784 | L66: 0.135 | M66: 0.05525 | N66: 0.04969 | O66: 0.7182 | P66: =IF($C$1="Type I",IF(O65=24,1,FORECAST(O66,INDEX(TypeI,MATCH(O66,TypeTime,1),1):INDEX(TypeI,MATCH(O66,TypeTime,1)+1,1),INDEX(TypeTime,MATCH(O66,TypeTime,1),1):INDEX(TypeTime,MATCH(O66,TypeTime)+1,1))), IF($C$1="Type IA",IF(O65=24,1,FORECAST(O66,INDEX(TypeIA,MATCH(O66,TypeTime,1),1):INDEX(TypeIA,MATCH(O66,TypeTime,1)+1,1),INDEX(TypeTime,MATCH(O66,TypeTime,1),1):INDEX(TypeTime,MATCH(O66,TypeTime)+1,1))), IF($C$1="Type II",IF(O65=24,1,FORECAST(O66,INDEX(TypeII,MATCH(O66,TypeTime,1),1):INDEX(TypeII,MATCH(O66,TypeTime,1)+1,1),INDEX(TypeTime,MATCH(O66,TypeTime,1),1):INDEX(TypeTime,MATCH(O66,TypeTime)+1,1))), IF($C$1="Type III",IF(O65=24,1,FORECAST(O66,INDEX(TypeIII,MATCH(O66,TypeTime,1),1):INDEX(TypeIII,MATCH(O66,TypeTime,1)+1,1),INDEX(TypeTime,MATCH(O66,TypeTime,1),1):INDEX(TypeTime,MATCH(O66,TypeTime)+1,1))), "Choose Type")))) -> 0.007182 | Q66: 0.000617652 | R66: 0.02779434 | W66: 0.7182
B67: 47 | G67: 0.73416 | H67: 33 | I67: =IF(H67=33,0,FORECAST(G67,INDEX($F$21:$F$53,H67,1):INDEX($F$21:$F$53,H67+1,1),INDEX($E$21:$E$53,H67,1):INDEX($E$21:$E$53,H67+1))) -> 0 | J67: 4.6 | K67: 0.09024 | L67: 0.13901 | M67: 0.05676 | N67: 0.05107 | O67: 0.73416 | P67: =IF($C$1="Type I",IF(O66=24,1,FORECAST(O67,INDEX(TypeI,MATCH(O67,TypeTime,1),1):INDEX(TypeI,MATCH(O67,TypeTime,1)+1,1),INDEX(TypeTime,MATCH(O67,TypeTime,1),1):INDEX(TypeTime,MATCH(O67,TypeTime)+1,1))), IF($C$1="Type IA",IF(O66=24,1,FORECAST(O67,INDEX(TypeIA,MATCH(O67,TypeTime,1),1):INDEX(TypeIA,MATCH(O67,TypeTime,1)+1,1),INDEX(TypeTime,MATCH(O67,TypeTime,1),1):INDEX(TypeTime,MATCH(O67,TypeTime)+1,1))), IF($C$1="Type II",IF(O66=24,1,FORECAST(O67,INDEX(TypeII,MATCH(O67,TypeTime,1),1):INDEX(TypeII,MATCH(O67,TypeTime,1)+1,1),INDEX(TypeTime,MATCH(O67,TypeTime,1),1):INDEX(TypeTime,MATCH(O67,TypeTime)+1,1))), IF($C$1="Type III",IF(O66=24,1,FORECAST(O67,INDEX(TypeIII,MATCH(O67,TypeTime,1),1):INDEX(TypeIII,MATCH(O67,TypeTime,1)+1,1),INDEX(TypeTime,MATCH(O67,TypeTime,1),1):INDEX(TypeTime,MATCH(O67,TypeTime)+1,1))), "Choose Type")))) -> 0.0073416 | Q67: 0.000617652 | R67: 0.028411992 | W67: 0.73416
B68: 48 | G68: 0.75012 | H68: 33 | I68: =IF(H68=33,0,FORECAST(G68,INDEX($F$21:$F$53,H68,1):INDEX($F$21:$F$53,H68+1,1),INDEX($E$21:$E$53,H68,1):INDEX($E$21:$E$53,H68+1))) -> 0 | J68: 4.7 | K68: 0.09265 | L68: 0.1431 | M68: 0.05829 | N68: 0.05247 | O68: 0.75012 | P68: =IF($C$1="Type I",IF(O67=24,1,FORECAST(O68,INDEX(TypeI,MATCH(O68,TypeTime,1),1):INDEX(TypeI,MATCH(O68,TypeTime,1)+1,1),INDEX(TypeTime,MATCH(O68,TypeTime,1),1):INDEX(TypeTime,MATCH(O68,TypeTime)+1,1))), IF($C$1="Type IA",IF(O67=24,1,FORECAST(O68,INDEX(TypeIA,MATCH(O68,TypeTime,1),1):INDEX(TypeIA,MATCH(O68,TypeTime,1)+1,1),INDEX(TypeTime,MATCH(O68,TypeTime,1),1):INDEX(TypeTime,MATCH(O68,TypeTime)+1,1))), IF($C$1="Type II",IF(O67=24,1,FORECAST(O68,INDEX(TypeII,MATCH(O68,TypeTime,1),1):INDEX(TypeII,MATCH(O68,TypeTime,1)+1,1),INDEX(TypeTime,MATCH(O68,TypeTime,1),1):INDEX(TypeTime,MATCH(O68,TypeTime)+1,1))), IF($C$1="Type III",IF(O67=24,1,FORECAST(O68,INDEX(TypeIII,MATCH(O68,TypeTime,1),1):INDEX(TypeIII,MATCH(O68,TypeTime,1)+1,1),INDEX(TypeTime,MATCH(O68,TypeTime,1),1):INDEX(TypeTime,MATCH(O68,TypeTime)+1,1))), "Choose Type")))) -> 0.0075012 | Q68: 0.000617652 | R68: 0.029029644 | W68: 0.75012
B69: 49 | G69: 0.76608 | H69: 33 | I69: =IF(H69=33,0,FORECAST(G69,INDEX($F$21:$F$53,H69,1):INDEX($F$21:$F$53,H69+1,1),INDEX($E$21:$E$53,H69,1):INDEX($E$21:$E$53,H69+1))) -> 0 | J69: 4.8 | K69: 0.09507 | L69: 0.14729 | M69: 0.05984 | N69: 0.05388 | O69: 0.76608 | P69: =IF($C$1="Type I",IF(O68=24,1,FORECAST(O69,INDEX(TypeI,MATCH(O69,TypeTime,1),1):INDEX(TypeI,MATCH(O69,TypeTime,1)+1,1),INDEX(TypeTime,MATCH(O69,TypeTime,1),1):INDEX(TypeTime,MATCH(O69,TypeTime)+1,1))), IF($C$1="Type IA",IF(O68=24,1,FORECAST(O69,INDEX(TypeIA,MATCH(O69,TypeTime,1),1):INDEX(TypeIA,MATCH(O69,TypeTime,1)+1,1),INDEX(TypeTime,MATCH(O69,TypeTime,1),1):INDEX(TypeTime,MATCH(O69,TypeTime)+1,1))), IF($C$1="Type II",IF(O68=24,1,FORECAST(O69,INDEX(TypeII,MATCH(O69,TypeTime,1),1):INDEX(TypeII,MATCH(O69,TypeTime,1)+1,1),INDEX(TypeTime,MATCH(O69,TypeTime,1),1):INDEX(TypeTime,MATCH(O69,TypeTime)+1,1))), IF($C$1="Type III",IF(O68=24,1,FORECAST(O69,INDEX(TypeIII,MATCH(O69,TypeTime,1),1):INDEX(TypeIII,MATCH(O69,TypeTime,1)+1,1),INDEX(TypeTime,MATCH(O69,TypeTime,1),1):INDEX(TypeTime,MATCH(O69,TypeTime)+1,1))), "Choose Type")))) -> 0.0076608 | Q69: 0.000617652 | R69: 0.029647296 | W69: 0.76608
B70: 50 | G70: 0.78204 | H70: 33 | I70: =IF(H70=33,0,FORECAST(G70,INDEX($F$21:$F$53,H70,1):INDEX($F$21:$F$53,H70+1,1),INDEX($E$21:$E$53,H70,1):INDEX($E$21:$E$53,H70+1))) -> 0 | J70: 4.9 | K70: 0.09751 | L70: 0.15159 | M70: 0.06141 | N70: 0.05531 | O70: 0.78204 | P70: =IF($C$1="Type I",IF(O69=24,1,FORECAST(O70,INDEX(TypeI,MATCH(O70,TypeTime,1),1):INDEX(TypeI,MATCH(O70,TypeTime,1)+1,1),INDEX(TypeTime,MATCH(O70,TypeTime,1),1):INDEX(TypeTime,MATCH(O70,TypeTime)+1,1))), IF($C$1="Type IA",IF(O69=24,1,FORECAST(O70,INDEX(TypeIA,MATCH(O70,TypeTime,1),1):INDEX(TypeIA,MATCH(O70,TypeTime,1)+1,1),INDEX(TypeTime,MATCH(O70,TypeTime,1),1):INDEX(TypeTime,MATCH(O70,TypeTime)+1,1))), IF($C$1="Type II",IF(O69=24,1,FORECAST(O70,INDEX(TypeII,MATCH(O70,TypeTime,1),1):INDEX(TypeII,MATCH(O70,TypeTime,1)+1,1),INDEX(TypeTime,MATCH(O70,TypeTime,1),1):INDEX(TypeTime,MATCH(O70,TypeTime)+1,1))), IF($C$1="Type III",IF(O69=24,1,FORECAST(O70,INDEX(TypeIII,MATCH(O70,TypeTime,1),1):INDEX(TypeIII,MATCH(O70,TypeTime,1)+1,1),INDEX(TypeTime,MATCH(O70,TypeTime,1),1):INDEX(TypeTime,MATCH(O70,TypeTime)+1,1))), "Choose Type")))) -> 0.0078204 | Q70: 0.000617652 | R70: 0.030264948 | W70: 0.78204
B71: 51 | G71: 0.798 | H71: 33 | I71: =IF(H71=33,0,FORECAST(G71,INDEX($F$21:$F$53,H71,1):INDEX($F$21:$F$53,H71+1,1),INDEX($E$21:$E$53,H71,1):INDEX($E$21:$E$53,H71+1))) -> 0 | J71: 5 | K71: 0.09995 | L71: 0.156 | M71: 0.063 | N71: 0.05675 | O71: 0.798 | P71: =IF($C$1="Type I",IF(O70=24,1,FORECAST(O71,INDEX(TypeI,MATCH(O71,TypeTime,1),1):INDEX(TypeI,MATCH(O71,TypeTime,1)+1,1),INDEX(TypeTime,MATCH(O71,TypeTime,1),1):INDEX(TypeTime,MATCH(O71,TypeTime)+1,1))), IF($C$1="Type IA",IF(O70=24,1,FORECAST(O71,INDEX(TypeIA,MATCH(O71,TypeTime,1),1):INDEX(TypeIA,MATCH(O71,TypeTime,1)+1,1),INDEX(TypeTime,MATCH(O71,TypeTime,1),1):INDEX(TypeTime,MATCH(O71,TypeTime)+1,1))), IF($C$1="Type II",IF(O70=24,1,FORECAST(O71,INDEX(TypeII,MATCH(O71,TypeTime,1),1):INDEX(TypeII,MATCH(O71,TypeTime,1)+1,1),INDEX(TypeTime,MATCH(O71,TypeTime,1),1):INDEX(TypeTime,MATCH(O71,TypeTime)+1,1))), IF($C$1="Type III",IF(O70=24,1,FORECAST(O71,INDEX(TypeIII,MATCH(O71,TypeTime,1),1):INDEX(TypeIII,MATCH(O71,TypeTime,1)+1,1),INDEX(TypeTime,MATCH(O71,TypeTime,1),1):INDEX(TypeTime,MATCH(O71,TypeTime)+1,1))), "Choose Type")))) -> 0.00798 | Q71: 0.000617652 | R71: 0.0308826 | W71: 0.798
B72: 52 | G72: 0.81396 | H72: 33 | I72: =IF(H72=33,0,FORECAST(G72,INDEX($F$21:$F$53,H72,1):INDEX($F$21:$F$53,H72+1,1),INDEX($E$21:$E$53,H72,1):INDEX($E$21:$E$53,H72+1))) -> 0 | J72: 5.1 | K72: 0.10241 | L72: 0.16059 | M72: 0.06461 | N72: 0.05821 | O72: 0.81396 | P72: =IF($C$1="Type I",IF(O71=24,1,FORECAST(O72,INDEX(TypeI,MATCH(O72,TypeTime,1),1):INDEX(TypeI,MATCH(O72,TypeTime,1)+1,1),INDEX(TypeTime,MATCH(O72,TypeTime,1),1):INDEX(TypeTime,MATCH(O72,TypeTime)+1,1))), IF($C$1="Type IA",IF(O71=24,1,FORECAST(O72,INDEX(TypeIA,MATCH(O72,TypeTime,1),1):INDEX(TypeIA,MATCH(O72,TypeTime,1)+1,1),INDEX(TypeTime,MATCH(O72,TypeTime,1),1):INDEX(TypeTime,MATCH(O72,TypeTime)+1,1))), IF($C$1="Type II",IF(O71=24,1,FORECAST(O72,INDEX(TypeII,MATCH(O72,TypeTime,1),1):INDEX(TypeII,MATCH(O72,TypeTime,1)+1,1),INDEX(TypeTime,MATCH(O72,TypeTime,1),1):INDEX(TypeTime,MATCH(O72,TypeTime)+1,1))), IF($C$1="Type III",IF(O71=24,1,FORECAST(O72,INDEX(TypeIII,MATCH(O72,TypeTime,1),1):INDEX(TypeIII,MATCH(O72,TypeTime,1)+1,1),INDEX(TypeTime,MATCH(O72,TypeTime,1),1):INDEX(TypeTime,MATCH(O72,TypeTime)+1,1))), "Choose Type")))) -> 0.0081396 | Q72: 0.000617652 | R72: 0.031500252 | W72: 0.81396
B73: 53 | G73: 0.82992 | H73: 33 | I73: =IF(H73=33,0,FORECAST(G73,INDEX($F$21:$F$53,H73,1):INDEX($F$21:$F$53,H73+1,1),INDEX($E$21:$E$53,H73,1):INDEX($E$21:$E$53,H73+1))) -> 0 | J73: 5.2 | K73: 0.10487 | L73: 0.1653 | M73: 0.06624 | N73: 0.05968 | O73: 0.82992 | P73: =IF($C$1="Type I",IF(O72=24,1,FORECAST(O73,INDEX(TypeI,MATCH(O73,TypeTime,1),1):INDEX(TypeI,MATCH(O73,TypeTime,1)+1,1),INDEX(TypeTime,MATCH(O73,TypeTime,1),1):INDEX(TypeTime,MATCH(O73,TypeTime)+1,1))), IF($C$1="Type IA",IF(O72=24,1,FORECAST(O73,INDEX(TypeIA,MATCH(O73,TypeTime,1),1):INDEX(TypeIA,MATCH(O73,TypeTime,1)+1,1),INDEX(TypeTime,MATCH(O73,TypeTime,1),1):INDEX(TypeTime,MATCH(O73,TypeTime)+1,1))), IF($C$1="Type II",IF(O72=24,1,FORECAST(O73,INDEX(TypeII,MATCH(O73,TypeTime,1),1):INDEX(TypeII,MATCH(O73,TypeTime,1)+1,1),INDEX(TypeTime,MATCH(O73,TypeTime,1),1):INDEX(TypeTime,MATCH(O73,TypeTime)+1,1))), IF($C$1="Type III",IF(O72=24,1,FORECAST(O73,INDEX(TypeIII,MATCH(O73,TypeTime,1),1):INDEX(TypeIII,MATCH(O73,TypeTime,1)+1,1),INDEX(TypeTime,MATCH(O73,TypeTime,1),1):INDEX(TypeTime,MATCH(O73,TypeTime)+1,1))), "Choose Type")))) -> 0.0082992 | Q73: 0.000617652 | R73: 0.032117904 | W73: 0.82992
B74: 54 | G74: 0.84588 | H74: 33 | I74: =IF(H74=33,0,FORECAST(G74,INDEX($F$21:$F$53,H74,1):INDEX($F$21:$F$53,H74+1,1),INDEX($E$21:$E$53,H74,1):INDEX($E$21:$E$53,H74+1))) -> 0 | J74: 5.3 | K74: 0.10735 | L74: 0.17011 | M74: 0.06789 | N74: 0.06117 | O74: 0.84588 | P74: =IF($C$1="Type I",IF(O73=24,1,FORECAST(O74,INDEX(TypeI,MATCH(O74,TypeTime,1),1):INDEX(TypeI,MATCH(O74,TypeTime,1)+1,1),INDEX(TypeTime,MATCH(O74,TypeTime,1),1):INDEX(TypeTime,MATCH(O74,TypeTime)+1,1))), IF($C$1="Type IA",IF(O73=24,1,FORECAST(O74,INDEX(TypeIA,MATCH(O74,TypeTime,1),1):INDEX(TypeIA,MATCH(O74,TypeTime,1)+1,1),INDEX(TypeTime,MATCH(O74,TypeTime,1),1):INDEX(TypeTime,MATCH(O74,TypeTime)+1,1))), IF($C$1="Type II",IF(O73=24,1,FORECAST(O74,INDEX(TypeII,MATCH(O74,TypeTime,1),1):INDEX(TypeII,MATCH(O74,TypeTime,1)+1,1),INDEX(TypeTime,MATCH(O74,TypeTime,1),1):INDEX(TypeTime,MATCH(O74,TypeTime)+1,1))), IF($C$1="Type III",IF(O73=24,1,FORECAST(O74,INDEX(TypeIII,MATCH(O74,TypeTime,1),1):INDEX(TypeIII,MATCH(O74,TypeTime,1)+1,1),INDEX(TypeTime,MATCH(O74,TypeTime,1),1):INDEX(TypeTime,MATCH(O74,TypeTime)+1,1))), "Choose Type")))) -> 0.0084588 | Q74: 0.000617652 | R74: 0.032735556 | W74: 0.84588
B75: 55 | G75: 0.86184 | H75: 33 | I75: =IF(H75=33,0,FORECAST(G75,INDEX($F$21:$F$53,H75,1):INDEX($F$21:$F$53,H75+1,1),INDEX($E$21:$E$53,H75,1):INDEX($E$21:$E$53,H75+1))) -> 0 | J75: 5.4 | K75: 0.10984 | L75: 0.17501 | M75: 0.06956 | N75: 0.06267 | O75: 0.86184 | P75: =IF($C$1="Type I",IF(O74=24,1,FORECAST(O75,INDEX(TypeI,MATCH(O75,TypeTime,1),1):INDEX(TypeI,MATCH(O75,TypeTime,1)+1,1),INDEX(TypeTime,MATCH(O75,TypeTime,1),1):INDEX(TypeTime,MATCH(O75,TypeTime)+1,1))), IF($C$1="Type IA",IF(O74=24,1,FORECAST(O75,INDEX(TypeIA,MATCH(O75,TypeTime,1),1):INDEX(TypeIA,MATCH(O75,TypeTime,1)+1,1),INDEX(TypeTime,MATCH(O75,TypeTime,1),1):INDEX(TypeTime,MATCH(O75,TypeTime)+1,1))), IF($C$1="Type II",IF(O74=24,1,FORECAST(O75,INDEX(TypeII,MATCH(O75,TypeTime,1),1):INDEX(TypeII,MATCH(O75,TypeTime,1)+1,1),INDEX(TypeTime,MATCH(O75,TypeTime,1),1):INDEX(TypeTime,MATCH(O75,TypeTime)+1,1))), IF($C$1="Type III",IF(O74=24,1,FORECAST(O75,INDEX(TypeIII,MATCH(O75,TypeTime,1),1):INDEX(TypeIII,MATCH(O75,TypeTime,1)+1,1),INDEX(TypeTime,MATCH(O75,TypeTime,1),1):INDEX(TypeTime,MATCH(O75,TypeTime)+1,1))), "Choose Type")))) -> 0.0086184 | Q75: 0.000617652 | R75: 0.033353208 | W75: 0.86184
B76: 56 | G76: 0.8778 | H76: 33 | I76: =IF(H76=33,0,FORECAST(G76,INDEX($F$21:$F$53,H76,1):INDEX($F$21:$F$53,H76+1,1),INDEX($E$21:$E$53,H76,1):INDEX($E$21:$E$53,H76+1))) -> 0 | J76: 5.5 | K76: 0.11234 | L76: 0.18 | M76: 0.07125 | N76: 0.06419 | O76: 0.8778 | P76: =IF($C$1="Type I",IF(O75=24,1,FORECAST(O76,INDEX(TypeI,MATCH(O76,TypeTime,1),1):INDEX(TypeI,MATCH(O76,TypeTime,1)+1,1),INDEX(TypeTime,MATCH(O76,TypeTime,1),1):INDEX(TypeTime,MATCH(O76,TypeTime)+1,1))), IF($C$1="Type IA",IF(O75=24,1,FORECAST(O76,INDEX(TypeIA,MATCH(O76,TypeTime,1),1):INDEX(TypeIA,MATCH(O76,TypeTime,1)+1,1),INDEX(TypeTime,MATCH(O76,TypeTime,1),1):INDEX(TypeTime,MATCH(O76,TypeTime)+1,1))), IF($C$1="Type II",IF(O75=24,1,FORECAST(O76,INDEX(TypeII,MATCH(O76,TypeTime,1),1):INDEX(TypeII,MATCH(O76,TypeTime,1)+1,1),INDEX(TypeTime,MATCH(O76,TypeTime,1),1):INDEX(TypeTime,MATCH(O76,TypeTime)+1,1))), IF($C$1="Type III",IF(O75=24,1,FORECAST(O76,INDEX(TypeIII,MATCH(O76,TypeTime,1),1):INDEX(TypeIII,MATCH(O76,TypeTime,1)+1,1),INDEX(TypeTime,MATCH(O76,TypeTime,1),1):INDEX(TypeTime,MATCH(O76,TypeTime)+1,1))), "Choose Type")))) -> 0.008778 | Q76: 0.000617652 | R76: 0.03397086 | W76: 0.8778
B77: 57 | G77: 0.89376 | H77: 33 | I77: =IF(H77=33,0,FORECAST(G77,INDEX($F$21:$F$53,H77,1):INDEX($F$21:$F$53,H77+1,1),INDEX($E$21:$E$53,H77,1):INDEX($E$21:$E$53,H77+1))) -> 0 | J77: 5.6 | K77: 0.11485 | L77: 0.18494 | M77: 0.07296 | N77: 0.06572 | O77: 0.89376 | P77: =IF($C$1="Type I",IF(O76=24,1,FORECAST(O77,INDEX(TypeI,MATCH(O77,TypeTime,1),1):INDEX(TypeI,MATCH(O77,TypeTime,1)+1,1),INDEX(TypeTime,MATCH(O77,TypeTime,1),1):INDEX(TypeTime,MATCH(O77,TypeTime)+1,1))), IF($C$1="Type IA",IF(O76=24,1,FORECAST(O77,INDEX(TypeIA,MATCH(O77,TypeTime,1),1):INDEX(TypeIA,MATCH(O77,TypeTime,1)+1,1),INDEX(TypeTime,MATCH(O77,TypeTime,1),1):INDEX(TypeTime,MATCH(O77,TypeTime)+1,1))), IF($C$1="Type II",IF(O76=24,1,FORECAST(O77,INDEX(TypeII,MATCH(O77,TypeTime,1),1):INDEX(TypeII,MATCH(O77,TypeTime,1)+1,1),INDEX(TypeTime,MATCH(O77,TypeTime,1),1):INDEX(TypeTime,MATCH(O77,TypeTime)+1,1))), IF($C$1="Type III",IF(O76=24,1,FORECAST(O77,INDEX(TypeIII,MATCH(O77,TypeTime,1),1):INDEX(TypeIII,MATCH(O77,TypeTime,1)+1,1),INDEX(TypeTime,MATCH(O77,TypeTime,1),1):INDEX(TypeTime,MATCH(O77,TypeTime)+1,1))), "Choose Type")))) -> 0.0089376 | Q77: 0.000617652 | R77: 0.034588512 | W77: 0.89376
B78: 58 | G78: 0.90972 | H78: 33 | I78: =IF(H78=33,0,FORECAST(G78,INDEX($F$21:$F$53,H78,1):INDEX($F$21:$F$53,H78+1,1),INDEX($E$21:$E$53,H78,1):INDEX($E$21:$E$53,H78+1))) -> 0 | J78: 5.7 | K78: 0.11737 | L78: 0.18999 | M78: 0.07469 | N78: 0.06727 | O78: 0.90972 | P78: =IF($C$1="Type I",IF(O77=24,1,FORECAST(O78,INDEX(TypeI,MATCH(O78,TypeTime,1),1):INDEX(TypeI,MATCH(O78,TypeTime,1)+1,1),INDEX(TypeTime,MATCH(O78,TypeTime,1),1):INDEX(TypeTime,MATCH(O78,TypeTime)+1,1))), IF($C$1="Type IA",IF(O77=24,1,FORECAST(O78,INDEX(TypeIA,MATCH(O78,TypeTime,1),1):INDEX(TypeIA,MATCH(O78,TypeTime,1)+1,1),INDEX(TypeTime,MATCH(O78,TypeTime,1),1):INDEX(TypeTime,MATCH(O78,TypeTime)+1,1))), IF($C$1="Type II",IF(O77=24,1,FORECAST(O78,INDEX(TypeII,MATCH(O78,TypeTime,1),1):INDEX(TypeII,MATCH(O78,TypeTime,1)+1,1),INDEX(TypeTime,MATCH(O78,TypeTime,1),1):INDEX(TypeTime,MATCH(O78,TypeTime)+1,1))), IF($C$1="Type III",IF(O77=24,1,FORECAST(O78,INDEX(TypeIII,MATCH(O78,TypeTime,1),1):INDEX(TypeIII,MATCH(O78,TypeTime,1)+1,1),INDEX(TypeTime,MATCH(O78,TypeTime,1),1):INDEX(TypeTime,MATCH(O78,TypeTime)+1,1))), "Choose Type")))) -> 0.0090972 | Q78: 0.000617652 | R78: 0.035206164 | W78: 0.90972
B79: 59 | G79: 0.92568 | H79: 33 | I79: =IF(H79=33,0,FORECAST(G79,INDEX($F$21:$F$53,H79,1):INDEX($F$21:$F$53,H79+1,1),INDEX($E$21:$E$53,H79,1):INDEX($E$21:$E$53,H79+1))) -> 0 | J79: 5.8 | K79: 0.1199 | L79: 0.19517 | M79: 0.07644 | N79: 0.06883 | O79: 0.92568 | P79: =IF($C$1="Type I",IF(O78=24,1,FORECAST(O79,INDEX(TypeI,MATCH(O79,TypeTime,1),1):INDEX(TypeI,MATCH(O79,TypeTime,1)+1,1),INDEX(TypeTime,MATCH(O79,TypeTime,1),1):INDEX(TypeTime,MATCH(O79,TypeTime)+1,1))), IF($C$1="Type IA",IF(O78=24,1,FORECAST(O79,INDEX(TypeIA,MATCH(O79,TypeTime,1),1):INDEX(TypeIA,MATCH(O79,TypeTime,1)+1,1),INDEX(TypeTime,MATCH(O79,TypeTime,1),1):INDEX(TypeTime,MATCH(O79,TypeTime)+1,1))), IF($C$1="Type II",IF(O78=24,1,FORECAST(O79,INDEX(TypeII,MATCH(O79,TypeTime,1),1):INDEX(TypeII,MATCH(O79,TypeTime,1)+1,1),INDEX(TypeTime,MATCH(O79,TypeTime,1),1):INDEX(TypeTime,MATCH(O79,TypeTime)+1,1))), IF($C$1="Type III",IF(O78=24,1,FORECAST(O79,INDEX(TypeIII,MATCH(O79,TypeTime,1),1):INDEX(TypeIII,MATCH(O79,TypeTime,1)+1,1),INDEX(TypeTime,MATCH(O79,TypeTime,1),1):INDEX(TypeTime,MATCH(O79,TypeTime)+1,1))), "Choose Type")))) -> 0.0092568 | Q79: 0.000617652 | R79: 0.035823816 | W79: 0.92568
B80: 60 | G80: 0.94164 | H80: 33 | I80: =IF(H80=33,0,FORECAST(G80,INDEX($F$21:$F$53,H80,1):INDEX($F$21:$F$53,H80+1,1),INDEX($E$21:$E$53,H80,1):INDEX($E$21:$E$53,H80+1))) -> 0 | J80: 5.9 | K80: 0.12245 | L80: 0.20049 | M80: 0.07821 | N80: 0.07041 | O80: 0.94164 | P80: =IF($C$1="Type I",IF(O79=24,1,FORECAST(O80,INDEX(TypeI,MATCH(O80,TypeTime,1),1):INDEX(TypeI,MATCH(O80,TypeTime,1)+1,1),INDEX(TypeTime,MATCH(O80,TypeTime,1),1):INDEX(TypeTime,MATCH(O80,TypeTime)+1,1))), IF($C$1="Type IA",IF(O79=24,1,FORECAST(O80,INDEX(TypeIA,MATCH(O80,TypeTime,1),1):INDEX(TypeIA,MATCH(O80,TypeTime,1)+1,1),INDEX(TypeTime,MATCH(O80,TypeTime,1),1):INDEX(TypeTime,MATCH(O80,TypeTime)+1,1))), IF($C$1="Type II",IF(O79=24,1,FORECAST(O80,INDEX(TypeII,MATCH(O80,TypeTime,1),1):INDEX(TypeII,MATCH(O80,TypeTime,1)+1,1),INDEX(TypeTime,MATCH(O80,TypeTime,1),1):INDEX(TypeTime,MATCH(O80,TypeTime)+1,1))), IF($C$1="Type III",IF(O79=24,1,FORECAST(O80,INDEX(TypeIII,MATCH(O80,TypeTime,1),1):INDEX(TypeIII,MATCH(O80,TypeTime,1)+1,1),INDEX(TypeTime,MATCH(O80,TypeTime,1),1):INDEX(TypeTime,MATCH(O80,TypeTime)+1,1))), "Choose Type")))) -> 0.0094164 | Q80: 0.000617652 | R80: 0.036441468 | W80: 0.94164
B81: 61 | G81: 0.9576 | H81: 33 | I81: =IF(H81=33,0,FORECAST(G81,INDEX($F$21:$F$53,H81,1):INDEX($F$21:$F$53,H81+1,1),INDEX($E$21:$E$53,H81,1):INDEX($E$21:$E$53,H81+1))) -> 0 | J81: 6 | K81: 0.125 | L81: 0.206 | M81: 0.08 | N81: 0.072 | O81: 0.9576 | P81: =IF($C$1="Type I",IF(O80=24,1,FORECAST(O81,INDEX(TypeI,MATCH(O81,TypeTime,1),1):INDEX(TypeI,MATCH(O81,TypeTime,1)+1,1),INDEX(TypeTime,MATCH(O81,TypeTime,1),1):INDEX(TypeTime,MATCH(O81,TypeTime)+1,1))), IF($C$1="Type IA",IF(O80=24,1,FORECAST(O81,INDEX(TypeIA,MATCH(O81,TypeTime,1),1):INDEX(TypeIA,MATCH(O81,TypeTime,1)+1,1),INDEX(TypeTime,MATCH(O81,TypeTime,1),1):INDEX(TypeTime,MATCH(O81,TypeTime)+1,1))), IF($C$1="Type II",IF(O80=24,1,FORECAST(O81,INDEX(TypeII,MATCH(O81,TypeTime,1),1):INDEX(TypeII,MATCH(O81,TypeTime,1)+1,1),INDEX(TypeTime,MATCH(O81,TypeTime,1),1):INDEX(TypeTime,MATCH(O81,TypeTime)+1,1))), IF($C$1="Type III",IF(O80=24,1,FORECAST(O81,INDEX(TypeIII,MATCH(O81,TypeTime,1),1):INDEX(TypeIII,MATCH(O81,TypeTime,1)+1,1),INDEX(TypeTime,MATCH(O81,TypeTime,1),1):INDEX(TypeTime,MATCH(O81,TypeTime)+1,1))), "Choose Type")))) -> 0.009576 | Q81: 0.000617652 | R81: 0.03705912 | W81: 0.9576
B82: 62 | G82: 0.97356 | H82: 33 | I82: =IF(H82=33,0,FORECAST(G82,INDEX($F$21:$F$53,H82,1):INDEX($F$21:$F$53,H82+1,1),INDEX($E$21:$E$53,H82,1):INDEX($E$21:$E$53,H82+1))) -> 0 | J82: 6.1 | K82: 0.12761 | L82: 0.21196 | M82: 0.08181 | N82: 0.07363 | O82: 0.97356 | P82: =IF($C$1="Type I",IF(O81=24,1,FORECAST(O82,INDEX(TypeI,MATCH(O82,TypeTime,1),1):INDEX(TypeI,MATCH(O82,TypeTime,1)+1,1),INDEX(TypeTime,MATCH(O82,TypeTime,1),1):INDEX(TypeTime,MATCH(O82,TypeTime)+1,1))), IF($C$1="Type IA",IF(O81=24,1,FORECAST(O82,INDEX(TypeIA,MATCH(O82,TypeTime,1),1):INDEX(TypeIA,MATCH(O82,TypeTime,1)+1,1),INDEX(TypeTime,MATCH(O82,TypeTime,1),1):INDEX(TypeTime,MATCH(O82,TypeTime)+1,1))), IF($C$1="Type II",IF(O81=24,1,FORECAST(O82,INDEX(TypeII,MATCH(O82,TypeTime,1),1):INDEX(TypeII,MATCH(O82,TypeTime,1)+1,1),INDEX(TypeTime,MATCH(O82,TypeTime,1),1):INDEX(TypeTime,MATCH(O82,TypeTime)+1,1))), IF($C$1="Type III",IF(O81=24,1,FORECAST(O82,INDEX(TypeIII,MATCH(O82,TypeTime,1),1):INDEX(TypeIII,MATCH(O82,TypeTime,1)+1,1),INDEX(TypeTime,MATCH(O82,TypeTime,1),1):INDEX(TypeTime,MATCH(O82,TypeTime)+1,1))), "Choose Type")))) -> 0.0097356 | Q82: 0.000617652 | R82: 0.037676772 | W82: 0.97356
B83: 63 | G83: 0.98952 | H83: 33 | I83: =IF(H83=33,0,FORECAST(G83,INDEX($F$21:$F$53,H83,1):INDEX($F$21:$F$53,H83+1,1),INDEX($E$21:$E$53,H83,1):INDEX($E$21:$E$53,H83+1))) -> 0 | J83: 6.2 | K83: 0.13034 | L83: 0.21808 | M83: 0.08364 | N83: 0.0753 | O83: 0.98952 | P83: =IF($C$1="Type I",IF(O82=24,1,FORECAST(O83,INDEX(TypeI,MATCH(O83,TypeTime,1),1):INDEX(TypeI,MATCH(O83,TypeTime,1)+1,1),INDEX(TypeTime,MATCH(O83,TypeTime,1),1):INDEX(TypeTime,MATCH(O83,TypeTime)+1,1))), IF($C$1="Type IA",IF(O82=24,1,FORECAST(O83,INDEX(TypeIA,MATCH(O83,TypeTime,1),1):INDEX(TypeIA,MATCH(O83,TypeTime,1)+1,1),INDEX(TypeTime,MATCH(O83,TypeTime,1),1):INDEX(TypeTime,MATCH(O83,TypeTime)+1,1))), IF($C$1="Type II",IF(O82=24,1,FORECAST(O83,INDEX(TypeII,MATCH(O83,TypeTime,1),1):INDEX(TypeII,MATCH(O83,TypeTime,1)+1,1),INDEX(TypeTime,MATCH(O83,TypeTime,1),1):INDEX(TypeTime,MATCH(O83,TypeTime)+1,1))), IF($C$1="Type III",IF(O82=24,1,FORECAST(O83,INDEX(TypeIII,MATCH(O83,TypeTime,1),1):INDEX(TypeIII,MATCH(O83,TypeTime,1)+1,1),INDEX(TypeTime,MATCH(O83,TypeTime,1),1):INDEX(TypeTime,MATCH(O83,TypeTime)+1,1))), "Choose Type")))) -> 0.0098952 | Q83: 0.000617652 | R83: 0.038294424 | W83: 0.98952
B84: 64 | G84: 1.00548 | H84: 33 | I84: =IF(H84=33,0,FORECAST(G84,INDEX($F$21:$F$53,H84,1):INDEX($F$21:$F$53,H84+1,1),INDEX($E$21:$E$53,H84,1):INDEX($E$21:$E$53,H84+1))) -> 0 | J84: 6.3 | K84: 0.13317 | L84: 0.22432 | M84: 0.08549 | N84: 0.07703 | O84: 1.00548 | P84: =IF($C$1="Type I",IF(O83=24,1,FORECAST(O84,INDEX(TypeI,MATCH(O84,TypeTime,1),1):INDEX(TypeI,MATCH(O84,TypeTime,1)+1,1),INDEX(TypeTime,MATCH(O84,TypeTime,1),1):INDEX(TypeTime,MATCH(O84,TypeTime)+1,1))), IF($C$1="Type IA",IF(O83=24,1,FORECAST(O84,INDEX(TypeIA,MATCH(O84,TypeTime,1),1):INDEX(TypeIA,MATCH(O84,TypeTime,1)+1,1),INDEX(TypeTime,MATCH(O84,TypeTime,1),1):INDEX(TypeTime,MATCH(O84,TypeTime)+1,1))), IF($C$1="Type II",IF(O83=24,1,FORECAST(O84,INDEX(TypeII,MATCH(O84,TypeTime,1),1):INDEX(TypeII,MATCH(O84,TypeTime,1)+1,1),INDEX(TypeTime,MATCH(O84,TypeTime,1),1):INDEX(TypeTime,MATCH(O84,TypeTime)+1,1))), IF($C$1="Type III",IF(O83=24,1,FORECAST(O84,INDEX(TypeIII,MATCH(O84,TypeTime,1),1):INDEX(TypeIII,MATCH(O84,TypeTime,1)+1,1),INDEX(TypeTime,MATCH(O84,TypeTime,1),1):INDEX(TypeTime,MATCH(O84,TypeTime)+1,1))), "Choose Type")))) -> 0.0100548 | Q84: 0.000617652 | R84: 0.038912076 | W84: 1.00548
B85: 65 | G85: 1.02144 | H85: 33 | I85: =IF(H85=33,0,FORECAST(G85,INDEX($F$21:$F$53,H85,1):INDEX($F$21:$F$53,H85+1,1),INDEX($E$21:$E$53,H85,1):INDEX($E$21:$E$53,H85+1))) -> 0 | J85: 6.4 | K85: 0.1361 | L85: 0.23064 | M85: 0.08736 | N85: 0.0788 | O85: 1.02144 | P85: =IF($C$1="Type I",IF(O84=24,1,FORECAST(O85,INDEX(TypeI,MATCH(O85,TypeTime,1),1):INDEX(TypeI,MATCH(O85,TypeTime,1)+1,1),INDEX(TypeTime,MATCH(O85,TypeTime,1),1):INDEX(TypeTime,MATCH(O85,TypeTime)+1,1))), IF($C$1="Type IA",IF(O84=24,1,FORECAST(O85,INDEX(TypeIA,MATCH(O85,TypeTime,1),1):INDEX(TypeIA,MATCH(O85,TypeTime,1)+1,1),INDEX(TypeTime,MATCH(O85,TypeTime,1),1):INDEX(TypeTime,MATCH(O85,TypeTime)+1,1))), IF($C$1="Type II",IF(O84=24,1,FORECAST(O85,INDEX(TypeII,MATCH(O85,TypeTime,1),1):INDEX(TypeII,MATCH(O85,TypeTime,1)+1,1),INDEX(TypeTime,MATCH(O85,TypeTime,1),1):INDEX(TypeTime,MATCH(O85,TypeTime)+1,1))), IF($C$1="Type III",IF(O84=24,1,FORECAST(O85,INDEX(TypeIII,MATCH(O85,TypeTime,1),1):INDEX(TypeIII,MATCH(O85,TypeTime,1)+1,1),INDEX(TypeTime,MATCH(O85,TypeTime,1),1):INDEX(TypeTime,MATCH(O85,TypeTime)+1,1))), "Choose Type")))) -> 0.0102144 | Q85: 0.000617652 | R85: =P*P85 -> 0.039529728 | S85: =MAX(0,R85-Ia) ->  | W85: 1.02144
B86: 66 | G86: 1.0374 | H86: 33 | I86: =IF(H86=33,0,FORECAST(G86,INDEX($F$21:$F$53,H86,1):INDEX($F$21:$F$53,H86+1,1),INDEX($E$21:$E$53,H86,1):INDEX($E$21:$E$53,H86+1))) -> 0 | J86: 6.5 | K86: 0.13915 | L86: 0.237 | M86: 0.08925 | N86: 0.08063 | O86: 1.0374 | P86: =IF($C$1="Type I",IF(O85=24,1,FORECAST(O86,INDEX(TypeI,MATCH(O86,TypeTime,1),1):INDEX(TypeI,MATCH(O86,TypeTime,1)+1,1),INDEX(TypeTime,MATCH(O86,TypeTime,1),1):INDEX(TypeTime,MATCH(O86,TypeTime)+1,1))), IF($C$1="Type IA",IF(O85=24,1,FORECAST(O86,INDEX(TypeIA,MATCH(O86,TypeTime,1),1):INDEX(TypeIA,MATCH(O86,TypeTime,1)+1,1),INDEX(TypeTime,MATCH(O86,TypeTime,1),1):INDEX(TypeTime,MATCH(O86,TypeTime)+1,1))), IF($C$1="Type II",IF(O85=24,1,FORECAST(O86,INDEX(TypeII,MATCH(O86,TypeTime,1),1):INDEX(TypeII,MATCH(O86,TypeTime,1)+1,1),INDEX(TypeTime,MATCH(O86,TypeTime,1),1):INDEX(TypeTime,MATCH(O86,TypeTime)+1,1))), IF($C$1="Type III",IF(O85=24,1,FORECAST(O86,INDEX(TypeIII,MATCH(O86,TypeTime,1),1):INDEX(TypeIII,MATCH(O86,TypeTime,1)+1,1),INDEX(TypeTime,MATCH(O86,TypeTime,1),1):INDEX(TypeTime,MATCH(O86,TypeTime)+1,1))), "Choose Type")))) -> 0.010374 | Q86: =P*(P86-P85) -> 0.000617652 | R86: 0.04014738 | T86: =MAX(0,(S86^2/(S86+S)-RVol)) ->  | V86: =(X86+X87)/2*$C$12*60*60 ->  | W86: 1.0374 | X86: =SUM(Y86:AX86) ->  | Y86: =$I$21*$U86 -> 
B87: 67 | G87: =MIN(24,G86+$C$12) -> 1.05336 | H87: 33 | I87: =IF(H87=33,0,FORECAST(G87,INDEX($F$21:$F$53,H87,1):INDEX($F$21:$F$53,H87+1,1),INDEX($E$21:$E$53,H87,1):INDEX($E$21:$E$53,H87+1))) -> 0 | J87: 6.6 | K87: 0.1423 | L87: 0.24285 | M87: 0.09116 | N87: 0.0825 | O87: =MIN(24,O86+$C$12) -> 1.05336 | P87: =IF($C$1="Type I",IF(O86=24,1,FORECAST(O87,INDEX(TypeI,MATCH(O87,TypeTime,1),1):INDEX(TypeI,MATCH(O87,TypeTime,1)+1,1),INDEX(TypeTime,MATCH(O87,TypeTime,1),1):INDEX(TypeTime,MATCH(O87,TypeTime)+1,1))), IF($C$1="Type IA",IF(O86=24,1,FORECAST(O87,INDEX(TypeIA,MATCH(O87,TypeTime,1),1):INDEX(TypeIA,MATCH(O87,TypeTime,1)+1,1),INDEX(TypeTime,MATCH(O87,TypeTime,1),1):INDEX(TypeTime,MATCH(O87,TypeTime)+1,1))), IF($C$1="Type II",IF(O86=24,1,FORECAST(O87,INDEX(TypeII,MATCH(O87,TypeTime,1),1):INDEX(TypeII,MATCH(O87,TypeTime,1)+1,1),INDEX(TypeTime,MATCH(O87,TypeTime,1),1):INDEX(TypeTime,MATCH(O87,TypeTime)+1,1))), IF($C$1="Type III",IF(O86=24,1,FORECAST(O87,INDEX(TypeIII,MATCH(O87,TypeTime,1),1):INDEX(TypeIII,MATCH(O87,TypeTime,1)+1,1),INDEX(TypeTime,MATCH(O87,TypeTime,1),1):INDEX(TypeTime,MATCH(O87,TypeTime)+1,1))), "Choose Type")))) -> 0.0105336 | Q87: 0.000617652 | R87: 0.040765032 | U87: =T87-T86 ->  | W87: =W86+$C$12 -> 1.05336 | Z87: =$I$22*$U86 ->  | AA87: =$I$23*$U85 -> 
B88: 68 | G88: 1.06932 | H88: =MATCH(G88,$E$21:$E$53,1) -> 33 | I88: =IF(H88=33,0,FORECAST(G88,INDEX($F$21:$F$53,H88,1):INDEX($F$21:$F$53,H88+1,1),INDEX($E$21:$E$53,H88,1):INDEX($E$21:$E$53,H88+1))) -> 0 | J88: 6.7 | K88: 0.14557 | L88: 0.24878 | M88: 0.09309 | N88: 0.08443 | O88: 1.06932 | P88: =IF($C$1="Type I",IF(O87=24,1,FORECAST(O88,INDEX(TypeI,MATCH(O88,TypeTime,1),1):INDEX(TypeI,MATCH(O88,TypeTime,1)+1,1),INDEX(TypeTime,MATCH(O88,TypeTime,1),1):INDEX(TypeTime,MATCH(O88,TypeTime)+1,1))), IF($C$1="Type IA",IF(O87=24,1,FORECAST(O88,INDEX(TypeIA,MATCH(O88,TypeTime,1),1):INDEX(TypeIA,MATCH(O88,TypeTime,1)+1,1),INDEX(TypeTime,MATCH(O88,TypeTime,1),1):INDEX(TypeTime,MATCH(O88,TypeTime)+1,1))), IF($C$1="Type II",IF(O87=24,1,FORECAST(O88,INDEX(TypeII,MATCH(O88,TypeTime,1),1):INDEX(TypeII,MATCH(O88,TypeTime,1)+1,1),INDEX(TypeTime,MATCH(O88,TypeTime,1),1):INDEX(TypeTime,MATCH(O88,TypeTime)+1,1))), IF($C$1="Type III",IF(O87=24,1,FORECAST(O88,INDEX(TypeIII,MATCH(O88,TypeTime,1),1):INDEX(TypeIII,MATCH(O88,TypeTime,1)+1,1),INDEX(TypeTime,MATCH(O88,TypeTime,1),1):INDEX(TypeTime,MATCH(O88,TypeTime)+1,1))), "Choose Type")))) -> 0.0106932 | Q88: 0.000617652 | R88: 0.041382684 | W88: 1.06932 | AB88: =$I$24*$U85 -> 
B89: 69 | G89: 1.08528 | H89: 33 | I89: =IF(H89=33,0,FORECAST(G89,INDEX($F$21:$F$53,H89,1):INDEX($F$21:$F$53,H89+1,1),INDEX($E$21:$E$53,H89,1):INDEX($E$21:$E$53,H89+1))) -> 0 | J89: 6.8 | K89: 0.14894 | L89: 0.2549 | M89: 0.09504 | N89: 0.0864 | O89: 1.08528 | P89: =IF($C$1="Type I",IF(O88=24,1,FORECAST(O89,INDEX(TypeI,MATCH(O89,TypeTime,1),1):INDEX(TypeI,MATCH(O89,TypeTime,1)+1,1),INDEX(TypeTime,MATCH(O89,TypeTime,1),1):INDEX(TypeTime,MATCH(O89,TypeTime)+1,1))), IF($C$1="Type IA",IF(O88=24,1,FORECAST(O89,INDEX(TypeIA,MATCH(O89,TypeTime,1),1):INDEX(TypeIA,MATCH(O89,TypeTime,1)+1,1),INDEX(TypeTime,MATCH(O89,TypeTime,1),1):INDEX(TypeTime,MATCH(O89,TypeTime)+1,1))), IF($C$1="Type II",IF(O88=24,1,FORECAST(O89,INDEX(TypeII,MATCH(O89,TypeTime,1),1):INDEX(TypeII,MATCH(O89,TypeTime,1)+1,1),INDEX(TypeTime,MATCH(O89,TypeTime,1),1):INDEX(TypeTime,MATCH(O89,TypeTime)+1,1))), IF($C$1="Type III",IF(O88=24,1,FORECAST(O89,INDEX(TypeIII,MATCH(O89,TypeTime,1),1):INDEX(TypeIII,MATCH(O89,TypeTime,1)+1,1),INDEX(TypeTime,MATCH(O89,TypeTime,1),1):INDEX(TypeTime,MATCH(O89,TypeTime)+1,1))), "Choose Type")))) -> 0.0108528 | Q89: 0.000617652 | R89: 0.042000336 | W89: 1.08528 | AC89: =$I$25*$U85 -> 
B90: 70 | G90: 1.10124 | H90: 33 | I90: =IF(H90=33,0,FORECAST(G90,INDEX($F$21:$F$53,H90,1):INDEX($F$21:$F$53,H90+1,1),INDEX($E$21:$E$53,H90,1):INDEX($E$21:$E$53,H90+1))) -> 0 | J90: 6.9 | K90: 0.15241 | L90: 0.26127 | M90: 0.09701 | N90: 0.08843 | O90: 1.10124 | P90: =IF($C$1="Type I",IF(O89=24,1,FORECAST(O90,INDEX(TypeI,MATCH(O90,TypeTime,1),1):INDEX(TypeI,MATCH(O90,TypeTime,1)+1,1),INDEX(TypeTime,MATCH(O90,TypeTime,1),1):INDEX(TypeTime,MATCH(O90,TypeTime)+1,1))), IF($C$1="Type IA",IF(O89=24,1,FORECAST(O90,INDEX(TypeIA,MATCH(O90,TypeTime,1),1):INDEX(TypeIA,MATCH(O90,TypeTime,1)+1,1),INDEX(TypeTime,MATCH(O90,TypeTime,1),1):INDEX(TypeTime,MATCH(O90,TypeTime)+1,1))), IF($C$1="Type II",IF(O89=24,1,FORECAST(O90,INDEX(TypeII,MATCH(O90,TypeTime,1),1):INDEX(TypeII,MATCH(O90,TypeTime,1)+1,1),INDEX(TypeTime,MATCH(O90,TypeTime,1),1):INDEX(TypeTime,MATCH(O90,TypeTime)+1,1))), IF($C$1="Type III",IF(O89=24,1,FORECAST(O90,INDEX(TypeIII,MATCH(O90,TypeTime,1),1):INDEX(TypeIII,MATCH(O90,TypeTime,1)+1,1),INDEX(TypeTime,MATCH(O90,TypeTime,1),1):INDEX(TypeTime,MATCH(O90,TypeTime)+1,1))), "Choose Type")))) -> 0.0110124 | Q90: 0.000617652 | R90: 0.042617988 | W90: 1.10124 | AD90: =$I$26*$U85 -> 
B91: 71 | G91: 1.1172 | H91: 33 | I91: =IF(H91=33,0,FORECAST(G91,INDEX($F$21:$F$53,H91,1):INDEX($F$21:$F$53,H91+1,1),INDEX($E$21:$E$53,H91,1):INDEX($E$21:$E$53,H91+1))) -> 0 | J91: 7 | K91: 0.156 | L91: 0.268 | M91: 0.099 | N91: 0.0905 | O91: 1.1172 | P91: =IF($C$1="Type I",IF(O90=24,1,FORECAST(O91,INDEX(TypeI,MATCH(O91,TypeTime,1),1):INDEX(TypeI,MATCH(O91,TypeTime,1)+1,1),INDEX(TypeTime,MATCH(O91,TypeTime,1),1):INDEX(TypeTime,MATCH(O91,TypeTime)+1,1))), IF($C$1="Type IA",IF(O90=24,1,FORECAST(O91,INDEX(TypeIA,MATCH(O91,TypeTime,1),1):INDEX(TypeIA,MATCH(O91,TypeTime,1)+1,1),INDEX(TypeTime,MATCH(O91,TypeTime,1),1):INDEX(TypeTime,MATCH(O91,TypeTime)+1,1))), IF($C$1="Type II",IF(O90=24,1,FORECAST(O91,INDEX(TypeII,MATCH(O91,TypeTime,1),1):INDEX(TypeII,MATCH(O91,TypeTime,1)+1,1),INDEX(TypeTime,MATCH(O91,TypeTime,1),1):INDEX(TypeTime,MATCH(O91,TypeTime)+1,1))), IF($C$1="Type III",IF(O90=24,1,FORECAST(O91,INDEX(TypeIII,MATCH(O91,TypeTime,1),1):INDEX(TypeIII,MATCH(O91,TypeTime,1)+1,1),INDEX(TypeTime,MATCH(O91,TypeTime,1),1):INDEX(TypeTime,MATCH(O91,TypeTime)+1,1))), "Choose Type")))) -> 0.011172 | Q91: 0.000617652 | R91: 0.04323564 | W91: 1.1172 | AE91: =$I$27*$U85 -> 
B92: 72 | G92: 1.13316 | H92: 33 | I92: =IF(H92=33,0,FORECAST(G92,INDEX($F$21:$F$53,H92,1):INDEX($F$21:$F$53,H92+1,1),INDEX($E$21:$E$53,H92,1):INDEX($E$21:$E$53,H92+1))) -> 0 | J92: 7.1 | K92: 0.15966 | L92: 0.27517 | M92: 0.10101 | N92: 0.09263 | O92: 1.13316 | P92: =IF($C$1="Type I",IF(O91=24,1,FORECAST(O92,INDEX(TypeI,MATCH(O92,TypeTime,1),1):INDEX(TypeI,MATCH(O92,TypeTime,1)+1,1),INDEX(TypeTime,MATCH(O92,TypeTime,1),1):INDEX(TypeTime,MATCH(O92,TypeTime)+1,1))), IF($C$1="Type IA",IF(O91=24,1,FORECAST(O92,INDEX(TypeIA,MATCH(O92,TypeTime,1),1):INDEX(TypeIA,MATCH(O92,TypeTime,1)+1,1),INDEX(TypeTime,MATCH(O92,TypeTime,1),1):INDEX(TypeTime,MATCH(O92,TypeTime)+1,1))), IF($C$1="Type II",IF(O91=24,1,FORECAST(O92,INDEX(TypeII,MATCH(O92,TypeTime,1),1):INDEX(TypeII,MATCH(O92,TypeTime,1)+1,1),INDEX(TypeTime,MATCH(O92,TypeTime,1),1):INDEX(TypeTime,MATCH(O92,TypeTime)+1,1))), IF($C$1="Type III",IF(O91=24,1,FORECAST(O92,INDEX(TypeIII,MATCH(O92,TypeTime,1),1):INDEX(TypeIII,MATCH(O92,TypeTime,1)+1,1),INDEX(TypeTime,MATCH(O92,TypeTime,1),1):INDEX(TypeTime,MATCH(O92,TypeTime)+1,1))), "Choose Type")))) -> 0.0113316 | Q92: 0.000617652 | R92: 0.043853292 | W92: 1.13316 | AF92: =$I$28*$U85 -> 
B93: 73 | G93: 1.14912 | H93: 33 | I93: =IF(H93=33,0,FORECAST(G93,INDEX($F$21:$F$53,H93,1):INDEX($F$21:$F$53,H93+1,1),INDEX($E$21:$E$53,H93,1):INDEX($E$21:$E$53,H93+1))) -> 0 | J93: 7.2 | K93: 0.16334 | L93: 0.28287 | M93: 0.10304 | N93: 0.0948 | O93: 1.14912 | P93: =IF($C$1="Type I",IF(O92=24,1,FORECAST(O93,INDEX(TypeI,MATCH(O93,TypeTime,1),1):INDEX(TypeI,MATCH(O93,TypeTime,1)+1,1),INDEX(TypeTime,MATCH(O93,TypeTime,1),1):INDEX(TypeTime,MATCH(O93,TypeTime)+1,1))), IF($C$1="Type IA",IF(O92=24,1,FORECAST(O93,INDEX(TypeIA,MATCH(O93,TypeTime,1),1):INDEX(TypeIA,MATCH(O93,TypeTime,1)+1,1),INDEX(TypeTime,MATCH(O93,TypeTime,1),1):INDEX(TypeTime,MATCH(O93,TypeTime)+1,1))), IF($C$1="Type II",IF(O92=24,1,FORECAST(O93,INDEX(TypeII,MATCH(O93,TypeTime,1),1):INDEX(TypeII,MATCH(O93,TypeTime,1)+1,1),INDEX(TypeTime,MATCH(O93,TypeTime,1),1):INDEX(TypeTime,MATCH(O93,TypeTime)+1,1))), IF($C$1="Type III",IF(O92=24,1,FORECAST(O93,INDEX(TypeIII,MATCH(O93,TypeTime,1),1):INDEX(TypeIII,MATCH(O93,TypeTime,1)+1,1),INDEX(TypeTime,MATCH(O93,TypeTime,1),1):INDEX(TypeTime,MATCH(O93,TypeTime)+1,1))), "Choose Type")))) -> 0.0114912 | Q93: 0.000617652 | R93: 0.044470944 | W93: 1.14912 | AG93: =$I$29*$U85 -> 
B94: 74 | G94: 1.16508 | H94: 33 | I94: =IF(H94=33,0,FORECAST(G94,INDEX($F$21:$F$53,H94,1):INDEX($F$21:$F$53,H94+1,1),INDEX($E$21:$E$53,H94,1):INDEX($E$21:$E$53,H94+1))) -> 0 | J94: 7.3 | K94: 0.16706 | L94: 0.29118 | M94: 0.10509 | N94: 0.09703 | O94: 1.16508 | P94: =IF($C$1="Type I",IF(O93=24,1,FORECAST(O94,INDEX(TypeI,MATCH(O94,TypeTime,1),1):INDEX(TypeI,MATCH(O94,TypeTime,1)+1,1),INDEX(TypeTime,MATCH(O94,TypeTime,1),1):INDEX(TypeTime,MATCH(O94,TypeTime)+1,1))), IF($C$1="Type IA",IF(O93=24,1,FORECAST(O94,INDEX(TypeIA,MATCH(O94,TypeTime,1),1):INDEX(TypeIA,MATCH(O94,TypeTime,1)+1,1),INDEX(TypeTime,MATCH(O94,TypeTime,1),1):INDEX(TypeTime,MATCH(O94,TypeTime)+1,1))), IF($C$1="Type II",IF(O93=24,1,FORECAST(O94,INDEX(TypeII,MATCH(O94,TypeTime,1),1):INDEX(TypeII,MATCH(O94,TypeTime,1)+1,1),INDEX(TypeTime,MATCH(O94,TypeTime,1),1):INDEX(TypeTime,MATCH(O94,TypeTime)+1,1))), IF($C$1="Type III",IF(O93=24,1,FORECAST(O94,INDEX(TypeIII,MATCH(O94,TypeTime,1),1):INDEX(TypeIII,MATCH(O94,TypeTime,1)+1,1),INDEX(TypeTime,MATCH(O94,TypeTime,1),1):INDEX(TypeTime,MATCH(O94,TypeTime)+1,1))), "Choose Type")))) -> 0.0116508 | Q94: 0.000617652 | R94: 0.045088596 | W94: 1.16508 | AH94: =$I$30*$U85 -> 
B95: 75 | G95: 1.18104 | H95: 33 | I95: =IF(H95=33,0,FORECAST(G95,INDEX($F$21:$F$53,H95,1):INDEX($F$21:$F$53,H95+1,1),INDEX($E$21:$E$53,H95,1):INDEX($E$21:$E$53,H95+1))) -> 0 | J95: 7.4 | K95: 0.17082 | L95: 0.30019 | M95: 0.10716 | N95: 0.0993 | O95: 1.18104 | P95: =IF($C$1="Type I",IF(O94=24,1,FORECAST(O95,INDEX(TypeI,MATCH(O95,TypeTime,1),1):INDEX(TypeI,MATCH(O95,TypeTime,1)+1,1),INDEX(TypeTime,MATCH(O95,TypeTime,1),1):INDEX(TypeTime,MATCH(O95,TypeTime)+1,1))), IF($C$1="Type IA",IF(O94=24,1,FORECAST(O95,INDEX(TypeIA,MATCH(O95,TypeTime,1),1):INDEX(TypeIA,MATCH(O95,TypeTime,1)+1,1),INDEX(TypeTime,MATCH(O95,TypeTime,1),1):INDEX(TypeTime,MATCH(O95,TypeTime)+1,1))), IF($C$1="Type II",IF(O94=24,1,FORECAST(O95,INDEX(TypeII,MATCH(O95,TypeTime,1),1):INDEX(TypeII,MATCH(O95,TypeTime,1)+1,1),INDEX(TypeTime,MATCH(O95,TypeTime,1),1):INDEX(TypeTime,MATCH(O95,TypeTime)+1,1))), IF($C$1="Type III",IF(O94=24,1,FORECAST(O95,INDEX(TypeIII,MATCH(O95,TypeTime,1),1):INDEX(TypeIII,MATCH(O95,TypeTime,1)+1,1),INDEX(TypeTime,MATCH(O95,TypeTime,1),1):INDEX(TypeTime,MATCH(O95,TypeTime)+1,1))), "Choose Type")))) -> 0.0118104 | Q95: 0.000617652 | R95: 0.045706248 | W95: 1.18104 | AI95: =$I$31*$U85 -> 
B96: 76 | G96: 1.197 | H96: 33 | I96: =IF(H96=33,0,FORECAST(G96,INDEX($F$21:$F$53,H96,1):INDEX($F$21:$F$53,H96+1,1),INDEX($E$21:$E$53,H96,1):INDEX($E$21:$E$53,H96+1))) -> 0 | J96: 7.5 | K96: 0.1746 | L96: 0.31 | M96: 0.10925 | N96: 0.10163 | O96: 1.197 | P96: =IF($C$1="Type I",IF(O95=24,1,FORECAST(O96,INDEX(TypeI,MATCH(O96,TypeTime,1),1):INDEX(TypeI,MATCH(O96,TypeTime,1)+1,1),INDEX(TypeTime,MATCH(O96,TypeTime,1),1):INDEX(TypeTime,MATCH(O96,TypeTime)+1,1))), IF($C$1="Type IA",IF(O95=24,1,FORECAST(O96,INDEX(TypeIA,MATCH(O96,TypeTime,1),1):INDEX(TypeIA,MATCH(O96,TypeTime,1)+1,1),INDEX(TypeTime,MATCH(O96,TypeTime,1),1):INDEX(TypeTime,MATCH(O96,TypeTime)+1,1))), IF($C$1="Type II",IF(O95=24,1,FORECAST(O96,INDEX(TypeII,MATCH(O96,TypeTime,1),1):INDEX(TypeII,MATCH(O96,TypeTime,1)+1,1),INDEX(TypeTime,MATCH(O96,TypeTime,1),1):INDEX(TypeTime,MATCH(O96,TypeTime)+1,1))), IF($C$1="Type III",IF(O95=24,1,FORECAST(O96,INDEX(TypeIII,MATCH(O96,TypeTime,1),1):INDEX(TypeIII,MATCH(O96,TypeTime,1)+1,1),INDEX(TypeTime,MATCH(O96,TypeTime,1),1):INDEX(TypeTime,MATCH(O96,TypeTime)+1,1))), "Choose Type")))) -> 0.01197 | Q96: 0.000617652 | R96: 0.0463239 | W96: 1.197 | AJ96: =$I$32*$U85 -> 
B97: 77 | G97: 1.21296 | H97: 33 | I97: =IF(H97=33,0,FORECAST(G97,INDEX($F$21:$F$53,H97,1):INDEX($F$21:$F$53,H97+1,1),INDEX($E$21:$E$53,H97,1):INDEX($E$21:$E$53,H97+1))) -> 0 | J97: 7.6 | K97: 0.17842 | L97: 0.33142 | M97: 0.11136 | N97: 0.104 | O97: 1.21296 | P97: =IF($C$1="Type I",IF(O96=24,1,FORECAST(O97,INDEX(TypeI,MATCH(O97,TypeTime,1),1):INDEX(TypeI,MATCH(O97,TypeTime,1)+1,1),INDEX(TypeTime,MATCH(O97,TypeTime,1),1):INDEX(TypeTime,MATCH(O97,TypeTime)+1,1))), IF($C$1="Type IA",IF(O96=24,1,FORECAST(O97,INDEX(TypeIA,MATCH(O97,TypeTime,1),1):INDEX(TypeIA,MATCH(O97,TypeTime,1)+1,1),INDEX(TypeTime,MATCH(O97,TypeTime,1),1):INDEX(TypeTime,MATCH(O97,TypeTime)+1,1))), IF($C$1="Type II",IF(O96=24,1,FORECAST(O97,INDEX(TypeII,MATCH(O97,TypeTime,1),1):INDEX(TypeII,MATCH(O97,TypeTime,1)+1,1),INDEX(TypeTime,MATCH(O97,TypeTime,1),1):INDEX(TypeTime,MATCH(O97,TypeTime)+1,1))), IF($C$1="Type III",IF(O96=24,1,FORECAST(O97,INDEX(TypeIII,MATCH(O97,TypeTime,1),1):INDEX(TypeIII,MATCH(O97,TypeTime,1)+1,1),INDEX(TypeTime,MATCH(O97,TypeTime,1),1):INDEX(TypeTime,MATCH(O97,TypeTime)+1,1))), "Choose Type")))) -> 0.0121296 | Q97: 0.000617652 | R97: 0.046941552 | W97: 1.21296 | AK97: =$I$33*$U85 -> 
B98: 78 | G98: 1.22892 | H98: 33 | I98: =IF(H98=33,0,FORECAST(G98,INDEX($F$21:$F$53,H98,1):INDEX($F$21:$F$53,H98+1,1),INDEX($E$21:$E$53,H98,1):INDEX($E$21:$E$53,H98+1))) -> 0 | J98: 7.7 | K98: 0.18226 | L98: 0.35469 | M98: 0.11349 | N98: 0.10643 | O98: 1.22892 | P98: =IF($C$1="Type I",IF(O97=24,1,FORECAST(O98,INDEX(TypeI,MATCH(O98,TypeTime,1),1):INDEX(TypeI,MATCH(O98,TypeTime,1)+1,1),INDEX(TypeTime,MATCH(O98,TypeTime,1),1):INDEX(TypeTime,MATCH(O98,TypeTime)+1,1))), IF($C$1="Type IA",IF(O97=24,1,FORECAST(O98,INDEX(TypeIA,MATCH(O98,TypeTime,1),1):INDEX(TypeIA,MATCH(O98,TypeTime,1)+1,1),INDEX(TypeTime,MATCH(O98,TypeTime,1),1):INDEX(TypeTime,MATCH(O98,TypeTime)+1,1))), IF($C$1="Type II",IF(O97=24,1,FORECAST(O98,INDEX(TypeII,MATCH(O98,TypeTime,1),1):INDEX(TypeII,MATCH(O98,TypeTime,1)+1,1),INDEX(TypeTime,MATCH(O98,TypeTime,1),1):INDEX(TypeTime,MATCH(O98,TypeTime)+1,1))), IF($C$1="Type III",IF(O97=24,1,FORECAST(O98,INDEX(TypeIII,MATCH(O98,TypeTime,1),1):INDEX(TypeIII,MATCH(O98,TypeTime,1)+1,1),INDEX(TypeTime,MATCH(O98,TypeTime,1),1):INDEX(TypeTime,MATCH(O98,TypeTime)+1,1))), "Choose Type")))) -> 0.0122892 | Q98: 0.000617652 | R98: 0.047559204 | W98: 1.22892 | AL98: =$I$34*$U85 -> 
B99: 79 | G99: 1.24488 | H99: 33 | I99: =IF(H99=33,0,FORECAST(G99,INDEX($F$21:$F$53,H99,1):INDEX($F$21:$F$53,H99+1,1),INDEX($E$21:$E$53,H99,1):INDEX($E$21:$E$53,H99+1))) -> 0 | J99: 7.8 | K99: 0.18614 | L99: 0.37876 | M99: 0.11564 | N99: 0.1089 | O99: 1.24488 | P99: =IF($C$1="Type I",IF(O98=24,1,FORECAST(O99,INDEX(TypeI,MATCH(O99,TypeTime,1),1):INDEX(TypeI,MATCH(O99,TypeTime,1)+1,1),INDEX(TypeTime,MATCH(O99,TypeTime,1),1):INDEX(TypeTime,MATCH(O99,TypeTime)+1,1))), IF($C$1="Type IA",IF(O98=24,1,FORECAST(O99,INDEX(TypeIA,MATCH(O99,TypeTime,1),1):INDEX(TypeIA,MATCH(O99,TypeTime,1)+1,1),INDEX(TypeTime,MATCH(O99,TypeTime,1),1):INDEX(TypeTime,MATCH(O99,TypeTime)+1,1))), IF($C$1="Type II",IF(O98=24,1,FORECAST(O99,INDEX(TypeII,MATCH(O99,TypeTime,1),1):INDEX(TypeII,MATCH(O99,TypeTime,1)+1,1),INDEX(TypeTime,MATCH(O99,TypeTime,1),1):INDEX(TypeTime,MATCH(O99,TypeTime)+1,1))), IF($C$1="Type III",IF(O98=24,1,FORECAST(O99,INDEX(TypeIII,MATCH(O99,TypeTime,1),1):INDEX(TypeIII,MATCH(O99,TypeTime,1)+1,1),INDEX(TypeTime,MATCH(O99,TypeTime,1),1):INDEX(TypeTime,MATCH(O99,TypeTime)+1,1))), "Choose Type")))) -> 0.0124488 | Q99: 0.000617652 | R99: 0.048176856 | W99: 1.24488 | AM99: =$I$35*$U85 -> 
B100: 80 | G100: 1.26084 | H100: 33 | I100: =IF(H100=33,0,FORECAST(G100,INDEX($F$21:$F$53,H100,1):INDEX($F$21:$F$53,H100+1,1),INDEX($E$21:$E$53,H100,1):INDEX($E$21:$E$53,H100+1))) -> 0 | J100: 7.9 | K100: 0.19006 | L100: 0.40255 | M100: 0.11781 | N100: 0.11143 | O100: 1.26084 | P100: =IF($C$1="Type I",IF(O99=24,1,FORECAST(O100,INDEX(TypeI,MATCH(O100,TypeTime,1),1):INDEX(TypeI,MATCH(O100,TypeTime,1)+1,1),INDEX(TypeTime,MATCH(O100,TypeTime,1),1):INDEX(TypeTime,MATCH(O100,TypeTime)+1,1))), IF($C$1="Type IA",IF(O99=24,1,FORECAST(O100,INDEX(TypeIA,MATCH(O100,TypeTime,1),1):INDEX(TypeIA,MATCH(O100,TypeTime,1)+1,1),INDEX(TypeTime,MATCH(O100,TypeTime,1),1):INDEX(TypeTime,MATCH(O100,TypeTime)+1,1))), IF($C$1="Type II",IF(O99=24,1,FORECAST(O100,INDEX(TypeII,MATCH(O100,TypeTime,1),1):INDEX(TypeII,MATCH(O100,TypeTime,1)+1,1),INDEX(TypeTime,MATCH(O100,TypeTime,1),1):INDEX(TypeTime,MATCH(O100,TypeTime)+1,1))), IF($C$1="Type III",IF(O99=24,1,FORECAST(O100,INDEX(TypeIII,MATCH(O100,TypeTime,1),1):INDEX(TypeIII,MATCH(O100,TypeTime,1)+1,1),INDEX(TypeTime,MATCH(O100,TypeTime,1),1):INDEX(TypeTime,MATCH(O100,TypeTime)+1,1))), "Choose Type")))) -> 0.0126084 | Q100: 0.000617652 | R100: 0.048794508 | W100: 1.26084 | AN100: =$I$36*$U85 -> 
B101: 81 | G101: 1.2768 | H101: 33 | I101: =IF(H101=33,0,FORECAST(G101,INDEX($F$21:$F$53,H101,1):INDEX($F$21:$F$53,H101+1,1),INDEX($E$21:$E$53,H101,1):INDEX($E$21:$E$53,H101+1))) -> 0 | J101: 8 | K101: 0.194 | L101: 0.425 | M101: 0.12 | N101: 0.114 | O101: 1.2768 | P101: =IF($C$1="Type I",IF(O100=24,1,FORECAST(O101,INDEX(TypeI,MATCH(O101,TypeTime,1),1):INDEX(TypeI,MATCH(O101,TypeTime,1)+1,1),INDEX(TypeTime,MATCH(O101,TypeTime,1),1):INDEX(TypeTime,MATCH(O101,TypeTime)+1,1))), IF($C$1="Type IA",IF(O100=24,1,FORECAST(O101,INDEX(TypeIA,MATCH(O101,TypeTime,1),1):INDEX(TypeIA,MATCH(O101,TypeTime,1)+1,1),INDEX(TypeTime,MATCH(O101,TypeTime,1),1):INDEX(TypeTime,MATCH(O101,TypeTime)+1,1))), IF($C$1="Type II",IF(O100=24,1,FORECAST(O101,INDEX(TypeII,MATCH(O101,TypeTime,1),1):INDEX(TypeII,MATCH(O101,TypeTime,1)+1,1),INDEX(TypeTime,MATCH(O101,TypeTime,1),1):INDEX(TypeTime,MATCH(O101,TypeTime)+1,1))), IF($C$1="Type III",IF(O100=24,1,FORECAST(O101,INDEX(TypeIII,MATCH(O101,TypeTime,1),1):INDEX(TypeIII,MATCH(O101,TypeTime,1)+1,1),INDEX(TypeTime,MATCH(O101,TypeTime,1),1):INDEX(TypeTime,MATCH(O101,TypeTime)+1,1))), "Choose Type")))) -> 0.012768 | Q101: 0.000617652 | R101: 0.04941216 | W101: 1.2768 | AO101: =$I$37*$U85 -> 
B102: 82 | G102: 1.29276 | H102: 33 | I102: =IF(H102=33,0,FORECAST(G102,INDEX($F$21:$F$53,H102,1):INDEX($F$21:$F$53,H102+1,1),INDEX($E$21:$E$53,H102,1):INDEX($E$21:$E$53,H102+1))) -> 0 | J102: 8.1 | K102: 0.19817 | L102: 0.43936 | M102: 0.12225 | N102: 0.11666 | O102: 1.29276 | P102: =IF($C$1="Type I",IF(O101=24,1,FORECAST(O102,INDEX(TypeI,MATCH(O102,TypeTime,1),1):INDEX(TypeI,MATCH(O102,TypeTime,1)+1,1),INDEX(TypeTime,MATCH(O102,TypeTime,1),1):INDEX(TypeTime,MATCH(O102,TypeTime)+1,1))), IF($C$1="Type IA",IF(O101=24,1,FORECAST(O102,INDEX(TypeIA,MATCH(O102,TypeTime,1),1):INDEX(TypeIA,MATCH(O102,TypeTime,1)+1,1),INDEX(TypeTime,MATCH(O102,TypeTime,1),1):INDEX(TypeTime,MATCH(O102,TypeTime)+1,1))), IF($C$1="Type II",IF(O101=24,1,FORECAST(O102,INDEX(TypeII,MATCH(O102,TypeTime,1),1):INDEX(TypeII,MATCH(O102,TypeTime,1)+1,1),INDEX(TypeTime,MATCH(O102,TypeTime,1),1):INDEX(TypeTime,MATCH(O102,TypeTime)+1,1))), IF($C$1="Type III",IF(O101=24,1,FORECAST(O102,INDEX(TypeIII,MATCH(O102,TypeTime,1),1):INDEX(TypeIII,MATCH(O102,TypeTime,1)+1,1),INDEX(TypeTime,MATCH(O102,TypeTime,1),1):INDEX(TypeTime,MATCH(O102,TypeTime)+1,1))), "Choose Type")))) -> 0.0129276 | Q102: 0.000617652 | R102: 0.050029812 | W102: 1.29276 | AP102: =$I$38*$U85 -> 
B103: 83 | G103: 1.30872 | H103: 33 | I103: =IF(H103=33,0,FORECAST(G103,INDEX($F$21:$F$53,H103,1):INDEX($F$21:$F$53,H103+1,1),INDEX($E$21:$E$53,H103,1):INDEX($E$21:$E$53,H103+1))) -> 0 | J103: 8.2 | K103: 0.20275 | L103: 0.45168 | M103: 0.1246 | N103: 0.11943 | O103: 1.30872 | P103: =IF($C$1="Type I",IF(O102=24,1,FORECAST(O103,INDEX(TypeI,MATCH(O103,TypeTime,1),1):INDEX(TypeI,MATCH(O103,TypeTime,1)+1,1),INDEX(TypeTime,MATCH(O103,TypeTime,1),1):INDEX(TypeTime,MATCH(O103,TypeTime)+1,1))), IF($C$1="Type IA",IF(O102=24,1,FORECAST(O103,INDEX(TypeIA,MATCH(O103,TypeTime,1),1):INDEX(TypeIA,MATCH(O103,TypeTime,1)+1,1),INDEX(TypeTime,MATCH(O103,TypeTime,1),1):INDEX(TypeTime,MATCH(O103,TypeTime)+1,1))), IF($C$1="Type II",IF(O102=24,1,FORECAST(O103,INDEX(TypeII,MATCH(O103,TypeTime,1),1):INDEX(TypeII,MATCH(O103,TypeTime,1)+1,1),INDEX(TypeTime,MATCH(O103,TypeTime,1),1):INDEX(TypeTime,MATCH(O103,TypeTime)+1,1))), IF($C$1="Type III",IF(O102=24,1,FORECAST(O103,INDEX(TypeIII,MATCH(O103,TypeTime,1),1):INDEX(TypeIII,MATCH(O103,TypeTime,1)+1,1),INDEX(TypeTime,MATCH(O103,TypeTime,1),1):INDEX(TypeTime,MATCH(O103,TypeTime)+1,1))), "Choose Type")))) -> 0.0130872 | Q103: 0.000617652 | R103: 0.050647464 | W103: 1.30872 | AQ103: =$I$39*$U85 -> 
B104: 84 | G104: 1.32468 | H104: 33 | I104: =IF(H104=33,0,FORECAST(G104,INDEX($F$21:$F$53,H104,1):INDEX($F$21:$F$53,H104+1,1),INDEX($E$21:$E$53,H104,1):INDEX($E$21:$E$53,H104+1))) -> 0 | J104: 8.3 | K104: 0.20775 | L104: 0.46232 | M104: 0.12705 | N104: 0.12232 | O104: 1.32468 | P104: =IF($C$1="Type I",IF(O103=24,1,FORECAST(O104,INDEX(TypeI,MATCH(O104,TypeTime,1),1):INDEX(TypeI,MATCH(O104,TypeTime,1)+1,1),INDEX(TypeTime,MATCH(O104,TypeTime,1),1):INDEX(TypeTime,MATCH(O104,TypeTime)+1,1))), IF($C$1="Type IA",IF(O103=24,1,FORECAST(O104,INDEX(TypeIA,MATCH(O104,TypeTime,1),1):INDEX(TypeIA,MATCH(O104,TypeTime,1)+1,1),INDEX(TypeTime,MATCH(O104,TypeTime,1),1):INDEX(TypeTime,MATCH(O104,TypeTime)+1,1))), IF($C$1="Type II",IF(O103=24,1,FORECAST(O104,INDEX(TypeII,MATCH(O104,TypeTime,1),1):INDEX(TypeII,MATCH(O104,TypeTime,1)+1,1),INDEX(TypeTime,MATCH(O104,TypeTime,1),1):INDEX(TypeTime,MATCH(O104,TypeTime)+1,1))), IF($C$1="Type III",IF(O103=24,1,FORECAST(O104,INDEX(TypeIII,MATCH(O104,TypeTime,1),1):INDEX(TypeIII,MATCH(O104,TypeTime,1)+1,1),INDEX(TypeTime,MATCH(O104,TypeTime,1),1):INDEX(TypeTime,MATCH(O104,TypeTime)+1,1))), "Choose Type")))) -> 0.0132468 | Q104: 0.000617652 | R104: 0.051265116 | W104: 1.32468 | AR104: =$I$40*$U85 -> 
B105: 85 | G105: 1.34064 | H105: 33 | I105: =IF(H105=33,0,FORECAST(G105,INDEX($F$21:$F$53,H105,1):INDEX($F$21:$F$53,H105+1,1),INDEX($E$21:$E$53,H105,1):INDEX($E$21:$E$53,H105+1))) -> 0 | J105: 8.4 | K105: 0.21317 | L105: 0.47164 | M105: 0.1296 | N105: 0.12532 | O105: 1.34064 | P105: =IF($C$1="Type I",IF(O104=24,1,FORECAST(O105,INDEX(TypeI,MATCH(O105,TypeTime,1),1):INDEX(TypeI,MATCH(O105,TypeTime,1)+1,1),INDEX(TypeTime,MATCH(O105,TypeTime,1),1):INDEX(TypeTime,MATCH(O105,TypeTime)+1,1))), IF($C$1="Type IA",IF(O104=24,1,FORECAST(O105,INDEX(TypeIA,MATCH(O105,TypeTime,1),1):INDEX(TypeIA,MATCH(O105,TypeTime,1)+1,1),INDEX(TypeTime,MATCH(O105,TypeTime,1),1):INDEX(TypeTime,MATCH(O105,TypeTime)+1,1))), IF($C$1="Type II",IF(O104=24,1,FORECAST(O105,INDEX(TypeII,MATCH(O105,TypeTime,1),1):INDEX(TypeII,MATCH(O105,TypeTime,1)+1,1),INDEX(TypeTime,MATCH(O105,TypeTime,1),1):INDEX(TypeTime,MATCH(O105,TypeTime)+1,1))), IF($C$1="Type III",IF(O104=24,1,FORECAST(O105,INDEX(TypeIII,MATCH(O105,TypeTime,1),1):INDEX(TypeIII,MATCH(O105,TypeTime,1)+1,1),INDEX(TypeTime,MATCH(O105,TypeTime,1),1):INDEX(TypeTime,MATCH(O105,TypeTime)+1,1))), "Choose Type")))) -> 0.0134064 | Q105: 0.000617652 | R105: 0.051882768 | W105: 1.34064 | AS105: =$I$41*$U85 -> 
B106: 86 | G106: 1.3566 | H106: 33 | I106: =IF(H106=33,0,FORECAST(G106,INDEX($F$21:$F$53,H106,1):INDEX($F$21:$F$53,H106+1,1),INDEX($E$21:$E$53,H106,1):INDEX($E$21:$E$53,H106+1))) -> 0 | J106: 8.5 | K106: 0.219 | L106: 0.48 | M106: 0.13225 | N106: 0.12844 | O106: 1.3566 | P106: =IF($C$1="Type I",IF(O105=24,1,FORECAST(O106,INDEX(TypeI,MATCH(O106,TypeTime,1),1):INDEX(TypeI,MATCH(O106,TypeTime,1)+1,1),INDEX(TypeTime,MATCH(O106,TypeTime,1),1):INDEX(TypeTime,MATCH(O106,TypeTime)+1,1))), IF($C$1="Type IA",IF(O105=24,1,FORECAST(O106,INDEX(TypeIA,MATCH(O106,TypeTime,1),1):INDEX(TypeIA,MATCH(O106,TypeTime,1)+1,1),INDEX(TypeTime,MATCH(O106,TypeTime,1),1):INDEX(TypeTime,MATCH(O106,TypeTime)+1,1))), IF($C$1="Type II",IF(O105=24,1,FORECAST(O106,INDEX(TypeII,MATCH(O106,TypeTime,1),1):INDEX(TypeII,MATCH(O106,TypeTime,1)+1,1),INDEX(TypeTime,MATCH(O106,TypeTime,1),1):INDEX(TypeTime,MATCH(O106,TypeTime)+1,1))), IF($C$1="Type III",IF(O105=24,1,FORECAST(O106,INDEX(TypeIII,MATCH(O106,TypeTime,1),1):INDEX(TypeIII,MATCH(O106,TypeTime,1)+1,1),INDEX(TypeTime,MATCH(O106,TypeTime,1),1):INDEX(TypeTime,MATCH(O106,TypeTime)+1,1))), "Choose Type")))) -> 0.013566 | Q106: 0.000617652 | R106: 0.05250042 | W106: 1.3566 | AT106: =$I$42*$U85 -> 
B107: 87 | G107: 1.37256 | H107: 33 | I107: =IF(H107=33,0,FORECAST(G107,INDEX($F$21:$F$53,H107,1):INDEX($F$21:$F$53,H107+1,1),INDEX($E$21:$E$53,H107,1):INDEX($E$21:$E$53,H107+1))) -> 0 | J107: 8.6 | K107: 0.22523 | L107: 0.48904 | M107: 0.135 | N107: 0.13167 | O107: 1.37256 | P107: =IF($C$1="Type I",IF(O106=24,1,FORECAST(O107,INDEX(TypeI,MATCH(O107,TypeTime,1),1):INDEX(TypeI,MATCH(O107,TypeTime,1)+1,1),INDEX(TypeTime,MATCH(O107,TypeTime,1),1):INDEX(TypeTime,MATCH(O107,TypeTime)+1,1))), IF($C$1="Type IA",IF(O106=24,1,FORECAST(O107,INDEX(TypeIA,MATCH(O107,TypeTime,1),1):INDEX(TypeIA,MATCH(O107,TypeTime,1)+1,1),INDEX(TypeTime,MATCH(O107,TypeTime,1),1):INDEX(TypeTime,MATCH(O107,TypeTime)+1,1))), IF($C$1="Type II",IF(O106=24,1,FORECAST(O107,INDEX(TypeII,MATCH(O107,TypeTime,1),1):INDEX(TypeII,MATCH(O107,TypeTime,1)+1,1),INDEX(TypeTime,MATCH(O107,TypeTime,1),1):INDEX(TypeTime,MATCH(O107,TypeTime)+1,1))), IF($C$1="Type III",IF(O106=24,1,FORECAST(O107,INDEX(TypeIII,MATCH(O107,TypeTime,1),1):INDEX(TypeIII,MATCH(O107,TypeTime,1)+1,1),INDEX(TypeTime,MATCH(O107,TypeTime,1),1):INDEX(TypeTime,MATCH(O107,TypeTime)+1,1))), "Choose Type")))) -> 0.0137256 | Q107: 0.000617652 | R107: 0.053118072 | W107: 1.37256 | AU107: =$I$43*$U85 -> 
B108: 88 | G108: 1.38852 | H108: 33 | I108: =IF(H108=33,0,FORECAST(G108,INDEX($F$21:$F$53,H108,1):INDEX($F$21:$F$53,H108+1,1),INDEX($E$21:$E$53,H108,1):INDEX($E$21:$E$53,H108+1))) -> 0 | J108: 8.7 | K108: 0.23185 | L108: 0.49752 | M108: 0.13785 | N108: 0.13502 | O108: 1.38852 | P108: =IF($C$1="Type I",IF(O107=24,1,FORECAST(O108,INDEX(TypeI,MATCH(O108,TypeTime,1),1):INDEX(TypeI,MATCH(O108,TypeTime,1)+1,1),INDEX(TypeTime,MATCH(O108,TypeTime,1),1):INDEX(TypeTime,MATCH(O108,TypeTime)+1,1))), IF($C$1="Type IA",IF(O107=24,1,FORECAST(O108,INDEX(TypeIA,MATCH(O108,TypeTime,1),1):INDEX(TypeIA,MATCH(O108,TypeTime,1)+1,1),INDEX(TypeTime,MATCH(O108,TypeTime,1),1):INDEX(TypeTime,MATCH(O108,TypeTime)+1,1))), IF($C$1="Type II",IF(O107=24,1,FORECAST(O108,INDEX(TypeII,MATCH(O108,TypeTime,1),1):INDEX(TypeII,MATCH(O108,TypeTime,1)+1,1),INDEX(TypeTime,MATCH(O108,TypeTime,1),1):INDEX(TypeTime,MATCH(O108,TypeTime)+1,1))), IF($C$1="Type III",IF(O107=24,1,FORECAST(O108,INDEX(TypeIII,MATCH(O108,TypeTime,1),1):INDEX(TypeIII,MATCH(O108,TypeTime,1)+1,1),INDEX(TypeTime,MATCH(O108,TypeTime,1),1):INDEX(TypeTime,MATCH(O108,TypeTime)+1,1))), "Choose Type")))) -> 0.0138852 | Q108: 0.000617652 | R108: 0.053735724 | W108: 1.38852 | AV108: =$I$44*$U85 -> 
B109: 89 | G109: 1.40448 | H109: 33 | I109: =IF(H109=33,0,FORECAST(G109,INDEX($F$21:$F$53,H109,1):INDEX($F$21:$F$53,H109+1,1),INDEX($E$21:$E$53,H109,1):INDEX($E$21:$E$53,H109+1))) -> 0 | J109: 8.8 | K109: 0.23885 | L109: 0.50548 | M109: 0.1408 | N109: 0.13848 | O109: 1.40448 | P109: =IF($C$1="Type I",IF(O108=24,1,FORECAST(O109,INDEX(TypeI,MATCH(O109,TypeTime,1),1):INDEX(TypeI,MATCH(O109,TypeTime,1)+1,1),INDEX(TypeTime,MATCH(O109,TypeTime,1),1):INDEX(TypeTime,MATCH(O109,TypeTime)+1,1))), IF($C$1="Type IA",IF(O108=24,1,FORECAST(O109,INDEX(TypeIA,MATCH(O109,TypeTime,1),1):INDEX(TypeIA,MATCH(O109,TypeTime,1)+1,1),INDEX(TypeTime,MATCH(O109,TypeTime,1),1):INDEX(TypeTime,MATCH(O109,TypeTime)+1,1))), IF($C$1="Type II",IF(O108=24,1,FORECAST(O109,INDEX(TypeII,MATCH(O109,TypeTime,1),1):INDEX(TypeII,MATCH(O109,TypeTime,1)+1,1),INDEX(TypeTime,MATCH(O109,TypeTime,1),1):INDEX(TypeTime,MATCH(O109,TypeTime)+1,1))), IF($C$1="Type III",IF(O108=24,1,FORECAST(O109,INDEX(TypeIII,MATCH(O109,TypeTime,1),1):INDEX(TypeIII,MATCH(O109,TypeTime,1)+1,1),INDEX(TypeTime,MATCH(O109,TypeTime,1),1):INDEX(TypeTime,MATCH(O109,TypeTime)+1,1))), "Choose Type")))) -> 0.0140448 | Q109: 0.000617652 | R109: 0.054353376 | W109: 1.40448 | AW109: =$I$45*$U85 -> 
B110: 90 | G110: 1.42044 | H110: 33 | I110: =IF(H110=33,0,FORECAST(G110,INDEX($F$21:$F$53,H110,1):INDEX($F$21:$F$53,H110+1,1),INDEX($E$21:$E$53,H110,1):INDEX($E$21:$E$53,H110+1))) -> 0 | J110: 8.9 | K110: 0.24623 | L110: 0.51296 | M110: 0.14385 | N110: 0.14206 | O110: 1.42044 | P110: =IF($C$1="Type I",IF(O109=24,1,FORECAST(O110,INDEX(TypeI,MATCH(O110,TypeTime,1),1):INDEX(TypeI,MATCH(O110,TypeTime,1)+1,1),INDEX(TypeTime,MATCH(O110,TypeTime,1),1):INDEX(TypeTime,MATCH(O110,TypeTime)+1,1))), IF($C$1="Type IA",IF(O109=24,1,FORECAST(O110,INDEX(TypeIA,MATCH(O110,TypeTime,1),1):INDEX(TypeIA,MATCH(O110,TypeTime,1)+1,1),INDEX(TypeTime,MATCH(O110,TypeTime,1),1):INDEX(TypeTime,MATCH(O110,TypeTime)+1,1))), IF($C$1="Type II",IF(O109=24,1,FORECAST(O110,INDEX(TypeII,MATCH(O110,TypeTime,1),1):INDEX(TypeII,MATCH(O110,TypeTime,1)+1,1),INDEX(TypeTime,MATCH(O110,TypeTime,1),1):INDEX(TypeTime,MATCH(O110,TypeTime)+1,1))), IF($C$1="Type III",IF(O109=24,1,FORECAST(O110,INDEX(TypeIII,MATCH(O110,TypeTime,1),1):INDEX(TypeIII,MATCH(O110,TypeTime,1)+1,1),INDEX(TypeTime,MATCH(O110,TypeTime,1),1):INDEX(TypeTime,MATCH(O110,TypeTime)+1,1))), "Choose Type")))) -> 0.0142044 | Q110: 0.000617652 | R110: 0.054971028 | W110: 1.42044 | AX110: =$I$46*$U85 -> 
B111: 91 | G111: 1.4364 | H111: 33 | I111: =IF(H111=33,0,FORECAST(G111,INDEX($F$21:$F$53,H111,1):INDEX($F$21:$F$53,H111+1,1),INDEX($E$21:$E$53,H111,1):INDEX($E$21:$E$53,H111+1))) -> 0 | J111: 9 | K111: 0.254 | L111: 0.52 | M111: 0.147 | N111: 0.14575 | O111: 1.4364 | P111: =IF($C$1="Type I",IF(O110=24,1,FORECAST(O111,INDEX(TypeI,MATCH(O111,TypeTime,1),1):INDEX(TypeI,MATCH(O111,TypeTime,1)+1,1),INDEX(TypeTime,MATCH(O111,TypeTime,1),1):INDEX(TypeTime,MATCH(O111,TypeTime)+1,1))), IF($C$1="Type IA",IF(O110=24,1,FORECAST(O111,INDEX(TypeIA,MATCH(O111,TypeTime,1),1):INDEX(TypeIA,MATCH(O111,TypeTime,1)+1,1),INDEX(TypeTime,MATCH(O111,TypeTime,1),1):INDEX(TypeTime,MATCH(O111,TypeTime)+1,1))), IF($C$1="Type II",IF(O110=24,1,FORECAST(O111,INDEX(TypeII,MATCH(O111,TypeTime,1),1):INDEX(TypeII,MATCH(O111,TypeTime,1)+1,1),INDEX(TypeTime,MATCH(O111,TypeTime,1),1):INDEX(TypeTime,MATCH(O111,TypeTime)+1,1))), IF($C$1="Type III",IF(O110=24,1,FORECAST(O111,INDEX(TypeIII,MATCH(O111,TypeTime,1),1):INDEX(TypeIII,MATCH(O111,TypeTime,1)+1,1),INDEX(TypeTime,MATCH(O111,TypeTime,1),1):INDEX(TypeTime,MATCH(O111,TypeTime)+1,1))), "Choose Type")))) -> 0.014364 | Q111: 0.000617652 | R111: 0.05558868 | W111: 1.4364
B112: 92 | G112: 1.45236 | H112: 33 | I112: =IF(H112=33,0,FORECAST(G112,INDEX($F$21:$F$53,H112,1):INDEX($F$21:$F$53,H112+1,1),INDEX($E$21:$E$53,H112,1):INDEX($E$21:$E$53,H112+1))) -> 0 | J112: 9.1 | K112: 0.26233 | L112: 0.52664 | M112: 0.1502 | N112: 0.14956 | O112: 1.45236 | P112: =IF($C$1="Type I",IF(O111=24,1,FORECAST(O112,INDEX(TypeI,MATCH(O112,TypeTime,1),1):INDEX(TypeI,MATCH(O112,TypeTime,1)+1,1),INDEX(TypeTime,MATCH(O112,TypeTime,1),1):INDEX(TypeTime,MATCH(O112,TypeTime)+1,1))), IF($C$1="Type IA",IF(O111=24,1,FORECAST(O112,INDEX(TypeIA,MATCH(O112,TypeTime,1),1):INDEX(TypeIA,MATCH(O112,TypeTime,1)+1,1),INDEX(TypeTime,MATCH(O112,TypeTime,1),1):INDEX(TypeTime,MATCH(O112,TypeTime)+1,1))), IF($C$1="Type II",IF(O111=24,1,FORECAST(O112,INDEX(TypeII,MATCH(O112,TypeTime,1),1):INDEX(TypeII,MATCH(O112,TypeTime,1)+1,1),INDEX(TypeTime,MATCH(O112,TypeTime,1),1):INDEX(TypeTime,MATCH(O112,TypeTime)+1,1))), IF($C$1="Type III",IF(O111=24,1,FORECAST(O112,INDEX(TypeIII,MATCH(O112,TypeTime,1),1):INDEX(TypeIII,MATCH(O112,TypeTime,1)+1,1),INDEX(TypeTime,MATCH(O112,TypeTime,1),1):INDEX(TypeTime,MATCH(O112,TypeTime)+1,1))), "Choose Type")))) -> 0.0145236 | Q112: 0.000617652 | R112: 0.056206332 | W112: 1.45236
B113: 93 | G113: 1.46832 | H113: 33 | I113: =IF(H113=33,0,FORECAST(G113,INDEX($F$21:$F$53,H113,1):INDEX($F$21:$F$53,H113+1,1),INDEX($E$21:$E$53,H113,1):INDEX($E$21:$E$53,H113+1))) -> 0 | J113: 9.2 | K113: 0.27139 | L113: 0.53292 | M113: 0.1534 | N113: 0.15348 | O113: 1.46832 | P113: =IF($C$1="Type I",IF(O112=24,1,FORECAST(O113,INDEX(TypeI,MATCH(O113,TypeTime,1),1):INDEX(TypeI,MATCH(O113,TypeTime,1)+1,1),INDEX(TypeTime,MATCH(O113,TypeTime,1),1):INDEX(TypeTime,MATCH(O113,TypeTime)+1,1))), IF($C$1="Type IA",IF(O112=24,1,FORECAST(O113,INDEX(TypeIA,MATCH(O113,TypeTime,1),1):INDEX(TypeIA,MATCH(O113,TypeTime,1)+1,1),INDEX(TypeTime,MATCH(O113,TypeTime,1),1):INDEX(TypeTime,MATCH(O113,TypeTime)+1,1))), IF($C$1="Type II",IF(O112=24,1,FORECAST(O113,INDEX(TypeII,MATCH(O113,TypeTime,1),1):INDEX(TypeII,MATCH(O113,TypeTime,1)+1,1),INDEX(TypeTime,MATCH(O113,TypeTime,1),1):INDEX(TypeTime,MATCH(O113,TypeTime)+1,1))), IF($C$1="Type III",IF(O112=24,1,FORECAST(O113,INDEX(TypeIII,MATCH(O113,TypeTime,1),1):INDEX(TypeIII,MATCH(O113,TypeTime,1)+1,1),INDEX(TypeTime,MATCH(O113,TypeTime,1),1):INDEX(TypeTime,MATCH(O113,TypeTime)+1,1))), "Choose Type")))) -> 0.0146832 | Q113: 0.000617652 | R113: 0.056823984 | W113: 1.46832
B114: 94 | G114: 1.48428 | H114: 33 | I114: =IF(H114=33,0,FORECAST(G114,INDEX($F$21:$F$53,H114,1):INDEX($F$21:$F$53,H114+1,1),INDEX($E$21:$E$53,H114,1):INDEX($E$21:$E$53,H114+1))) -> 0 | J114: 9.3 | K114: 0.28119 | L114: 0.53888 | M114: 0.1566 | N114: 0.15752 | O114: 1.48428 | P114: =IF($C$1="Type I",IF(O113=24,1,FORECAST(O114,INDEX(TypeI,MATCH(O114,TypeTime,1),1):INDEX(TypeI,MATCH(O114,TypeTime,1)+1,1),INDEX(TypeTime,MATCH(O114,TypeTime,1),1):INDEX(TypeTime,MATCH(O114,TypeTime)+1,1))), IF($C$1="Type IA",IF(O113=24,1,FORECAST(O114,INDEX(TypeIA,MATCH(O114,TypeTime,1),1):INDEX(TypeIA,MATCH(O114,TypeTime,1)+1,1),INDEX(TypeTime,MATCH(O114,TypeTime,1),1):INDEX(TypeTime,MATCH(O114,TypeTime)+1,1))), IF($C$1="Type II",IF(O113=24,1,FORECAST(O114,INDEX(TypeII,MATCH(O114,TypeTime,1),1):INDEX(TypeII,MATCH(O114,TypeTime,1)+1,1),INDEX(TypeTime,MATCH(O114,TypeTime,1),1):INDEX(TypeTime,MATCH(O114,TypeTime)+1,1))), IF($C$1="Type III",IF(O113=24,1,FORECAST(O114,INDEX(TypeIII,MATCH(O114,TypeTime,1),1):INDEX(TypeIII,MATCH(O114,TypeTime,1)+1,1),INDEX(TypeTime,MATCH(O114,TypeTime,1),1):INDEX(TypeTime,MATCH(O114,TypeTime)+1,1))), "Choose Type")))) -> 0.0148428 | Q114: 0.000617652 | R114: 0.057441636 | W114: 1.48428
B115: 95 | G115: 1.50024 | H115: 33 | I115: =IF(H115=33,0,FORECAST(G115,INDEX($F$21:$F$53,H115,1):INDEX($F$21:$F$53,H115+1,1),INDEX($E$21:$E$53,H115,1):INDEX($E$21:$E$53,H115+1))) -> 0 | J115: 9.4 | K115: 0.29173 | L115: 0.54456 | M115: 0.1598 | N115: 0.16167 | O115: 1.50024 | P115: =IF($C$1="Type I",IF(O114=24,1,FORECAST(O115,INDEX(TypeI,MATCH(O115,TypeTime,1),1):INDEX(TypeI,MATCH(O115,TypeTime,1)+1,1),INDEX(TypeTime,MATCH(O115,TypeTime,1),1):INDEX(TypeTime,MATCH(O115,TypeTime)+1,1))), IF($C$1="Type IA",IF(O114=24,1,FORECAST(O115,INDEX(TypeIA,MATCH(O115,TypeTime,1),1):INDEX(TypeIA,MATCH(O115,TypeTime,1)+1,1),INDEX(TypeTime,MATCH(O115,TypeTime,1),1):INDEX(TypeTime,MATCH(O115,TypeTime)+1,1))), IF($C$1="Type II",IF(O114=24,1,FORECAST(O115,INDEX(TypeII,MATCH(O115,TypeTime,1),1):INDEX(TypeII,MATCH(O115,TypeTime,1)+1,1),INDEX(TypeTime,MATCH(O115,TypeTime,1),1):INDEX(TypeTime,MATCH(O115,TypeTime)+1,1))), IF($C$1="Type III",IF(O114=24,1,FORECAST(O115,INDEX(TypeIII,MATCH(O115,TypeTime,1),1):INDEX(TypeIII,MATCH(O115,TypeTime,1)+1,1),INDEX(TypeTime,MATCH(O115,TypeTime,1),1):INDEX(TypeTime,MATCH(O115,TypeTime)+1,1))), "Choose Type")))) -> 0.0150024 | Q115: 0.000617652 | R115: 0.058059288 | W115: 1.50024
B116: 96 | G116: 1.5162 | H116: 33 | I116: =IF(H116=33,0,FORECAST(G116,INDEX($F$21:$F$53,H116,1):INDEX($F$21:$F$53,H116+1,1),INDEX($E$21:$E$53,H116,1):INDEX($E$21:$E$53,H116+1))) -> 0 | J116: 9.5 | K116: 0.303 | L116: 0.55 | M116: 0.163 | N116: 0.16594 | O116: 1.5162 | P116: =IF($C$1="Type I",IF(O115=24,1,FORECAST(O116,INDEX(TypeI,MATCH(O116,TypeTime,1),1):INDEX(TypeI,MATCH(O116,TypeTime,1)+1,1),INDEX(TypeTime,MATCH(O116,TypeTime,1),1):INDEX(TypeTime,MATCH(O116,TypeTime)+1,1))), IF($C$1="Type IA",IF(O115=24,1,FORECAST(O116,INDEX(TypeIA,MATCH(O116,TypeTime,1),1):INDEX(TypeIA,MATCH(O116,TypeTime,1)+1,1),INDEX(TypeTime,MATCH(O116,TypeTime,1),1):INDEX(TypeTime,MATCH(O116,TypeTime)+1,1))), IF($C$1="Type II",IF(O115=24,1,FORECAST(O116,INDEX(TypeII,MATCH(O116,TypeTime,1),1):INDEX(TypeII,MATCH(O116,TypeTime,1)+1,1),INDEX(TypeTime,MATCH(O116,TypeTime,1),1):INDEX(TypeTime,MATCH(O116,TypeTime)+1,1))), IF($C$1="Type III",IF(O115=24,1,FORECAST(O116,INDEX(TypeIII,MATCH(O116,TypeTime,1),1):INDEX(TypeIII,MATCH(O116,TypeTime,1)+1,1),INDEX(TypeTime,MATCH(O116,TypeTime,1),1):INDEX(TypeTime,MATCH(O116,TypeTime)+1,1))), "Choose Type")))) -> 0.015162 | Q116: 0.000617652 | R116: 0.05867694 | W116: 1.5162
B117: 97 | G117: 1.53216 | H117: 33 | I117: =IF(H117=33,0,FORECAST(G117,INDEX($F$21:$F$53,H117,1):INDEX($F$21:$F$53,H117+1,1),INDEX($E$21:$E$53,H117,1):INDEX($E$21:$E$53,H117+1))) -> 0 | J117: 9.6 | K117: 0.31942 | L117: 0.55564 | M117: 0.16628 | N117: 0.17032 | O117: 1.53216 | P117: =IF($C$1="Type I",IF(O116=24,1,FORECAST(O117,INDEX(TypeI,MATCH(O117,TypeTime,1),1):INDEX(TypeI,MATCH(O117,TypeTime,1)+1,1),INDEX(TypeTime,MATCH(O117,TypeTime,1),1):INDEX(TypeTime,MATCH(O117,TypeTime)+1,1))), IF($C$1="Type IA",IF(O116=24,1,FORECAST(O117,INDEX(TypeIA,MATCH(O117,TypeTime,1),1):INDEX(TypeIA,MATCH(O117,TypeTime,1)+1,1),INDEX(TypeTime,MATCH(O117,TypeTime,1),1):INDEX(TypeTime,MATCH(O117,TypeTime)+1,1))), IF($C$1="Type II",IF(O116=24,1,FORECAST(O117,INDEX(TypeII,MATCH(O117,TypeTime,1),1):INDEX(TypeII,MATCH(O117,TypeTime,1)+1,1),INDEX(TypeTime,MATCH(O117,TypeTime,1),1):INDEX(TypeTime,MATCH(O117,TypeTime)+1,1))), IF($C$1="Type III",IF(O116=24,1,FORECAST(O117,INDEX(TypeIII,MATCH(O117,TypeTime,1),1):INDEX(TypeIII,MATCH(O117,TypeTime,1)+1,1),INDEX(TypeTime,MATCH(O117,TypeTime,1),1):INDEX(TypeTime,MATCH(O117,TypeTime)+1,1))), "Choose Type")))) -> 0.0153216 | Q117: 0.000617652 | R117: 0.059294592 | W117: 1.53216
B118: 98 | G118: 1.54812 | H118: 33 | I118: =IF(H118=33,0,FORECAST(G118,INDEX($F$21:$F$53,H118,1):INDEX($F$21:$F$53,H118+1,1),INDEX($E$21:$E$53,H118,1):INDEX($E$21:$E$53,H118+1))) -> 0 | J118: 9.7 | K118: 0.34542 | L118: 0.56116 | M118: 0.16972 | N118: 0.17482 | O118: 1.54812 | P118: =IF($C$1="Type I",IF(O117=24,1,FORECAST(O118,INDEX(TypeI,MATCH(O118,TypeTime,1),1):INDEX(TypeI,MATCH(O118,TypeTime,1)+1,1),INDEX(TypeTime,MATCH(O118,TypeTime,1),1):INDEX(TypeTime,MATCH(O118,TypeTime)+1,1))), IF($C$1="Type IA",IF(O117=24,1,FORECAST(O118,INDEX(TypeIA,MATCH(O118,TypeTime,1),1):INDEX(TypeIA,MATCH(O118,TypeTime,1)+1,1),INDEX(TypeTime,MATCH(O118,TypeTime,1),1):INDEX(TypeTime,MATCH(O118,TypeTime)+1,1))), IF($C$1="Type II",IF(O117=24,1,FORECAST(O118,INDEX(TypeII,MATCH(O118,TypeTime,1),1):INDEX(TypeII,MATCH(O118,TypeTime,1)+1,1),INDEX(TypeTime,MATCH(O118,TypeTime,1),1):INDEX(TypeTime,MATCH(O118,TypeTime)+1,1))), IF($C$1="Type III",IF(O117=24,1,FORECAST(O118,INDEX(TypeIII,MATCH(O118,TypeTime,1),1):INDEX(TypeIII,MATCH(O118,TypeTime,1)+1,1),INDEX(TypeTime,MATCH(O118,TypeTime,1),1):INDEX(TypeTime,MATCH(O118,TypeTime)+1,1))), "Choose Type")))) -> 0.0154812 | Q118: 0.000617652 | R118: 0.059912244 | W118: 1.54812
B119: 99 | G119: 1.56408 | H119: 33 | I119: =IF(H119=33,0,FORECAST(G119,INDEX($F$21:$F$53,H119,1):INDEX($F$21:$F$53,H119+1,1),INDEX($E$21:$E$53,H119,1):INDEX($E$21:$E$53,H119+1))) -> 0 | J119: 9.8 | K119: 0.38784 | L119: 0.56656 | M119: 0.17332 | N119: 0.17943 | O119: 1.56408 | P119: =IF($C$1="Type I",IF(O118=24,1,FORECAST(O119,INDEX(TypeI,MATCH(O119,TypeTime,1),1):INDEX(TypeI,MATCH(O119,TypeTime,1)+1,1),INDEX(TypeTime,MATCH(O119,TypeTime,1),1):INDEX(TypeTime,MATCH(O119,TypeTime)+1,1))), IF($C$1="Type IA",IF(O118=24,1,FORECAST(O119,INDEX(TypeIA,MATCH(O119,TypeTime,1),1):INDEX(TypeIA,MATCH(O119,TypeTime,1)+1,1),INDEX(TypeTime,MATCH(O119,TypeTime,1),1):INDEX(TypeTime,MATCH(O119,TypeTime)+1,1))), IF($C$1="Type II",IF(O118=24,1,FORECAST(O119,INDEX(TypeII,MATCH(O119,TypeTime,1),1):INDEX(TypeII,MATCH(O119,TypeTime,1)+1,1),INDEX(TypeTime,MATCH(O119,TypeTime,1),1):INDEX(TypeTime,MATCH(O119,TypeTime)+1,1))), IF($C$1="Type III",IF(O118=24,1,FORECAST(O119,INDEX(TypeIII,MATCH(O119,TypeTime,1),1):INDEX(TypeIII,MATCH(O119,TypeTime,1)+1,1),INDEX(TypeTime,MATCH(O119,TypeTime,1),1):INDEX(TypeTime,MATCH(O119,TypeTime)+1,1))), "Choose Type")))) -> 0.0156408 | Q119: 0.000617652 | R119: 0.060529896 | W119: 1.56408
B120: 100 | G120: 1.58004 | H120: 33 | I120: =IF(H120=33,0,FORECAST(G120,INDEX($F$21:$F$53,H120,1):INDEX($F$21:$F$53,H120+1,1),INDEX($E$21:$E$53,H120,1):INDEX($E$21:$E$53,H120+1))) -> 0 | J120: 9.9 | K120: 0.46316 | L120: 0.57184 | M120: 0.17708 | N120: 0.18416 | O120: 1.58004 | P120: =IF($C$1="Type I",IF(O119=24,1,FORECAST(O120,INDEX(TypeI,MATCH(O120,TypeTime,1),1):INDEX(TypeI,MATCH(O120,TypeTime,1)+1,1),INDEX(TypeTime,MATCH(O120,TypeTime,1),1):INDEX(TypeTime,MATCH(O120,TypeTime)+1,1))), IF($C$1="Type IA",IF(O119=24,1,FORECAST(O120,INDEX(TypeIA,MATCH(O120,TypeTime,1),1):INDEX(TypeIA,MATCH(O120,TypeTime,1)+1,1),INDEX(TypeTime,MATCH(O120,TypeTime,1),1):INDEX(TypeTime,MATCH(O120,TypeTime)+1,1))), IF($C$1="Type II",IF(O119=24,1,FORECAST(O120,INDEX(TypeII,MATCH(O120,TypeTime,1),1):INDEX(TypeII,MATCH(O120,TypeTime,1)+1,1),INDEX(TypeTime,MATCH(O120,TypeTime,1),1):INDEX(TypeTime,MATCH(O120,TypeTime)+1,1))), IF($C$1="Type III",IF(O119=24,1,FORECAST(O120,INDEX(TypeIII,MATCH(O120,TypeTime,1),1):INDEX(TypeIII,MATCH(O120,TypeTime,1)+1,1),INDEX(TypeTime,MATCH(O120,TypeTime,1),1):INDEX(TypeTime,MATCH(O120,TypeTime)+1,1))), "Choose Type")))) -> 0.0158004 | Q120: 0.000617652 | R120: 0.061147548 | W120: 1.58004
B121: 101 | G121: 1.596 | H121: 33 | I121: =IF(H121=33,0,FORECAST(G121,INDEX($F$21:$F$53,H121,1):INDEX($F$21:$F$53,H121+1,1),INDEX($E$21:$E$53,H121,1):INDEX($E$21:$E$53,H121+1))) -> 0 | J121: 10 | K121: 0.515 | L121: 0.577 | M121: 0.181 | N121: 0.189 | O121: 1.596 | P121: =IF($C$1="Type I",IF(O120=24,1,FORECAST(O121,INDEX(TypeI,MATCH(O121,TypeTime,1),1):INDEX(TypeI,MATCH(O121,TypeTime,1)+1,1),INDEX(TypeTime,MATCH(O121,TypeTime,1),1):INDEX(TypeTime,MATCH(O121,TypeTime)+1,1))), IF($C$1="Type IA",IF(O120=24,1,FORECAST(O121,INDEX(TypeIA,MATCH(O121,TypeTime,1),1):INDEX(TypeIA,MATCH(O121,TypeTime,1)+1,1),INDEX(TypeTime,MATCH(O121,TypeTime,1),1):INDEX(TypeTime,MATCH(O121,TypeTime)+1,1))), IF($C$1="Type II",IF(O120=24,1,FORECAST(O121,INDEX(TypeII,MATCH(O121,TypeTime,1),1):INDEX(TypeII,MATCH(O121,TypeTime,1)+1,1),INDEX(TypeTime,MATCH(O121,TypeTime,1),1):INDEX(TypeTime,MATCH(O121,TypeTime)+1,1))), IF($C$1="Type III",IF(O120=24,1,FORECAST(O121,INDEX(TypeIII,MATCH(O121,TypeTime,1),1):INDEX(TypeIII,MATCH(O121,TypeTime,1)+1,1),INDEX(TypeTime,MATCH(O121,TypeTime,1),1):INDEX(TypeTime,MATCH(O121,TypeTime)+1,1))), "Choose Type")))) -> 0.01596 | Q121: 0.000617652 | R121: 0.0617652 | W121: 1.596
B122: 102 | G122: 1.61196 | H122: 33 | I122: =IF(H122=33,0,FORECAST(G122,INDEX($F$21:$F$53,H122,1):INDEX($F$21:$F$53,H122+1,1),INDEX($E$21:$E$53,H122,1):INDEX($E$21:$E$53,H122+1))) -> 0 | J122: 10.1 | K122: 0.5322 | L122: 0.58198 | M122: 0.18512 | N122: 0.19402 | O122: 1.61196 | P122: =IF($C$1="Type I",IF(O121=24,1,FORECAST(O122,INDEX(TypeI,MATCH(O122,TypeTime,1),1):INDEX(TypeI,MATCH(O122,TypeTime,1)+1,1),INDEX(TypeTime,MATCH(O122,TypeTime,1),1):INDEX(TypeTime,MATCH(O122,TypeTime)+1,1))), IF($C$1="Type IA",IF(O121=24,1,FORECAST(O122,INDEX(TypeIA,MATCH(O122,TypeTime,1),1):INDEX(TypeIA,MATCH(O122,TypeTime,1)+1,1),INDEX(TypeTime,MATCH(O122,TypeTime,1),1):INDEX(TypeTime,MATCH(O122,TypeTime)+1,1))), IF($C$1="Type II",IF(O121=24,1,FORECAST(O122,INDEX(TypeII,MATCH(O122,TypeTime,1),1):INDEX(TypeII,MATCH(O122,TypeTime,1)+1,1),INDEX(TypeTime,MATCH(O122,TypeTime,1),1):INDEX(TypeTime,MATCH(O122,TypeTime)+1,1))), IF($C$1="Type III",IF(O121=24,1,FORECAST(O122,INDEX(TypeIII,MATCH(O122,TypeTime,1),1):INDEX(TypeIII,MATCH(O122,TypeTime,1)+1,1),INDEX(TypeTime,MATCH(O122,TypeTime,1),1):INDEX(TypeTime,MATCH(O122,TypeTime)+1,1))), "Choose Type")))) -> 0.0161196 | Q122: 0.000617652 | R122: 0.062382852 | W122: 1.61196
B123: 103 | G123: 1.62792 | H123: 33 | I123: =IF(H123=33,0,FORECAST(G123,INDEX($F$21:$F$53,H123,1):INDEX($F$21:$F$53,H123+1,1),INDEX($E$21:$E$53,H123,1):INDEX($E$21:$E$53,H123+1))) -> 0 | J123: 10.2 | K123: 0.5476 | L123: 0.58685 | M123: 0.18948 | N123: 0.19928 | O123: 1.62792 | P123: =IF($C$1="Type I",IF(O122=24,1,FORECAST(O123,INDEX(TypeI,MATCH(O123,TypeTime,1),1):INDEX(TypeI,MATCH(O123,TypeTime,1)+1,1),INDEX(TypeTime,MATCH(O123,TypeTime,1),1):INDEX(TypeTime,MATCH(O123,TypeTime)+1,1))), IF($C$1="Type IA",IF(O122=24,1,FORECAST(O123,INDEX(TypeIA,MATCH(O123,TypeTime,1),1):INDEX(TypeIA,MATCH(O123,TypeTime,1)+1,1),INDEX(TypeTime,MATCH(O123,TypeTime,1),1):INDEX(TypeTime,MATCH(O123,TypeTime)+1,1))), IF($C$1="Type II",IF(O122=24,1,FORECAST(O123,INDEX(TypeII,MATCH(O123,TypeTime,1),1):INDEX(TypeII,MATCH(O123,TypeTime,1)+1,1),INDEX(TypeTime,MATCH(O123,TypeTime,1),1):INDEX(TypeTime,MATCH(O123,TypeTime)+1,1))), IF($C$1="Type III",IF(O122=24,1,FORECAST(O123,INDEX(TypeIII,MATCH(O123,TypeTime,1),1):INDEX(TypeIII,MATCH(O123,TypeTime,1)+1,1),INDEX(TypeTime,MATCH(O123,TypeTime,1),1):INDEX(TypeTime,MATCH(O123,TypeTime)+1,1))), "Choose Type")))) -> 0.0162792 | Q123: 0.000617652 | R123: 0.063000504 | W123: 1.62792
B124: 104 | G124: 1.64388 | H124: 33 | I124: =IF(H124=33,0,FORECAST(G124,INDEX($F$21:$F$53,H124,1):INDEX($F$21:$F$53,H124+1,1),INDEX($E$21:$E$53,H124,1):INDEX($E$21:$E$53,H124+1))) -> 0 | J124: 10.3 | K124: 0.5612 | L124: 0.59163 | M124: 0.19408 | N124: 0.20478 | O124: 1.64388 | P124: =IF($C$1="Type I",IF(O123=24,1,FORECAST(O124,INDEX(TypeI,MATCH(O124,TypeTime,1),1):INDEX(TypeI,MATCH(O124,TypeTime,1)+1,1),INDEX(TypeTime,MATCH(O124,TypeTime,1),1):INDEX(TypeTime,MATCH(O124,TypeTime)+1,1))), IF($C$1="Type IA",IF(O123=24,1,FORECAST(O124,INDEX(TypeIA,MATCH(O124,TypeTime,1),1):INDEX(TypeIA,MATCH(O124,TypeTime,1)+1,1),INDEX(TypeTime,MATCH(O124,TypeTime,1),1):INDEX(TypeTime,MATCH(O124,TypeTime)+1,1))), IF($C$1="Type II",IF(O123=24,1,FORECAST(O124,INDEX(TypeII,MATCH(O124,TypeTime,1),1):INDEX(TypeII,MATCH(O124,TypeTime,1)+1,1),INDEX(TypeTime,MATCH(O124,TypeTime,1),1):INDEX(TypeTime,MATCH(O124,TypeTime)+1,1))), IF($C$1="Type III",IF(O123=24,1,FORECAST(O124,INDEX(TypeIII,MATCH(O124,TypeTime,1),1):INDEX(TypeIII,MATCH(O124,TypeTime,1)+1,1),INDEX(TypeTime,MATCH(O124,TypeTime,1),1):INDEX(TypeTime,MATCH(O124,TypeTime)+1,1))), "Choose Type")))) -> 0.0164388 | Q124: 0.000617652 | R124: 0.063618156 | W124: 1.64388
B125: 105 | G125: 1.65984 | H125: 33 | I125: =IF(H125=33,0,FORECAST(G125,INDEX($F$21:$F$53,H125,1):INDEX($F$21:$F$53,H125+1,1),INDEX($E$21:$E$53,H125,1):INDEX($E$21:$E$53,H125+1))) -> 0 | J125: 10.4 | K125: 0.573 | L125: 0.59635 | M125: 0.19892 | N125: 0.21052 | O125: 1.65984 | P125: =IF($C$1="Type I",IF(O124=24,1,FORECAST(O125,INDEX(TypeI,MATCH(O125,TypeTime,1),1):INDEX(TypeI,MATCH(O125,TypeTime,1)+1,1),INDEX(TypeTime,MATCH(O125,TypeTime,1),1):INDEX(TypeTime,MATCH(O125,TypeTime)+1,1))), IF($C$1="Type IA",IF(O124=24,1,FORECAST(O125,INDEX(TypeIA,MATCH(O125,TypeTime,1),1):INDEX(TypeIA,MATCH(O125,TypeTime,1)+1,1),INDEX(TypeTime,MATCH(O125,TypeTime,1),1):INDEX(TypeTime,MATCH(O125,TypeTime)+1,1))), IF($C$1="Type II",IF(O124=24,1,FORECAST(O125,INDEX(TypeII,MATCH(O125,TypeTime,1),1):INDEX(TypeII,MATCH(O125,TypeTime,1)+1,1),INDEX(TypeTime,MATCH(O125,TypeTime,1),1):INDEX(TypeTime,MATCH(O125,TypeTime)+1,1))), IF($C$1="Type III",IF(O124=24,1,FORECAST(O125,INDEX(TypeIII,MATCH(O125,TypeTime,1),1):INDEX(TypeIII,MATCH(O125,TypeTime,1)+1,1),INDEX(TypeTime,MATCH(O125,TypeTime,1),1):INDEX(TypeTime,MATCH(O125,TypeTime)+1,1))), "Choose Type")))) -> 0.0165984 | Q125: 0.000617652 | R125: 0.064235808 | W125: 1.65984
B126: 106 | G126: 1.6758 | H126: 33 | I126: =IF(H126=33,0,FORECAST(G126,INDEX($F$21:$F$53,H126,1):INDEX($F$21:$F$53,H126+1,1),INDEX($E$21:$E$53,H126,1):INDEX($E$21:$E$53,H126+1))) -> 0 | J126: 10.5 | K126: 0.583 | L126: 0.601 | M126: 0.204 | N126: 0.2165 | O126: 1.6758 | P126: =IF($C$1="Type I",IF(O125=24,1,FORECAST(O126,INDEX(TypeI,MATCH(O126,TypeTime,1),1):INDEX(TypeI,MATCH(O126,TypeTime,1)+1,1),INDEX(TypeTime,MATCH(O126,TypeTime,1),1):INDEX(TypeTime,MATCH(O126,TypeTime)+1,1))), IF($C$1="Type IA",IF(O125=24,1,FORECAST(O126,INDEX(TypeIA,MATCH(O126,TypeTime,1),1):INDEX(TypeIA,MATCH(O126,TypeTime,1)+1,1),INDEX(TypeTime,MATCH(O126,TypeTime,1),1):INDEX(TypeTime,MATCH(O126,TypeTime)+1,1))), IF($C$1="Type II",IF(O125=24,1,FORECAST(O126,INDEX(TypeII,MATCH(O126,TypeTime,1),1):INDEX(TypeII,MATCH(O126,TypeTime,1)+1,1),INDEX(TypeTime,MATCH(O126,TypeTime,1),1):INDEX(TypeTime,MATCH(O126,TypeTime)+1,1))), IF($C$1="Type III",IF(O125=24,1,FORECAST(O126,INDEX(TypeIII,MATCH(O126,TypeTime,1),1):INDEX(TypeIII,MATCH(O126,TypeTime,1)+1,1),INDEX(TypeTime,MATCH(O126,TypeTime,1),1):INDEX(TypeTime,MATCH(O126,TypeTime)+1,1))), "Choose Type")))) -> 0.016758 | Q126: 0.000617652 | R126: 0.06485346 | W126: 1.6758
B127: 107 | G127: 1.69176 | H127: 33 | I127: =IF(H127=33,0,FORECAST(G127,INDEX($F$21:$F$53,H127,1):INDEX($F$21:$F$53,H127+1,1),INDEX($E$21:$E$53,H127,1):INDEX($E$21:$E$53,H127+1))) -> 0 | J127: 10.6 | K127: 0.59188 | L127: 0.60576 | M127: 0.2094 | N127: 0.22272 | O127: 1.69176 | P127: =IF($C$1="Type I",IF(O126=24,1,FORECAST(O127,INDEX(TypeI,MATCH(O127,TypeTime,1),1):INDEX(TypeI,MATCH(O127,TypeTime,1)+1,1),INDEX(TypeTime,MATCH(O127,TypeTime,1),1):INDEX(TypeTime,MATCH(O127,TypeTime)+1,1))), IF($C$1="Type IA",IF(O126=24,1,FORECAST(O127,INDEX(TypeIA,MATCH(O127,TypeTime,1),1):INDEX(TypeIA,MATCH(O127,TypeTime,1)+1,1),INDEX(TypeTime,MATCH(O127,TypeTime,1),1):INDEX(TypeTime,MATCH(O127,TypeTime)+1,1))), IF($C$1="Type II",IF(O126=24,1,FORECAST(O127,INDEX(TypeII,MATCH(O127,TypeTime,1),1):INDEX(TypeII,MATCH(O127,TypeTime,1)+1,1),INDEX(TypeTime,MATCH(O127,TypeTime,1),1):INDEX(TypeTime,MATCH(O127,TypeTime)+1,1))), IF($C$1="Type III",IF(O126=24,1,FORECAST(O127,INDEX(TypeIII,MATCH(O127,TypeTime,1),1):INDEX(TypeIII,MATCH(O127,TypeTime,1)+1,1),INDEX(TypeTime,MATCH(O127,TypeTime,1),1):INDEX(TypeTime,MATCH(O127,TypeTime)+1,1))), "Choose Type")))) -> 0.0169176 | Q127: 0.000617652 | R127: 0.065471112 | W127: 1.69176
B128: 108 | G128: 1.70772 | H128: 33 | I128: =IF(H128=33,0,FORECAST(G128,INDEX($F$21:$F$53,H128,1):INDEX($F$21:$F$53,H128+1,1),INDEX($E$21:$E$53,H128,1):INDEX($E$21:$E$53,H128+1))) -> 0 | J128: 10.7 | K128: 0.60032 | L128: 0.61044 | M128: 0.2152 | N128: 0.22918 | O128: 1.70772 | P128: =IF($C$1="Type I",IF(O127=24,1,FORECAST(O128,INDEX(TypeI,MATCH(O128,TypeTime,1),1):INDEX(TypeI,MATCH(O128,TypeTime,1)+1,1),INDEX(TypeTime,MATCH(O128,TypeTime,1),1):INDEX(TypeTime,MATCH(O128,TypeTime)+1,1))), IF($C$1="Type IA",IF(O127=24,1,FORECAST(O128,INDEX(TypeIA,MATCH(O128,TypeTime,1),1):INDEX(TypeIA,MATCH(O128,TypeTime,1)+1,1),INDEX(TypeTime,MATCH(O128,TypeTime,1),1):INDEX(TypeTime,MATCH(O128,TypeTime)+1,1))), IF($C$1="Type II",IF(O127=24,1,FORECAST(O128,INDEX(TypeII,MATCH(O128,TypeTime,1),1):INDEX(TypeII,MATCH(O128,TypeTime,1)+1,1),INDEX(TypeTime,MATCH(O128,TypeTime,1),1):INDEX(TypeTime,MATCH(O128,TypeTime)+1,1))), IF($C$1="Type III",IF(O127=24,1,FORECAST(O128,INDEX(TypeIII,MATCH(O128,TypeTime,1),1):INDEX(TypeIII,MATCH(O128,TypeTime,1)+1,1),INDEX(TypeTime,MATCH(O128,TypeTime,1),1):INDEX(TypeTime,MATCH(O128,TypeTime)+1,1))), "Choose Type")))) -> 0.0170772 | Q128: 0.000617652 | R128: 0.066088764 | W128: 1.70772
B129: 109 | G129: 1.72368 | H129: 33 | I129: =IF(H129=33,0,FORECAST(G129,INDEX($F$21:$F$53,H129,1):INDEX($F$21:$F$53,H129+1,1),INDEX($E$21:$E$53,H129,1):INDEX($E$21:$E$53,H129+1))) -> 0 | J129: 10.8 | K129: 0.60832 | L129: 0.61504 | M129: 0.2214 | N129: 0.23588 | O129: 1.72368 | P129: =IF($C$1="Type I",IF(O128=24,1,FORECAST(O129,INDEX(TypeI,MATCH(O129,TypeTime,1),1):INDEX(TypeI,MATCH(O129,TypeTime,1)+1,1),INDEX(TypeTime,MATCH(O129,TypeTime,1),1):INDEX(TypeTime,MATCH(O129,TypeTime)+1,1))), IF($C$1="Type IA",IF(O128=24,1,FORECAST(O129,INDEX(TypeIA,MATCH(O129,TypeTime,1),1):INDEX(TypeIA,MATCH(O129,TypeTime,1)+1,1),INDEX(TypeTime,MATCH(O129,TypeTime,1),1):INDEX(TypeTime,MATCH(O129,TypeTime)+1,1))), IF($C$1="Type II",IF(O128=24,1,FORECAST(O129,INDEX(TypeII,MATCH(O129,TypeTime,1),1):INDEX(TypeII,MATCH(O129,TypeTime,1)+1,1),INDEX(TypeTime,MATCH(O129,TypeTime,1),1):INDEX(TypeTime,MATCH(O129,TypeTime)+1,1))), IF($C$1="Type III",IF(O128=24,1,FORECAST(O129,INDEX(TypeIII,MATCH(O129,TypeTime,1),1):INDEX(TypeIII,MATCH(O129,TypeTime,1)+1,1),INDEX(TypeTime,MATCH(O129,TypeTime,1),1):INDEX(TypeTime,MATCH(O129,TypeTime)+1,1))), "Choose Type")))) -> 0.0172368 | Q129: 0.000617652 | R129: 0.066706416 | W129: 1.72368
B130: 110 | G130: 1.73964 | H130: 33 | I130: =IF(H130=33,0,FORECAST(G130,INDEX($F$21:$F$53,H130,1):INDEX($F$21:$F$53,H130+1,1),INDEX($E$21:$E$53,H130,1):INDEX($E$21:$E$53,H130+1))) -> 0 | J130: 10.9 | K130: 0.61588 | L130: 0.61956 | M130: 0.228 | N130: 0.24282 | O130: 1.73964 | P130: =IF($C$1="Type I",IF(O129=24,1,FORECAST(O130,INDEX(TypeI,MATCH(O130,TypeTime,1),1):INDEX(TypeI,MATCH(O130,TypeTime,1)+1,1),INDEX(TypeTime,MATCH(O130,TypeTime,1),1):INDEX(TypeTime,MATCH(O130,TypeTime)+1,1))), IF($C$1="Type IA",IF(O129=24,1,FORECAST(O130,INDEX(TypeIA,MATCH(O130,TypeTime,1),1):INDEX(TypeIA,MATCH(O130,TypeTime,1)+1,1),INDEX(TypeTime,MATCH(O130,TypeTime,1),1):INDEX(TypeTime,MATCH(O130,TypeTime)+1,1))), IF($C$1="Type II",IF(O129=24,1,FORECAST(O130,INDEX(TypeII,MATCH(O130,TypeTime,1),1):INDEX(TypeII,MATCH(O130,TypeTime,1)+1,1),INDEX(TypeTime,MATCH(O130,TypeTime,1),1):INDEX(TypeTime,MATCH(O130,TypeTime)+1,1))), IF($C$1="Type III",IF(O129=24,1,FORECAST(O130,INDEX(TypeIII,MATCH(O130,TypeTime,1),1):INDEX(TypeIII,MATCH(O130,TypeTime,1)+1,1),INDEX(TypeTime,MATCH(O130,TypeTime,1),1):INDEX(TypeTime,MATCH(O130,TypeTime)+1,1))), "Choose Type")))) -> 0.0173964 | Q130: 0.000617652 | R130: 0.067324068 | W130: 1.73964
B131: 111 | G131: 1.7556 | H131: 33 | I131: =IF(H131=33,0,FORECAST(G131,INDEX($F$21:$F$53,H131,1):INDEX($F$21:$F$53,H131+1,1),INDEX($E$21:$E$53,H131,1):INDEX($E$21:$E$53,H131+1))) -> 0 | J131: 11 | K131: 0.623 | L131: 0.624 | M131: 0.235 | N131: 0.25 | O131: 1.7556 | P131: =IF($C$1="Type I",IF(O130=24,1,FORECAST(O131,INDEX(TypeI,MATCH(O131,TypeTime,1),1):INDEX(TypeI,MATCH(O131,TypeTime,1)+1,1),INDEX(TypeTime,MATCH(O131,TypeTime,1),1):INDEX(TypeTime,MATCH(O131,TypeTime)+1,1))), IF($C$1="Type IA",IF(O130=24,1,FORECAST(O131,INDEX(TypeIA,MATCH(O131,TypeTime,1),1):INDEX(TypeIA,MATCH(O131,TypeTime,1)+1,1),INDEX(TypeTime,MATCH(O131,TypeTime,1),1):INDEX(TypeTime,MATCH(O131,TypeTime)+1,1))), IF($C$1="Type II",IF(O130=24,1,FORECAST(O131,INDEX(TypeII,MATCH(O131,TypeTime,1),1):INDEX(TypeII,MATCH(O131,TypeTime,1)+1,1),INDEX(TypeTime,MATCH(O131,TypeTime,1),1):INDEX(TypeTime,MATCH(O131,TypeTime)+1,1))), IF($C$1="Type III",IF(O130=24,1,FORECAST(O131,INDEX(TypeIII,MATCH(O131,TypeTime,1),1):INDEX(TypeIII,MATCH(O131,TypeTime,1)+1,1),INDEX(TypeTime,MATCH(O131,TypeTime,1),1):INDEX(TypeTime,MATCH(O131,TypeTime)+1,1))), "Choose Type")))) -> 0.017556 | Q131: 0.000617652 | R131: 0.06794172 | W131: 1.7556
B132: 112 | G132: 1.77156 | H132: 33 | I132: =IF(H132=33,0,FORECAST(G132,INDEX($F$21:$F$53,H132,1):INDEX($F$21:$F$53,H132+1,1),INDEX($E$21:$E$53,H132,1):INDEX($E$21:$E$53,H132+1))) -> 0 | J132: 11.1 | K132: 0.62982 | L132: 0.62836 | M132: 0.24268 | N132: 0.25776 | O132: 1.77156 | P132: =IF($C$1="Type I",IF(O131=24,1,FORECAST(O132,INDEX(TypeI,MATCH(O132,TypeTime,1),1):INDEX(TypeI,MATCH(O132,TypeTime,1)+1,1),INDEX(TypeTime,MATCH(O132,TypeTime,1),1):INDEX(TypeTime,MATCH(O132,TypeTime)+1,1))), IF($C$1="Type IA",IF(O131=24,1,FORECAST(O132,INDEX(TypeIA,MATCH(O132,TypeTime,1),1):INDEX(TypeIA,MATCH(O132,TypeTime,1)+1,1),INDEX(TypeTime,MATCH(O132,TypeTime,1),1):INDEX(TypeTime,MATCH(O132,TypeTime)+1,1))), IF($C$1="Type II",IF(O131=24,1,FORECAST(O132,INDEX(TypeII,MATCH(O132,TypeTime,1),1):INDEX(TypeII,MATCH(O132,TypeTime,1)+1,1),INDEX(TypeTime,MATCH(O132,TypeTime,1),1):INDEX(TypeTime,MATCH(O132,TypeTime)+1,1))), IF($C$1="Type III",IF(O131=24,1,FORECAST(O132,INDEX(TypeIII,MATCH(O132,TypeTime,1),1):INDEX(TypeIII,MATCH(O132,TypeTime,1)+1,1),INDEX(TypeTime,MATCH(O132,TypeTime,1),1):INDEX(TypeTime,MATCH(O132,TypeTime)+1,1))), "Choose Type")))) -> 0.0177156 | Q132: 0.000617652 | R132: 0.068559372 | W132: 1.77156
B133: 113 | G133: 1.78752 | H133: 33 | I133: =IF(H133=33,0,FORECAST(G133,INDEX($F$21:$F$53,H133,1):INDEX($F$21:$F$53,H133+1,1),INDEX($E$21:$E$53,H133,1):INDEX($E$21:$E$53,H133+1))) -> 0 | J133: 11.2 | K133: 0.63648 | L133: 0.63264 | M133: 0.25132 | N133: 0.26644 | O133: 1.78752 | P133: =IF($C$1="Type I",IF(O132=24,1,FORECAST(O133,INDEX(TypeI,MATCH(O133,TypeTime,1),1):INDEX(TypeI,MATCH(O133,TypeTime,1)+1,1),INDEX(TypeTime,MATCH(O133,TypeTime,1),1):INDEX(TypeTime,MATCH(O133,TypeTime)+1,1))), IF($C$1="Type IA",IF(O132=24,1,FORECAST(O133,INDEX(TypeIA,MATCH(O133,TypeTime,1),1):INDEX(TypeIA,MATCH(O133,TypeTime,1)+1,1),INDEX(TypeTime,MATCH(O133,TypeTime,1),1):INDEX(TypeTime,MATCH(O133,TypeTime)+1,1))), IF($C$1="Type II",IF(O132=24,1,FORECAST(O133,INDEX(TypeII,MATCH(O133,TypeTime,1),1):INDEX(TypeII,MATCH(O133,TypeTime,1)+1,1),INDEX(TypeTime,MATCH(O133,TypeTime,1),1):INDEX(TypeTime,MATCH(O133,TypeTime)+1,1))), IF($C$1="Type III",IF(O132=24,1,FORECAST(O133,INDEX(TypeIII,MATCH(O133,TypeTime,1),1):INDEX(TypeIII,MATCH(O133,TypeTime,1)+1,1),INDEX(TypeTime,MATCH(O133,TypeTime,1),1):INDEX(TypeTime,MATCH(O133,TypeTime)+1,1))), "Choose Type")))) -> 0.0178752 | Q133: 0.000617652 | R133: 0.069177024 | W133: 1.78752
B134: 114 | G134: 1.80348 | H134: 33 | I134: =IF(H134=33,0,FORECAST(G134,INDEX($F$21:$F$53,H134,1):INDEX($F$21:$F$53,H134+1,1),INDEX($E$21:$E$53,H134,1):INDEX($E$21:$E$53,H134+1))) -> 0 | J134: 11.3 | K134: 0.64298 | L134: 0.63684 | M134: 0.26092 | N134: 0.27604 | O134: 1.80348 | P134: =IF($C$1="Type I",IF(O133=24,1,FORECAST(O134,INDEX(TypeI,MATCH(O134,TypeTime,1),1):INDEX(TypeI,MATCH(O134,TypeTime,1)+1,1),INDEX(TypeTime,MATCH(O134,TypeTime,1),1):INDEX(TypeTime,MATCH(O134,TypeTime)+1,1))), IF($C$1="Type IA",IF(O133=24,1,FORECAST(O134,INDEX(TypeIA,MATCH(O134,TypeTime,1),1):INDEX(TypeIA,MATCH(O134,TypeTime,1)+1,1),INDEX(TypeTime,MATCH(O134,TypeTime,1),1):INDEX(TypeTime,MATCH(O134,TypeTime)+1,1))), IF($C$1="Type II",IF(O133=24,1,FORECAST(O134,INDEX(TypeII,MATCH(O134,TypeTime,1),1):INDEX(TypeII,MATCH(O134,TypeTime,1)+1,1),INDEX(TypeTime,MATCH(O134,TypeTime,1),1):INDEX(TypeTime,MATCH(O134,TypeTime)+1,1))), IF($C$1="Type III",IF(O133=24,1,FORECAST(O134,INDEX(TypeIII,MATCH(O134,TypeTime,1),1):INDEX(TypeIII,MATCH(O134,TypeTime,1)+1,1),INDEX(TypeTime,MATCH(O134,TypeTime,1),1):INDEX(TypeTime,MATCH(O134,TypeTime)+1,1))), "Choose Type")))) -> 0.0180348 | Q134: 0.000617652 | R134: 0.069794676 | W134: 1.80348
B135: 115 | G135: 1.81944 | H135: 33 | I135: =IF(H135=33,0,FORECAST(G135,INDEX($F$21:$F$53,H135,1):INDEX($F$21:$F$53,H135+1,1),INDEX($E$21:$E$53,H135,1):INDEX($E$21:$E$53,H135+1))) -> 0 | J135: 11.4 | K135: 0.64932 | L135: 0.64096 | M135: 0.27148 | N135: 0.28656 | O135: 1.81944 | P135: =IF($C$1="Type I",IF(O134=24,1,FORECAST(O135,INDEX(TypeI,MATCH(O135,TypeTime,1),1):INDEX(TypeI,MATCH(O135,TypeTime,1)+1,1),INDEX(TypeTime,MATCH(O135,TypeTime,1),1):INDEX(TypeTime,MATCH(O135,TypeTime)+1,1))), IF($C$1="Type IA",IF(O134=24,1,FORECAST(O135,INDEX(TypeIA,MATCH(O135,TypeTime,1),1):INDEX(TypeIA,MATCH(O135,TypeTime,1)+1,1),INDEX(TypeTime,MATCH(O135,TypeTime,1),1):INDEX(TypeTime,MATCH(O135,TypeTime)+1,1))), IF($C$1="Type II",IF(O134=24,1,FORECAST(O135,INDEX(TypeII,MATCH(O135,TypeTime,1),1):INDEX(TypeII,MATCH(O135,TypeTime,1)+1,1),INDEX(TypeTime,MATCH(O135,TypeTime,1),1):INDEX(TypeTime,MATCH(O135,TypeTime)+1,1))), IF($C$1="Type III",IF(O134=24,1,FORECAST(O135,INDEX(TypeIII,MATCH(O135,TypeTime,1),1):INDEX(TypeIII,MATCH(O135,TypeTime,1)+1,1),INDEX(TypeTime,MATCH(O135,TypeTime,1),1):INDEX(TypeTime,MATCH(O135,TypeTime)+1,1))), "Choose Type")))) -> 0.0181944 | Q135: 0.000617652 | R135: 0.070412328 | W135: 1.81944
B136: 116 | G136: 1.8354 | H136: 33 | I136: =IF(H136=33,0,FORECAST(G136,INDEX($F$21:$F$53,H136,1):INDEX($F$21:$F$53,H136+1,1),INDEX($E$21:$E$53,H136,1):INDEX($E$21:$E$53,H136+1))) -> 0 | J136: 11.5 | K136: 0.6555 | L136: 0.645 | M136: 0.283 | N136: 0.298 | O136: 1.8354 | P136: =IF($C$1="Type I",IF(O135=24,1,FORECAST(O136,INDEX(TypeI,MATCH(O136,TypeTime,1),1):INDEX(TypeI,MATCH(O136,TypeTime,1)+1,1),INDEX(TypeTime,MATCH(O136,TypeTime,1),1):INDEX(TypeTime,MATCH(O136,TypeTime)+1,1))), IF($C$1="Type IA",IF(O135=24,1,FORECAST(O136,INDEX(TypeIA,MATCH(O136,TypeTime,1),1):INDEX(TypeIA,MATCH(O136,TypeTime,1)+1,1),INDEX(TypeTime,MATCH(O136,TypeTime,1),1):INDEX(TypeTime,MATCH(O136,TypeTime)+1,1))), IF($C$1="Type II",IF(O135=24,1,FORECAST(O136,INDEX(TypeII,MATCH(O136,TypeTime,1),1):INDEX(TypeII,MATCH(O136,TypeTime,1)+1,1),INDEX(TypeTime,MATCH(O136,TypeTime,1),1):INDEX(TypeTime,MATCH(O136,TypeTime)+1,1))), IF($C$1="Type III",IF(O135=24,1,FORECAST(O136,INDEX(TypeIII,MATCH(O136,TypeTime,1),1):INDEX(TypeIII,MATCH(O136,TypeTime,1)+1,1),INDEX(TypeTime,MATCH(O136,TypeTime,1),1):INDEX(TypeTime,MATCH(O136,TypeTime)+1,1))), "Choose Type")))) -> 0.018354 | Q136: 0.000617652 | R136: 0.07102998 | W136: 1.8354
B137: 117 | G137: 1.85136 | H137: 33 | I137: =IF(H137=33,0,FORECAST(G137,INDEX($F$21:$F$53,H137,1):INDEX($F$21:$F$53,H137+1,1),INDEX($E$21:$E$53,H137,1):INDEX($E$21:$E$53,H137+1))) -> 0 | J137: 11.6 | K137: 0.66152 | L137: 0.64889 | M137: 0.30684 | N137: 0.3143 | O137: 1.85136 | P137: =IF($C$1="Type I",IF(O136=24,1,FORECAST(O137,INDEX(TypeI,MATCH(O137,TypeTime,1),1):INDEX(TypeI,MATCH(O137,TypeTime,1)+1,1),INDEX(TypeTime,MATCH(O137,TypeTime,1),1):INDEX(TypeTime,MATCH(O137,TypeTime)+1,1))), IF($C$1="Type IA",IF(O136=24,1,FORECAST(O137,INDEX(TypeIA,MATCH(O137,TypeTime,1),1):INDEX(TypeIA,MATCH(O137,TypeTime,1)+1,1),INDEX(TypeTime,MATCH(O137,TypeTime,1),1):INDEX(TypeTime,MATCH(O137,TypeTime)+1,1))), IF($C$1="Type II",IF(O136=24,1,FORECAST(O137,INDEX(TypeII,MATCH(O137,TypeTime,1),1):INDEX(TypeII,MATCH(O137,TypeTime,1)+1,1),INDEX(TypeTime,MATCH(O137,TypeTime,1),1):INDEX(TypeTime,MATCH(O137,TypeTime)+1,1))), IF($C$1="Type III",IF(O136=24,1,FORECAST(O137,INDEX(TypeIII,MATCH(O137,TypeTime,1),1):INDEX(TypeIII,MATCH(O137,TypeTime,1)+1,1),INDEX(TypeTime,MATCH(O137,TypeTime,1),1):INDEX(TypeTime,MATCH(O137,TypeTime)+1,1))), "Choose Type")))) -> 0.0185136 | Q137: 0.000617652 | R137: 0.071647632 | W137: 1.85136
B138: 118 | G138: 1.86732 | H138: 33 | I138: =IF(H138=33,0,FORECAST(G138,INDEX($F$21:$F$53,H138,1):INDEX($F$21:$F$53,H138+1,1),INDEX($E$21:$E$53,H138,1):INDEX($E$21:$E$53,H138+1))) -> 0 | J138: 11.7 | K138: 0.66738 | L138: 0.65272 | M138: 0.35436 | N138: 0.3394 | O138: 1.86732 | P138: =IF($C$1="Type I",IF(O137=24,1,FORECAST(O138,INDEX(TypeI,MATCH(O138,TypeTime,1),1):INDEX(TypeI,MATCH(O138,TypeTime,1)+1,1),INDEX(TypeTime,MATCH(O138,TypeTime,1),1):INDEX(TypeTime,MATCH(O138,TypeTime)+1,1))), IF($C$1="Type IA",IF(O137=24,1,FORECAST(O138,INDEX(TypeIA,MATCH(O138,TypeTime,1),1):INDEX(TypeIA,MATCH(O138,TypeTime,1)+1,1),INDEX(TypeTime,MATCH(O138,TypeTime,1),1):INDEX(TypeTime,MATCH(O138,TypeTime)+1,1))), IF($C$1="Type II",IF(O137=24,1,FORECAST(O138,INDEX(TypeII,MATCH(O138,TypeTime,1),1):INDEX(TypeII,MATCH(O138,TypeTime,1)+1,1),INDEX(TypeTime,MATCH(O138,TypeTime,1),1):INDEX(TypeTime,MATCH(O138,TypeTime)+1,1))), IF($C$1="Type III",IF(O137=24,1,FORECAST(O138,INDEX(TypeIII,MATCH(O138,TypeTime,1),1):INDEX(TypeIII,MATCH(O138,TypeTime,1)+1,1),INDEX(TypeTime,MATCH(O138,TypeTime,1),1):INDEX(TypeTime,MATCH(O138,TypeTime)+1,1))), "Choose Type")))) -> 0.0186732 | Q138: 0.000617652 | R138: 0.072265284 | W138: 1.86732
B139: 119 | G139: 1.88328 | H139: 33 | I139: =IF(H139=33,0,FORECAST(G139,INDEX($F$21:$F$53,H139,1):INDEX($F$21:$F$53,H139+1,1),INDEX($E$21:$E$53,H139,1):INDEX($E$21:$E$53,H139+1))) -> 0 | J139: 11.8 | K139: 0.67308 | L139: 0.65651 | M139: 0.43079 | N139: 0.3733 | O139: 1.88328 | P139: =IF($C$1="Type I",IF(O138=24,1,FORECAST(O139,INDEX(TypeI,MATCH(O139,TypeTime,1),1):INDEX(TypeI,MATCH(O139,TypeTime,1)+1,1),INDEX(TypeTime,MATCH(O139,TypeTime,1),1):INDEX(TypeTime,MATCH(O139,TypeTime)+1,1))), IF($C$1="Type IA",IF(O138=24,1,FORECAST(O139,INDEX(TypeIA,MATCH(O139,TypeTime,1),1):INDEX(TypeIA,MATCH(O139,TypeTime,1)+1,1),INDEX(TypeTime,MATCH(O139,TypeTime,1),1):INDEX(TypeTime,MATCH(O139,TypeTime)+1,1))), IF($C$1="Type II",IF(O138=24,1,FORECAST(O139,INDEX(TypeII,MATCH(O139,TypeTime,1),1):INDEX(TypeII,MATCH(O139,TypeTime,1)+1,1),INDEX(TypeTime,MATCH(O139,TypeTime,1),1):INDEX(TypeTime,MATCH(O139,TypeTime)+1,1))), IF($C$1="Type III",IF(O138=24,1,FORECAST(O139,INDEX(TypeIII,MATCH(O139,TypeTime,1),1):INDEX(TypeIII,MATCH(O139,TypeTime,1)+1,1),INDEX(TypeTime,MATCH(O139,TypeTime,1),1):INDEX(TypeTime,MATCH(O139,TypeTime)+1,1))), "Choose Type")))) -> 0.0188328 | Q139: 0.000617652 | R139: 0.072882936 | W139: 1.88328
B140: 120 | G140: 1.89924 | H140: 33 | I140: =IF(H140=33,0,FORECAST(G140,INDEX($F$21:$F$53,H140,1):INDEX($F$21:$F$53,H140+1,1),INDEX($E$21:$E$53,H140,1):INDEX($E$21:$E$53,H140+1))) -> 0 | J140: 11.9 | K140: 0.67862 | L140: 0.66026 | M140: 0.56786 | N140: 0.416 | O140: 1.89924 | P140: =IF($C$1="Type I",IF(O139=24,1,FORECAST(O140,INDEX(TypeI,MATCH(O140,TypeTime,1),1):INDEX(TypeI,MATCH(O140,TypeTime,1)+1,1),INDEX(TypeTime,MATCH(O140,TypeTime,1),1):INDEX(TypeTime,MATCH(O140,TypeTime)+1,1))), IF($C$1="Type IA",IF(O139=24,1,FORECAST(O140,INDEX(TypeIA,MATCH(O140,TypeTime,1),1):INDEX(TypeIA,MATCH(O140,TypeTime,1)+1,1),INDEX(TypeTime,MATCH(O140,TypeTime,1),1):INDEX(TypeTime,MATCH(O140,TypeTime)+1,1))), IF($C$1="Type II",IF(O139=24,1,FORECAST(O140,INDEX(TypeII,MATCH(O140,TypeTime,1),1):INDEX(TypeII,MATCH(O140,TypeTime,1)+1,1),INDEX(TypeTime,MATCH(O140,TypeTime,1),1):INDEX(TypeTime,MATCH(O140,TypeTime)+1,1))), IF($C$1="Type III",IF(O139=24,1,FORECAST(O140,INDEX(TypeIII,MATCH(O140,TypeTime,1),1):INDEX(TypeIII,MATCH(O140,TypeTime,1)+1,1),INDEX(TypeTime,MATCH(O140,TypeTime,1),1):INDEX(TypeTime,MATCH(O140,TypeTime)+1,1))), "Choose Type")))) -> 0.0189924 | Q140: 0.000617652 | R140: 0.073500588 | W140: 1.89924
B141: 121 | G141: 1.9152 | H141: 33 | I141: =IF(H141=33,0,FORECAST(G141,INDEX($F$21:$F$53,H141,1):INDEX($F$21:$F$53,H141+1,1),INDEX($E$21:$E$53,H141,1):INDEX($E$21:$E$53,H141+1))) -> 0 | J141: 12 | K141: 0.684 | L141: 0.664 | M141: 0.663 | N141: 0.5 | O141: 1.9152 | P141: =IF($C$1="Type I",IF(O140=24,1,FORECAST(O141,INDEX(TypeI,MATCH(O141,TypeTime,1),1):INDEX(TypeI,MATCH(O141,TypeTime,1)+1,1),INDEX(TypeTime,MATCH(O141,TypeTime,1),1):INDEX(TypeTime,MATCH(O141,TypeTime)+1,1))), IF($C$1="Type IA",IF(O140=24,1,FORECAST(O141,INDEX(TypeIA,MATCH(O141,TypeTime,1),1):INDEX(TypeIA,MATCH(O141,TypeTime,1)+1,1),INDEX(TypeTime,MATCH(O141,TypeTime,1),1):INDEX(TypeTime,MATCH(O141,TypeTime)+1,1))), IF($C$1="Type II",IF(O140=24,1,FORECAST(O141,INDEX(TypeII,MATCH(O141,TypeTime,1),1):INDEX(TypeII,MATCH(O141,TypeTime,1)+1,1),INDEX(TypeTime,MATCH(O141,TypeTime,1),1):INDEX(TypeTime,MATCH(O141,TypeTime)+1,1))), IF($C$1="Type III",IF(O140=24,1,FORECAST(O141,INDEX(TypeIII,MATCH(O141,TypeTime,1),1):INDEX(TypeIII,MATCH(O141,TypeTime,1)+1,1),INDEX(TypeTime,MATCH(O141,TypeTime,1),1):INDEX(TypeTime,MATCH(O141,TypeTime)+1,1))), "Choose Type")))) -> 0.019152 | Q141: 0.000617652 | R141: 0.07411824 | W141: 1.9152
B142: 122 | G142: 1.93116 | H142: 33 | I142: =IF(H142=33,0,FORECAST(G142,INDEX($F$21:$F$53,H142,1):INDEX($F$21:$F$53,H142+1,1),INDEX($E$21:$E$53,H142,1):INDEX($E$21:$E$53,H142+1))) -> 0 | J142: 12.1 | K142: 0.68925 | L142: 0.66773 | M142: 0.68196 | N142: 0.584 | O142: 1.93116 | P142: =IF($C$1="Type I",IF(O141=24,1,FORECAST(O142,INDEX(TypeI,MATCH(O142,TypeTime,1),1):INDEX(TypeI,MATCH(O142,TypeTime,1)+1,1),INDEX(TypeTime,MATCH(O142,TypeTime,1),1):INDEX(TypeTime,MATCH(O142,TypeTime)+1,1))), IF($C$1="Type IA",IF(O141=24,1,FORECAST(O142,INDEX(TypeIA,MATCH(O142,TypeTime,1),1):INDEX(TypeIA,MATCH(O142,TypeTime,1)+1,1),INDEX(TypeTime,MATCH(O142,TypeTime,1),1):INDEX(TypeTime,MATCH(O142,TypeTime)+1,1))), IF($C$1="Type II",IF(O141=24,1,FORECAST(O142,INDEX(TypeII,MATCH(O142,TypeTime,1),1):INDEX(TypeII,MATCH(O142,TypeTime,1)+1,1),INDEX(TypeTime,MATCH(O142,TypeTime,1),1):INDEX(TypeTime,MATCH(O142,TypeTime)+1,1))), IF($C$1="Type III",IF(O141=24,1,FORECAST(O142,INDEX(TypeIII,MATCH(O142,TypeTime,1),1):INDEX(TypeIII,MATCH(O142,TypeTime,1)+1,1),INDEX(TypeTime,MATCH(O142,TypeTime,1),1):INDEX(TypeTime,MATCH(O142,TypeTime)+1,1))), "Choose Type")))) -> 0.0193116 | Q142: 0.000617652 | R142: 0.074735892 | W142: 1.93116
B143: 123 | G143: 1.94712 | H143: 33 | I143: =IF(H143=33,0,FORECAST(G143,INDEX($F$21:$F$53,H143,1):INDEX($F$21:$F$53,H143+1,1),INDEX($E$21:$E$53,H143,1):INDEX($E$21:$E$53,H143+1))) -> 0 | J143: 12.2 | K143: 0.6944 | L143: 0.67148 | M143: 0.69864 | N143: 0.6267 | O143: 1.94712 | P143: =IF($C$1="Type I",IF(O142=24,1,FORECAST(O143,INDEX(TypeI,MATCH(O143,TypeTime,1),1):INDEX(TypeI,MATCH(O143,TypeTime,1)+1,1),INDEX(TypeTime,MATCH(O143,TypeTime,1),1):INDEX(TypeTime,MATCH(O143,TypeTime)+1,1))), IF($C$1="Type IA",IF(O142=24,1,FORECAST(O143,INDEX(TypeIA,MATCH(O143,TypeTime,1),1):INDEX(TypeIA,MATCH(O143,TypeTime,1)+1,1),INDEX(TypeTime,MATCH(O143,TypeTime,1),1):INDEX(TypeTime,MATCH(O143,TypeTime)+1,1))), IF($C$1="Type II",IF(O142=24,1,FORECAST(O143,INDEX(TypeII,MATCH(O143,TypeTime,1),1):INDEX(TypeII,MATCH(O143,TypeTime,1)+1,1),INDEX(TypeTime,MATCH(O143,TypeTime,1),1):INDEX(TypeTime,MATCH(O143,TypeTime)+1,1))), IF($C$1="Type III",IF(O142=24,1,FORECAST(O143,INDEX(TypeIII,MATCH(O143,TypeTime,1),1):INDEX(TypeIII,MATCH(O143,TypeTime,1)+1,1),INDEX(TypeTime,MATCH(O143,TypeTime,1),1):INDEX(TypeTime,MATCH(O143,TypeTime)+1,1))), "Choose Type")))) -> 0.0194712 | Q143: 0.000617652 | R143: 0.075353544 | W143: 1.94712
B144: 124 | G144: 1.96308 | H144: 33 | I144: =IF(H144=33,0,FORECAST(G144,INDEX($F$21:$F$53,H144,1):INDEX($F$21:$F$53,H144+1,1),INDEX($E$21:$E$53,H144,1):INDEX($E$21:$E$53,H144+1))) -> 0 | J144: 12.3 | K144: 0.69945 | L144: 0.67527 | M144: 0.71304 | N144: 0.6606 | O144: 1.96308 | P144: =IF($C$1="Type I",IF(O143=24,1,FORECAST(O144,INDEX(TypeI,MATCH(O144,TypeTime,1),1):INDEX(TypeI,MATCH(O144,TypeTime,1)+1,1),INDEX(TypeTime,MATCH(O144,TypeTime,1),1):INDEX(TypeTime,MATCH(O144,TypeTime)+1,1))), IF($C$1="Type IA",IF(O143=24,1,FORECAST(O144,INDEX(TypeIA,MATCH(O144,TypeTime,1),1):INDEX(TypeIA,MATCH(O144,TypeTime,1)+1,1),INDEX(TypeTime,MATCH(O144,TypeTime,1),1):INDEX(TypeTime,MATCH(O144,TypeTime)+1,1))), IF($C$1="Type II",IF(O143=24,1,FORECAST(O144,INDEX(TypeII,MATCH(O144,TypeTime,1),1):INDEX(TypeII,MATCH(O144,TypeTime,1)+1,1),INDEX(TypeTime,MATCH(O144,TypeTime,1),1):INDEX(TypeTime,MATCH(O144,TypeTime)+1,1))), IF($C$1="Type III",IF(O143=24,1,FORECAST(O144,INDEX(TypeIII,MATCH(O144,TypeTime,1),1):INDEX(TypeIII,MATCH(O144,TypeTime,1)+1,1),INDEX(TypeTime,MATCH(O144,TypeTime,1),1):INDEX(TypeTime,MATCH(O144,TypeTime)+1,1))), "Choose Type")))) -> 0.0196308 | Q144: 0.000617652 | R144: 0.075971196 | W144: 1.96308
B145: 125 | G145: 1.97904 | H145: 33 | I145: =IF(H145=33,0,FORECAST(G145,INDEX($F$21:$F$53,H145,1):INDEX($F$21:$F$53,H145+1,1),INDEX($E$21:$E$53,H145,1):INDEX($E$21:$E$53,H145+1))) -> 0 | J145: 12.4 | K145: 0.7044 | L145: 0.6791 | M145: 0.72516 | N145: 0.6857 | O145: 1.97904 | P145: =IF($C$1="Type I",IF(O144=24,1,FORECAST(O145,INDEX(TypeI,MATCH(O145,TypeTime,1),1):INDEX(TypeI,MATCH(O145,TypeTime,1)+1,1),INDEX(TypeTime,MATCH(O145,TypeTime,1),1):INDEX(TypeTime,MATCH(O145,TypeTime)+1,1))), IF($C$1="Type IA",IF(O144=24,1,FORECAST(O145,INDEX(TypeIA,MATCH(O145,TypeTime,1),1):INDEX(TypeIA,MATCH(O145,TypeTime,1)+1,1),INDEX(TypeTime,MATCH(O145,TypeTime,1),1):INDEX(TypeTime,MATCH(O145,TypeTime)+1,1))), IF($C$1="Type II",IF(O144=24,1,FORECAST(O145,INDEX(TypeII,MATCH(O145,TypeTime,1),1):INDEX(TypeII,MATCH(O145,TypeTime,1)+1,1),INDEX(TypeTime,MATCH(O145,TypeTime,1),1):INDEX(TypeTime,MATCH(O145,TypeTime)+1,1))), IF($C$1="Type III",IF(O144=24,1,FORECAST(O145,INDEX(TypeIII,MATCH(O145,TypeTime,1),1):INDEX(TypeIII,MATCH(O145,TypeTime,1)+1,1),INDEX(TypeTime,MATCH(O145,TypeTime,1),1):INDEX(TypeTime,MATCH(O145,TypeTime)+1,1))), "Choose Type")))) -> 0.0197904 | Q145: 0.000617652 | R145: 0.076588848 | W145: 1.97904
B146: 126 | G146: 1.995 | H146: 33 | I146: =IF(H146=33,0,FORECAST(G146,INDEX($F$21:$F$53,H146,1):INDEX($F$21:$F$53,H146+1,1),INDEX($E$21:$E$53,H146,1):INDEX($E$21:$E$53,H146+1))) -> 0 | J146: 12.5 | K146: 0.70925 | L146: 0.683 | M146: 0.735 | N146: 0.702 | O146: 1.995 | P146: =IF($C$1="Type I",IF(O145=24,1,FORECAST(O146,INDEX(TypeI,MATCH(O146,TypeTime,1),1):INDEX(TypeI,MATCH(O146,TypeTime,1)+1,1),INDEX(TypeTime,MATCH(O146,TypeTime,1),1):INDEX(TypeTime,MATCH(O146,TypeTime)+1,1))), IF($C$1="Type IA",IF(O145=24,1,FORECAST(O146,INDEX(TypeIA,MATCH(O146,TypeTime,1),1):INDEX(TypeIA,MATCH(O146,TypeTime,1)+1,1),INDEX(TypeTime,MATCH(O146,TypeTime,1),1):INDEX(TypeTime,MATCH(O146,TypeTime)+1,1))), IF($C$1="Type II",IF(O145=24,1,FORECAST(O146,INDEX(TypeII,MATCH(O146,TypeTime,1),1):INDEX(TypeII,MATCH(O146,TypeTime,1)+1,1),INDEX(TypeTime,MATCH(O146,TypeTime,1),1):INDEX(TypeTime,MATCH(O146,TypeTime)+1,1))), IF($C$1="Type III",IF(O145=24,1,FORECAST(O146,INDEX(TypeIII,MATCH(O146,TypeTime,1),1):INDEX(TypeIII,MATCH(O146,TypeTime,1)+1,1),INDEX(TypeTime,MATCH(O146,TypeTime,1),1):INDEX(TypeTime,MATCH(O146,TypeTime)+1,1))), "Choose Type")))) -> 0.01995 | Q146: 0.000617652 | R146: 0.0772065 | W146: 1.995
B147: 127 | G147: 2.01096 | H147: 33 | I147: =IF(H147=33,0,FORECAST(G147,INDEX($F$21:$F$53,H147,1):INDEX($F$21:$F$53,H147+1,1),INDEX($E$21:$E$53,H147,1):INDEX($E$21:$E$53,H147+1))) -> 0 | J147: 12.6 | K147: 0.714 | L147: 0.68665 | M147: 0.74344 | N147: 0.71344 | O147: 2.01096 | P147: =IF($C$1="Type I",IF(O146=24,1,FORECAST(O147,INDEX(TypeI,MATCH(O147,TypeTime,1),1):INDEX(TypeI,MATCH(O147,TypeTime,1)+1,1),INDEX(TypeTime,MATCH(O147,TypeTime,1),1):INDEX(TypeTime,MATCH(O147,TypeTime)+1,1))), IF($C$1="Type IA",IF(O146=24,1,FORECAST(O147,INDEX(TypeIA,MATCH(O147,TypeTime,1),1):INDEX(TypeIA,MATCH(O147,TypeTime,1)+1,1),INDEX(TypeTime,MATCH(O147,TypeTime,1),1):INDEX(TypeTime,MATCH(O147,TypeTime)+1,1))), IF($C$1="Type II",IF(O146=24,1,FORECAST(O147,INDEX(TypeII,MATCH(O147,TypeTime,1),1):INDEX(TypeII,MATCH(O147,TypeTime,1)+1,1),INDEX(TypeTime,MATCH(O147,TypeTime,1),1):INDEX(TypeTime,MATCH(O147,TypeTime)+1,1))), IF($C$1="Type III",IF(O146=24,1,FORECAST(O147,INDEX(TypeIII,MATCH(O147,TypeTime,1),1):INDEX(TypeIII,MATCH(O147,TypeTime,1)+1,1),INDEX(TypeTime,MATCH(O147,TypeTime,1),1):INDEX(TypeTime,MATCH(O147,TypeTime)+1,1))), "Choose Type")))) -> 0.020110696 | Q147: 0.00062189352 | R147: 0.07782839352 | W147: 2.01096
B148: 128 | G148: 2.02692 | H148: 33 | I148: =IF(H148=33,0,FORECAST(G148,INDEX($F$21:$F$53,H148,1):INDEX($F$21:$F$53,H148+1,1),INDEX($E$21:$E$53,H148,1):INDEX($E$21:$E$53,H148+1))) -> 0 | J148: 12.7 | K148: 0.71865 | L148: 0.69027 | M148: 0.75136 | N148: 0.72396 | O148: 2.02692 | P148: =IF($C$1="Type I",IF(O147=24,1,FORECAST(O148,INDEX(TypeI,MATCH(O148,TypeTime,1),1):INDEX(TypeI,MATCH(O148,TypeTime,1)+1,1),INDEX(TypeTime,MATCH(O148,TypeTime,1),1):INDEX(TypeTime,MATCH(O148,TypeTime)+1,1))), IF($C$1="Type IA",IF(O147=24,1,FORECAST(O148,INDEX(TypeIA,MATCH(O148,TypeTime,1),1):INDEX(TypeIA,MATCH(O148,TypeTime,1)+1,1),INDEX(TypeTime,MATCH(O148,TypeTime,1),1):INDEX(TypeTime,MATCH(O148,TypeTime)+1,1))), IF($C$1="Type II",IF(O147=24,1,FORECAST(O148,INDEX(TypeII,MATCH(O148,TypeTime,1),1):INDEX(TypeII,MATCH(O148,TypeTime,1)+1,1),INDEX(TypeTime,MATCH(O148,TypeTime,1),1):INDEX(TypeTime,MATCH(O148,TypeTime)+1,1))), IF($C$1="Type III",IF(O147=24,1,FORECAST(O148,INDEX(TypeIII,MATCH(O148,TypeTime,1),1):INDEX(TypeIII,MATCH(O148,TypeTime,1)+1,1),INDEX(TypeTime,MATCH(O148,TypeTime,1),1):INDEX(TypeTime,MATCH(O148,TypeTime)+1,1))), "Choose Type")))) -> 0.020271892 | Q148: 0.00062382852 | R148: 0.07845222204 | W148: 2.02692
B149: 129 | G149: 2.04288 | H149: 33 | I149: =IF(H149=33,0,FORECAST(G149,INDEX($F$21:$F$53,H149,1):INDEX($F$21:$F$53,H149+1,1),INDEX($E$21:$E$53,H149,1):INDEX($E$21:$E$53,H149+1))) -> 0 | J149: 12.8 | K149: 0.7232 | L149: 0.69386 | M149: 0.75876 | N149: 0.73356 | O149: 2.04288 | P149: =IF($C$1="Type I",IF(O148=24,1,FORECAST(O149,INDEX(TypeI,MATCH(O149,TypeTime,1),1):INDEX(TypeI,MATCH(O149,TypeTime,1)+1,1),INDEX(TypeTime,MATCH(O149,TypeTime,1),1):INDEX(TypeTime,MATCH(O149,TypeTime)+1,1))), IF($C$1="Type IA",IF(O148=24,1,FORECAST(O149,INDEX(TypeIA,MATCH(O149,TypeTime,1),1):INDEX(TypeIA,MATCH(O149,TypeTime,1)+1,1),INDEX(TypeTime,MATCH(O149,TypeTime,1),1):INDEX(TypeTime,MATCH(O149,TypeTime)+1,1))), IF($C$1="Type II",IF(O148=24,1,FORECAST(O149,INDEX(TypeII,MATCH(O149,TypeTime,1),1):INDEX(TypeII,MATCH(O149,TypeTime,1)+1,1),INDEX(TypeTime,MATCH(O149,TypeTime,1),1):INDEX(TypeTime,MATCH(O149,TypeTime)+1,1))), IF($C$1="Type III",IF(O148=24,1,FORECAST(O149,INDEX(TypeIII,MATCH(O149,TypeTime,1),1):INDEX(TypeIII,MATCH(O149,TypeTime,1)+1,1),INDEX(TypeTime,MATCH(O149,TypeTime,1),1):INDEX(TypeTime,MATCH(O149,TypeTime)+1,1))), "Choose Type")))) -> 0.020433088 | Q149: 0.00062382852 | R149: =P*P149 -> 0.07907605056 | S149: =MAX(0,R149-Ia) ->  | W149: 2.04288
B150: 130 | G150: 2.05884 | H150: 33 | I150: =IF(H150=33,0,FORECAST(G150,INDEX($F$21:$F$53,H150,1):INDEX($F$21:$F$53,H150+1,1),INDEX($E$21:$E$53,H150,1):INDEX($E$21:$E$53,H150+1))) -> 0 | J150: 12.9 | K150: 0.72765 | L150: 0.69744 | M150: 0.76564 | N150: 0.74224 | O150: 2.05884 | P150: =IF($C$1="Type I",IF(O149=24,1,FORECAST(O150,INDEX(TypeI,MATCH(O150,TypeTime,1),1):INDEX(TypeI,MATCH(O150,TypeTime,1)+1,1),INDEX(TypeTime,MATCH(O150,TypeTime,1),1):INDEX(TypeTime,MATCH(O150,TypeTime)+1,1))), IF($C$1="Type IA",IF(O149=24,1,FORECAST(O150,INDEX(TypeIA,MATCH(O150,TypeTime,1),1):INDEX(TypeIA,MATCH(O150,TypeTime,1)+1,1),INDEX(TypeTime,MATCH(O150,TypeTime,1),1):INDEX(TypeTime,MATCH(O150,TypeTime)+1,1))), IF($C$1="Type II",IF(O149=24,1,FORECAST(O150,INDEX(TypeII,MATCH(O150,TypeTime,1),1):INDEX(TypeII,MATCH(O150,TypeTime,1)+1,1),INDEX(TypeTime,MATCH(O150,TypeTime,1),1):INDEX(TypeTime,MATCH(O150,TypeTime)+1,1))), IF($C$1="Type III",IF(O149=24,1,FORECAST(O150,INDEX(TypeIII,MATCH(O150,TypeTime,1),1):INDEX(TypeIII,MATCH(O150,TypeTime,1)+1,1),INDEX(TypeTime,MATCH(O150,TypeTime,1),1):INDEX(TypeTime,MATCH(O150,TypeTime)+1,1))), "Choose Type")))) -> 0.020594284 | Q150: =P*(P150-P149) -> 0.00062382852 | R150: 0.07969987908 | T150: =MAX(0,(S150^2/(S150+S)-RVol)) ->  | V150: =(X150+X151)/2*$C$12*60*60 ->  | W150: 2.05884 | X150: =SUM(Y150:AX150) ->  | Y150: =$I$21*$U150 -> 
B151: 131 | G151: =MIN(24,G150+$C$12) -> 2.0748 | H151: 33 | I151: =IF(H151=33,0,FORECAST(G151,INDEX($F$21:$F$53,H151,1):INDEX($F$21:$F$53,H151+1,1),INDEX($E$21:$E$53,H151,1):INDEX($E$21:$E$53,H151+1))) -> 0 | J151: 13 | K151: 0.732 | L151: 0.701 | M151: 0.772 | N151: 0.75 | O151: =MIN(24,O150+$C$12) -> 2.0748 | P151: =IF($C$1="Type I",IF(O150=24,1,FORECAST(O151,INDEX(TypeI,MATCH(O151,TypeTime,1),1):INDEX(TypeI,MATCH(O151,TypeTime,1)+1,1),INDEX(TypeTime,MATCH(O151,TypeTime,1),1):INDEX(TypeTime,MATCH(O151,TypeTime)+1,1))), IF($C$1="Type IA",IF(O150=24,1,FORECAST(O151,INDEX(TypeIA,MATCH(O151,TypeTime,1),1):INDEX(TypeIA,MATCH(O151,TypeTime,1)+1,1),INDEX(TypeTime,MATCH(O151,TypeTime,1),1):INDEX(TypeTime,MATCH(O151,TypeTime)+1,1))), IF($C$1="Type II",IF(O150=24,1,FORECAST(O151,INDEX(TypeII,MATCH(O151,TypeTime,1),1):INDEX(TypeII,MATCH(O151,TypeTime,1)+1,1),INDEX(TypeTime,MATCH(O151,TypeTime,1),1):INDEX(TypeTime,MATCH(O151,TypeTime)+1,1))), IF($C$1="Type III",IF(O150=24,1,FORECAST(O151,INDEX(TypeIII,MATCH(O151,TypeTime,1),1):INDEX(TypeIII,MATCH(O151,TypeTime,1)+1,1),INDEX(TypeTime,MATCH(O151,TypeTime,1),1):INDEX(TypeTime,MATCH(O151,TypeTime)+1,1))), "Choose Type")))) -> 0.02075548 | Q151: 0.00062382852 | R151: 0.0803237076 | U151: =T151-T150 ->  | W151: =W150+$C$12 -> 2.0748 | Z151: =$I$22*$U150 ->  | AA151: =$I$23*$U149 -> 
B152: 132 | G152: 2.09076 | H152: =MATCH(G152,$E$21:$E$53,1) -> 33 | I152: =IF(H152=33,0,FORECAST(G152,INDEX($F$21:$F$53,H152,1):INDEX($F$21:$F$53,H152+1,1),INDEX($E$21:$E$53,H152,1):INDEX($E$21:$E$53,H152+1))) -> 0 | J152: 13.1 | K152: 0.73625 | L152: 0.70473 | M152: 0.77796 | N152: 0.75718 | O152: 2.09076 | P152: =IF($C$1="Type I",IF(O151=24,1,FORECAST(O152,INDEX(TypeI,MATCH(O152,TypeTime,1),1):INDEX(TypeI,MATCH(O152,TypeTime,1)+1,1),INDEX(TypeTime,MATCH(O152,TypeTime,1),1):INDEX(TypeTime,MATCH(O152,TypeTime)+1,1))), IF($C$1="Type IA",IF(O151=24,1,FORECAST(O152,INDEX(TypeIA,MATCH(O152,TypeTime,1),1):INDEX(TypeIA,MATCH(O152,TypeTime,1)+1,1),INDEX(TypeTime,MATCH(O152,TypeTime,1),1):INDEX(TypeTime,MATCH(O152,TypeTime)+1,1))), IF($C$1="Type II",IF(O151=24,1,FORECAST(O152,INDEX(TypeII,MATCH(O152,TypeTime,1),1):INDEX(TypeII,MATCH(O152,TypeTime,1)+1,1),INDEX(TypeTime,MATCH(O152,TypeTime,1),1):INDEX(TypeTime,MATCH(O152,TypeTime)+1,1))), IF($C$1="Type III",IF(O151=24,1,FORECAST(O152,INDEX(TypeIII,MATCH(O152,TypeTime,1),1):INDEX(TypeIII,MATCH(O152,TypeTime,1)+1,1),INDEX(TypeTime,MATCH(O152,TypeTime,1),1):INDEX(TypeTime,MATCH(O152,TypeTime)+1,1))), "Choose Type")))) -> 0.020916676 | Q152: 0.00062382852 | R152: 0.08094753612 | W152: 2.09076 | AB152: =$I$24*$U149 -> 
B153: 133 | G153: 2.10672 | H153: 33 | I153: =IF(H153=33,0,FORECAST(G153,INDEX($F$21:$F$53,H153,1):INDEX($F$21:$F$53,H153+1,1),INDEX($E$21:$E$53,H153,1):INDEX($E$21:$E$53,H153+1))) -> 0 | J153: 13.2 | K153: 0.7404 | L153: 0.70838 | M153: 0.78364 | N153: 0.76412 | O153: 2.10672 | P153: =IF($C$1="Type I",IF(O152=24,1,FORECAST(O153,INDEX(TypeI,MATCH(O153,TypeTime,1),1):INDEX(TypeI,MATCH(O153,TypeTime,1)+1,1),INDEX(TypeTime,MATCH(O153,TypeTime,1),1):INDEX(TypeTime,MATCH(O153,TypeTime)+1,1))), IF($C$1="Type IA",IF(O152=24,1,FORECAST(O153,INDEX(TypeIA,MATCH(O153,TypeTime,1),1):INDEX(TypeIA,MATCH(O153,TypeTime,1)+1,1),INDEX(TypeTime,MATCH(O153,TypeTime,1),1):INDEX(TypeTime,MATCH(O153,TypeTime)+1,1))), IF($C$1="Type II",IF(O152=24,1,FORECAST(O153,INDEX(TypeII,MATCH(O153,TypeTime,1),1):INDEX(TypeII,MATCH(O153,TypeTime,1)+1,1),INDEX(TypeTime,MATCH(O153,TypeTime,1),1):INDEX(TypeTime,MATCH(O153,TypeTime)+1,1))), IF($C$1="Type III",IF(O152=24,1,FORECAST(O153,INDEX(TypeIII,MATCH(O153,TypeTime,1),1):INDEX(TypeIII,MATCH(O153,TypeTime,1)+1,1),INDEX(TypeTime,MATCH(O153,TypeTime,1),1):INDEX(TypeTime,MATCH(O153,TypeTime)+1,1))), "Choose Type")))) -> 0.021078544 | Q153: 0.00062642916 | R153: 0.08157396528 | W153: 2.10672 | AC153: =$I$25*$U149 -> 
B154: 134 | G154: 2.12268 | H154: 33 | I154: =IF(H154=33,0,FORECAST(G154,INDEX($F$21:$F$53,H154,1):INDEX($F$21:$F$53,H154+1,1),INDEX($E$21:$E$53,H154,1):INDEX($E$21:$E$53,H154+1))) -> 0 | J154: 13.3 | K154: 0.74445 | L154: 0.71198 | M154: 0.78904 | N154: 0.77082 | O154: 2.12268 | P154: =IF($C$1="Type I",IF(O153=24,1,FORECAST(O154,INDEX(TypeI,MATCH(O154,TypeTime,1),1):INDEX(TypeI,MATCH(O154,TypeTime,1)+1,1),INDEX(TypeTime,MATCH(O154,TypeTime,1),1):INDEX(TypeTime,MATCH(O154,TypeTime)+1,1))), IF($C$1="Type IA",IF(O153=24,1,FORECAST(O154,INDEX(TypeIA,MATCH(O154,TypeTime,1),1):INDEX(TypeIA,MATCH(O154,TypeTime,1)+1,1),INDEX(TypeTime,MATCH(O154,TypeTime,1),1):INDEX(TypeTime,MATCH(O154,TypeTime)+1,1))), IF($C$1="Type II",IF(O153=24,1,FORECAST(O154,INDEX(TypeII,MATCH(O154,TypeTime,1),1):INDEX(TypeII,MATCH(O154,TypeTime,1)+1,1),INDEX(TypeTime,MATCH(O154,TypeTime,1),1):INDEX(TypeTime,MATCH(O154,TypeTime)+1,1))), IF($C$1="Type III",IF(O153=24,1,FORECAST(O154,INDEX(TypeIII,MATCH(O154,TypeTime,1),1):INDEX(TypeIII,MATCH(O154,TypeTime,1)+1,1),INDEX(TypeTime,MATCH(O154,TypeTime,1),1):INDEX(TypeTime,MATCH(O154,TypeTime)+1,1))), "Choose Type")))) -> 0.021241336 | Q154: 0.00063000504 | R154: 0.08220397032 | W154: 2.12268 | AD154: =$I$26*$U149 -> 
B155: 135 | G155: 2.13864 | H155: 33 | I155: =IF(H155=33,0,FORECAST(G155,INDEX($F$21:$F$53,H155,1):INDEX($F$21:$F$53,H155+1,1),INDEX($E$21:$E$53,H155,1):INDEX($E$21:$E$53,H155+1))) -> 0 | J155: 13.4 | K155: 0.7484 | L155: 0.71551 | M155: 0.79416 | N155: 0.77728 | O155: 2.13864 | P155: =IF($C$1="Type I",IF(O154=24,1,FORECAST(O155,INDEX(TypeI,MATCH(O155,TypeTime,1),1):INDEX(TypeI,MATCH(O155,TypeTime,1)+1,1),INDEX(TypeTime,MATCH(O155,TypeTime,1),1):INDEX(TypeTime,MATCH(O155,TypeTime)+1,1))), IF($C$1="Type IA",IF(O154=24,1,FORECAST(O155,INDEX(TypeIA,MATCH(O155,TypeTime,1),1):INDEX(TypeIA,MATCH(O155,TypeTime,1)+1,1),INDEX(TypeTime,MATCH(O155,TypeTime,1),1):INDEX(TypeTime,MATCH(O155,TypeTime)+1,1))), IF($C$1="Type II",IF(O154=24,1,FORECAST(O155,INDEX(TypeII,MATCH(O155,TypeTime,1),1):INDEX(TypeII,MATCH(O155,TypeTime,1)+1,1),INDEX(TypeTime,MATCH(O155,TypeTime,1),1):INDEX(TypeTime,MATCH(O155,TypeTime)+1,1))), IF($C$1="Type III",IF(O154=24,1,FORECAST(O155,INDEX(TypeIII,MATCH(O155,TypeTime,1),1):INDEX(TypeIII,MATCH(O155,TypeTime,1)+1,1),INDEX(TypeTime,MATCH(O155,TypeTime,1),1):INDEX(TypeTime,MATCH(O155,TypeTime)+1,1))), "Choose Type")))) -> 0.021404128 | Q155: 0.00063000504 | R155: 0.08283397536 | W155: 2.13864 | AE155: =$I$27*$U149 -> 
B156: 136 | G156: 2.1546 | H156: 33 | I156: =IF(H156=33,0,FORECAST(G156,INDEX($F$21:$F$53,H156,1):INDEX($F$21:$F$53,H156+1,1),INDEX($E$21:$E$53,H156,1):INDEX($E$21:$E$53,H156+1))) -> 0 | J156: 13.5 | K156: 0.75225 | L156: 0.719 | M156: 0.799 | N156: 0.7835 | O156: 2.1546 | P156: =IF($C$1="Type I",IF(O155=24,1,FORECAST(O156,INDEX(TypeI,MATCH(O156,TypeTime,1),1):INDEX(TypeI,MATCH(O156,TypeTime,1)+1,1),INDEX(TypeTime,MATCH(O156,TypeTime,1),1):INDEX(TypeTime,MATCH(O156,TypeTime)+1,1))), IF($C$1="Type IA",IF(O155=24,1,FORECAST(O156,INDEX(TypeIA,MATCH(O156,TypeTime,1),1):INDEX(TypeIA,MATCH(O156,TypeTime,1)+1,1),INDEX(TypeTime,MATCH(O156,TypeTime,1),1):INDEX(TypeTime,MATCH(O156,TypeTime)+1,1))), IF($C$1="Type II",IF(O155=24,1,FORECAST(O156,INDEX(TypeII,MATCH(O156,TypeTime,1),1):INDEX(TypeII,MATCH(O156,TypeTime,1)+1,1),INDEX(TypeTime,MATCH(O156,TypeTime,1),1):INDEX(TypeTime,MATCH(O156,TypeTime)+1,1))), IF($C$1="Type III",IF(O155=24,1,FORECAST(O156,INDEX(TypeIII,MATCH(O156,TypeTime,1),1):INDEX(TypeIII,MATCH(O156,TypeTime,1)+1,1),INDEX(TypeTime,MATCH(O156,TypeTime,1),1):INDEX(TypeTime,MATCH(O156,TypeTime)+1,1))), "Choose Type")))) -> 0.02156692 | Q156: 0.00063000504 | R156: 0.0834639804 | W156: 2.1546 | AF156: =$I$28*$U149 -> 
B157: 137 | G157: 2.17056 | H157: 33 | I157: =IF(H157=33,0,FORECAST(G157,INDEX($F$21:$F$53,H157,1):INDEX($F$21:$F$53,H157+1,1),INDEX($E$21:$E$53,H157,1):INDEX($E$21:$E$53,H157+1))) -> 0 | J157: 13.6 | K157: 0.756 | L157: 0.72245 | M157: 0.8036 | N157: 0.78948 | O157: 2.17056 | P157: =IF($C$1="Type I",IF(O156=24,1,FORECAST(O157,INDEX(TypeI,MATCH(O157,TypeTime,1),1):INDEX(TypeI,MATCH(O157,TypeTime,1)+1,1),INDEX(TypeTime,MATCH(O157,TypeTime,1),1):INDEX(TypeTime,MATCH(O157,TypeTime)+1,1))), IF($C$1="Type IA",IF(O156=24,1,FORECAST(O157,INDEX(TypeIA,MATCH(O157,TypeTime,1),1):INDEX(TypeIA,MATCH(O157,TypeTime,1)+1,1),INDEX(TypeTime,MATCH(O157,TypeTime,1),1):INDEX(TypeTime,MATCH(O157,TypeTime)+1,1))), IF($C$1="Type II",IF(O156=24,1,FORECAST(O157,INDEX(TypeII,MATCH(O157,TypeTime,1),1):INDEX(TypeII,MATCH(O157,TypeTime,1)+1,1),INDEX(TypeTime,MATCH(O157,TypeTime,1),1):INDEX(TypeTime,MATCH(O157,TypeTime)+1,1))), IF($C$1="Type III",IF(O156=24,1,FORECAST(O157,INDEX(TypeIII,MATCH(O157,TypeTime,1),1):INDEX(TypeIII,MATCH(O157,TypeTime,1)+1,1),INDEX(TypeTime,MATCH(O157,TypeTime,1),1):INDEX(TypeTime,MATCH(O157,TypeTime)+1,1))), "Choose Type")))) -> 0.021729712 | Q157: 0.00063000504 | R157: 0.08409398544 | W157: 2.17056 | AG157: =$I$29*$U149 -> 
B158: 138 | G158: 2.18652 | H158: 33 | I158: =IF(H158=33,0,FORECAST(G158,INDEX($F$21:$F$53,H158,1):INDEX($F$21:$F$53,H158+1,1),INDEX($E$21:$E$53,H158,1):INDEX($E$21:$E$53,H158+1))) -> 0 | J158: 13.7 | K158: 0.75965 | L158: 0.72586 | M158: 0.808 | N158: 0.79522 | O158: 2.18652 | P158: =IF($C$1="Type I",IF(O157=24,1,FORECAST(O158,INDEX(TypeI,MATCH(O158,TypeTime,1),1):INDEX(TypeI,MATCH(O158,TypeTime,1)+1,1),INDEX(TypeTime,MATCH(O158,TypeTime,1),1):INDEX(TypeTime,MATCH(O158,TypeTime)+1,1))), IF($C$1="Type IA",IF(O157=24,1,FORECAST(O158,INDEX(TypeIA,MATCH(O158,TypeTime,1),1):INDEX(TypeIA,MATCH(O158,TypeTime,1)+1,1),INDEX(TypeTime,MATCH(O158,TypeTime,1),1):INDEX(TypeTime,MATCH(O158,TypeTime)+1,1))), IF($C$1="Type II",IF(O157=24,1,FORECAST(O158,INDEX(TypeII,MATCH(O158,TypeTime,1),1):INDEX(TypeII,MATCH(O158,TypeTime,1)+1,1),INDEX(TypeTime,MATCH(O158,TypeTime,1),1):INDEX(TypeTime,MATCH(O158,TypeTime)+1,1))), IF($C$1="Type III",IF(O157=24,1,FORECAST(O158,INDEX(TypeIII,MATCH(O158,TypeTime,1),1):INDEX(TypeIII,MATCH(O158,TypeTime,1)+1,1),INDEX(TypeTime,MATCH(O158,TypeTime,1),1):INDEX(TypeTime,MATCH(O158,TypeTime)+1,1))), "Choose Type")))) -> 0.021892504 | Q158: 0.00063000504 | R158: 0.08472399048 | W158: 2.18652 | AH158: =$I$30*$U149 -> 
B159: 139 | G159: 2.20248 | H159: 33 | I159: =IF(H159=33,0,FORECAST(G159,INDEX($F$21:$F$53,H159,1):INDEX($F$21:$F$53,H159+1,1),INDEX($E$21:$E$53,H159,1):INDEX($E$21:$E$53,H159+1))) -> 0 | J159: 13.8 | K159: 0.7632 | L159: 0.72926 | M159: 0.8122 | N159: 0.80072 | O159: 2.20248 | P159: =IF($C$1="Type I",IF(O158=24,1,FORECAST(O159,INDEX(TypeI,MATCH(O159,TypeTime,1),1):INDEX(TypeI,MATCH(O159,TypeTime,1)+1,1),INDEX(TypeTime,MATCH(O159,TypeTime,1),1):INDEX(TypeTime,MATCH(O159,TypeTime)+1,1))), IF($C$1="Type IA",IF(O158=24,1,FORECAST(O159,INDEX(TypeIA,MATCH(O159,TypeTime,1),1):INDEX(TypeIA,MATCH(O159,TypeTime,1)+1,1),INDEX(TypeTime,MATCH(O159,TypeTime,1),1):INDEX(TypeTime,MATCH(O159,TypeTime)+1,1))), IF($C$1="Type II",IF(O158=24,1,FORECAST(O159,INDEX(TypeII,MATCH(O159,TypeTime,1),1):INDEX(TypeII,MATCH(O159,TypeTime,1)+1,1),INDEX(TypeTime,MATCH(O159,TypeTime,1),1):INDEX(TypeTime,MATCH(O159,TypeTime)+1,1))), IF($C$1="Type III",IF(O158=24,1,FORECAST(O159,INDEX(TypeIII,MATCH(O159,TypeTime,1),1):INDEX(TypeIII,MATCH(O159,TypeTime,1)+1,1),INDEX(TypeTime,MATCH(O159,TypeTime,1),1):INDEX(TypeTime,MATCH(O159,TypeTime)+1,1))), "Choose Type")))) -> 0.022055792 | Q159: 0.00063192456 | R159: 0.08535591504 | W159: 2.20248 | AI159: =$I$31*$U149 -> 
B160: 140 | G160: 2.21844 | H160: 33 | I160: =IF(H160=33,0,FORECAST(G160,INDEX($F$21:$F$53,H160,1):INDEX($F$21:$F$53,H160+1,1),INDEX($E$21:$E$53,H160,1):INDEX($E$21:$E$53,H160+1))) -> 0 | J160: 13.9 | K160: 0.76665 | L160: 0.73263 | M160: 0.8162 | N160: 0.80598 | O160: 2.21844 | P160: =IF($C$1="Type I",IF(O159=24,1,FORECAST(O160,INDEX(TypeI,MATCH(O160,TypeTime,1),1):INDEX(TypeI,MATCH(O160,TypeTime,1)+1,1),INDEX(TypeTime,MATCH(O160,TypeTime,1),1):INDEX(TypeTime,MATCH(O160,TypeTime)+1,1))), IF($C$1="Type IA",IF(O159=24,1,FORECAST(O160,INDEX(TypeIA,MATCH(O160,TypeTime,1),1):INDEX(TypeIA,MATCH(O160,TypeTime,1)+1,1),INDEX(TypeTime,MATCH(O160,TypeTime,1),1):INDEX(TypeTime,MATCH(O160,TypeTime)+1,1))), IF($C$1="Type II",IF(O159=24,1,FORECAST(O160,INDEX(TypeII,MATCH(O160,TypeTime,1),1):INDEX(TypeII,MATCH(O160,TypeTime,1)+1,1),INDEX(TypeTime,MATCH(O160,TypeTime,1),1):INDEX(TypeTime,MATCH(O160,TypeTime)+1,1))), IF($C$1="Type III",IF(O159=24,1,FORECAST(O160,INDEX(TypeIII,MATCH(O160,TypeTime,1),1):INDEX(TypeIII,MATCH(O160,TypeTime,1)+1,1),INDEX(TypeTime,MATCH(O160,TypeTime,1),1):INDEX(TypeTime,MATCH(O160,TypeTime)+1,1))), "Choose Type")))) -> 0.022221776 | Q160: 0.00064235808 | R160: 0.08599827312 | W160: 2.21844 | AJ160: =$I$32*$U149 -> 
B161: 141 | G161: 2.2344 | H161: 33 | I161: =IF(H161=33,0,FORECAST(G161,INDEX($F$21:$F$53,H161,1):INDEX($F$21:$F$53,H161+1,1),INDEX($E$21:$E$53,H161,1):INDEX($E$21:$E$53,H161+1))) -> 0 | J161: 14 | K161: 0.77 | L161: 0.736 | M161: 0.82 | N161: 0.811 | O161: 2.2344 | P161: =IF($C$1="Type I",IF(O160=24,1,FORECAST(O161,INDEX(TypeI,MATCH(O161,TypeTime,1),1):INDEX(TypeI,MATCH(O161,TypeTime,1)+1,1),INDEX(TypeTime,MATCH(O161,TypeTime,1),1):INDEX(TypeTime,MATCH(O161,TypeTime)+1,1))), IF($C$1="Type IA",IF(O160=24,1,FORECAST(O161,INDEX(TypeIA,MATCH(O161,TypeTime,1),1):INDEX(TypeIA,MATCH(O161,TypeTime,1)+1,1),INDEX(TypeTime,MATCH(O161,TypeTime,1),1):INDEX(TypeTime,MATCH(O161,TypeTime)+1,1))), IF($C$1="Type II",IF(O160=24,1,FORECAST(O161,INDEX(TypeII,MATCH(O161,TypeTime,1),1):INDEX(TypeII,MATCH(O161,TypeTime,1)+1,1),INDEX(TypeTime,MATCH(O161,TypeTime,1),1):INDEX(TypeTime,MATCH(O161,TypeTime)+1,1))), IF($C$1="Type III",IF(O160=24,1,FORECAST(O161,INDEX(TypeIII,MATCH(O161,TypeTime,1),1):INDEX(TypeIII,MATCH(O161,TypeTime,1)+1,1),INDEX(TypeTime,MATCH(O161,TypeTime,1),1):INDEX(TypeTime,MATCH(O161,TypeTime)+1,1))), "Choose Type")))) -> 0.02238776 | Q161: 0.00064235808 | R161: 0.0866406312 | W161: 2.2344 | AK161: =$I$33*$U149 -> 
B162: 142 | G162: 2.25036 | H162: 33 | I162: =IF(H162=33,0,FORECAST(G162,INDEX($F$21:$F$53,H162,1):INDEX($F$21:$F$53,H162+1,1),INDEX($E$21:$E$53,H162,1):INDEX($E$21:$E$53,H162+1))) -> 0 | J162: 14.1 | K162: 0.77329 | L162: 0.73939 | M162: 0.82367 | N162: 0.81584 | O162: 2.25036 | P162: =IF($C$1="Type I",IF(O161=24,1,FORECAST(O162,INDEX(TypeI,MATCH(O162,TypeTime,1),1):INDEX(TypeI,MATCH(O162,TypeTime,1)+1,1),INDEX(TypeTime,MATCH(O162,TypeTime,1),1):INDEX(TypeTime,MATCH(O162,TypeTime)+1,1))), IF($C$1="Type IA",IF(O161=24,1,FORECAST(O162,INDEX(TypeIA,MATCH(O162,TypeTime,1),1):INDEX(TypeIA,MATCH(O162,TypeTime,1)+1,1),INDEX(TypeTime,MATCH(O162,TypeTime,1),1):INDEX(TypeTime,MATCH(O162,TypeTime)+1,1))), IF($C$1="Type II",IF(O161=24,1,FORECAST(O162,INDEX(TypeII,MATCH(O162,TypeTime,1),1):INDEX(TypeII,MATCH(O162,TypeTime,1)+1,1),INDEX(TypeTime,MATCH(O162,TypeTime,1),1):INDEX(TypeTime,MATCH(O162,TypeTime)+1,1))), IF($C$1="Type III",IF(O161=24,1,FORECAST(O162,INDEX(TypeIII,MATCH(O162,TypeTime,1),1):INDEX(TypeIII,MATCH(O162,TypeTime,1)+1,1),INDEX(TypeTime,MATCH(O162,TypeTime,1),1):INDEX(TypeTime,MATCH(O162,TypeTime)+1,1))), "Choose Type")))) -> 0.022553744 | Q162: 0.00064235808 | R162: 0.08728298928 | W162: 2.25036 | AL162: =$I$34*$U149 -> 
B163: 143 | G163: 2.26632 | H163: 33 | I163: =IF(H163=33,0,FORECAST(G163,INDEX($F$21:$F$53,H163,1):INDEX($F$21:$F$53,H163+1,1),INDEX($E$21:$E$53,H163,1):INDEX($E$21:$E$53,H163+1))) -> 0 | J163: 14.2 | K163: 0.77656 | L163: 0.74277 | M163: 0.82726 | N163: 0.82057 | O163: 2.26632 | P163: =IF($C$1="Type I",IF(O162=24,1,FORECAST(O163,INDEX(TypeI,MATCH(O163,TypeTime,1),1):INDEX(TypeI,MATCH(O163,TypeTime,1)+1,1),INDEX(TypeTime,MATCH(O163,TypeTime,1),1):INDEX(TypeTime,MATCH(O163,TypeTime)+1,1))), IF($C$1="Type IA",IF(O162=24,1,FORECAST(O163,INDEX(TypeIA,MATCH(O163,TypeTime,1),1):INDEX(TypeIA,MATCH(O163,TypeTime,1)+1,1),INDEX(TypeTime,MATCH(O163,TypeTime,1),1):INDEX(TypeTime,MATCH(O163,TypeTime)+1,1))), IF($C$1="Type II",IF(O162=24,1,FORECAST(O163,INDEX(TypeII,MATCH(O163,TypeTime,1),1):INDEX(TypeII,MATCH(O163,TypeTime,1)+1,1),INDEX(TypeTime,MATCH(O163,TypeTime,1),1):INDEX(TypeTime,MATCH(O163,TypeTime)+1,1))), IF($C$1="Type III",IF(O162=24,1,FORECAST(O163,INDEX(TypeIII,MATCH(O163,TypeTime,1),1):INDEX(TypeIII,MATCH(O163,TypeTime,1)+1,1),INDEX(TypeTime,MATCH(O163,TypeTime,1),1):INDEX(TypeTime,MATCH(O163,TypeTime)+1,1))), "Choose Type")))) -> 0.022719728 | Q163: 0.00064235808 | R163: 0.08792534736 | W163: 2.26632 | AM163: =$I$35*$U149 -> 
B164: 144 | G164: 2.28228 | H164: 33 | I164: =IF(H164=33,0,FORECAST(G164,INDEX($F$21:$F$53,H164,1):INDEX($F$21:$F$53,H164+1,1),INDEX($E$21:$E$53,H164,1):INDEX($E$21:$E$53,H164+1))) -> 0 | J164: 14.3 | K164: 0.77981 | L164: 0.74613 | M164: 0.83079 | N164: 0.82518 | O164: 2.28228 | P164: =IF($C$1="Type I",IF(O163=24,1,FORECAST(O164,INDEX(TypeI,MATCH(O164,TypeTime,1),1):INDEX(TypeI,MATCH(O164,TypeTime,1)+1,1),INDEX(TypeTime,MATCH(O164,TypeTime,1),1):INDEX(TypeTime,MATCH(O164,TypeTime)+1,1))), IF($C$1="Type IA",IF(O163=24,1,FORECAST(O164,INDEX(TypeIA,MATCH(O164,TypeTime,1),1):INDEX(TypeIA,MATCH(O164,TypeTime,1)+1,1),INDEX(TypeTime,MATCH(O164,TypeTime,1),1):INDEX(TypeTime,MATCH(O164,TypeTime)+1,1))), IF($C$1="Type II",IF(O163=24,1,FORECAST(O164,INDEX(TypeII,MATCH(O164,TypeTime,1),1):INDEX(TypeII,MATCH(O164,TypeTime,1)+1,1),INDEX(TypeTime,MATCH(O164,TypeTime,1),1):INDEX(TypeTime,MATCH(O164,TypeTime)+1,1))), IF($C$1="Type III",IF(O163=24,1,FORECAST(O164,INDEX(TypeIII,MATCH(O164,TypeTime,1),1):INDEX(TypeIII,MATCH(O164,TypeTime,1)+1,1),INDEX(TypeTime,MATCH(O164,TypeTime,1),1):INDEX(TypeTime,MATCH(O164,TypeTime)+1,1))), "Choose Type")))) -> 0.022885712 | Q164: 0.00064235808 | R164: 0.08856770544 | W164: 2.28228 | AN164: =$I$36*$U149 -> 
B165: 145 | G165: 2.29824 | H165: 33 | I165: =IF(H165=33,0,FORECAST(G165,INDEX($F$21:$F$53,H165,1):INDEX($F$21:$F$53,H165+1,1),INDEX($E$21:$E$53,H165,1):INDEX($E$21:$E$53,H165+1))) -> 0 | J165: 14.4 | K165: 0.78304 | L165: 0.74948 | M165: 0.83424 | N165: 0.82968 | O165: 2.29824 | P165: =IF($C$1="Type I",IF(O164=24,1,FORECAST(O165,INDEX(TypeI,MATCH(O165,TypeTime,1),1):INDEX(TypeI,MATCH(O165,TypeTime,1)+1,1),INDEX(TypeTime,MATCH(O165,TypeTime,1),1):INDEX(TypeTime,MATCH(O165,TypeTime)+1,1))), IF($C$1="Type IA",IF(O164=24,1,FORECAST(O165,INDEX(TypeIA,MATCH(O165,TypeTime,1),1):INDEX(TypeIA,MATCH(O165,TypeTime,1)+1,1),INDEX(TypeTime,MATCH(O165,TypeTime,1),1):INDEX(TypeTime,MATCH(O165,TypeTime)+1,1))), IF($C$1="Type II",IF(O164=24,1,FORECAST(O165,INDEX(TypeII,MATCH(O165,TypeTime,1),1):INDEX(TypeII,MATCH(O165,TypeTime,1)+1,1),INDEX(TypeTime,MATCH(O165,TypeTime,1),1):INDEX(TypeTime,MATCH(O165,TypeTime)+1,1))), IF($C$1="Type III",IF(O164=24,1,FORECAST(O165,INDEX(TypeIII,MATCH(O165,TypeTime,1),1):INDEX(TypeIII,MATCH(O165,TypeTime,1)+1,1),INDEX(TypeTime,MATCH(O165,TypeTime,1),1):INDEX(TypeTime,MATCH(O165,TypeTime)+1,1))), "Choose Type")))) -> 0.023051696 | Q165: 0.00064235808 | R165: 0.08921006352 | W165: 2.29824 | AO165: =$I$37*$U149 -> 
B166: 146 | G166: 2.3142 | H166: 33 | I166: =IF(H166=33,0,FORECAST(G166,INDEX($F$21:$F$53,H166,1):INDEX($F$21:$F$53,H166+1,1),INDEX($E$21:$E$53,H166,1):INDEX($E$21:$E$53,H166+1))) -> 0 | J166: 14.5 | K166: 0.78625 | L166: 0.75281 | M166: 0.83763 | N166: 0.83406 | O166: 2.3142 | P166: =IF($C$1="Type I",IF(O165=24,1,FORECAST(O166,INDEX(TypeI,MATCH(O166,TypeTime,1),1):INDEX(TypeI,MATCH(O166,TypeTime,1)+1,1),INDEX(TypeTime,MATCH(O166,TypeTime,1),1):INDEX(TypeTime,MATCH(O166,TypeTime)+1,1))), IF($C$1="Type IA",IF(O165=24,1,FORECAST(O166,INDEX(TypeIA,MATCH(O166,TypeTime,1),1):INDEX(TypeIA,MATCH(O166,TypeTime,1)+1,1),INDEX(TypeTime,MATCH(O166,TypeTime,1),1):INDEX(TypeTime,MATCH(O166,TypeTime)+1,1))), IF($C$1="Type II",IF(O165=24,1,FORECAST(O166,INDEX(TypeII,MATCH(O166,TypeTime,1),1):INDEX(TypeII,MATCH(O166,TypeTime,1)+1,1),INDEX(TypeTime,MATCH(O166,TypeTime,1),1):INDEX(TypeTime,MATCH(O166,TypeTime)+1,1))), IF($C$1="Type III",IF(O165=24,1,FORECAST(O166,INDEX(TypeIII,MATCH(O166,TypeTime,1),1):INDEX(TypeIII,MATCH(O166,TypeTime,1)+1,1),INDEX(TypeTime,MATCH(O166,TypeTime,1),1):INDEX(TypeTime,MATCH(O166,TypeTime)+1,1))), "Choose Type")))) -> 0.0232191 | Q166: 0.00064785348 | R166: 0.089857917 | W166: 2.3142 | AP166: =$I$38*$U149 -> 
B167: 147 | G167: 2.33016 | H167: 33 | I167: =IF(H167=33,0,FORECAST(G167,INDEX($F$21:$F$53,H167,1):INDEX($F$21:$F$53,H167+1,1),INDEX($E$21:$E$53,H167,1):INDEX($E$21:$E$53,H167+1))) -> 0 | J167: 14.6 | K167: 0.78944 | L167: 0.75613 | M167: 0.84094 | N167: 0.83833 | O167: 2.33016 | P167: =IF($C$1="Type I",IF(O166=24,1,FORECAST(O167,INDEX(TypeI,MATCH(O167,TypeTime,1),1):INDEX(TypeI,MATCH(O167,TypeTime,1)+1,1),INDEX(TypeTime,MATCH(O167,TypeTime,1),1):INDEX(TypeTime,MATCH(O167,TypeTime)+1,1))), IF($C$1="Type IA",IF(O166=24,1,FORECAST(O167,INDEX(TypeIA,MATCH(O167,TypeTime,1),1):INDEX(TypeIA,MATCH(O167,TypeTime,1)+1,1),INDEX(TypeTime,MATCH(O167,TypeTime,1),1):INDEX(TypeTime,MATCH(O167,TypeTime)+1,1))), IF($C$1="Type II",IF(O166=24,1,FORECAST(O167,INDEX(TypeII,MATCH(O167,TypeTime,1),1):INDEX(TypeII,MATCH(O167,TypeTime,1)+1,1),INDEX(TypeTime,MATCH(O167,TypeTime,1),1):INDEX(TypeTime,MATCH(O167,TypeTime)+1,1))), IF($C$1="Type III",IF(O166=24,1,FORECAST(O167,INDEX(TypeIII,MATCH(O167,TypeTime,1),1):INDEX(TypeIII,MATCH(O167,TypeTime,1)+1,1),INDEX(TypeTime,MATCH(O167,TypeTime,1),1):INDEX(TypeTime,MATCH(O167,TypeTime)+1,1))), "Choose Type")))) -> 0.02338668 | Q167: 0.0006485346 | R167: 0.0905064516 | W167: 2.33016 | AQ167: =$I$39*$U149 -> 
B168: 148 | G168: 2.34612 | H168: 33 | I168: =IF(H168=33,0,FORECAST(G168,INDEX($F$21:$F$53,H168,1):INDEX($F$21:$F$53,H168+1,1),INDEX($E$21:$E$53,H168,1):INDEX($E$21:$E$53,H168+1))) -> 0 | J168: 14.7 | K168: 0.79261 | L168: 0.75943 | M168: 0.84419 | N168: 0.84248 | O168: 2.34612 | P168: =IF($C$1="Type I",IF(O167=24,1,FORECAST(O168,INDEX(TypeI,MATCH(O168,TypeTime,1),1):INDEX(TypeI,MATCH(O168,TypeTime,1)+1,1),INDEX(TypeTime,MATCH(O168,TypeTime,1),1):INDEX(TypeTime,MATCH(O168,TypeTime)+1,1))), IF($C$1="Type IA",IF(O167=24,1,FORECAST(O168,INDEX(TypeIA,MATCH(O168,TypeTime,1),1):INDEX(TypeIA,MATCH(O168,TypeTime,1)+1,1),INDEX(TypeTime,MATCH(O168,TypeTime,1),1):INDEX(TypeTime,MATCH(O168,TypeTime)+1,1))), IF($C$1="Type II",IF(O167=24,1,FORECAST(O168,INDEX(TypeII,MATCH(O168,TypeTime,1),1):INDEX(TypeII,MATCH(O168,TypeTime,1)+1,1),INDEX(TypeTime,MATCH(O168,TypeTime,1),1):INDEX(TypeTime,MATCH(O168,TypeTime)+1,1))), IF($C$1="Type III",IF(O167=24,1,FORECAST(O168,INDEX(TypeIII,MATCH(O168,TypeTime,1),1):INDEX(TypeIII,MATCH(O168,TypeTime,1)+1,1),INDEX(TypeTime,MATCH(O168,TypeTime,1),1):INDEX(TypeTime,MATCH(O168,TypeTime)+1,1))), "Choose Type")))) -> 0.02355426 | Q168: 0.0006485346 | R168: 0.0911549862 | W168: 2.34612 | AR168: =$I$40*$U149 -> 
B169: 149 | G169: 2.36208 | H169: 33 | I169: =IF(H169=33,0,FORECAST(G169,INDEX($F$21:$F$53,H169,1):INDEX($F$21:$F$53,H169+1,1),INDEX($E$21:$E$53,H169,1):INDEX($E$21:$E$53,H169+1))) -> 0 | J169: 14.8 | K169: 0.79576 | L169: 0.76271 | M169: 0.84736 | N169: 0.84652 | O169: 2.36208 | P169: =IF($C$1="Type I",IF(O168=24,1,FORECAST(O169,INDEX(TypeI,MATCH(O169,TypeTime,1),1):INDEX(TypeI,MATCH(O169,TypeTime,1)+1,1),INDEX(TypeTime,MATCH(O169,TypeTime,1),1):INDEX(TypeTime,MATCH(O169,TypeTime)+1,1))), IF($C$1="Type IA",IF(O168=24,1,FORECAST(O169,INDEX(TypeIA,MATCH(O169,TypeTime,1),1):INDEX(TypeIA,MATCH(O169,TypeTime,1)+1,1),INDEX(TypeTime,MATCH(O169,TypeTime,1),1):INDEX(TypeTime,MATCH(O169,TypeTime)+1,1))), IF($C$1="Type II",IF(O168=24,1,FORECAST(O169,INDEX(TypeII,MATCH(O169,TypeTime,1),1):INDEX(TypeII,MATCH(O169,TypeTime,1)+1,1),INDEX(TypeTime,MATCH(O169,TypeTime,1),1):INDEX(TypeTime,MATCH(O169,TypeTime)+1,1))), IF($C$1="Type III",IF(O168=24,1,FORECAST(O169,INDEX(TypeIII,MATCH(O169,TypeTime,1),1):INDEX(TypeIII,MATCH(O169,TypeTime,1)+1,1),INDEX(TypeTime,MATCH(O169,TypeTime,1),1):INDEX(TypeTime,MATCH(O169,TypeTime)+1,1))), "Choose Type")))) -> 0.02372184 | Q169: 0.0006485346 | R169: 0.0918035208 | W169: 2.36208 | AS169: =$I$41*$U149 -> 
B170: 150 | G170: 2.37804 | H170: 33 | I170: =IF(H170=33,0,FORECAST(G170,INDEX($F$21:$F$53,H170,1):INDEX($F$21:$F$53,H170+1,1),INDEX($E$21:$E$53,H170,1):INDEX($E$21:$E$53,H170+1))) -> 0 | J170: 14.9 | K170: 0.79889 | L170: 0.76598 | M170: 0.85047 | N170: 0.85044 | O170: 2.37804 | P170: =IF($C$1="Type I",IF(O169=24,1,FORECAST(O170,INDEX(TypeI,MATCH(O170,TypeTime,1),1):INDEX(TypeI,MATCH(O170,TypeTime,1)+1,1),INDEX(TypeTime,MATCH(O170,TypeTime,1),1):INDEX(TypeTime,MATCH(O170,TypeTime)+1,1))), IF($C$1="Type IA",IF(O169=24,1,FORECAST(O170,INDEX(TypeIA,MATCH(O170,TypeTime,1),1):INDEX(TypeIA,MATCH(O170,TypeTime,1)+1,1),INDEX(TypeTime,MATCH(O170,TypeTime,1),1):INDEX(TypeTime,MATCH(O170,TypeTime)+1,1))), IF($C$1="Type II",IF(O169=24,1,FORECAST(O170,INDEX(TypeII,MATCH(O170,TypeTime,1),1):INDEX(TypeII,MATCH(O170,TypeTime,1)+1,1),INDEX(TypeTime,MATCH(O170,TypeTime,1),1):INDEX(TypeTime,MATCH(O170,TypeTime)+1,1))), IF($C$1="Type III",IF(O169=24,1,FORECAST(O170,INDEX(TypeIII,MATCH(O170,TypeTime,1),1):INDEX(TypeIII,MATCH(O170,TypeTime,1)+1,1),INDEX(TypeTime,MATCH(O170,TypeTime,1),1):INDEX(TypeTime,MATCH(O170,TypeTime)+1,1))), "Choose Type")))) -> 0.02388942 | Q170: 0.0006485346 | R170: 0.0924520554 | W170: 2.37804 | AT170: =$I$42*$U149 -> 
B171: 151 | G171: 2.394 | H171: 33 | I171: =IF(H171=33,0,FORECAST(G171,INDEX($F$21:$F$53,H171,1):INDEX($F$21:$F$53,H171+1,1),INDEX($E$21:$E$53,H171,1):INDEX($E$21:$E$53,H171+1))) -> 0 | J171: 15 | K171: 0.802 | L171: 0.76924 | M171: 0.8535 | N171: 0.85425 | O171: 2.394 | P171: =IF($C$1="Type I",IF(O170=24,1,FORECAST(O171,INDEX(TypeI,MATCH(O171,TypeTime,1),1):INDEX(TypeI,MATCH(O171,TypeTime,1)+1,1),INDEX(TypeTime,MATCH(O171,TypeTime,1),1):INDEX(TypeTime,MATCH(O171,TypeTime)+1,1))), IF($C$1="Type IA",IF(O170=24,1,FORECAST(O171,INDEX(TypeIA,MATCH(O171,TypeTime,1),1):INDEX(TypeIA,MATCH(O171,TypeTime,1)+1,1),INDEX(TypeTime,MATCH(O171,TypeTime,1),1):INDEX(TypeTime,MATCH(O171,TypeTime)+1,1))), IF($C$1="Type II",IF(O170=24,1,FORECAST(O171,INDEX(TypeII,MATCH(O171,TypeTime,1),1):INDEX(TypeII,MATCH(O171,TypeTime,1)+1,1),INDEX(TypeTime,MATCH(O171,TypeTime,1),1):INDEX(TypeTime,MATCH(O171,TypeTime)+1,1))), IF($C$1="Type III",IF(O170=24,1,FORECAST(O171,INDEX(TypeIII,MATCH(O171,TypeTime,1),1):INDEX(TypeIII,MATCH(O171,TypeTime,1)+1,1),INDEX(TypeTime,MATCH(O171,TypeTime,1),1):INDEX(TypeTime,MATCH(O171,TypeTime)+1,1))), "Choose Type")))) -> 0.024057 | Q171: 0.0006485346 | R171: 0.09310059 | W171: 2.394 | AU171: =$I$43*$U149 -> 
B172: 152 | G172: 2.40996 | H172: 33 | I172: =IF(H172=33,0,FORECAST(G172,INDEX($F$21:$F$53,H172,1):INDEX($F$21:$F$53,H172+1,1),INDEX($E$21:$E$53,H172,1):INDEX($E$21:$E$53,H172+1))) -> 0 | J172: 15.1 | K172: 0.80509 | L172: 0.77248 | M172: 0.85647 | N172: 0.85794 | O172: 2.40996 | P172: =IF($C$1="Type I",IF(O171=24,1,FORECAST(O172,INDEX(TypeI,MATCH(O172,TypeTime,1),1):INDEX(TypeI,MATCH(O172,TypeTime,1)+1,1),INDEX(TypeTime,MATCH(O172,TypeTime,1),1):INDEX(TypeTime,MATCH(O172,TypeTime)+1,1))), IF($C$1="Type IA",IF(O171=24,1,FORECAST(O172,INDEX(TypeIA,MATCH(O172,TypeTime,1),1):INDEX(TypeIA,MATCH(O172,TypeTime,1)+1,1),INDEX(TypeTime,MATCH(O172,TypeTime,1),1):INDEX(TypeTime,MATCH(O172,TypeTime)+1,1))), IF($C$1="Type II",IF(O171=24,1,FORECAST(O172,INDEX(TypeII,MATCH(O172,TypeTime,1),1):INDEX(TypeII,MATCH(O172,TypeTime,1)+1,1),INDEX(TypeTime,MATCH(O172,TypeTime,1),1):INDEX(TypeTime,MATCH(O172,TypeTime)+1,1))), IF($C$1="Type III",IF(O171=24,1,FORECAST(O172,INDEX(TypeIII,MATCH(O172,TypeTime,1),1):INDEX(TypeIII,MATCH(O172,TypeTime,1)+1,1),INDEX(TypeTime,MATCH(O172,TypeTime,1),1):INDEX(TypeTime,MATCH(O172,TypeTime)+1,1))), "Choose Type")))) -> 0.024226572 | Q172: 0.00065624364 | R172: 0.09375683364 | W172: 2.40996 | AV172: =$I$44*$U149 -> 
B173: 153 | G173: 2.42592 | H173: 33 | I173: =IF(H173=33,0,FORECAST(G173,INDEX($F$21:$F$53,H173,1):INDEX($F$21:$F$53,H173+1,1),INDEX($E$21:$E$53,H173,1):INDEX($E$21:$E$53,H173+1))) -> 0 | J173: 15.2 | K173: 0.80816 | L173: 0.77571 | M173: 0.85936 | N173: 0.86152 | O173: 2.42592 | P173: =IF($C$1="Type I",IF(O172=24,1,FORECAST(O173,INDEX(TypeI,MATCH(O173,TypeTime,1),1):INDEX(TypeI,MATCH(O173,TypeTime,1)+1,1),INDEX(TypeTime,MATCH(O173,TypeTime,1),1):INDEX(TypeTime,MATCH(O173,TypeTime)+1,1))), IF($C$1="Type IA",IF(O172=24,1,FORECAST(O173,INDEX(TypeIA,MATCH(O173,TypeTime,1),1):INDEX(TypeIA,MATCH(O173,TypeTime,1)+1,1),INDEX(TypeTime,MATCH(O173,TypeTime,1),1):INDEX(TypeTime,MATCH(O173,TypeTime)+1,1))), IF($C$1="Type II",IF(O172=24,1,FORECAST(O173,INDEX(TypeII,MATCH(O173,TypeTime,1),1):INDEX(TypeII,MATCH(O173,TypeTime,1)+1,1),INDEX(TypeTime,MATCH(O173,TypeTime,1),1):INDEX(TypeTime,MATCH(O173,TypeTime)+1,1))), IF($C$1="Type III",IF(O172=24,1,FORECAST(O173,INDEX(TypeIII,MATCH(O173,TypeTime,1),1):INDEX(TypeIII,MATCH(O173,TypeTime,1)+1,1),INDEX(TypeTime,MATCH(O173,TypeTime,1),1):INDEX(TypeTime,MATCH(O173,TypeTime)+1,1))), "Choose Type")))) -> 0.024397344 | Q173: 0.00066088764 | R173: 0.09441772128 | W173: 2.42592 | AW173: =$I$45*$U149 -> 
B174: 154 | G174: 2.44188 | H174: 33 | I174: =IF(H174=33,0,FORECAST(G174,INDEX($F$21:$F$53,H174,1):INDEX($F$21:$F$53,H174+1,1),INDEX($E$21:$E$53,H174,1):INDEX($E$21:$E$53,H174+1))) -> 0 | J174: 15.3 | K174: 0.81121 | L174: 0.77892 | M174: 0.86219 | N174: 0.86498 | O174: 2.44188 | P174: =IF($C$1="Type I",IF(O173=24,1,FORECAST(O174,INDEX(TypeI,MATCH(O174,TypeTime,1),1):INDEX(TypeI,MATCH(O174,TypeTime,1)+1,1),INDEX(TypeTime,MATCH(O174,TypeTime,1),1):INDEX(TypeTime,MATCH(O174,TypeTime)+1,1))), IF($C$1="Type IA",IF(O173=24,1,FORECAST(O174,INDEX(TypeIA,MATCH(O174,TypeTime,1),1):INDEX(TypeIA,MATCH(O174,TypeTime,1)+1,1),INDEX(TypeTime,MATCH(O174,TypeTime,1),1):INDEX(TypeTime,MATCH(O174,TypeTime)+1,1))), IF($C$1="Type II",IF(O173=24,1,FORECAST(O174,INDEX(TypeII,MATCH(O174,TypeTime,1),1):INDEX(TypeII,MATCH(O174,TypeTime,1)+1,1),INDEX(TypeTime,MATCH(O174,TypeTime,1),1):INDEX(TypeTime,MATCH(O174,TypeTime)+1,1))), IF($C$1="Type III",IF(O173=24,1,FORECAST(O174,INDEX(TypeIII,MATCH(O174,TypeTime,1),1):INDEX(TypeIII,MATCH(O174,TypeTime,1)+1,1),INDEX(TypeTime,MATCH(O174,TypeTime,1),1):INDEX(TypeTime,MATCH(O174,TypeTime)+1,1))), "Choose Type")))) -> 0.024568116 | Q174: 0.00066088764 | R174: 0.09507860892 | W174: 2.44188 | AX174: =$I$46*$U149 -> 
B175: 155 | G175: 2.45784 | H175: 33 | I175: =IF(H175=33,0,FORECAST(G175,INDEX($F$21:$F$53,H175,1):INDEX($F$21:$F$53,H175+1,1),INDEX($E$21:$E$53,H175,1):INDEX($E$21:$E$53,H175+1))) -> 0 | J175: 15.4 | K175: 0.81424 | L175: 0.78211 | M175: 0.86494 | N175: 0.86833 | O175: 2.45784 | P175: =IF($C$1="Type I",IF(O174=24,1,FORECAST(O175,INDEX(TypeI,MATCH(O175,TypeTime,1),1):INDEX(TypeI,MATCH(O175,TypeTime,1)+1,1),INDEX(TypeTime,MATCH(O175,TypeTime,1),1):INDEX(TypeTime,MATCH(O175,TypeTime)+1,1))), IF($C$1="Type IA",IF(O174=24,1,FORECAST(O175,INDEX(TypeIA,MATCH(O175,TypeTime,1),1):INDEX(TypeIA,MATCH(O175,TypeTime,1)+1,1),INDEX(TypeTime,MATCH(O175,TypeTime,1),1):INDEX(TypeTime,MATCH(O175,TypeTime)+1,1))), IF($C$1="Type II",IF(O174=24,1,FORECAST(O175,INDEX(TypeII,MATCH(O175,TypeTime,1),1):INDEX(TypeII,MATCH(O175,TypeTime,1)+1,1),INDEX(TypeTime,MATCH(O175,TypeTime,1),1):INDEX(TypeTime,MATCH(O175,TypeTime)+1,1))), IF($C$1="Type III",IF(O174=24,1,FORECAST(O175,INDEX(TypeIII,MATCH(O175,TypeTime,1),1):INDEX(TypeIII,MATCH(O175,TypeTime,1)+1,1),INDEX(TypeTime,MATCH(O175,TypeTime,1),1):INDEX(TypeTime,MATCH(O175,TypeTime)+1,1))), "Choose Type")))) -> 0.024738888 | Q175: 0.00066088764 | R175: 0.09573949656 | W175: 2.45784
B176: 156 | G176: 2.4738 | H176: 33 | I176: =IF(H176=33,0,FORECAST(G176,INDEX($F$21:$F$53,H176,1):INDEX($F$21:$F$53,H176+1,1),INDEX($E$21:$E$53,H176,1):INDEX($E$21:$E$53,H176+1))) -> 0 | J176: 15.5 | K176: 0.81725 | L176: 0.78529 | M176: 0.86763 | N176: 0.87156 | O176: 2.4738 | P176: =IF($C$1="Type I",IF(O175=24,1,FORECAST(O176,INDEX(TypeI,MATCH(O176,TypeTime,1),1):INDEX(TypeI,MATCH(O176,TypeTime,1)+1,1),INDEX(TypeTime,MATCH(O176,TypeTime,1),1):INDEX(TypeTime,MATCH(O176,TypeTime)+1,1))), IF($C$1="Type IA",IF(O175=24,1,FORECAST(O176,INDEX(TypeIA,MATCH(O176,TypeTime,1),1):INDEX(TypeIA,MATCH(O176,TypeTime,1)+1,1),INDEX(TypeTime,MATCH(O176,TypeTime,1),1):INDEX(TypeTime,MATCH(O176,TypeTime)+1,1))), IF($C$1="Type II",IF(O175=24,1,FORECAST(O176,INDEX(TypeII,MATCH(O176,TypeTime,1),1):INDEX(TypeII,MATCH(O176,TypeTime,1)+1,1),INDEX(TypeTime,MATCH(O176,TypeTime,1),1):INDEX(TypeTime,MATCH(O176,TypeTime)+1,1))), IF($C$1="Type III",IF(O175=24,1,FORECAST(O176,INDEX(TypeIII,MATCH(O176,TypeTime,1),1):INDEX(TypeIII,MATCH(O176,TypeTime,1)+1,1),INDEX(TypeTime,MATCH(O176,TypeTime,1),1):INDEX(TypeTime,MATCH(O176,TypeTime)+1,1))), "Choose Type")))) -> 0.02490966 | Q176: 0.00066088764 | R176: 0.0964003842 | W176: 2.4738
B177: 157 | G177: 2.48976 | H177: 33 | I177: =IF(H177=33,0,FORECAST(G177,INDEX($F$21:$F$53,H177,1):INDEX($F$21:$F$53,H177+1,1),INDEX($E$21:$E$53,H177,1):INDEX($E$21:$E$53,H177+1))) -> 0 | J177: 15.6 | K177: 0.82024 | L177: 0.78845 | M177: 0.87024 | N177: 0.87468 | O177: 2.48976 | P177: =IF($C$1="Type I",IF(O176=24,1,FORECAST(O177,INDEX(TypeI,MATCH(O177,TypeTime,1),1):INDEX(TypeI,MATCH(O177,TypeTime,1)+1,1),INDEX(TypeTime,MATCH(O177,TypeTime,1),1):INDEX(TypeTime,MATCH(O177,TypeTime)+1,1))), IF($C$1="Type IA",IF(O176=24,1,FORECAST(O177,INDEX(TypeIA,MATCH(O177,TypeTime,1),1):INDEX(TypeIA,MATCH(O177,TypeTime,1)+1,1),INDEX(TypeTime,MATCH(O177,TypeTime,1),1):INDEX(TypeTime,MATCH(O177,TypeTime)+1,1))), IF($C$1="Type II",IF(O176=24,1,FORECAST(O177,INDEX(TypeII,MATCH(O177,TypeTime,1),1):INDEX(TypeII,MATCH(O177,TypeTime,1)+1,1),INDEX(TypeTime,MATCH(O177,TypeTime,1),1):INDEX(TypeTime,MATCH(O177,TypeTime)+1,1))), IF($C$1="Type III",IF(O176=24,1,FORECAST(O177,INDEX(TypeIII,MATCH(O177,TypeTime,1),1):INDEX(TypeIII,MATCH(O177,TypeTime,1)+1,1),INDEX(TypeTime,MATCH(O177,TypeTime,1),1):INDEX(TypeTime,MATCH(O177,TypeTime)+1,1))), "Choose Type")))) -> 0.025080432 | Q177: 0.00066088764 | R177: 0.09706127184 | W177: 2.48976
B178: 158 | G178: 2.50572 | H178: 33 | I178: =IF(H178=33,0,FORECAST(G178,INDEX($F$21:$F$53,H178,1):INDEX($F$21:$F$53,H178+1,1),INDEX($E$21:$E$53,H178,1):INDEX($E$21:$E$53,H178+1))) -> 0 | J178: 15.7 | K178: 0.82321 | L178: 0.7916 | M178: 0.87279 | N178: 0.87768 | O178: 2.50572 | P178: =IF($C$1="Type I",IF(O177=24,1,FORECAST(O178,INDEX(TypeI,MATCH(O178,TypeTime,1),1):INDEX(TypeI,MATCH(O178,TypeTime,1)+1,1),INDEX(TypeTime,MATCH(O178,TypeTime,1),1):INDEX(TypeTime,MATCH(O178,TypeTime)+1,1))), IF($C$1="Type IA",IF(O177=24,1,FORECAST(O178,INDEX(TypeIA,MATCH(O178,TypeTime,1),1):INDEX(TypeIA,MATCH(O178,TypeTime,1)+1,1),INDEX(TypeTime,MATCH(O178,TypeTime,1),1):INDEX(TypeTime,MATCH(O178,TypeTime)+1,1))), IF($C$1="Type II",IF(O177=24,1,FORECAST(O178,INDEX(TypeII,MATCH(O178,TypeTime,1),1):INDEX(TypeII,MATCH(O178,TypeTime,1)+1,1),INDEX(TypeTime,MATCH(O178,TypeTime,1),1):INDEX(TypeTime,MATCH(O178,TypeTime)+1,1))), IF($C$1="Type III",IF(O177=24,1,FORECAST(O178,INDEX(TypeIII,MATCH(O178,TypeTime,1),1):INDEX(TypeIII,MATCH(O178,TypeTime,1)+1,1),INDEX(TypeTime,MATCH(O178,TypeTime,1),1):INDEX(TypeTime,MATCH(O178,TypeTime)+1,1))), "Choose Type")))) -> 0.025251776 | Q178: 0.00066310128 | R178: 0.09772437312 | W178: 2.50572
B179: 159 | G179: 2.52168 | H179: 33 | I179: =IF(H179=33,0,FORECAST(G179,INDEX($F$21:$F$53,H179,1):INDEX($F$21:$F$53,H179+1,1),INDEX($E$21:$E$53,H179,1):INDEX($E$21:$E$53,H179+1))) -> 0 | J179: 15.8 | K179: 0.82616 | L179: 0.79474 | M179: 0.87526 | N179: 0.88057 | O179: 2.52168 | P179: =IF($C$1="Type I",IF(O178=24,1,FORECAST(O179,INDEX(TypeI,MATCH(O179,TypeTime,1),1):INDEX(TypeI,MATCH(O179,TypeTime,1)+1,1),INDEX(TypeTime,MATCH(O179,TypeTime,1),1):INDEX(TypeTime,MATCH(O179,TypeTime)+1,1))), IF($C$1="Type IA",IF(O178=24,1,FORECAST(O179,INDEX(TypeIA,MATCH(O179,TypeTime,1),1):INDEX(TypeIA,MATCH(O179,TypeTime,1)+1,1),INDEX(TypeTime,MATCH(O179,TypeTime,1),1):INDEX(TypeTime,MATCH(O179,TypeTime)+1,1))), IF($C$1="Type II",IF(O178=24,1,FORECAST(O179,INDEX(TypeII,MATCH(O179,TypeTime,1),1):INDEX(TypeII,MATCH(O179,TypeTime,1)+1,1),INDEX(TypeTime,MATCH(O179,TypeTime,1),1):INDEX(TypeTime,MATCH(O179,TypeTime)+1,1))), IF($C$1="Type III",IF(O178=24,1,FORECAST(O179,INDEX(TypeIII,MATCH(O179,TypeTime,1),1):INDEX(TypeIII,MATCH(O179,TypeTime,1)+1,1),INDEX(TypeTime,MATCH(O179,TypeTime,1),1):INDEX(TypeTime,MATCH(O179,TypeTime)+1,1))), "Choose Type")))) -> 0.025424144 | Q179: 0.00066706416 | R179: 0.09839143728 | W179: 2.52168
B180: 160 | G180: 2.53764 | H180: 33 | I180: =IF(H180=33,0,FORECAST(G180,INDEX($F$21:$F$53,H180,1):INDEX($F$21:$F$53,H180+1,1),INDEX($E$21:$E$53,H180,1):INDEX($E$21:$E$53,H180+1))) -> 0 | J180: 15.9 | K180: 0.82909 | L180: 0.79786 | M180: 0.87767 | N180: 0.88334 | O180: 2.53764 | P180: =IF($C$1="Type I",IF(O179=24,1,FORECAST(O180,INDEX(TypeI,MATCH(O180,TypeTime,1),1):INDEX(TypeI,MATCH(O180,TypeTime,1)+1,1),INDEX(TypeTime,MATCH(O180,TypeTime,1),1):INDEX(TypeTime,MATCH(O180,TypeTime)+1,1))), IF($C$1="Type IA",IF(O179=24,1,FORECAST(O180,INDEX(TypeIA,MATCH(O180,TypeTime,1),1):INDEX(TypeIA,MATCH(O180,TypeTime,1)+1,1),INDEX(TypeTime,MATCH(O180,TypeTime,1),1):INDEX(TypeTime,MATCH(O180,TypeTime)+1,1))), IF($C$1="Type II",IF(O179=24,1,FORECAST(O180,INDEX(TypeII,MATCH(O180,TypeTime,1),1):INDEX(TypeII,MATCH(O180,TypeTime,1)+1,1),INDEX(TypeTime,MATCH(O180,TypeTime,1),1):INDEX(TypeTime,MATCH(O180,TypeTime)+1,1))), IF($C$1="Type III",IF(O179=24,1,FORECAST(O180,INDEX(TypeIII,MATCH(O180,TypeTime,1),1):INDEX(TypeIII,MATCH(O180,TypeTime,1)+1,1),INDEX(TypeTime,MATCH(O180,TypeTime,1),1):INDEX(TypeTime,MATCH(O180,TypeTime)+1,1))), "Choose Type")))) -> 0.025596512 | Q180: 0.00066706416 | R180: 0.09905850144 | W180: 2.53764
B181: 161 | G181: 2.5536 | H181: 33 | I181: =IF(H181=33,0,FORECAST(G181,INDEX($F$21:$F$53,H181,1):INDEX($F$21:$F$53,H181+1,1),INDEX($E$21:$E$53,H181,1):INDEX($E$21:$E$53,H181+1))) -> 0 | J181: 16 | K181: 0.832 | L181: 0.80096 | M181: 0.88 | N181: 0.886 | O181: 2.5536 | P181: =IF($C$1="Type I",IF(O180=24,1,FORECAST(O181,INDEX(TypeI,MATCH(O181,TypeTime,1),1):INDEX(TypeI,MATCH(O181,TypeTime,1)+1,1),INDEX(TypeTime,MATCH(O181,TypeTime,1),1):INDEX(TypeTime,MATCH(O181,TypeTime)+1,1))), IF($C$1="Type IA",IF(O180=24,1,FORECAST(O181,INDEX(TypeIA,MATCH(O181,TypeTime,1),1):INDEX(TypeIA,MATCH(O181,TypeTime,1)+1,1),INDEX(TypeTime,MATCH(O181,TypeTime,1),1):INDEX(TypeTime,MATCH(O181,TypeTime)+1,1))), IF($C$1="Type II",IF(O180=24,1,FORECAST(O181,INDEX(TypeII,MATCH(O181,TypeTime,1),1):INDEX(TypeII,MATCH(O181,TypeTime,1)+1,1),INDEX(TypeTime,MATCH(O181,TypeTime,1),1):INDEX(TypeTime,MATCH(O181,TypeTime)+1,1))), IF($C$1="Type III",IF(O180=24,1,FORECAST(O181,INDEX(TypeIII,MATCH(O181,TypeTime,1),1):INDEX(TypeIII,MATCH(O181,TypeTime,1)+1,1),INDEX(TypeTime,MATCH(O181,TypeTime,1),1):INDEX(TypeTime,MATCH(O181,TypeTime)+1,1))), "Choose Type")))) -> 0.02576888 | Q181: 0.00066706416 | R181: 0.0997255656 | W181: 2.5536
B182: 162 | G182: 2.56956 | H182: 33 | I182: =IF(H182=33,0,FORECAST(G182,INDEX($F$21:$F$53,H182,1):INDEX($F$21:$F$53,H182+1,1),INDEX($E$21:$E$53,H182,1):INDEX($E$21:$E$53,H182+1))) -> 0 | J182: 16.1 | K182: 0.83489 | L182: 0.80405 | M182: 0.88229 | N182: 0.88858 | O182: 2.56956 | P182: =IF($C$1="Type I",IF(O181=24,1,FORECAST(O182,INDEX(TypeI,MATCH(O182,TypeTime,1),1):INDEX(TypeI,MATCH(O182,TypeTime,1)+1,1),INDEX(TypeTime,MATCH(O182,TypeTime,1),1):INDEX(TypeTime,MATCH(O182,TypeTime)+1,1))), IF($C$1="Type IA",IF(O181=24,1,FORECAST(O182,INDEX(TypeIA,MATCH(O182,TypeTime,1),1):INDEX(TypeIA,MATCH(O182,TypeTime,1)+1,1),INDEX(TypeTime,MATCH(O182,TypeTime,1),1):INDEX(TypeTime,MATCH(O182,TypeTime)+1,1))), IF($C$1="Type II",IF(O181=24,1,FORECAST(O182,INDEX(TypeII,MATCH(O182,TypeTime,1),1):INDEX(TypeII,MATCH(O182,TypeTime,1)+1,1),INDEX(TypeTime,MATCH(O182,TypeTime,1),1):INDEX(TypeTime,MATCH(O182,TypeTime)+1,1))), IF($C$1="Type III",IF(O181=24,1,FORECAST(O182,INDEX(TypeIII,MATCH(O182,TypeTime,1),1):INDEX(TypeIII,MATCH(O182,TypeTime,1)+1,1),INDEX(TypeTime,MATCH(O182,TypeTime,1),1):INDEX(TypeTime,MATCH(O182,TypeTime)+1,1))), "Choose Type")))) -> 0.025941248 | Q182: 0.00066706416 | R182: 0.1003926298 | W182: 2.56956
B183: 163 | G183: 2.58552 | H183: 33 | I183: =IF(H183=33,0,FORECAST(G183,INDEX($F$21:$F$53,H183,1):INDEX($F$21:$F$53,H183+1,1),INDEX($E$21:$E$53,H183,1):INDEX($E$21:$E$53,H183+1))) -> 0 | J183: 16.2 | K183: 0.83776 | L183: 0.80712 | M183: 0.88455 | N183: 0.8911 | O183: 2.58552 | P183: =IF($C$1="Type I",IF(O182=24,1,FORECAST(O183,INDEX(TypeI,MATCH(O183,TypeTime,1),1):INDEX(TypeI,MATCH(O183,TypeTime,1)+1,1),INDEX(TypeTime,MATCH(O183,TypeTime,1),1):INDEX(TypeTime,MATCH(O183,TypeTime)+1,1))), IF($C$1="Type IA",IF(O182=24,1,FORECAST(O183,INDEX(TypeIA,MATCH(O183,TypeTime,1),1):INDEX(TypeIA,MATCH(O183,TypeTime,1)+1,1),INDEX(TypeTime,MATCH(O183,TypeTime,1),1):INDEX(TypeTime,MATCH(O183,TypeTime)+1,1))), IF($C$1="Type II",IF(O182=24,1,FORECAST(O183,INDEX(TypeII,MATCH(O183,TypeTime,1),1):INDEX(TypeII,MATCH(O183,TypeTime,1)+1,1),INDEX(TypeTime,MATCH(O183,TypeTime,1),1):INDEX(TypeTime,MATCH(O183,TypeTime)+1,1))), IF($C$1="Type III",IF(O182=24,1,FORECAST(O183,INDEX(TypeIII,MATCH(O183,TypeTime,1),1):INDEX(TypeIII,MATCH(O183,TypeTime,1)+1,1),INDEX(TypeTime,MATCH(O183,TypeTime,1),1):INDEX(TypeTime,MATCH(O183,TypeTime)+1,1))), "Choose Type")))) -> 0.026113616 | Q183: 0.00066706416 | R183: 0.1010596939 | W183: 2.58552
B184: 164 | G184: 2.60148 | H184: 33 | I184: =IF(H184=33,0,FORECAST(G184,INDEX($F$21:$F$53,H184,1):INDEX($F$21:$F$53,H184+1,1),INDEX($E$21:$E$53,H184,1):INDEX($E$21:$E$53,H184+1))) -> 0 | J184: 16.3 | K184: 0.84061 | L184: 0.81018 | M184: 0.88679 | N184: 0.89358 | O184: 2.60148 | P184: =IF($C$1="Type I",IF(O183=24,1,FORECAST(O184,INDEX(TypeI,MATCH(O184,TypeTime,1),1):INDEX(TypeI,MATCH(O184,TypeTime,1)+1,1),INDEX(TypeTime,MATCH(O184,TypeTime,1),1):INDEX(TypeTime,MATCH(O184,TypeTime)+1,1))), IF($C$1="Type IA",IF(O183=24,1,FORECAST(O184,INDEX(TypeIA,MATCH(O184,TypeTime,1),1):INDEX(TypeIA,MATCH(O184,TypeTime,1)+1,1),INDEX(TypeTime,MATCH(O184,TypeTime,1),1):INDEX(TypeTime,MATCH(O184,TypeTime)+1,1))), IF($C$1="Type II",IF(O183=24,1,FORECAST(O184,INDEX(TypeII,MATCH(O184,TypeTime,1),1):INDEX(TypeII,MATCH(O184,TypeTime,1)+1,1),INDEX(TypeTime,MATCH(O184,TypeTime,1),1):INDEX(TypeTime,MATCH(O184,TypeTime)+1,1))), IF($C$1="Type III",IF(O183=24,1,FORECAST(O184,INDEX(TypeIII,MATCH(O184,TypeTime,1),1):INDEX(TypeIII,MATCH(O184,TypeTime,1)+1,1),INDEX(TypeTime,MATCH(O184,TypeTime,1),1):INDEX(TypeTime,MATCH(O184,TypeTime)+1,1))), "Choose Type")))) -> 0.02628628 | Q184: 0.00066820968 | R184: 0.1017279036 | W184: 2.60148
B185: 165 | G185: 2.61744 | H185: 33 | I185: =IF(H185=33,0,FORECAST(G185,INDEX($F$21:$F$53,H185,1):INDEX($F$21:$F$53,H185+1,1),INDEX($E$21:$E$53,H185,1):INDEX($E$21:$E$53,H185+1))) -> 0 | J185: 16.4 | K185: 0.84344 | L185: 0.81322 | M185: 0.889 | N185: 0.896 | O185: 2.61744 | P185: =IF($C$1="Type I",IF(O184=24,1,FORECAST(O185,INDEX(TypeI,MATCH(O185,TypeTime,1),1):INDEX(TypeI,MATCH(O185,TypeTime,1)+1,1),INDEX(TypeTime,MATCH(O185,TypeTime,1),1):INDEX(TypeTime,MATCH(O185,TypeTime)+1,1))), IF($C$1="Type IA",IF(O184=24,1,FORECAST(O185,INDEX(TypeIA,MATCH(O185,TypeTime,1),1):INDEX(TypeIA,MATCH(O185,TypeTime,1)+1,1),INDEX(TypeTime,MATCH(O185,TypeTime,1),1):INDEX(TypeTime,MATCH(O185,TypeTime)+1,1))), IF($C$1="Type II",IF(O184=24,1,FORECAST(O185,INDEX(TypeII,MATCH(O185,TypeTime,1),1):INDEX(TypeII,MATCH(O185,TypeTime,1)+1,1),INDEX(TypeTime,MATCH(O185,TypeTime,1),1):INDEX(TypeTime,MATCH(O185,TypeTime)+1,1))), IF($C$1="Type III",IF(O184=24,1,FORECAST(O185,INDEX(TypeIII,MATCH(O185,TypeTime,1),1):INDEX(TypeIII,MATCH(O185,TypeTime,1)+1,1),INDEX(TypeTime,MATCH(O185,TypeTime,1),1):INDEX(TypeTime,MATCH(O185,TypeTime)+1,1))), "Choose Type")))) -> 0.02646184 | Q185: 0.0006794172 | R185: 0.1024073208 | W185: 2.61744
B186: 166 | G186: 2.6334 | H186: 33 | I186: =IF(H186=33,0,FORECAST(G186,INDEX($F$21:$F$53,H186,1):INDEX($F$21:$F$53,H186+1,1),INDEX($E$21:$E$53,H186,1):INDEX($E$21:$E$53,H186+1))) -> 0 | J186: 16.5 | K186: 0.84625 | L186: 0.81625 | M186: 0.89119 | N186: 0.89838 | O186: 2.6334 | P186: =IF($C$1="Type I",IF(O185=24,1,FORECAST(O186,INDEX(TypeI,MATCH(O186,TypeTime,1),1):INDEX(TypeI,MATCH(O186,TypeTime,1)+1,1),INDEX(TypeTime,MATCH(O186,TypeTime,1),1):INDEX(TypeTime,MATCH(O186,TypeTime)+1,1))), IF($C$1="Type IA",IF(O185=24,1,FORECAST(O186,INDEX(TypeIA,MATCH(O186,TypeTime,1),1):INDEX(TypeIA,MATCH(O186,TypeTime,1)+1,1),INDEX(TypeTime,MATCH(O186,TypeTime,1),1):INDEX(TypeTime,MATCH(O186,TypeTime)+1,1))), IF($C$1="Type II",IF(O185=24,1,FORECAST(O186,INDEX(TypeII,MATCH(O186,TypeTime,1),1):INDEX(TypeII,MATCH(O186,TypeTime,1)+1,1),INDEX(TypeTime,MATCH(O186,TypeTime,1),1):INDEX(TypeTime,MATCH(O186,TypeTime)+1,1))), IF($C$1="Type III",IF(O185=24,1,FORECAST(O186,INDEX(TypeIII,MATCH(O186,TypeTime,1),1):INDEX(TypeIII,MATCH(O186,TypeTime,1)+1,1),INDEX(TypeTime,MATCH(O186,TypeTime,1),1):INDEX(TypeTime,MATCH(O186,TypeTime)+1,1))), "Choose Type")))) -> 0.0266374 | Q186: 0.0006794172 | R186: 0.103086738 | W186: 2.6334
B187: 167 | G187: 2.64936 | H187: 33 | I187: =IF(H187=33,0,FORECAST(G187,INDEX($F$21:$F$53,H187,1):INDEX($F$21:$F$53,H187+1,1),INDEX($E$21:$E$53,H187,1):INDEX($E$21:$E$53,H187+1))) -> 0 | J187: 16.6 | K187: 0.84904 | L187: 0.81926 | M187: 0.89335 | N187: 0.9007 | O187: 2.64936 | P187: =IF($C$1="Type I",IF(O186=24,1,FORECAST(O187,INDEX(TypeI,MATCH(O187,TypeTime,1),1):INDEX(TypeI,MATCH(O187,TypeTime,1)+1,1),INDEX(TypeTime,MATCH(O187,TypeTime,1),1):INDEX(TypeTime,MATCH(O187,TypeTime)+1,1))), IF($C$1="Type IA",IF(O186=24,1,FORECAST(O187,INDEX(TypeIA,MATCH(O187,TypeTime,1),1):INDEX(TypeIA,MATCH(O187,TypeTime,1)+1,1),INDEX(TypeTime,MATCH(O187,TypeTime,1),1):INDEX(TypeTime,MATCH(O187,TypeTime)+1,1))), IF($C$1="Type II",IF(O186=24,1,FORECAST(O187,INDEX(TypeII,MATCH(O187,TypeTime,1),1):INDEX(TypeII,MATCH(O187,TypeTime,1)+1,1),INDEX(TypeTime,MATCH(O187,TypeTime,1),1):INDEX(TypeTime,MATCH(O187,TypeTime)+1,1))), IF($C$1="Type III",IF(O186=24,1,FORECAST(O187,INDEX(TypeIII,MATCH(O187,TypeTime,1),1):INDEX(TypeIII,MATCH(O187,TypeTime,1)+1,1),INDEX(TypeTime,MATCH(O187,TypeTime,1),1):INDEX(TypeTime,MATCH(O187,TypeTime)+1,1))), "Choose Type")))) -> 0.02681296 | Q187: 0.0006794172 | R187: 0.1037661552 | W187: 2.64936
B188: 168 | G188: 2.66532 | H188: 33 | I188: =IF(H188=33,0,FORECAST(G188,INDEX($F$21:$F$53,H188,1):INDEX($F$21:$F$53,H188+1,1),INDEX($E$21:$E$53,H188,1):INDEX($E$21:$E$53,H188+1))) -> 0 | J188: 16.7 | K188: 0.85181 | L188: 0.82226 | M188: 0.89549 | N188: 0.90298 | O188: 2.66532 | P188: =IF($C$1="Type I",IF(O187=24,1,FORECAST(O188,INDEX(TypeI,MATCH(O188,TypeTime,1),1):INDEX(TypeI,MATCH(O188,TypeTime,1)+1,1),INDEX(TypeTime,MATCH(O188,TypeTime,1),1):INDEX(TypeTime,MATCH(O188,TypeTime)+1,1))), IF($C$1="Type IA",IF(O187=24,1,FORECAST(O188,INDEX(TypeIA,MATCH(O188,TypeTime,1),1):INDEX(TypeIA,MATCH(O188,TypeTime,1)+1,1),INDEX(TypeTime,MATCH(O188,TypeTime,1),1):INDEX(TypeTime,MATCH(O188,TypeTime)+1,1))), IF($C$1="Type II",IF(O187=24,1,FORECAST(O188,INDEX(TypeII,MATCH(O188,TypeTime,1),1):INDEX(TypeII,MATCH(O188,TypeTime,1)+1,1),INDEX(TypeTime,MATCH(O188,TypeTime,1),1):INDEX(TypeTime,MATCH(O188,TypeTime)+1,1))), IF($C$1="Type III",IF(O187=24,1,FORECAST(O188,INDEX(TypeIII,MATCH(O188,TypeTime,1),1):INDEX(TypeIII,MATCH(O188,TypeTime,1)+1,1),INDEX(TypeTime,MATCH(O188,TypeTime,1),1):INDEX(TypeTime,MATCH(O188,TypeTime)+1,1))), "Choose Type")))) -> 0.02698852 | Q188: 0.0006794172 | R188: 0.1044455724 | W188: 2.66532
B189: 169 | G189: 2.68128 | H189: 33 | I189: =IF(H189=33,0,FORECAST(G189,INDEX($F$21:$F$53,H189,1):INDEX($F$21:$F$53,H189+1,1),INDEX($E$21:$E$53,H189,1):INDEX($E$21:$E$53,H189+1))) -> 0 | J189: 16.8 | K189: 0.85456 | L189: 0.82524 | M189: 0.8976 | N189: 0.9052 | O189: 2.68128 | P189: =IF($C$1="Type I",IF(O188=24,1,FORECAST(O189,INDEX(TypeI,MATCH(O189,TypeTime,1),1):INDEX(TypeI,MATCH(O189,TypeTime,1)+1,1),INDEX(TypeTime,MATCH(O189,TypeTime,1),1):INDEX(TypeTime,MATCH(O189,TypeTime)+1,1))), IF($C$1="Type IA",IF(O188=24,1,FORECAST(O189,INDEX(TypeIA,MATCH(O189,TypeTime,1),1):INDEX(TypeIA,MATCH(O189,TypeTime,1)+1,1),INDEX(TypeTime,MATCH(O189,TypeTime,1),1):INDEX(TypeTime,MATCH(O189,TypeTime)+1,1))), IF($C$1="Type II",IF(O188=24,1,FORECAST(O189,INDEX(TypeII,MATCH(O189,TypeTime,1),1):INDEX(TypeII,MATCH(O189,TypeTime,1)+1,1),INDEX(TypeTime,MATCH(O189,TypeTime,1),1):INDEX(TypeTime,MATCH(O189,TypeTime)+1,1))), IF($C$1="Type III",IF(O188=24,1,FORECAST(O189,INDEX(TypeIII,MATCH(O189,TypeTime,1),1):INDEX(TypeIII,MATCH(O189,TypeTime,1)+1,1),INDEX(TypeTime,MATCH(O189,TypeTime,1),1):INDEX(TypeTime,MATCH(O189,TypeTime)+1,1))), "Choose Type")))) -> 0.02716408 | Q189: 0.0006794172 | R189: 0.1051249896 | W189: 2.68128
B190: 170 | G190: 2.69724 | H190: 33 | I190: =IF(H190=33,0,FORECAST(G190,INDEX($F$21:$F$53,H190,1):INDEX($F$21:$F$53,H190+1,1),INDEX($E$21:$E$53,H190,1):INDEX($E$21:$E$53,H190+1))) -> 0 | J190: 16.9 | K190: 0.85729 | L190: 0.82821 | M190: 0.89969 | N190: 0.90738 | O190: 2.69724 | P190: =IF($C$1="Type I",IF(O189=24,1,FORECAST(O190,INDEX(TypeI,MATCH(O190,TypeTime,1),1):INDEX(TypeI,MATCH(O190,TypeTime,1)+1,1),INDEX(TypeTime,MATCH(O190,TypeTime,1),1):INDEX(TypeTime,MATCH(O190,TypeTime)+1,1))), IF($C$1="Type IA",IF(O189=24,1,FORECAST(O190,INDEX(TypeIA,MATCH(O190,TypeTime,1),1):INDEX(TypeIA,MATCH(O190,TypeTime,1)+1,1),INDEX(TypeTime,MATCH(O190,TypeTime,1),1):INDEX(TypeTime,MATCH(O190,TypeTime)+1,1))), IF($C$1="Type II",IF(O189=24,1,FORECAST(O190,INDEX(TypeII,MATCH(O190,TypeTime,1),1):INDEX(TypeII,MATCH(O190,TypeTime,1)+1,1),INDEX(TypeTime,MATCH(O190,TypeTime,1),1):INDEX(TypeTime,MATCH(O190,TypeTime)+1,1))), IF($C$1="Type III",IF(O189=24,1,FORECAST(O190,INDEX(TypeIII,MATCH(O190,TypeTime,1),1):INDEX(TypeIII,MATCH(O190,TypeTime,1)+1,1),INDEX(TypeTime,MATCH(O190,TypeTime,1),1):INDEX(TypeTime,MATCH(O190,TypeTime)+1,1))), "Choose Type")))) -> 0.02733964 | Q190: 0.0006794172 | R190: 0.1058044068 | W190: 2.69724
B191: 171 | G191: 2.7132 | H191: 33 | I191: =IF(H191=33,0,FORECAST(G191,INDEX($F$21:$F$53,H191,1):INDEX($F$21:$F$53,H191+1,1),INDEX($E$21:$E$53,H191,1):INDEX($E$21:$E$53,H191+1))) -> 0 | J191: 17 | K191: 0.86 | L191: 0.83116 | M191: 0.90175 | N191: 0.9095 | O191: 2.7132 | P191: =IF($C$1="Type I",IF(O190=24,1,FORECAST(O191,INDEX(TypeI,MATCH(O191,TypeTime,1),1):INDEX(TypeI,MATCH(O191,TypeTime,1)+1,1),INDEX(TypeTime,MATCH(O191,TypeTime,1),1):INDEX(TypeTime,MATCH(O191,TypeTime)+1,1))), IF($C$1="Type IA",IF(O190=24,1,FORECAST(O191,INDEX(TypeIA,MATCH(O191,TypeTime,1),1):INDEX(TypeIA,MATCH(O191,TypeTime,1)+1,1),INDEX(TypeTime,MATCH(O191,TypeTime,1),1):INDEX(TypeTime,MATCH(O191,TypeTime)+1,1))), IF($C$1="Type II",IF(O190=24,1,FORECAST(O191,INDEX(TypeII,MATCH(O191,TypeTime,1),1):INDEX(TypeII,MATCH(O191,TypeTime,1)+1,1),INDEX(TypeTime,MATCH(O191,TypeTime,1),1):INDEX(TypeTime,MATCH(O191,TypeTime)+1,1))), IF($C$1="Type III",IF(O190=24,1,FORECAST(O191,INDEX(TypeIII,MATCH(O191,TypeTime,1),1):INDEX(TypeIII,MATCH(O191,TypeTime,1)+1,1),INDEX(TypeTime,MATCH(O191,TypeTime,1),1):INDEX(TypeTime,MATCH(O191,TypeTime)+1,1))), "Choose Type")))) -> 0.02751652 | Q191: 0.0006845256 | R191: 0.1064889324 | W191: 2.7132
B192: 172 | G192: 2.72916 | H192: 33 | I192: =IF(H192=33,0,FORECAST(G192,INDEX($F$21:$F$53,H192,1):INDEX($F$21:$F$53,H192+1,1),INDEX($E$21:$E$53,H192,1):INDEX($E$21:$E$53,H192+1))) -> 0 | J192: 17.1 | K192: 0.86269 | L192: 0.8341 | M192: 0.90379 | N192: 0.91158 | O192: 2.72916 | P192: =IF($C$1="Type I",IF(O191=24,1,FORECAST(O192,INDEX(TypeI,MATCH(O192,TypeTime,1),1):INDEX(TypeI,MATCH(O192,TypeTime,1)+1,1),INDEX(TypeTime,MATCH(O192,TypeTime,1),1):INDEX(TypeTime,MATCH(O192,TypeTime)+1,1))), IF($C$1="Type IA",IF(O191=24,1,FORECAST(O192,INDEX(TypeIA,MATCH(O192,TypeTime,1),1):INDEX(TypeIA,MATCH(O192,TypeTime,1)+1,1),INDEX(TypeTime,MATCH(O192,TypeTime,1),1):INDEX(TypeTime,MATCH(O192,TypeTime)+1,1))), IF($C$1="Type II",IF(O191=24,1,FORECAST(O192,INDEX(TypeII,MATCH(O192,TypeTime,1),1):INDEX(TypeII,MATCH(O192,TypeTime,1)+1,1),INDEX(TypeTime,MATCH(O192,TypeTime,1),1):INDEX(TypeTime,MATCH(O192,TypeTime)+1,1))), IF($C$1="Type III",IF(O191=24,1,FORECAST(O192,INDEX(TypeIII,MATCH(O192,TypeTime,1),1):INDEX(TypeIII,MATCH(O192,TypeTime,1)+1,1),INDEX(TypeTime,MATCH(O192,TypeTime,1),1):INDEX(TypeTime,MATCH(O192,TypeTime)+1,1))), "Choose Type")))) -> 0.027693676 | Q192: 0.00068559372 | R192: 0.1071745261 | W192: 2.72916
B193: 173 | G193: 2.74512 | H193: 33 | I193: =IF(H193=33,0,FORECAST(G193,INDEX($F$21:$F$53,H193,1):INDEX($F$21:$F$53,H193+1,1),INDEX($E$21:$E$53,H193,1):INDEX($E$21:$E$53,H193+1))) -> 0 | J193: 17.2 | K193: 0.86536 | L193: 0.83702 | M193: 0.9058 | N193: 0.9136 | O193: 2.74512 | P193: =IF($C$1="Type I",IF(O192=24,1,FORECAST(O193,INDEX(TypeI,MATCH(O193,TypeTime,1),1):INDEX(TypeI,MATCH(O193,TypeTime,1)+1,1),INDEX(TypeTime,MATCH(O193,TypeTime,1),1):INDEX(TypeTime,MATCH(O193,TypeTime)+1,1))), IF($C$1="Type IA",IF(O192=24,1,FORECAST(O193,INDEX(TypeIA,MATCH(O193,TypeTime,1),1):INDEX(TypeIA,MATCH(O193,TypeTime,1)+1,1),INDEX(TypeTime,MATCH(O193,TypeTime,1),1):INDEX(TypeTime,MATCH(O193,TypeTime)+1,1))), IF($C$1="Type II",IF(O192=24,1,FORECAST(O193,INDEX(TypeII,MATCH(O193,TypeTime,1),1):INDEX(TypeII,MATCH(O193,TypeTime,1)+1,1),INDEX(TypeTime,MATCH(O193,TypeTime,1),1):INDEX(TypeTime,MATCH(O193,TypeTime)+1,1))), IF($C$1="Type III",IF(O192=24,1,FORECAST(O193,INDEX(TypeIII,MATCH(O193,TypeTime,1),1):INDEX(TypeIII,MATCH(O193,TypeTime,1)+1,1),INDEX(TypeTime,MATCH(O193,TypeTime,1),1):INDEX(TypeTime,MATCH(O193,TypeTime)+1,1))), "Choose Type")))) -> 0.027870832 | Q193: 0.00068559372 | R193: 0.1078601198 | W193: 2.74512
B194: 174 | G194: 2.76108 | H194: 33 | I194: =IF(H194=33,0,FORECAST(G194,INDEX($F$21:$F$53,H194,1):INDEX($F$21:$F$53,H194+1,1),INDEX($E$21:$E$53,H194,1):INDEX($E$21:$E$53,H194+1))) -> 0 | J194: 17.3 | K194: 0.86801 | L194: 0.83992 | M194: 0.90779 | N194: 0.91558 | O194: 2.76108 | P194: =IF($C$1="Type I",IF(O193=24,1,FORECAST(O194,INDEX(TypeI,MATCH(O194,TypeTime,1),1):INDEX(TypeI,MATCH(O194,TypeTime,1)+1,1),INDEX(TypeTime,MATCH(O194,TypeTime,1),1):INDEX(TypeTime,MATCH(O194,TypeTime)+1,1))), IF($C$1="Type IA",IF(O193=24,1,FORECAST(O194,INDEX(TypeIA,MATCH(O194,TypeTime,1),1):INDEX(TypeIA,MATCH(O194,TypeTime,1)+1,1),INDEX(TypeTime,MATCH(O194,TypeTime,1),1):INDEX(TypeTime,MATCH(O194,TypeTime)+1,1))), IF($C$1="Type II",IF(O193=24,1,FORECAST(O194,INDEX(TypeII,MATCH(O194,TypeTime,1),1):INDEX(TypeII,MATCH(O194,TypeTime,1)+1,1),INDEX(TypeTime,MATCH(O194,TypeTime,1),1):INDEX(TypeTime,MATCH(O194,TypeTime)+1,1))), IF($C$1="Type III",IF(O193=24,1,FORECAST(O194,INDEX(TypeIII,MATCH(O194,TypeTime,1),1):INDEX(TypeIII,MATCH(O194,TypeTime,1)+1,1),INDEX(TypeTime,MATCH(O194,TypeTime,1),1):INDEX(TypeTime,MATCH(O194,TypeTime)+1,1))), "Choose Type")))) -> 0.028047988 | Q194: 0.00068559372 | R194: 0.1085457136 | W194: 2.76108
B195: 175 | G195: 2.77704 | H195: 33 | I195: =IF(H195=33,0,FORECAST(G195,INDEX($F$21:$F$53,H195,1):INDEX($F$21:$F$53,H195+1,1),INDEX($E$21:$E$53,H195,1):INDEX($E$21:$E$53,H195+1))) -> 0 | J195: 17.4 | K195: 0.87064 | L195: 0.84281 | M195: 0.90975 | N195: 0.9175 | O195: 2.77704 | P195: =IF($C$1="Type I",IF(O194=24,1,FORECAST(O195,INDEX(TypeI,MATCH(O195,TypeTime,1),1):INDEX(TypeI,MATCH(O195,TypeTime,1)+1,1),INDEX(TypeTime,MATCH(O195,TypeTime,1),1):INDEX(TypeTime,MATCH(O195,TypeTime)+1,1))), IF($C$1="Type IA",IF(O194=24,1,FORECAST(O195,INDEX(TypeIA,MATCH(O195,TypeTime,1),1):INDEX(TypeIA,MATCH(O195,TypeTime,1)+1,1),INDEX(TypeTime,MATCH(O195,TypeTime,1),1):INDEX(TypeTime,MATCH(O195,TypeTime)+1,1))), IF($C$1="Type II",IF(O194=24,1,FORECAST(O195,INDEX(TypeII,MATCH(O195,TypeTime,1),1):INDEX(TypeII,MATCH(O195,TypeTime,1)+1,1),INDEX(TypeTime,MATCH(O195,TypeTime,1),1):INDEX(TypeTime,MATCH(O195,TypeTime)+1,1))), IF($C$1="Type III",IF(O194=24,1,FORECAST(O195,INDEX(TypeIII,MATCH(O195,TypeTime,1),1):INDEX(TypeIII,MATCH(O195,TypeTime,1)+1,1),INDEX(TypeTime,MATCH(O195,TypeTime,1),1):INDEX(TypeTime,MATCH(O195,TypeTime)+1,1))), "Choose Type")))) -> 0.028225144 | Q195: 0.00068559372 | R195: 0.1092313073 | W195: 2.77704
B196: 176 | G196: 2.793 | H196: 33 | I196: =IF(H196=33,0,FORECAST(G196,INDEX($F$21:$F$53,H196,1):INDEX($F$21:$F$53,H196+1,1),INDEX($E$21:$E$53,H196,1):INDEX($E$21:$E$53,H196+1))) -> 0 | J196: 17.5 | K196: 0.87325 | L196: 0.84569 | M196: 0.91169 | N196: 0.91938 | O196: 2.793 | P196: =IF($C$1="Type I",IF(O195=24,1,FORECAST(O196,INDEX(TypeI,MATCH(O196,TypeTime,1),1):INDEX(TypeI,MATCH(O196,TypeTime,1)+1,1),INDEX(TypeTime,MATCH(O196,TypeTime,1),1):INDEX(TypeTime,MATCH(O196,TypeTime)+1,1))), IF($C$1="Type IA",IF(O195=24,1,FORECAST(O196,INDEX(TypeIA,MATCH(O196,TypeTime,1),1):INDEX(TypeIA,MATCH(O196,TypeTime,1)+1,1),INDEX(TypeTime,MATCH(O196,TypeTime,1),1):INDEX(TypeTime,MATCH(O196,TypeTime)+1,1))), IF($C$1="Type II",IF(O195=24,1,FORECAST(O196,INDEX(TypeII,MATCH(O196,TypeTime,1),1):INDEX(TypeII,MATCH(O196,TypeTime,1)+1,1),INDEX(TypeTime,MATCH(O196,TypeTime,1),1):INDEX(TypeTime,MATCH(O196,TypeTime)+1,1))), IF($C$1="Type III",IF(O195=24,1,FORECAST(O196,INDEX(TypeIII,MATCH(O196,TypeTime,1),1):INDEX(TypeIII,MATCH(O196,TypeTime,1)+1,1),INDEX(TypeTime,MATCH(O196,TypeTime,1),1):INDEX(TypeTime,MATCH(O196,TypeTime)+1,1))), "Choose Type")))) -> 0.0284023 | Q196: 0.00068559372 | R196: 0.109916901 | W196: 2.793
B197: 177 | G197: 2.80896 | H197: 33 | I197: =IF(H197=33,0,FORECAST(G197,INDEX($F$21:$F$53,H197,1):INDEX($F$21:$F$53,H197+1,1),INDEX($E$21:$E$53,H197,1):INDEX($E$21:$E$53,H197+1))) -> 0 | J197: 17.6 | K197: 0.87584 | L197: 0.84855 | M197: 0.9136 | N197: 0.9212 | O197: 2.80896 | P197: =IF($C$1="Type I",IF(O196=24,1,FORECAST(O197,INDEX(TypeI,MATCH(O197,TypeTime,1),1):INDEX(TypeI,MATCH(O197,TypeTime,1)+1,1),INDEX(TypeTime,MATCH(O197,TypeTime,1),1):INDEX(TypeTime,MATCH(O197,TypeTime)+1,1))), IF($C$1="Type IA",IF(O196=24,1,FORECAST(O197,INDEX(TypeIA,MATCH(O197,TypeTime,1),1):INDEX(TypeIA,MATCH(O197,TypeTime,1)+1,1),INDEX(TypeTime,MATCH(O197,TypeTime,1),1):INDEX(TypeTime,MATCH(O197,TypeTime)+1,1))), IF($C$1="Type II",IF(O196=24,1,FORECAST(O197,INDEX(TypeII,MATCH(O197,TypeTime,1),1):INDEX(TypeII,MATCH(O197,TypeTime,1)+1,1),INDEX(TypeTime,MATCH(O197,TypeTime,1),1):INDEX(TypeTime,MATCH(O197,TypeTime)+1,1))), IF($C$1="Type III",IF(O196=24,1,FORECAST(O197,INDEX(TypeIII,MATCH(O197,TypeTime,1),1):INDEX(TypeIII,MATCH(O197,TypeTime,1)+1,1),INDEX(TypeTime,MATCH(O197,TypeTime,1),1):INDEX(TypeTime,MATCH(O197,TypeTime)+1,1))), "Choose Type")))) -> 0.028581248 | Q197: 0.00069252876 | R197: 0.1106094298 | W197: 2.80896
B198: 178 | G198: 2.82492 | H198: 33 | I198: =IF(H198=33,0,FORECAST(G198,INDEX($F$21:$F$53,H198,1):INDEX($F$21:$F$53,H198+1,1),INDEX($E$21:$E$53,H198,1):INDEX($E$21:$E$53,H198+1))) -> 0 | J198: 17.7 | K198: 0.87841 | L198: 0.8514 | M198: 0.91549 | N198: 0.92298 | O198: 2.82492 | P198: =IF($C$1="Type I",IF(O197=24,1,FORECAST(O198,INDEX(TypeI,MATCH(O198,TypeTime,1),1):INDEX(TypeI,MATCH(O198,TypeTime,1)+1,1),INDEX(TypeTime,MATCH(O198,TypeTime,1),1):INDEX(TypeTime,MATCH(O198,TypeTime)+1,1))), IF($C$1="Type IA",IF(O197=24,1,FORECAST(O198,INDEX(TypeIA,MATCH(O198,TypeTime,1),1):INDEX(TypeIA,MATCH(O198,TypeTime,1)+1,1),INDEX(TypeTime,MATCH(O198,TypeTime,1),1):INDEX(TypeTime,MATCH(O198,TypeTime)+1,1))), IF($C$1="Type II",IF(O197=24,1,FORECAST(O198,INDEX(TypeII,MATCH(O198,TypeTime,1),1):INDEX(TypeII,MATCH(O198,TypeTime,1)+1,1),INDEX(TypeTime,MATCH(O198,TypeTime,1),1):INDEX(TypeTime,MATCH(O198,TypeTime)+1,1))), IF($C$1="Type III",IF(O197=24,1,FORECAST(O198,INDEX(TypeIII,MATCH(O198,TypeTime,1),1):INDEX(TypeIII,MATCH(O198,TypeTime,1)+1,1),INDEX(TypeTime,MATCH(O198,TypeTime,1),1):INDEX(TypeTime,MATCH(O198,TypeTime)+1,1))), "Choose Type")))) -> 0.028761596 | Q198: 0.00069794676 | R198: 0.1113073765 | W198: 2.82492
B199: 179 | G199: 2.84088 | H199: 33 | I199: =IF(H199=33,0,FORECAST(G199,INDEX($F$21:$F$53,H199,1):INDEX($F$21:$F$53,H199+1,1),INDEX($E$21:$E$53,H199,1):INDEX($E$21:$E$53,H199+1))) -> 0 | J199: 17.8 | K199: 0.88096 | L199: 0.85423 | M199: 0.91735 | N199: 0.9247 | O199: 2.84088 | P199: =IF($C$1="Type I",IF(O198=24,1,FORECAST(O199,INDEX(TypeI,MATCH(O199,TypeTime,1),1):INDEX(TypeI,MATCH(O199,TypeTime,1)+1,1),INDEX(TypeTime,MATCH(O199,TypeTime,1),1):INDEX(TypeTime,MATCH(O199,TypeTime)+1,1))), IF($C$1="Type IA",IF(O198=24,1,FORECAST(O199,INDEX(TypeIA,MATCH(O199,TypeTime,1),1):INDEX(TypeIA,MATCH(O199,TypeTime,1)+1,1),INDEX(TypeTime,MATCH(O199,TypeTime,1),1):INDEX(TypeTime,MATCH(O199,TypeTime)+1,1))), IF($C$1="Type II",IF(O198=24,1,FORECAST(O199,INDEX(TypeII,MATCH(O199,TypeTime,1),1):INDEX(TypeII,MATCH(O199,TypeTime,1)+1,1),INDEX(TypeTime,MATCH(O199,TypeTime,1),1):INDEX(TypeTime,MATCH(O199,TypeTime)+1,1))), IF($C$1="Type III",IF(O198=24,1,FORECAST(O199,INDEX(TypeIII,MATCH(O199,TypeTime,1),1):INDEX(TypeIII,MATCH(O199,TypeTime,1)+1,1),INDEX(TypeTime,MATCH(O199,TypeTime,1),1):INDEX(TypeTime,MATCH(O199,TypeTime)+1,1))), "Choose Type")))) -> 0.028941944 | Q199: 0.00069794676 | R199: 0.1120053233 | W199: 2.84088
B200: 180 | G200: 2.85684 | H200: 33 | I200: =IF(H200=33,0,FORECAST(G200,INDEX($F$21:$F$53,H200,1):INDEX($F$21:$F$53,H200+1,1),INDEX($E$21:$E$53,H200,1):INDEX($E$21:$E$53,H200+1))) -> 0 | J200: 17.9 | K200: 0.88349 | L200: 0.85704 | M200: 0.91919 | N200: 0.92638 | O200: 2.85684 | P200: =IF($C$1="Type I",IF(O199=24,1,FORECAST(O200,INDEX(TypeI,MATCH(O200,TypeTime,1),1):INDEX(TypeI,MATCH(O200,TypeTime,1)+1,1),INDEX(TypeTime,MATCH(O200,TypeTime,1),1):INDEX(TypeTime,MATCH(O200,TypeTime)+1,1))), IF($C$1="Type IA",IF(O199=24,1,FORECAST(O200,INDEX(TypeIA,MATCH(O200,TypeTime,1),1):INDEX(TypeIA,MATCH(O200,TypeTime,1)+1,1),INDEX(TypeTime,MATCH(O200,TypeTime,1),1):INDEX(TypeTime,MATCH(O200,TypeTime)+1,1))), IF($C$1="Type II",IF(O199=24,1,FORECAST(O200,INDEX(TypeII,MATCH(O200,TypeTime,1),1):INDEX(TypeII,MATCH(O200,TypeTime,1)+1,1),INDEX(TypeTime,MATCH(O200,TypeTime,1),1):INDEX(TypeTime,MATCH(O200,TypeTime)+1,1))), IF($C$1="Type III",IF(O199=24,1,FORECAST(O200,INDEX(TypeIII,MATCH(O200,TypeTime,1),1):INDEX(TypeIII,MATCH(O200,TypeTime,1)+1,1),INDEX(TypeTime,MATCH(O200,TypeTime,1),1):INDEX(TypeTime,MATCH(O200,TypeTime)+1,1))), "Choose Type")))) -> 0.029122292 | Q200: 0.00069794676 | R200: 0.11270327 | W200: 2.85684
B201: 181 | G201: 2.8728 | H201: 33 | I201: =IF(H201=33,0,FORECAST(G201,INDEX($F$21:$F$53,H201,1):INDEX($F$21:$F$53,H201+1,1),INDEX($E$21:$E$53,H201,1):INDEX($E$21:$E$53,H201+1))) -> 0 | J201: 18 | K201: 0.886 | L201: 0.85984 | M201: 0.921 | N201: 0.928 | O201: 2.8728 | P201: =IF($C$1="Type I",IF(O200=24,1,FORECAST(O201,INDEX(TypeI,MATCH(O201,TypeTime,1),1):INDEX(TypeI,MATCH(O201,TypeTime,1)+1,1),INDEX(TypeTime,MATCH(O201,TypeTime,1),1):INDEX(TypeTime,MATCH(O201,TypeTime)+1,1))), IF($C$1="Type IA",IF(O200=24,1,FORECAST(O201,INDEX(TypeIA,MATCH(O201,TypeTime,1),1):INDEX(TypeIA,MATCH(O201,TypeTime,1)+1,1),INDEX(TypeTime,MATCH(O201,TypeTime,1),1):INDEX(TypeTime,MATCH(O201,TypeTime)+1,1))), IF($C$1="Type II",IF(O200=24,1,FORECAST(O201,INDEX(TypeII,MATCH(O201,TypeTime,1),1):INDEX(TypeII,MATCH(O201,TypeTime,1)+1,1),INDEX(TypeTime,MATCH(O201,TypeTime,1),1):INDEX(TypeTime,MATCH(O201,TypeTime)+1,1))), IF($C$1="Type III",IF(O200=24,1,FORECAST(O201,INDEX(TypeIII,MATCH(O201,TypeTime,1),1):INDEX(TypeIII,MATCH(O201,TypeTime,1)+1,1),INDEX(TypeTime,MATCH(O201,TypeTime,1),1):INDEX(TypeTime,MATCH(O201,TypeTime)+1,1))), "Choose Type")))) -> 0.02930264 | Q201: 0.00069794676 | R201: 0.1134012168 | W201: 2.8728
B202: 182 | G202: 2.88876 | H202: 33 | I202: =IF(H202=33,0,FORECAST(G202,INDEX($F$21:$F$53,H202,1):INDEX($F$21:$F$53,H202+1,1),INDEX($E$21:$E$53,H202,1):INDEX($E$21:$E$53,H202+1))) -> 0 | J202: 18.1 | K202: 0.88849 | L202: 0.86262 | M202: 0.92279 | N202: 0.92959 | O202: 2.88876 | P202: =IF($C$1="Type I",IF(O201=24,1,FORECAST(O202,INDEX(TypeI,MATCH(O202,TypeTime,1),1):INDEX(TypeI,MATCH(O202,TypeTime,1)+1,1),INDEX(TypeTime,MATCH(O202,TypeTime,1),1):INDEX(TypeTime,MATCH(O202,TypeTime)+1,1))), IF($C$1="Type IA",IF(O201=24,1,FORECAST(O202,INDEX(TypeIA,MATCH(O202,TypeTime,1),1):INDEX(TypeIA,MATCH(O202,TypeTime,1)+1,1),INDEX(TypeTime,MATCH(O202,TypeTime,1),1):INDEX(TypeTime,MATCH(O202,TypeTime)+1,1))), IF($C$1="Type II",IF(O201=24,1,FORECAST(O202,INDEX(TypeII,MATCH(O202,TypeTime,1),1):INDEX(TypeII,MATCH(O202,TypeTime,1)+1,1),INDEX(TypeTime,MATCH(O202,TypeTime,1),1):INDEX(TypeTime,MATCH(O202,TypeTime)+1,1))), IF($C$1="Type III",IF(O201=24,1,FORECAST(O202,INDEX(TypeIII,MATCH(O202,TypeTime,1),1):INDEX(TypeIII,MATCH(O202,TypeTime,1)+1,1),INDEX(TypeTime,MATCH(O202,TypeTime,1),1):INDEX(TypeTime,MATCH(O202,TypeTime)+1,1))), "Choose Type")))) -> 0.029482988 | Q202: 0.00069794676 | R202: 0.1140991636 | W202: 2.88876
... 1690 more rows

Sheet Goal Hydrographs (hidden)

Sheet Goal #1 Data (hidden)
B1: Distribution Type: | C1: =Summary!C25 -> Type III | E1: P | I1: K | J1: =484/645.333 -> 0.7500003874
B2: Frequency: | C2: =Summary!C19 -> 1 | I2: Tr/Tp | J2: =2/J1-1 -> 1.666665289
B3: Duration: | C3: =Summary!C20 -> 24
B4: 2-Yr,24-Hr Rainfall: | C4: =Summary!C22 -> 2
B5: Drainage Area (A): | C5: ='Watershed Data'!M4 -> 0 | D5: =C5/639.99 -> 0
B6: Precipitaion (P): | C6: =Summary!C21 -> 3.87 | AB6: Ia/P | AC6: C0 | AD6: C1 | AE6: C2 | AF6: log(qu)
B7: Max Retention (S): | C7: =1000/PostCN-10 ->  | X7: Peak Flow Rate (cfs): | Y7: =MAX(X21:X2246) ->  | AA7: Type I | AB7: =INDEX(References!B62:G69,MATCH(MIN(References!B62:B69),References!B62:B69),2) ->  | AC7: =INDEX(References!B62:G69,MATCH(MIN(References!B62:B69),References!B62:B69),3) ->  | AD7: =INDEX(References!B62:G69,MATCH(MIN(References!B62:B69),References!B62:B69),4) ->  | AE7: =INDEX(References!B62:G69,MATCH(MIN(References!B62:B69),References!B62:B69),5) ->  | AF7: =AC7+AD7*LOG(Tc)+AE7*LOG(Tc)^2 -> 
B8: Initial Abstraction (Ia): | C8: =0.2*C7 ->  | X8: Total Runoff (ac-ft) | Y8: =SUM(V21:V2246)/43560 ->  | AA8: Type IA | AB8: =INDEX(References!B72:G76,MATCH(MIN(References!B72:B76),References!B72:B76,0),2) ->  | AC8: =INDEX(References!B72:G76,MATCH(MIN(References!B72:B76),References!B72:B76,0),3) ->  | AD8: =INDEX(References!B72:G76,MATCH(MIN(References!B72:B76),References!B72:B76,0),4) ->  | AE8: =INDEX(References!B72:G76,MATCH(MIN(References!B72:B76),References!B72:B76,0),5) ->  | AF8: =AC8+AD8*LOG(Tc)+AE8*LOG(Tc)^2 -> 
B9: Ia/P: | C9: =Ia/P ->  | AA9: Type II | AB9: =INDEX(References!B79:G84,MATCH(MIN(References!B79:B84),References!B79:B84,0),2) ->  | AC9: =INDEX(References!B79:G84,MATCH(MIN(References!B79:B84),References!B79:B84,0),3) ->  | AD9: =INDEX(References!B79:G84,MATCH(MIN(References!B79:B84),References!B79:B84,0),4) ->  | AE9: =INDEX(References!B79:G84,MATCH(MIN(References!B79:B84),References!B79:B84,0),5) ->  | AF9: =AC9+AD9*LOG(Tc)+AE9*LOG(Tc)^2 -> 
B10: Runoff (Q): | C10: =(P-Ia)^2/((P-Ia)+S) ->  | AA10: Type III | AB10: =INDEX(References!B87:G92,MATCH(MIN(References!B87:B92),References!B87:B92,0),2) ->  | AC10: =INDEX(References!B87:G92,MATCH(MIN(References!B87:B92),References!B87:B92,0),3) ->  | AD10: =INDEX(References!B87:G92,MATCH(MIN(References!B87:B92),References!B87:B92,0),4) ->  | AE10: =INDEX(References!B87:G92,MATCH(MIN(References!B87:B92),References!B87:B92,0),5) ->  | AF10: =AC10+AD10*LOG(Tc)+AE10*LOG(Tc)^2 -> 
B11: Time of Concentration (Tc): | C11: ='Watershed Data'!O44 -> 0.12 | D11: =Tc*60 -> 7.2 | AE11: Unit Peak Discharge (qu): | AF11: =10^AF8 -> 
B12: Time Interval (D): | C12: =Tc*0.133 -> 0.01596 | D12: =C12*60 -> 0.9576
B13: Burst Duration (D): | C13: =Tc/7.5 -> 0.016 | D13: =C13*60 -> 0.96
B14: Time to Peak (Tp): | C14: =(Tc+C12)/1.7 -> 0.07997647059 | D14: 4.798588235
B15: Peak Discharge (qp UH): | C15: =(484*D5*1)/C14 -> 0 | D15: per 1" of precipitation | X15: =SUM(X21:X1892)*24/43560 -> 
B16: Peak Discharge (qp): | C16: =484*D5*P/C14 -> 0
B17: Retention Volume (in): | C17: 0
V18: Total Runoff | X18: Max Q
V19: =SUM(V21:V2246)/43560 ->  | X19: =MAX(X21:X1868) -> 
B20: Index | C20: t/tp | D20: q/qp | E20: t UH (hr) | F20: q UH (cfs) | G20: T Storm (hr) | I20: Q Storm | J20: TypeTime | K20: Type I | L20: Type IA | M20: Type II | N20: Type III | O20: TStorm (hr) | P20: Cumulative Fraction (in) | Q20: Incremental P (in) | R20: Cumulative P (in) | S20: Cumulative P-Ia (in) | T20: Cumulative Q-R (in) | U20: Incremental Q-R (in) | W20: Time (hr) | X20: Sum UH | Y20: UH1 | Z20: UH2 | AA20: UH3 | AB20: UH4 | AC20: UH5 | AD20: UH6 | AE20: UH7 | AF20: UH8 | AG20: UH9 | AH20: UH10 | AI20: UH11 | AJ20: UH12 | AK20: UH13 | AL20: UH14 | AM20: UH15 | AN20: UH16 | AO20: UH17 | AP20: UH18 | AQ20: UH19 | AR20: UH20 | AS20: UH21 | AT20: UH22 | AU20: UH23 | AV20: UH24 | AW20: UH25 | AX20: UH26
B21: 1 | C21: 0 | D21: 0 | E21: =C21*$C$14 -> 0 | F21: =$C$15*D21 -> 0 | G21: 0 | H21: 0 | I21: 0 | J21: 0 | K21: 0 | L21: 0 | M21: 0 | N21: 0 | O21: 0 | P21: 0 | Q21: 0 | R21: =P*P21 -> 0 | S21: =MAX(0,R21-Ia) ->  | T21: =MAX(0,(S*(Q21-Ia))/(Q21-Ia+S)) ->  | U21: =Q21-S21-T21 ->  | V21: =(X21+X22)/2*$C$12*60*60 ->  | W21: 0 | X21: =SUM(Y21:AX21) ->  | Y21: =$I$21*$U21 -> 
B22: 2 | C22: 0.1 | D22: 0.03 | E22: =C22*$C$14 -> 0.007997647059 | F22: =$C$15*D22 -> 0 | G22: =MIN(24,G21+$C$12) -> 0.01596 | H22: =MATCH(G22,$E$21:$E$53,1) -> 2 | I22: =IF(H22=33,0,FORECAST(G22,INDEX($F$21:$F$53,H22,1):INDEX($F$21:$F$53,H22+1),INDEX($E$21:$E$53,H22,1):INDEX($E$21:$E$53,H22+1))) -> 0 | J22: 0.1 | K22: 0.00174 | L22: 0.00224 | M22: 0.00101 | N22: 0.001 | O22: =MIN(24,O21+$C$12) -> 0.01596 | P22: =IF($C$1="Type I",IF(O21=24,1,FORECAST(O22,INDEX(TypeI,MATCH(O22,TypeTime,1),1):INDEX(TypeI,MATCH(O22,TypeTime,1)+1,1),INDEX(TypeTime,MATCH(O22,TypeTime,1),1):INDEX(TypeTime,MATCH(O22,TypeTime)+1,1))), IF($C$1="Type IA",IF(O21=24,1,FORECAST(O22,INDEX(TypeIA,MATCH(O22,TypeTime,1),1):INDEX(TypeIA,MATCH(O22,TypeTime,1)+1,1),INDEX(TypeTime,MATCH(O22,TypeTime,1),1):INDEX(TypeTime,MATCH(O22,TypeTime)+1,1))), IF($C$1="Type II",IF(O21=24,1,FORECAST(O22,INDEX(TypeII,MATCH(O22,TypeTime,1),1):INDEX(TypeII,MATCH(O22,TypeTime,1)+1,1),INDEX(TypeTime,MATCH(O22,TypeTime,1),1):INDEX(TypeTime,MATCH(O22,TypeTime)+1,1))), IF($C$1="Type III",IF(O21=24,1,FORECAST(O22,INDEX(TypeIII,MATCH(O22,TypeTime,1),1):INDEX(TypeIII,MATCH(O22,TypeTime,1)+1,1),INDEX(TypeTime,MATCH(O22,TypeTime,1),1):INDEX(TypeTime,MATCH(O22,TypeTime)+1,1))), "Choose Type")))) -> 0.0001596 | Q22: =P*(P22-P21) -> 0.000617652 | R22: =P*P22 -> 0.000617652 | T22: =MAX(0,S22^2/(S22+S)-RVol) ->  | U22: =T22-T21 ->  | V22: =(X22+X23)/2*$C$12*60*60 ->  | W22: =W21+$C$12 -> 0.01596 | X22: =SUM(Y22:AX22) ->  | Y22: =$I$21*$U22 ->  | Z22: =$I$22*$U21 -> 
B23: 3 | C23: 0.2 | D23: 0.1 | E23: =C23*$C$14 -> 0.01599529412 | F23: =$C$15*D23 -> 0 | G23: =MIN(24,G22+$C$12) -> 0.03192 | H23: =MATCH(G23,$E$21:$E$53,1) -> 4 | I23: =IF(H23=33,0,FORECAST(G23,INDEX($F$21:$F$53,H23,1):INDEX($F$21:$F$53,H23+1,1),INDEX($E$21:$E$53,H23,1):INDEX($E$21:$E$53,H23+1))) -> 0 | J23: 0.2 | K23: 0.00348 | L23: 0.00432 | M23: 0.00202 | N23: 0.002 | O23: =MIN(24,O22+$C$12) -> 0.03192 | P23: =IF($C$1="Type I",IF(O22=24,1,FORECAST(O23,INDEX(TypeI,MATCH(O23,TypeTime,1),1):INDEX(TypeI,MATCH(O23,TypeTime,1)+1,1),INDEX(TypeTime,MATCH(O23,TypeTime,1),1):INDEX(TypeTime,MATCH(O23,TypeTime)+1,1))), IF($C$1="Type IA",IF(O22=24,1,FORECAST(O23,INDEX(TypeIA,MATCH(O23,TypeTime,1),1):INDEX(TypeIA,MATCH(O23,TypeTime,1)+1,1),INDEX(TypeTime,MATCH(O23,TypeTime,1),1):INDEX(TypeTime,MATCH(O23,TypeTime)+1,1))), IF($C$1="Type II",IF(O22=24,1,FORECAST(O23,INDEX(TypeII,MATCH(O23,TypeTime,1),1):INDEX(TypeII,MATCH(O23,TypeTime,1)+1,1),INDEX(TypeTime,MATCH(O23,TypeTime,1),1):INDEX(TypeTime,MATCH(O23,TypeTime)+1,1))), IF($C$1="Type III",IF(O22=24,1,FORECAST(O23,INDEX(TypeIII,MATCH(O23,TypeTime,1),1):INDEX(TypeIII,MATCH(O23,TypeTime,1)+1,1),INDEX(TypeTime,MATCH(O23,TypeTime,1),1):INDEX(TypeTime,MATCH(O23,TypeTime)+1,1))), "Choose Type")))) -> 0.0003192 | Q23: =P*(P23-P22) -> 0.000617652 | R23: =P*P23 -> 0.001235304 | T23: =MAX(0,(S23^2/(S23+S)-RVol)) ->  | U23: =T23-T22 ->  | W23: =W22+$C$12 -> 0.03192 | Z23: =$I$22*$U22 ->  | AA23: =$I$23*$U21 -> 
B24: 4 | C24: 0.3 | D24: 0.19 | E24: 0.02399294118 | F24: 0 | G24: 0.04788 | H24: =MATCH(G24,$E$21:$E$53,1) -> 6 | I24: =IF(H24=33,0,FORECAST(G24,INDEX($F$21:$F$53,H24,1):INDEX($F$21:$F$53,H24+1,1),INDEX($E$21:$E$53,H24,1):INDEX($E$21:$E$53,H24+1))) -> 0 | J24: 0.3 | K24: 0.00522 | L24: 0.00628 | M24: 0.00305 | N24: 0.003 | O24: 0.04788 | P24: =IF($C$1="Type I",IF(O23=24,1,FORECAST(O24,INDEX(TypeI,MATCH(O24,TypeTime,1),1):INDEX(TypeI,MATCH(O24,TypeTime,1)+1,1),INDEX(TypeTime,MATCH(O24,TypeTime,1),1):INDEX(TypeTime,MATCH(O24,TypeTime)+1,1))), IF($C$1="Type IA",IF(O23=24,1,FORECAST(O24,INDEX(TypeIA,MATCH(O24,TypeTime,1),1):INDEX(TypeIA,MATCH(O24,TypeTime,1)+1,1),INDEX(TypeTime,MATCH(O24,TypeTime,1),1):INDEX(TypeTime,MATCH(O24,TypeTime)+1,1))), IF($C$1="Type II",IF(O23=24,1,FORECAST(O24,INDEX(TypeII,MATCH(O24,TypeTime,1),1):INDEX(TypeII,MATCH(O24,TypeTime,1)+1,1),INDEX(TypeTime,MATCH(O24,TypeTime,1),1):INDEX(TypeTime,MATCH(O24,TypeTime)+1,1))), IF($C$1="Type III",IF(O23=24,1,FORECAST(O24,INDEX(TypeIII,MATCH(O24,TypeTime,1),1):INDEX(TypeIII,MATCH(O24,TypeTime,1)+1,1),INDEX(TypeTime,MATCH(O24,TypeTime,1),1):INDEX(TypeTime,MATCH(O24,TypeTime)+1,1))), "Choose Type")))) -> 0.0004788 | Q24: 0.000617652 | R24: 0.001852956 | W24: 0.04788 | AB24: =$I$24*$U21 -> 
B25: 5 | C25: 0.4 | D25: 0.31 | E25: 0.03199058824 | F25: 0 | G25: 0.06384 | H25: 8 | I25: =IF(H25=33,0,FORECAST(G25,INDEX($F$21:$F$53,H25,1):INDEX($F$21:$F$53,H25+1,1),INDEX($E$21:$E$53,H25,1):INDEX($E$21:$E$53,H25+1))) -> 0 | J25: 0.4 | K25: 0.00697 | L25: 0.00816 | M25: 0.00408 | N25: 0.004 | O25: 0.06384 | P25: =IF($C$1="Type I",IF(O24=24,1,FORECAST(O25,INDEX(TypeI,MATCH(O25,TypeTime,1),1):INDEX(TypeI,MATCH(O25,TypeTime,1)+1,1),INDEX(TypeTime,MATCH(O25,TypeTime,1),1):INDEX(TypeTime,MATCH(O25,TypeTime)+1,1))), IF($C$1="Type IA",IF(O24=24,1,FORECAST(O25,INDEX(TypeIA,MATCH(O25,TypeTime,1),1):INDEX(TypeIA,MATCH(O25,TypeTime,1)+1,1),INDEX(TypeTime,MATCH(O25,TypeTime,1),1):INDEX(TypeTime,MATCH(O25,TypeTime)+1,1))), IF($C$1="Type II",IF(O24=24,1,FORECAST(O25,INDEX(TypeII,MATCH(O25,TypeTime,1),1):INDEX(TypeII,MATCH(O25,TypeTime,1)+1,1),INDEX(TypeTime,MATCH(O25,TypeTime,1),1):INDEX(TypeTime,MATCH(O25,TypeTime)+1,1))), IF($C$1="Type III",IF(O24=24,1,FORECAST(O25,INDEX(TypeIII,MATCH(O25,TypeTime,1),1):INDEX(TypeIII,MATCH(O25,TypeTime,1)+1,1),INDEX(TypeTime,MATCH(O25,TypeTime,1),1):INDEX(TypeTime,MATCH(O25,TypeTime)+1,1))), "Choose Type")))) -> 0.0006384 | Q25: 0.000617652 | R25: 0.002470608 | W25: 0.06384 | AC25: =$I$25*$U21 -> 
B26: 6 | C26: 0.5 | D26: 0.47 | E26: 0.03998823529 | F26: 0 | G26: 0.0798 | H26: 10 | I26: =IF(H26=33,0,FORECAST(G26,INDEX($F$21:$F$53,H26,1):INDEX($F$21:$F$53,H26+1,1),INDEX($E$21:$E$53,H26,1):INDEX($E$21:$E$53,H26+1))) -> 0 | J26: 0.5 | K26: 0.00871 | L26: 0.01 | M26: 0.00513 | N26: 0.005 | O26: 0.0798 | P26: =IF($C$1="Type I",IF(O25=24,1,FORECAST(O26,INDEX(TypeI,MATCH(O26,TypeTime,1),1):INDEX(TypeI,MATCH(O26,TypeTime,1)+1,1),INDEX(TypeTime,MATCH(O26,TypeTime,1),1):INDEX(TypeTime,MATCH(O26,TypeTime)+1,1))), IF($C$1="Type IA",IF(O25=24,1,FORECAST(O26,INDEX(TypeIA,MATCH(O26,TypeTime,1),1):INDEX(TypeIA,MATCH(O26,TypeTime,1)+1,1),INDEX(TypeTime,MATCH(O26,TypeTime,1),1):INDEX(TypeTime,MATCH(O26,TypeTime)+1,1))), IF($C$1="Type II",IF(O25=24,1,FORECAST(O26,INDEX(TypeII,MATCH(O26,TypeTime,1),1):INDEX(TypeII,MATCH(O26,TypeTime,1)+1,1),INDEX(TypeTime,MATCH(O26,TypeTime,1),1):INDEX(TypeTime,MATCH(O26,TypeTime)+1,1))), IF($C$1="Type III",IF(O25=24,1,FORECAST(O26,INDEX(TypeIII,MATCH(O26,TypeTime,1),1):INDEX(TypeIII,MATCH(O26,TypeTime,1)+1,1),INDEX(TypeTime,MATCH(O26,TypeTime,1),1):INDEX(TypeTime,MATCH(O26,TypeTime)+1,1))), "Choose Type")))) -> 0.000798 | Q26: 0.000617652 | R26: 0.00308826 | W26: 0.0798 | AD26: =$I$26*$U21 -> 
B27: 7 | C27: 0.6 | D27: 0.66 | E27: 0.04798588235 | F27: 0 | G27: 0.09576 | H27: 12 | I27: =IF(H27=33,0,FORECAST(G27,INDEX($F$21:$F$53,H27,1):INDEX($F$21:$F$53,H27+1,1),INDEX($E$21:$E$53,H27,1):INDEX($E$21:$E$53,H27+1))) -> 0 | J27: 0.6 | K27: 0.01046 | L27: 0.01184 | M27: 0.00618 | N27: 0.006 | O27: 0.09576 | P27: =IF($C$1="Type I",IF(O26=24,1,FORECAST(O27,INDEX(TypeI,MATCH(O27,TypeTime,1),1):INDEX(TypeI,MATCH(O27,TypeTime,1)+1,1),INDEX(TypeTime,MATCH(O27,TypeTime,1),1):INDEX(TypeTime,MATCH(O27,TypeTime)+1,1))), IF($C$1="Type IA",IF(O26=24,1,FORECAST(O27,INDEX(TypeIA,MATCH(O27,TypeTime,1),1):INDEX(TypeIA,MATCH(O27,TypeTime,1)+1,1),INDEX(TypeTime,MATCH(O27,TypeTime,1),1):INDEX(TypeTime,MATCH(O27,TypeTime)+1,1))), IF($C$1="Type II",IF(O26=24,1,FORECAST(O27,INDEX(TypeII,MATCH(O27,TypeTime,1),1):INDEX(TypeII,MATCH(O27,TypeTime,1)+1,1),INDEX(TypeTime,MATCH(O27,TypeTime,1),1):INDEX(TypeTime,MATCH(O27,TypeTime)+1,1))), IF($C$1="Type III",IF(O26=24,1,FORECAST(O27,INDEX(TypeIII,MATCH(O27,TypeTime,1),1):INDEX(TypeIII,MATCH(O27,TypeTime,1)+1,1),INDEX(TypeTime,MATCH(O27,TypeTime,1),1):INDEX(TypeTime,MATCH(O27,TypeTime)+1,1))), "Choose Type")))) -> 0.0009576 | Q27: 0.000617652 | R27: 0.003705912 | W27: 0.09576 | AE27: =$I$27*$U21 -> 
B28: 8 | C28: 0.7 | D28: 0.82 | E28: 0.05598352941 | F28: 0 | G28: 0.11172 | H28: 14 | I28: =IF(H28=33,0,FORECAST(G28,INDEX($F$21:$F$53,H28,1):INDEX($F$21:$F$53,H28+1,1),INDEX($E$21:$E$53,H28,1):INDEX($E$21:$E$53,H28+1))) -> 0 | J28: 0.7 | K28: 0.0122 | L28: 0.01372 | M28: 0.00725 | N28: 0.007 | O28: 0.11172 | P28: =IF($C$1="Type I",IF(O27=24,1,FORECAST(O28,INDEX(TypeI,MATCH(O28,TypeTime,1),1):INDEX(TypeI,MATCH(O28,TypeTime,1)+1,1),INDEX(TypeTime,MATCH(O28,TypeTime,1),1):INDEX(TypeTime,MATCH(O28,TypeTime)+1,1))), IF($C$1="Type IA",IF(O27=24,1,FORECAST(O28,INDEX(TypeIA,MATCH(O28,TypeTime,1),1):INDEX(TypeIA,MATCH(O28,TypeTime,1)+1,1),INDEX(TypeTime,MATCH(O28,TypeTime,1),1):INDEX(TypeTime,MATCH(O28,TypeTime)+1,1))), IF($C$1="Type II",IF(O27=24,1,FORECAST(O28,INDEX(TypeII,MATCH(O28,TypeTime,1),1):INDEX(TypeII,MATCH(O28,TypeTime,1)+1,1),INDEX(TypeTime,MATCH(O28,TypeTime,1),1):INDEX(TypeTime,MATCH(O28,TypeTime)+1,1))), IF($C$1="Type III",IF(O27=24,1,FORECAST(O28,INDEX(TypeIII,MATCH(O28,TypeTime,1),1):INDEX(TypeIII,MATCH(O28,TypeTime,1)+1,1),INDEX(TypeTime,MATCH(O28,TypeTime,1),1):INDEX(TypeTime,MATCH(O28,TypeTime)+1,1))), "Choose Type")))) -> 0.0011172 | Q28: 0.000617652 | R28: 0.004323564 | W28: 0.11172 | AF28: =$I$28*$U21 -> 
B29: 9 | C29: 0.8 | D29: 0.93 | E29: 0.06398117647 | F29: 0 | G29: 0.12768 | H29: 16 | I29: =IF(H29=33,0,FORECAST(G29,INDEX($F$21:$F$53,H29,1):INDEX($F$21:$F$53,H29+1,1),INDEX($E$21:$E$53,H29,1):INDEX($E$21:$E$53,H29+1))) -> 0 | J29: 0.8 | K29: 0.01395 | L29: 0.01568 | M29: 0.00832 | N29: 0.008 | O29: 0.12768 | P29: =IF($C$1="Type I",IF(O28=24,1,FORECAST(O29,INDEX(TypeI,MATCH(O29,TypeTime,1),1):INDEX(TypeI,MATCH(O29,TypeTime,1)+1,1),INDEX(TypeTime,MATCH(O29,TypeTime,1),1):INDEX(TypeTime,MATCH(O29,TypeTime)+1,1))), IF($C$1="Type IA",IF(O28=24,1,FORECAST(O29,INDEX(TypeIA,MATCH(O29,TypeTime,1),1):INDEX(TypeIA,MATCH(O29,TypeTime,1)+1,1),INDEX(TypeTime,MATCH(O29,TypeTime,1),1):INDEX(TypeTime,MATCH(O29,TypeTime)+1,1))), IF($C$1="Type II",IF(O28=24,1,FORECAST(O29,INDEX(TypeII,MATCH(O29,TypeTime,1),1):INDEX(TypeII,MATCH(O29,TypeTime,1)+1,1),INDEX(TypeTime,MATCH(O29,TypeTime,1),1):INDEX(TypeTime,MATCH(O29,TypeTime)+1,1))), IF($C$1="Type III",IF(O28=24,1,FORECAST(O29,INDEX(TypeIII,MATCH(O29,TypeTime,1),1):INDEX(TypeIII,MATCH(O29,TypeTime,1)+1,1),INDEX(TypeTime,MATCH(O29,TypeTime,1),1):INDEX(TypeTime,MATCH(O29,TypeTime)+1,1))), "Choose Type")))) -> 0.0012768 | Q29: 0.000617652 | R29: 0.004941216 | W29: 0.12768 | AG29: =$I$29*$U21 -> 
B30: 10 | C30: 0.9 | D30: 0.99 | E30: 0.07197882353 | F30: 0 | G30: 0.14364 | H30: 18 | I30: =IF(H30=33,0,FORECAST(G30,INDEX($F$21:$F$53,H30,1):INDEX($F$21:$F$53,H30+1,1),INDEX($E$21:$E$53,H30,1):INDEX($E$21:$E$53,H30+1))) -> 0 | J30: 0.9 | K30: 0.0157 | L30: 0.01776 | M30: 0.00941 | N30: 0.009 | O30: 0.14364 | P30: =IF($C$1="Type I",IF(O29=24,1,FORECAST(O30,INDEX(TypeI,MATCH(O30,TypeTime,1),1):INDEX(TypeI,MATCH(O30,TypeTime,1)+1,1),INDEX(TypeTime,MATCH(O30,TypeTime,1),1):INDEX(TypeTime,MATCH(O30,TypeTime)+1,1))), IF($C$1="Type IA",IF(O29=24,1,FORECAST(O30,INDEX(TypeIA,MATCH(O30,TypeTime,1),1):INDEX(TypeIA,MATCH(O30,TypeTime,1)+1,1),INDEX(TypeTime,MATCH(O30,TypeTime,1),1):INDEX(TypeTime,MATCH(O30,TypeTime)+1,1))), IF($C$1="Type II",IF(O29=24,1,FORECAST(O30,INDEX(TypeII,MATCH(O30,TypeTime,1),1):INDEX(TypeII,MATCH(O30,TypeTime,1)+1,1),INDEX(TypeTime,MATCH(O30,TypeTime,1),1):INDEX(TypeTime,MATCH(O30,TypeTime)+1,1))), IF($C$1="Type III",IF(O29=24,1,FORECAST(O30,INDEX(TypeIII,MATCH(O30,TypeTime,1),1):INDEX(TypeIII,MATCH(O30,TypeTime,1)+1,1),INDEX(TypeTime,MATCH(O30,TypeTime,1),1):INDEX(TypeTime,MATCH(O30,TypeTime)+1,1))), "Choose Type")))) -> 0.0014364 | Q30: 0.000617652 | R30: 0.005558868 | W30: 0.14364 | AH30: =$I$30*$U21 -> 
B31: 11 | C31: 1 | D31: 1 | E31: 0.07997647059 | F31: 0 | G31: 0.1596 | H31: 20 | I31: =IF(H31=33,0,FORECAST(G31,INDEX($F$21:$F$53,H31,1):INDEX($F$21:$F$53,H31+1,1),INDEX($E$21:$E$53,H31,1):INDEX($E$21:$E$53,H31+1))) -> 0 | J31: 1 | K31: 0.01745 | L31: 0.02 | M31: 0.0105 | N31: 0.01 | O31: 0.1596 | P31: =IF($C$1="Type I",IF(O30=24,1,FORECAST(O31,INDEX(TypeI,MATCH(O31,TypeTime,1),1):INDEX(TypeI,MATCH(O31,TypeTime,1)+1,1),INDEX(TypeTime,MATCH(O31,TypeTime,1),1):INDEX(TypeTime,MATCH(O31,TypeTime)+1,1))), IF($C$1="Type IA",IF(O30=24,1,FORECAST(O31,INDEX(TypeIA,MATCH(O31,TypeTime,1),1):INDEX(TypeIA,MATCH(O31,TypeTime,1)+1,1),INDEX(TypeTime,MATCH(O31,TypeTime,1),1):INDEX(TypeTime,MATCH(O31,TypeTime)+1,1))), IF($C$1="Type II",IF(O30=24,1,FORECAST(O31,INDEX(TypeII,MATCH(O31,TypeTime,1),1):INDEX(TypeII,MATCH(O31,TypeTime,1)+1,1),INDEX(TypeTime,MATCH(O31,TypeTime,1),1):INDEX(TypeTime,MATCH(O31,TypeTime)+1,1))), IF($C$1="Type III",IF(O30=24,1,FORECAST(O31,INDEX(TypeIII,MATCH(O31,TypeTime,1),1):INDEX(TypeIII,MATCH(O31,TypeTime,1)+1,1),INDEX(TypeTime,MATCH(O31,TypeTime,1),1):INDEX(TypeTime,MATCH(O31,TypeTime)+1,1))), "Choose Type")))) -> 0.001596 | Q31: 0.000617652 | R31: 0.00617652 | W31: 0.1596 | AI31: =$I$31*$U21 -> 
B32: 12 | C32: 1.1 | D32: 0.99 | E32: 0.08797411765 | F32: 0 | G32: 0.17556 | H32: 21 | I32: =IF(H32=33,0,FORECAST(G32,INDEX($F$21:$F$53,H32,1):INDEX($F$21:$F$53,H32+1,1),INDEX($E$21:$E$53,H32,1):INDEX($E$21:$E$53,H32+1))) -> 0 | J32: 1.1 | K32: 0.0192 | L32: 0.02276 | M32: 0.01161 | N32: 0.011 | O32: 0.17556 | P32: =IF($C$1="Type I",IF(O31=24,1,FORECAST(O32,INDEX(TypeI,MATCH(O32,TypeTime,1),1):INDEX(TypeI,MATCH(O32,TypeTime,1)+1,1),INDEX(TypeTime,MATCH(O32,TypeTime,1),1):INDEX(TypeTime,MATCH(O32,TypeTime)+1,1))), IF($C$1="Type IA",IF(O31=24,1,FORECAST(O32,INDEX(TypeIA,MATCH(O32,TypeTime,1),1):INDEX(TypeIA,MATCH(O32,TypeTime,1)+1,1),INDEX(TypeTime,MATCH(O32,TypeTime,1),1):INDEX(TypeTime,MATCH(O32,TypeTime)+1,1))), IF($C$1="Type II",IF(O31=24,1,FORECAST(O32,INDEX(TypeII,MATCH(O32,TypeTime,1),1):INDEX(TypeII,MATCH(O32,TypeTime,1)+1,1),INDEX(TypeTime,MATCH(O32,TypeTime,1),1):INDEX(TypeTime,MATCH(O32,TypeTime)+1,1))), IF($C$1="Type III",IF(O31=24,1,FORECAST(O32,INDEX(TypeIII,MATCH(O32,TypeTime,1),1):INDEX(TypeIII,MATCH(O32,TypeTime,1)+1,1),INDEX(TypeTime,MATCH(O32,TypeTime,1),1):INDEX(TypeTime,MATCH(O32,TypeTime)+1,1))), "Choose Type")))) -> 0.0017556 | Q32: 0.000617652 | R32: 0.006794172 | W32: 0.17556 | AJ32: =$I$32*$U21 -> 
B33: 13 | C33: 1.2 | D33: 0.93 | E33: 0.09597176471 | F33: 0 | G33: 0.19152 | H33: 22 | I33: =IF(H33=33,0,FORECAST(G33,INDEX($F$21:$F$53,H33,1):INDEX($F$21:$F$53,H33+1,1),INDEX($E$21:$E$53,H33,1):INDEX($E$21:$E$53,H33+1))) -> 0 | J33: 1.2 | K33: 0.02095 | L33: 0.02568 | M33: 0.01272 | N33: 0.012 | O33: 0.19152 | P33: =IF($C$1="Type I",IF(O32=24,1,FORECAST(O33,INDEX(TypeI,MATCH(O33,TypeTime,1),1):INDEX(TypeI,MATCH(O33,TypeTime,1)+1,1),INDEX(TypeTime,MATCH(O33,TypeTime,1),1):INDEX(TypeTime,MATCH(O33,TypeTime)+1,1))), IF($C$1="Type IA",IF(O32=24,1,FORECAST(O33,INDEX(TypeIA,MATCH(O33,TypeTime,1),1):INDEX(TypeIA,MATCH(O33,TypeTime,1)+1,1),INDEX(TypeTime,MATCH(O33,TypeTime,1),1):INDEX(TypeTime,MATCH(O33,TypeTime)+1,1))), IF($C$1="Type II",IF(O32=24,1,FORECAST(O33,INDEX(TypeII,MATCH(O33,TypeTime,1),1):INDEX(TypeII,MATCH(O33,TypeTime,1)+1,1),INDEX(TypeTime,MATCH(O33,TypeTime,1),1):INDEX(TypeTime,MATCH(O33,TypeTime)+1,1))), IF($C$1="Type III",IF(O32=24,1,FORECAST(O33,INDEX(TypeIII,MATCH(O33,TypeTime,1),1):INDEX(TypeIII,MATCH(O33,TypeTime,1)+1,1),INDEX(TypeTime,MATCH(O33,TypeTime,1),1):INDEX(TypeTime,MATCH(O33,TypeTime)+1,1))), "Choose Type")))) -> 0.0019152 | Q33: 0.000617652 | R33: 0.007411824 | W33: 0.19152 | AK33: =$I$33*$U21 -> 
B34: 14 | C34: 1.3 | D34: 0.86 | E34: 0.1039694118 | F34: 0 | G34: 0.20748 | H34: 23 | I34: =IF(H34=33,0,FORECAST(G34,INDEX($F$21:$F$53,H34,1):INDEX($F$21:$F$53,H34+1,1),INDEX($E$21:$E$53,H34,1):INDEX($E$21:$E$53,H34+1))) -> 0 | J34: 1.3 | K34: 0.0227 | L34: 0.02872 | M34: 0.01385 | N34: 0.013 | O34: 0.20748 | P34: =IF($C$1="Type I",IF(O33=24,1,FORECAST(O34,INDEX(TypeI,MATCH(O34,TypeTime,1),1):INDEX(TypeI,MATCH(O34,TypeTime,1)+1,1),INDEX(TypeTime,MATCH(O34,TypeTime,1),1):INDEX(TypeTime,MATCH(O34,TypeTime)+1,1))), IF($C$1="Type IA",IF(O33=24,1,FORECAST(O34,INDEX(TypeIA,MATCH(O34,TypeTime,1),1):INDEX(TypeIA,MATCH(O34,TypeTime,1)+1,1),INDEX(TypeTime,MATCH(O34,TypeTime,1),1):INDEX(TypeTime,MATCH(O34,TypeTime)+1,1))), IF($C$1="Type II",IF(O33=24,1,FORECAST(O34,INDEX(TypeII,MATCH(O34,TypeTime,1),1):INDEX(TypeII,MATCH(O34,TypeTime,1)+1,1),INDEX(TypeTime,MATCH(O34,TypeTime,1),1):INDEX(TypeTime,MATCH(O34,TypeTime)+1,1))), IF($C$1="Type III",IF(O33=24,1,FORECAST(O34,INDEX(TypeIII,MATCH(O34,TypeTime,1),1):INDEX(TypeIII,MATCH(O34,TypeTime,1)+1,1),INDEX(TypeTime,MATCH(O34,TypeTime,1),1):INDEX(TypeTime,MATCH(O34,TypeTime)+1,1))), "Choose Type")))) -> 0.0020748 | Q34: 0.000617652 | R34: 0.008029476 | W34: 0.20748 | AL34: =$I$34*$U21 -> 
B35: 15 | C35: 1.4 | D35: 0.78 | E35: 0.1119670588 | F35: 0 | G35: 0.22344 | H35: 24 | I35: =IF(H35=33,0,FORECAST(G35,INDEX($F$21:$F$53,H35,1):INDEX($F$21:$F$53,H35+1,1),INDEX($E$21:$E$53,H35,1):INDEX($E$21:$E$53,H35+1))) -> 0 | J35: 1.4 | K35: 0.02446 | L35: 0.03184 | M35: 0.01498 | N35: 0.014 | O35: 0.22344 | P35: =IF($C$1="Type I",IF(O34=24,1,FORECAST(O35,INDEX(TypeI,MATCH(O35,TypeTime,1),1):INDEX(TypeI,MATCH(O35,TypeTime,1)+1,1),INDEX(TypeTime,MATCH(O35,TypeTime,1),1):INDEX(TypeTime,MATCH(O35,TypeTime)+1,1))), IF($C$1="Type IA",IF(O34=24,1,FORECAST(O35,INDEX(TypeIA,MATCH(O35,TypeTime,1),1):INDEX(TypeIA,MATCH(O35,TypeTime,1)+1,1),INDEX(TypeTime,MATCH(O35,TypeTime,1),1):INDEX(TypeTime,MATCH(O35,TypeTime)+1,1))), IF($C$1="Type II",IF(O34=24,1,FORECAST(O35,INDEX(TypeII,MATCH(O35,TypeTime,1),1):INDEX(TypeII,MATCH(O35,TypeTime,1)+1,1),INDEX(TypeTime,MATCH(O35,TypeTime,1),1):INDEX(TypeTime,MATCH(O35,TypeTime)+1,1))), IF($C$1="Type III",IF(O34=24,1,FORECAST(O35,INDEX(TypeIII,MATCH(O35,TypeTime,1),1):INDEX(TypeIII,MATCH(O35,TypeTime,1)+1,1),INDEX(TypeTime,MATCH(O35,TypeTime,1),1):INDEX(TypeTime,MATCH(O35,TypeTime)+1,1))), "Choose Type")))) -> 0.0022344 | Q35: 0.000617652 | R35: 0.008647128 | W35: 0.22344 | AM35: =$I$35*$U21 -> 
B36: 16 | C36: 1.5 | D36: 0.68 | E36: 0.1199647059 | F36: 0 | G36: 0.2394 | H36: 25 | I36: =IF(H36=33,0,FORECAST(G36,INDEX($F$21:$F$53,H36,1):INDEX($F$21:$F$53,H36+1,1),INDEX($E$21:$E$53,H36,1):INDEX($E$21:$E$53,H36+1))) -> 0 | J36: 1.5 | K36: 0.02621 | L36: 0.035 | M36: 0.01613 | N36: 0.015 | O36: 0.2394 | P36: =IF($C$1="Type I",IF(O35=24,1,FORECAST(O36,INDEX(TypeI,MATCH(O36,TypeTime,1),1):INDEX(TypeI,MATCH(O36,TypeTime,1)+1,1),INDEX(TypeTime,MATCH(O36,TypeTime,1),1):INDEX(TypeTime,MATCH(O36,TypeTime)+1,1))), IF($C$1="Type IA",IF(O35=24,1,FORECAST(O36,INDEX(TypeIA,MATCH(O36,TypeTime,1),1):INDEX(TypeIA,MATCH(O36,TypeTime,1)+1,1),INDEX(TypeTime,MATCH(O36,TypeTime,1),1):INDEX(TypeTime,MATCH(O36,TypeTime)+1,1))), IF($C$1="Type II",IF(O35=24,1,FORECAST(O36,INDEX(TypeII,MATCH(O36,TypeTime,1),1):INDEX(TypeII,MATCH(O36,TypeTime,1)+1,1),INDEX(TypeTime,MATCH(O36,TypeTime,1),1):INDEX(TypeTime,MATCH(O36,TypeTime)+1,1))), IF($C$1="Type III",IF(O35=24,1,FORECAST(O36,INDEX(TypeIII,MATCH(O36,TypeTime,1),1):INDEX(TypeIII,MATCH(O36,TypeTime,1)+1,1),INDEX(TypeTime,MATCH(O36,TypeTime,1),1):INDEX(TypeTime,MATCH(O36,TypeTime)+1,1))), "Choose Type")))) -> 0.002394 | Q36: 0.000617652 | R36: 0.00926478 | W36: 0.2394 | AN36: =$I$36*$U21 -> 
B37: 17 | C37: 1.6 | D37: 0.56 | E37: 0.1279623529 | F37: 0 | G37: 0.25536 | H37: 26 | I37: =IF(H37=33,0,FORECAST(G37,INDEX($F$21:$F$53,H37,1):INDEX($F$21:$F$53,H37+1,1),INDEX($E$21:$E$53,H37,1):INDEX($E$21:$E$53,H37+1))) -> 0 | J37: 1.6 | K37: 0.02797 | L37: 0.03797 | M37: 0.01728 | N37: 0.016 | O37: 0.25536 | P37: =IF($C$1="Type I",IF(O36=24,1,FORECAST(O37,INDEX(TypeI,MATCH(O37,TypeTime,1),1):INDEX(TypeI,MATCH(O37,TypeTime,1)+1,1),INDEX(TypeTime,MATCH(O37,TypeTime,1),1):INDEX(TypeTime,MATCH(O37,TypeTime)+1,1))), IF($C$1="Type IA",IF(O36=24,1,FORECAST(O37,INDEX(TypeIA,MATCH(O37,TypeTime,1),1):INDEX(TypeIA,MATCH(O37,TypeTime,1)+1,1),INDEX(TypeTime,MATCH(O37,TypeTime,1),1):INDEX(TypeTime,MATCH(O37,TypeTime)+1,1))), IF($C$1="Type II",IF(O36=24,1,FORECAST(O37,INDEX(TypeII,MATCH(O37,TypeTime,1),1):INDEX(TypeII,MATCH(O37,TypeTime,1)+1,1),INDEX(TypeTime,MATCH(O37,TypeTime,1),1):INDEX(TypeTime,MATCH(O37,TypeTime)+1,1))), IF($C$1="Type III",IF(O36=24,1,FORECAST(O37,INDEX(TypeIII,MATCH(O37,TypeTime,1),1):INDEX(TypeIII,MATCH(O37,TypeTime,1)+1,1),INDEX(TypeTime,MATCH(O37,TypeTime,1),1):INDEX(TypeTime,MATCH(O37,TypeTime)+1,1))), "Choose Type")))) -> 0.0025536 | Q37: 0.000617652 | R37: 0.009882432 | W37: 0.25536 | AO37: =$I$37*$U21 -> 
B38: 18 | C38: 1.7 | D38: 0.46 | E38: 0.13596 | F38: 0 | G38: 0.27132 | H38: 27 | I38: =IF(H38=33,0,FORECAST(G38,INDEX($F$21:$F$53,H38,1):INDEX($F$21:$F$53,H38+1,1),INDEX($E$21:$E$53,H38,1):INDEX($E$21:$E$53,H38+1))) -> 0 | J38: 1.7 | K38: 0.02972 | L38: 0.04095 | M38: 0.01845 | N38: 0.017 | O38: 0.27132 | P38: =IF($C$1="Type I",IF(O37=24,1,FORECAST(O38,INDEX(TypeI,MATCH(O38,TypeTime,1),1):INDEX(TypeI,MATCH(O38,TypeTime,1)+1,1),INDEX(TypeTime,MATCH(O38,TypeTime,1),1):INDEX(TypeTime,MATCH(O38,TypeTime)+1,1))), IF($C$1="Type IA",IF(O37=24,1,FORECAST(O38,INDEX(TypeIA,MATCH(O38,TypeTime,1),1):INDEX(TypeIA,MATCH(O38,TypeTime,1)+1,1),INDEX(TypeTime,MATCH(O38,TypeTime,1),1):INDEX(TypeTime,MATCH(O38,TypeTime)+1,1))), IF($C$1="Type II",IF(O37=24,1,FORECAST(O38,INDEX(TypeII,MATCH(O38,TypeTime,1),1):INDEX(TypeII,MATCH(O38,TypeTime,1)+1,1),INDEX(TypeTime,MATCH(O38,TypeTime,1),1):INDEX(TypeTime,MATCH(O38,TypeTime)+1,1))), IF($C$1="Type III",IF(O37=24,1,FORECAST(O38,INDEX(TypeIII,MATCH(O38,TypeTime,1),1):INDEX(TypeIII,MATCH(O38,TypeTime,1)+1,1),INDEX(TypeTime,MATCH(O38,TypeTime,1),1):INDEX(TypeTime,MATCH(O38,TypeTime)+1,1))), "Choose Type")))) -> 0.0027132 | Q38: 0.000617652 | R38: 0.010500084 | W38: 0.27132 | AP38: =$I$38*$U21 -> 
B39: 19 | C39: 1.8 | D39: 0.39 | E39: 0.1439576471 | F39: 0 | G39: =MIN(24,G38+$C$12) -> 0.28728 | H39: 28 | I39: =IF(H39=33,0,FORECAST(G39,INDEX($F$21:$F$53,H39,1):INDEX($F$21:$F$53,H39+1,1),INDEX($E$21:$E$53,H39,1):INDEX($E$21:$E$53,H39+1))) -> 0 | J39: 1.8 | K39: 0.03148 | L39: 0.04394 | M39: 0.01962 | N39: 0.018 | O39: 0.28728 | P39: =IF($C$1="Type I",IF(O38=24,1,FORECAST(O39,INDEX(TypeI,MATCH(O39,TypeTime,1),1):INDEX(TypeI,MATCH(O39,TypeTime,1)+1,1),INDEX(TypeTime,MATCH(O39,TypeTime,1),1):INDEX(TypeTime,MATCH(O39,TypeTime)+1,1))), IF($C$1="Type IA",IF(O38=24,1,FORECAST(O39,INDEX(TypeIA,MATCH(O39,TypeTime,1),1):INDEX(TypeIA,MATCH(O39,TypeTime,1)+1,1),INDEX(TypeTime,MATCH(O39,TypeTime,1),1):INDEX(TypeTime,MATCH(O39,TypeTime)+1,1))), IF($C$1="Type II",IF(O38=24,1,FORECAST(O39,INDEX(TypeII,MATCH(O39,TypeTime,1),1):INDEX(TypeII,MATCH(O39,TypeTime,1)+1,1),INDEX(TypeTime,MATCH(O39,TypeTime,1),1):INDEX(TypeTime,MATCH(O39,TypeTime)+1,1))), IF($C$1="Type III",IF(O38=24,1,FORECAST(O39,INDEX(TypeIII,MATCH(O39,TypeTime,1),1):INDEX(TypeIII,MATCH(O39,TypeTime,1)+1,1),INDEX(TypeTime,MATCH(O39,TypeTime,1),1):INDEX(TypeTime,MATCH(O39,TypeTime)+1,1))), "Choose Type")))) -> 0.0028728 | Q39: 0.000617652 | R39: 0.011117736 | W39: 0.28728 | AQ39: =$I$39*$U21 -> 
B40: 20 | C40: 1.9 | D40: 0.33 | E40: 0.1519552941 | F40: 0 | G40: 0.30324 | H40: 29 | I40: =IF(H40=33,0,FORECAST(G40,INDEX($F$21:$F$53,H40,1):INDEX($F$21:$F$53,H40+1,1),INDEX($E$21:$E$53,H40,1):INDEX($E$21:$E$53,H40+1))) -> 0 | J40: 1.9 | K40: 0.03324 | L40: 0.04695 | M40: 0.02081 | N40: 0.019 | O40: 0.30324 | P40: =IF($C$1="Type I",IF(O39=24,1,FORECAST(O40,INDEX(TypeI,MATCH(O40,TypeTime,1),1):INDEX(TypeI,MATCH(O40,TypeTime,1)+1,1),INDEX(TypeTime,MATCH(O40,TypeTime,1),1):INDEX(TypeTime,MATCH(O40,TypeTime)+1,1))), IF($C$1="Type IA",IF(O39=24,1,FORECAST(O40,INDEX(TypeIA,MATCH(O40,TypeTime,1),1):INDEX(TypeIA,MATCH(O40,TypeTime,1)+1,1),INDEX(TypeTime,MATCH(O40,TypeTime,1),1):INDEX(TypeTime,MATCH(O40,TypeTime)+1,1))), IF($C$1="Type II",IF(O39=24,1,FORECAST(O40,INDEX(TypeII,MATCH(O40,TypeTime,1),1):INDEX(TypeII,MATCH(O40,TypeTime,1)+1,1),INDEX(TypeTime,MATCH(O40,TypeTime,1),1):INDEX(TypeTime,MATCH(O40,TypeTime)+1,1))), IF($C$1="Type III",IF(O39=24,1,FORECAST(O40,INDEX(TypeIII,MATCH(O40,TypeTime,1),1):INDEX(TypeIII,MATCH(O40,TypeTime,1)+1,1),INDEX(TypeTime,MATCH(O40,TypeTime,1),1):INDEX(TypeTime,MATCH(O40,TypeTime)+1,1))), "Choose Type")))) -> 0.0030324 | Q40: 0.000617652 | R40: 0.011735388 | W40: 0.30324 | AR40: =$I$40*$U21 -> 
B41: 21 | C41: 2 | D41: 0.28 | E41: 0.1599529412 | F41: 0 | G41: 0.3192 | H41: 30 | I41: =IF(H41=33,0,FORECAST(G41,INDEX($F$21:$F$53,H41,1):INDEX($F$21:$F$53,H41+1,1),INDEX($E$21:$E$53,H41,1):INDEX($E$21:$E$53,H41+1))) -> 0 | J41: 2 | K41: 0.035 | L41: 0.05 | M41: 0.022 | N41: 0.02 | O41: 0.3192 | P41: =IF($C$1="Type I",IF(O40=24,1,FORECAST(O41,INDEX(TypeI,MATCH(O41,TypeTime,1),1):INDEX(TypeI,MATCH(O41,TypeTime,1)+1,1),INDEX(TypeTime,MATCH(O41,TypeTime,1),1):INDEX(TypeTime,MATCH(O41,TypeTime)+1,1))), IF($C$1="Type IA",IF(O40=24,1,FORECAST(O41,INDEX(TypeIA,MATCH(O41,TypeTime,1),1):INDEX(TypeIA,MATCH(O41,TypeTime,1)+1,1),INDEX(TypeTime,MATCH(O41,TypeTime,1),1):INDEX(TypeTime,MATCH(O41,TypeTime)+1,1))), IF($C$1="Type II",IF(O40=24,1,FORECAST(O41,INDEX(TypeII,MATCH(O41,TypeTime,1),1):INDEX(TypeII,MATCH(O41,TypeTime,1)+1,1),INDEX(TypeTime,MATCH(O41,TypeTime,1),1):INDEX(TypeTime,MATCH(O41,TypeTime)+1,1))), IF($C$1="Type III",IF(O40=24,1,FORECAST(O41,INDEX(TypeIII,MATCH(O41,TypeTime,1),1):INDEX(TypeIII,MATCH(O41,TypeTime,1)+1,1),INDEX(TypeTime,MATCH(O41,TypeTime,1),1):INDEX(TypeTime,MATCH(O41,TypeTime)+1,1))), "Choose Type")))) -> 0.003192 | Q41: 0.000617652 | R41: 0.01235304 | W41: 0.3192 | AS41: =$I$41*$U21 -> 
B42: 22 | C42: 2.2 | D42: 0.207 | E42: 0.1759482353 | F42: 0 | G42: 0.33516 | H42: 31 | I42: =IF(H42=33,0,FORECAST(G42,INDEX($F$21:$F$53,H42,1):INDEX($F$21:$F$53,H42+1,1),INDEX($E$21:$E$53,H42,1):INDEX($E$21:$E$53,H42+1))) -> 0 | J42: 2.1 | K42: 0.03677 | L42: 0.05315 | M42: 0.02321 | N42: 0.02101 | O42: 0.33516 | P42: =IF($C$1="Type I",IF(O41=24,1,FORECAST(O42,INDEX(TypeI,MATCH(O42,TypeTime,1),1):INDEX(TypeI,MATCH(O42,TypeTime,1)+1,1),INDEX(TypeTime,MATCH(O42,TypeTime,1),1):INDEX(TypeTime,MATCH(O42,TypeTime)+1,1))), IF($C$1="Type IA",IF(O41=24,1,FORECAST(O42,INDEX(TypeIA,MATCH(O42,TypeTime,1),1):INDEX(TypeIA,MATCH(O42,TypeTime,1)+1,1),INDEX(TypeTime,MATCH(O42,TypeTime,1),1):INDEX(TypeTime,MATCH(O42,TypeTime)+1,1))), IF($C$1="Type II",IF(O41=24,1,FORECAST(O42,INDEX(TypeII,MATCH(O42,TypeTime,1),1):INDEX(TypeII,MATCH(O42,TypeTime,1)+1,1),INDEX(TypeTime,MATCH(O42,TypeTime,1),1):INDEX(TypeTime,MATCH(O42,TypeTime)+1,1))), IF($C$1="Type III",IF(O41=24,1,FORECAST(O42,INDEX(TypeIII,MATCH(O42,TypeTime,1),1):INDEX(TypeIII,MATCH(O42,TypeTime,1)+1,1),INDEX(TypeTime,MATCH(O42,TypeTime,1),1):INDEX(TypeTime,MATCH(O42,TypeTime)+1,1))), "Choose Type")))) -> 0.0033516 | Q42: 0.000617652 | R42: 0.012970692 | W42: 0.33516 | AT42: =$I$42*$U21 -> 
B43: 23 | C43: 2.4 | D43: 0.147 | E43: 0.1919435294 | F43: 0 | G43: 0.35112 | H43: 31 | I43: =IF(H43=33,0,FORECAST(G43,INDEX($F$21:$F$53,H43,1):INDEX($F$21:$F$53,H43+1,1),INDEX($E$21:$E$53,H43,1):INDEX($E$21:$E$53,H43+1))) -> 0 | J43: 2.2 | K43: 0.03858 | L43: 0.05633 | M43: 0.02442 | N43: 0.02203 | O43: 0.35112 | P43: =IF($C$1="Type I",IF(O42=24,1,FORECAST(O43,INDEX(TypeI,MATCH(O43,TypeTime,1),1):INDEX(TypeI,MATCH(O43,TypeTime,1)+1,1),INDEX(TypeTime,MATCH(O43,TypeTime,1),1):INDEX(TypeTime,MATCH(O43,TypeTime)+1,1))), IF($C$1="Type IA",IF(O42=24,1,FORECAST(O43,INDEX(TypeIA,MATCH(O43,TypeTime,1),1):INDEX(TypeIA,MATCH(O43,TypeTime,1)+1,1),INDEX(TypeTime,MATCH(O43,TypeTime,1),1):INDEX(TypeTime,MATCH(O43,TypeTime)+1,1))), IF($C$1="Type II",IF(O42=24,1,FORECAST(O43,INDEX(TypeII,MATCH(O43,TypeTime,1),1):INDEX(TypeII,MATCH(O43,TypeTime,1)+1,1),INDEX(TypeTime,MATCH(O43,TypeTime,1),1):INDEX(TypeTime,MATCH(O43,TypeTime)+1,1))), IF($C$1="Type III",IF(O42=24,1,FORECAST(O43,INDEX(TypeIII,MATCH(O43,TypeTime,1),1):INDEX(TypeIII,MATCH(O43,TypeTime,1)+1,1),INDEX(TypeTime,MATCH(O43,TypeTime,1),1):INDEX(TypeTime,MATCH(O43,TypeTime)+1,1))), "Choose Type")))) -> 0.0035112 | Q43: 0.000617652 | R43: 0.013588344 | W43: 0.35112 | AU43: =$I$43*$U21 -> 
B44: 24 | C44: 2.6 | D44: 0.107 | E44: 0.2079388235 | F44: 0 | G44: 0.36708 | H44: 32 | I44: =IF(H44=33,0,FORECAST(G44,INDEX($F$21:$F$53,H44,1):INDEX($F$21:$F$53,H44+1,1),INDEX($E$21:$E$53,H44,1):INDEX($E$21:$E$53,H44+1))) -> 0 | J44: 2.3 | K44: 0.04041 | L44: 0.05954 | M44: 0.02565 | N44: 0.02307 | O44: 0.36708 | P44: =IF($C$1="Type I",IF(O43=24,1,FORECAST(O44,INDEX(TypeI,MATCH(O44,TypeTime,1),1):INDEX(TypeI,MATCH(O44,TypeTime,1)+1,1),INDEX(TypeTime,MATCH(O44,TypeTime,1),1):INDEX(TypeTime,MATCH(O44,TypeTime)+1,1))), IF($C$1="Type IA",IF(O43=24,1,FORECAST(O44,INDEX(TypeIA,MATCH(O44,TypeTime,1),1):INDEX(TypeIA,MATCH(O44,TypeTime,1)+1,1),INDEX(TypeTime,MATCH(O44,TypeTime,1),1):INDEX(TypeTime,MATCH(O44,TypeTime)+1,1))), IF($C$1="Type II",IF(O43=24,1,FORECAST(O44,INDEX(TypeII,MATCH(O44,TypeTime,1),1):INDEX(TypeII,MATCH(O44,TypeTime,1)+1,1),INDEX(TypeTime,MATCH(O44,TypeTime,1),1):INDEX(TypeTime,MATCH(O44,TypeTime)+1,1))), IF($C$1="Type III",IF(O43=24,1,FORECAST(O44,INDEX(TypeIII,MATCH(O44,TypeTime,1),1):INDEX(TypeIII,MATCH(O44,TypeTime,1)+1,1),INDEX(TypeTime,MATCH(O44,TypeTime,1),1):INDEX(TypeTime,MATCH(O44,TypeTime)+1,1))), "Choose Type")))) -> 0.0036708 | Q44: 0.000617652 | R44: 0.014205996 | W44: 0.36708 | AV44: =$I$44*$U21 -> 
B45: 25 | C45: 2.8 | D45: 0.077 | E45: 0.2239341176 | F45: 0 | G45: 0.38304 | H45: 32 | I45: =IF(H45=33,0,FORECAST(G45,INDEX($F$21:$F$53,H45,1):INDEX($F$21:$F$53,H45+1,1),INDEX($E$21:$E$53,H45,1):INDEX($E$21:$E$53,H45+1))) -> 0 | J45: 2.4 | K45: 0.04227 | L45: 0.06276 | M45: 0.02688 | N45: 0.02412 | O45: 0.38304 | P45: =IF($C$1="Type I",IF(O44=24,1,FORECAST(O45,INDEX(TypeI,MATCH(O45,TypeTime,1),1):INDEX(TypeI,MATCH(O45,TypeTime,1)+1,1),INDEX(TypeTime,MATCH(O45,TypeTime,1),1):INDEX(TypeTime,MATCH(O45,TypeTime)+1,1))), IF($C$1="Type IA",IF(O44=24,1,FORECAST(O45,INDEX(TypeIA,MATCH(O45,TypeTime,1),1):INDEX(TypeIA,MATCH(O45,TypeTime,1)+1,1),INDEX(TypeTime,MATCH(O45,TypeTime,1),1):INDEX(TypeTime,MATCH(O45,TypeTime)+1,1))), IF($C$1="Type II",IF(O44=24,1,FORECAST(O45,INDEX(TypeII,MATCH(O45,TypeTime,1),1):INDEX(TypeII,MATCH(O45,TypeTime,1)+1,1),INDEX(TypeTime,MATCH(O45,TypeTime,1),1):INDEX(TypeTime,MATCH(O45,TypeTime)+1,1))), IF($C$1="Type III",IF(O44=24,1,FORECAST(O45,INDEX(TypeIII,MATCH(O45,TypeTime,1),1):INDEX(TypeIII,MATCH(O45,TypeTime,1)+1,1),INDEX(TypeTime,MATCH(O45,TypeTime,1),1):INDEX(TypeTime,MATCH(O45,TypeTime)+1,1))), "Choose Type")))) -> 0.0038304 | Q45: 0.000617652 | R45: 0.014823648 | W45: 0.38304 | AW45: =$I$45*$U21 -> 
B46: 26 | C46: 3 | D46: 0.06 | E46: 0.2399294118 | F46: 0 | G46: 0.399 | H46: 32 | I46: =IF(H46=33,0,FORECAST(G46,INDEX($F$21:$F$53,H46,1):INDEX($F$21:$F$53,H46+1,1),INDEX($E$21:$E$53,H46,1):INDEX($E$21:$E$53,H46+1))) -> 0 | J46: 2.5 | K46: 0.04416 | L46: 0.066 | M46: 0.02813 | N46: 0.02519 | O46: 0.399 | P46: =IF($C$1="Type I",IF(O45=24,1,FORECAST(O46,INDEX(TypeI,MATCH(O46,TypeTime,1),1):INDEX(TypeI,MATCH(O46,TypeTime,1)+1,1),INDEX(TypeTime,MATCH(O46,TypeTime,1),1):INDEX(TypeTime,MATCH(O46,TypeTime)+1,1))), IF($C$1="Type IA",IF(O45=24,1,FORECAST(O46,INDEX(TypeIA,MATCH(O46,TypeTime,1),1):INDEX(TypeIA,MATCH(O46,TypeTime,1)+1,1),INDEX(TypeTime,MATCH(O46,TypeTime,1),1):INDEX(TypeTime,MATCH(O46,TypeTime)+1,1))), IF($C$1="Type II",IF(O45=24,1,FORECAST(O46,INDEX(TypeII,MATCH(O46,TypeTime,1),1):INDEX(TypeII,MATCH(O46,TypeTime,1)+1,1),INDEX(TypeTime,MATCH(O46,TypeTime,1),1):INDEX(TypeTime,MATCH(O46,TypeTime)+1,1))), IF($C$1="Type III",IF(O45=24,1,FORECAST(O46,INDEX(TypeIII,MATCH(O46,TypeTime,1),1):INDEX(TypeIII,MATCH(O46,TypeTime,1)+1,1),INDEX(TypeTime,MATCH(O46,TypeTime,1),1):INDEX(TypeTime,MATCH(O46,TypeTime)+1,1))), "Choose Type")))) -> 0.00399 | Q46: 0.000617652 | R46: 0.0154413 | W46: 0.399 | AX46: =$I$46*$U21 -> 
B47: 27 | C47: 3.2 | D47: 0.04 | E47: 0.2559247059 | F47: 0 | G47: 0.41496 | H47: 33 | I47: =IF(H47=33,0,FORECAST(G47,INDEX($F$21:$F$53,H47,1):INDEX($F$21:$F$53,H47+1,1),INDEX($E$21:$E$53,H47,1):INDEX($E$21:$E$53,H47+1))) -> 0 | J47: 2.6 | K47: 0.04608 | L47: 0.0692 | M47: 0.02938 | N47: 0.02627 | O47: 0.41496 | P47: =IF($C$1="Type I",IF(O46=24,1,FORECAST(O47,INDEX(TypeI,MATCH(O47,TypeTime,1),1):INDEX(TypeI,MATCH(O47,TypeTime,1)+1,1),INDEX(TypeTime,MATCH(O47,TypeTime,1),1):INDEX(TypeTime,MATCH(O47,TypeTime)+1,1))), IF($C$1="Type IA",IF(O46=24,1,FORECAST(O47,INDEX(TypeIA,MATCH(O47,TypeTime,1),1):INDEX(TypeIA,MATCH(O47,TypeTime,1)+1,1),INDEX(TypeTime,MATCH(O47,TypeTime,1),1):INDEX(TypeTime,MATCH(O47,TypeTime)+1,1))), IF($C$1="Type II",IF(O46=24,1,FORECAST(O47,INDEX(TypeII,MATCH(O47,TypeTime,1),1):INDEX(TypeII,MATCH(O47,TypeTime,1)+1,1),INDEX(TypeTime,MATCH(O47,TypeTime,1),1):INDEX(TypeTime,MATCH(O47,TypeTime)+1,1))), IF($C$1="Type III",IF(O46=24,1,FORECAST(O47,INDEX(TypeIII,MATCH(O47,TypeTime,1),1):INDEX(TypeIII,MATCH(O47,TypeTime,1)+1,1),INDEX(TypeTime,MATCH(O47,TypeTime,1),1):INDEX(TypeTime,MATCH(O47,TypeTime)+1,1))), "Choose Type")))) -> 0.0041496 | Q47: 0.000617652 | R47: 0.016058952 | W47: 0.41496
B48: 28 | C48: 3.4 | D48: 0.029 | E48: 0.27192 | F48: 0 | G48: 0.43092 | H48: 33 | I48: =IF(H48=33,0,FORECAST(G48,INDEX($F$21:$F$53,H48,1):INDEX($F$21:$F$53,H48+1,1),INDEX($E$21:$E$53,H48,1):INDEX($E$21:$E$53,H48+1))) -> 0 | J48: 2.7 | K48: 0.04803 | L48: 0.0724 | M48: 0.03065 | N48: 0.02737 | O48: 0.43092 | P48: =IF($C$1="Type I",IF(O47=24,1,FORECAST(O48,INDEX(TypeI,MATCH(O48,TypeTime,1),1):INDEX(TypeI,MATCH(O48,TypeTime,1)+1,1),INDEX(TypeTime,MATCH(O48,TypeTime,1),1):INDEX(TypeTime,MATCH(O48,TypeTime)+1,1))), IF($C$1="Type IA",IF(O47=24,1,FORECAST(O48,INDEX(TypeIA,MATCH(O48,TypeTime,1),1):INDEX(TypeIA,MATCH(O48,TypeTime,1)+1,1),INDEX(TypeTime,MATCH(O48,TypeTime,1),1):INDEX(TypeTime,MATCH(O48,TypeTime)+1,1))), IF($C$1="Type II",IF(O47=24,1,FORECAST(O48,INDEX(TypeII,MATCH(O48,TypeTime,1),1):INDEX(TypeII,MATCH(O48,TypeTime,1)+1,1),INDEX(TypeTime,MATCH(O48,TypeTime,1),1):INDEX(TypeTime,MATCH(O48,TypeTime)+1,1))), IF($C$1="Type III",IF(O47=24,1,FORECAST(O48,INDEX(TypeIII,MATCH(O48,TypeTime,1),1):INDEX(TypeIII,MATCH(O48,TypeTime,1)+1,1),INDEX(TypeTime,MATCH(O48,TypeTime,1),1):INDEX(TypeTime,MATCH(O48,TypeTime)+1,1))), "Choose Type")))) -> 0.0043092 | Q48: 0.000617652 | R48: 0.016676604 | W48: 0.43092
B49: 29 | C49: 3.6 | D49: 0.021 | E49: 0.2879152941 | F49: 0 | G49: 0.44688 | H49: 33 | I49: =IF(H49=33,0,FORECAST(G49,INDEX($F$21:$F$53,H49,1):INDEX($F$21:$F$53,H49+1,1),INDEX($E$21:$E$53,H49,1):INDEX($E$21:$E$53,H49+1))) -> 0 | J49: 2.8 | K49: 0.05001 | L49: 0.0756 | M49: 0.03192 | N49: 0.02848 | O49: 0.44688 | P49: =IF($C$1="Type I",IF(O48=24,1,FORECAST(O49,INDEX(TypeI,MATCH(O49,TypeTime,1),1):INDEX(TypeI,MATCH(O49,TypeTime,1)+1,1),INDEX(TypeTime,MATCH(O49,TypeTime,1),1):INDEX(TypeTime,MATCH(O49,TypeTime)+1,1))), IF($C$1="Type IA",IF(O48=24,1,FORECAST(O49,INDEX(TypeIA,MATCH(O49,TypeTime,1),1):INDEX(TypeIA,MATCH(O49,TypeTime,1)+1,1),INDEX(TypeTime,MATCH(O49,TypeTime,1),1):INDEX(TypeTime,MATCH(O49,TypeTime)+1,1))), IF($C$1="Type II",IF(O48=24,1,FORECAST(O49,INDEX(TypeII,MATCH(O49,TypeTime,1),1):INDEX(TypeII,MATCH(O49,TypeTime,1)+1,1),INDEX(TypeTime,MATCH(O49,TypeTime,1),1):INDEX(TypeTime,MATCH(O49,TypeTime)+1,1))), IF($C$1="Type III",IF(O48=24,1,FORECAST(O49,INDEX(TypeIII,MATCH(O49,TypeTime,1),1):INDEX(TypeIII,MATCH(O49,TypeTime,1)+1,1),INDEX(TypeTime,MATCH(O49,TypeTime,1),1):INDEX(TypeTime,MATCH(O49,TypeTime)+1,1))), "Choose Type")))) -> 0.0044688 | Q49: 0.000617652 | R49: 0.017294256 | W49: 0.44688
B50: 30 | C50: 3.8 | D50: 0.015 | E50: 0.3039105882 | F50: 0 | G50: 0.46284 | H50: 33 | I50: =IF(H50=33,0,FORECAST(G50,INDEX($F$21:$F$53,H50,1):INDEX($F$21:$F$53,H50+1,1),INDEX($E$21:$E$53,H50,1):INDEX($E$21:$E$53,H50+1))) -> 0 | J50: 2.9 | K50: 0.05201 | L50: 0.0788 | M50: 0.03321 | N50: 0.02961 | O50: 0.46284 | P50: =IF($C$1="Type I",IF(O49=24,1,FORECAST(O50,INDEX(TypeI,MATCH(O50,TypeTime,1),1):INDEX(TypeI,MATCH(O50,TypeTime,1)+1,1),INDEX(TypeTime,MATCH(O50,TypeTime,1),1):INDEX(TypeTime,MATCH(O50,TypeTime)+1,1))), IF($C$1="Type IA",IF(O49=24,1,FORECAST(O50,INDEX(TypeIA,MATCH(O50,TypeTime,1),1):INDEX(TypeIA,MATCH(O50,TypeTime,1)+1,1),INDEX(TypeTime,MATCH(O50,TypeTime,1),1):INDEX(TypeTime,MATCH(O50,TypeTime)+1,1))), IF($C$1="Type II",IF(O49=24,1,FORECAST(O50,INDEX(TypeII,MATCH(O50,TypeTime,1),1):INDEX(TypeII,MATCH(O50,TypeTime,1)+1,1),INDEX(TypeTime,MATCH(O50,TypeTime,1),1):INDEX(TypeTime,MATCH(O50,TypeTime)+1,1))), IF($C$1="Type III",IF(O49=24,1,FORECAST(O50,INDEX(TypeIII,MATCH(O50,TypeTime,1),1):INDEX(TypeIII,MATCH(O50,TypeTime,1)+1,1),INDEX(TypeTime,MATCH(O50,TypeTime,1),1):INDEX(TypeTime,MATCH(O50,TypeTime)+1,1))), "Choose Type")))) -> 0.0046284 | Q50: 0.000617652 | R50: 0.017911908 | W50: 0.46284
B51: 31 | C51: 4 | D51: 0.01 | E51: 0.3199058824 | F51: 0 | G51: 0.4788 | H51: 33 | I51: =IF(H51=33,0,FORECAST(G51,INDEX($F$21:$F$53,H51,1):INDEX($F$21:$F$53,H51+1,1),INDEX($E$21:$E$53,H51,1):INDEX($E$21:$E$53,H51+1))) -> 0 | J51: 3 | K51: 0.05405 | L51: 0.082 | M51: 0.0345 | N51: 0.03075 | O51: 0.4788 | P51: =IF($C$1="Type I",IF(O50=24,1,FORECAST(O51,INDEX(TypeI,MATCH(O51,TypeTime,1),1):INDEX(TypeI,MATCH(O51,TypeTime,1)+1,1),INDEX(TypeTime,MATCH(O51,TypeTime,1),1):INDEX(TypeTime,MATCH(O51,TypeTime)+1,1))), IF($C$1="Type IA",IF(O50=24,1,FORECAST(O51,INDEX(TypeIA,MATCH(O51,TypeTime,1),1):INDEX(TypeIA,MATCH(O51,TypeTime,1)+1,1),INDEX(TypeTime,MATCH(O51,TypeTime,1),1):INDEX(TypeTime,MATCH(O51,TypeTime)+1,1))), IF($C$1="Type II",IF(O50=24,1,FORECAST(O51,INDEX(TypeII,MATCH(O51,TypeTime,1),1):INDEX(TypeII,MATCH(O51,TypeTime,1)+1,1),INDEX(TypeTime,MATCH(O51,TypeTime,1),1):INDEX(TypeTime,MATCH(O51,TypeTime)+1,1))), IF($C$1="Type III",IF(O50=24,1,FORECAST(O51,INDEX(TypeIII,MATCH(O51,TypeTime,1),1):INDEX(TypeIII,MATCH(O51,TypeTime,1)+1,1),INDEX(TypeTime,MATCH(O51,TypeTime,1),1):INDEX(TypeTime,MATCH(O51,TypeTime)+1,1))), "Choose Type")))) -> 0.004788 | Q51: 0.000617652 | R51: 0.01852956 | W51: 0.4788
B52: 32 | C52: 4.5 | D52: 0.005 | E52: 0.3598941176 | F52: 0 | G52: 0.49476 | H52: 33 | I52: =IF(H52=33,0,FORECAST(G52,INDEX($F$21:$F$53,H52,1):INDEX($F$21:$F$53,H52+1,1),INDEX($E$21:$E$53,H52,1):INDEX($E$21:$E$53,H52+1))) -> 0 | J52: 3.1 | K52: 0.05611 | L52: 0.08514 | M52: 0.03581 | N52: 0.03191 | O52: 0.49476 | P52: =IF($C$1="Type I",IF(O51=24,1,FORECAST(O52,INDEX(TypeI,MATCH(O52,TypeTime,1),1):INDEX(TypeI,MATCH(O52,TypeTime,1)+1,1),INDEX(TypeTime,MATCH(O52,TypeTime,1),1):INDEX(TypeTime,MATCH(O52,TypeTime)+1,1))), IF($C$1="Type IA",IF(O51=24,1,FORECAST(O52,INDEX(TypeIA,MATCH(O52,TypeTime,1),1):INDEX(TypeIA,MATCH(O52,TypeTime,1)+1,1),INDEX(TypeTime,MATCH(O52,TypeTime,1),1):INDEX(TypeTime,MATCH(O52,TypeTime)+1,1))), IF($C$1="Type II",IF(O51=24,1,FORECAST(O52,INDEX(TypeII,MATCH(O52,TypeTime,1),1):INDEX(TypeII,MATCH(O52,TypeTime,1)+1,1),INDEX(TypeTime,MATCH(O52,TypeTime,1),1):INDEX(TypeTime,MATCH(O52,TypeTime)+1,1))), IF($C$1="Type III",IF(O51=24,1,FORECAST(O52,INDEX(TypeIII,MATCH(O52,TypeTime,1),1):INDEX(TypeIII,MATCH(O52,TypeTime,1)+1,1),INDEX(TypeTime,MATCH(O52,TypeTime,1),1):INDEX(TypeTime,MATCH(O52,TypeTime)+1,1))), "Choose Type")))) -> 0.0049476 | Q52: 0.000617652 | R52: 0.019147212 | W52: 0.49476
B53: 33 | C53: 5 | D53: 0 | E53: 0.3998823529 | F53: 0 | G53: 0.51072 | H53: 33 | I53: =IF(H53=33,0,FORECAST(G53,INDEX($F$21:$F$53,H53,1):INDEX($F$21:$F$53,H53+1,1),INDEX($E$21:$E$53,H53,1):INDEX($E$21:$E$53,H53+1))) -> 0 | J53: 3.2 | K53: 0.05821 | L53: 0.08829 | M53: 0.03712 | N53: 0.03308 | O53: 0.51072 | P53: =IF($C$1="Type I",IF(O52=24,1,FORECAST(O53,INDEX(TypeI,MATCH(O53,TypeTime,1),1):INDEX(TypeI,MATCH(O53,TypeTime,1)+1,1),INDEX(TypeTime,MATCH(O53,TypeTime,1),1):INDEX(TypeTime,MATCH(O53,TypeTime)+1,1))), IF($C$1="Type IA",IF(O52=24,1,FORECAST(O53,INDEX(TypeIA,MATCH(O53,TypeTime,1),1):INDEX(TypeIA,MATCH(O53,TypeTime,1)+1,1),INDEX(TypeTime,MATCH(O53,TypeTime,1),1):INDEX(TypeTime,MATCH(O53,TypeTime)+1,1))), IF($C$1="Type II",IF(O52=24,1,FORECAST(O53,INDEX(TypeII,MATCH(O53,TypeTime,1),1):INDEX(TypeII,MATCH(O53,TypeTime,1)+1,1),INDEX(TypeTime,MATCH(O53,TypeTime,1),1):INDEX(TypeTime,MATCH(O53,TypeTime)+1,1))), IF($C$1="Type III",IF(O52=24,1,FORECAST(O53,INDEX(TypeIII,MATCH(O53,TypeTime,1),1):INDEX(TypeIII,MATCH(O53,TypeTime,1)+1,1),INDEX(TypeTime,MATCH(O53,TypeTime,1),1):INDEX(TypeTime,MATCH(O53,TypeTime)+1,1))), "Choose Type")))) -> 0.0051072 | Q53: 0.000617652 | R53: 0.019764864 | W53: 0.51072
B54: 34 | G54: 0.52668 | H54: 33 | I54: =IF(H54=33,0,FORECAST(G54,INDEX($F$21:$F$53,H54,1):INDEX($F$21:$F$53,H54+1,1),INDEX($E$21:$E$53,H54,1):INDEX($E$21:$E$53,H54+1))) -> 0 | J54: 3.3 | K54: 0.06033 | L54: 0.09147 | M54: 0.03845 | N54: 0.03427 | O54: 0.52668 | P54: =IF($C$1="Type I",IF(O53=24,1,FORECAST(O54,INDEX(TypeI,MATCH(O54,TypeTime,1),1):INDEX(TypeI,MATCH(O54,TypeTime,1)+1,1),INDEX(TypeTime,MATCH(O54,TypeTime,1),1):INDEX(TypeTime,MATCH(O54,TypeTime)+1,1))), IF($C$1="Type IA",IF(O53=24,1,FORECAST(O54,INDEX(TypeIA,MATCH(O54,TypeTime,1),1):INDEX(TypeIA,MATCH(O54,TypeTime,1)+1,1),INDEX(TypeTime,MATCH(O54,TypeTime,1),1):INDEX(TypeTime,MATCH(O54,TypeTime)+1,1))), IF($C$1="Type II",IF(O53=24,1,FORECAST(O54,INDEX(TypeII,MATCH(O54,TypeTime,1),1):INDEX(TypeII,MATCH(O54,TypeTime,1)+1,1),INDEX(TypeTime,MATCH(O54,TypeTime,1),1):INDEX(TypeTime,MATCH(O54,TypeTime)+1,1))), IF($C$1="Type III",IF(O53=24,1,FORECAST(O54,INDEX(TypeIII,MATCH(O54,TypeTime,1),1):INDEX(TypeIII,MATCH(O54,TypeTime,1)+1,1),INDEX(TypeTime,MATCH(O54,TypeTime,1),1):INDEX(TypeTime,MATCH(O54,TypeTime)+1,1))), "Choose Type")))) -> 0.0052668 | Q54: 0.000617652 | R54: 0.020382516 | W54: 0.52668
B55: 35 | G55: 0.54264 | H55: 33 | I55: =IF(H55=33,0,FORECAST(G55,INDEX($F$21:$F$53,H55,1):INDEX($F$21:$F$53,H55+1,1),INDEX($E$21:$E$53,H55,1):INDEX($E$21:$E$53,H55+1))) -> 0 | J55: 3.4 | K55: 0.06248 | L55: 0.09471 | M55: 0.03978 | N55: 0.03547 | O55: 0.54264 | P55: =IF($C$1="Type I",IF(O54=24,1,FORECAST(O55,INDEX(TypeI,MATCH(O55,TypeTime,1),1):INDEX(TypeI,MATCH(O55,TypeTime,1)+1,1),INDEX(TypeTime,MATCH(O55,TypeTime,1),1):INDEX(TypeTime,MATCH(O55,TypeTime)+1,1))), IF($C$1="Type IA",IF(O54=24,1,FORECAST(O55,INDEX(TypeIA,MATCH(O55,TypeTime,1),1):INDEX(TypeIA,MATCH(O55,TypeTime,1)+1,1),INDEX(TypeTime,MATCH(O55,TypeTime,1),1):INDEX(TypeTime,MATCH(O55,TypeTime)+1,1))), IF($C$1="Type II",IF(O54=24,1,FORECAST(O55,INDEX(TypeII,MATCH(O55,TypeTime,1),1):INDEX(TypeII,MATCH(O55,TypeTime,1)+1,1),INDEX(TypeTime,MATCH(O55,TypeTime,1),1):INDEX(TypeTime,MATCH(O55,TypeTime)+1,1))), IF($C$1="Type III",IF(O54=24,1,FORECAST(O55,INDEX(TypeIII,MATCH(O55,TypeTime,1),1):INDEX(TypeIII,MATCH(O55,TypeTime,1)+1,1),INDEX(TypeTime,MATCH(O55,TypeTime,1),1):INDEX(TypeTime,MATCH(O55,TypeTime)+1,1))), "Choose Type")))) -> 0.0054264 | Q55: 0.000617652 | R55: 0.021000168 | W55: 0.54264
B56: 36 | G56: 0.5586 | H56: 33 | I56: =IF(H56=33,0,FORECAST(G56,INDEX($F$21:$F$53,H56,1):INDEX($F$21:$F$53,H56+1,1),INDEX($E$21:$E$53,H56,1):INDEX($E$21:$E$53,H56+1))) -> 0 | J56: 3.5 | K56: 0.06466 | L56: 0.098 | M56: 0.04113 | N56: 0.03669 | O56: 0.5586 | P56: =IF($C$1="Type I",IF(O55=24,1,FORECAST(O56,INDEX(TypeI,MATCH(O56,TypeTime,1),1):INDEX(TypeI,MATCH(O56,TypeTime,1)+1,1),INDEX(TypeTime,MATCH(O56,TypeTime,1),1):INDEX(TypeTime,MATCH(O56,TypeTime)+1,1))), IF($C$1="Type IA",IF(O55=24,1,FORECAST(O56,INDEX(TypeIA,MATCH(O56,TypeTime,1),1):INDEX(TypeIA,MATCH(O56,TypeTime,1)+1,1),INDEX(TypeTime,MATCH(O56,TypeTime,1),1):INDEX(TypeTime,MATCH(O56,TypeTime)+1,1))), IF($C$1="Type II",IF(O55=24,1,FORECAST(O56,INDEX(TypeII,MATCH(O56,TypeTime,1),1):INDEX(TypeII,MATCH(O56,TypeTime,1)+1,1),INDEX(TypeTime,MATCH(O56,TypeTime,1),1):INDEX(TypeTime,MATCH(O56,TypeTime)+1,1))), IF($C$1="Type III",IF(O55=24,1,FORECAST(O56,INDEX(TypeIII,MATCH(O56,TypeTime,1),1):INDEX(TypeIII,MATCH(O56,TypeTime,1)+1,1),INDEX(TypeTime,MATCH(O56,TypeTime,1),1):INDEX(TypeTime,MATCH(O56,TypeTime)+1,1))), "Choose Type")))) -> 0.005586 | Q56: 0.000617652 | R56: 0.02161782 | W56: 0.5586
B57: 37 | G57: 0.57456 | H57: 33 | I57: =IF(H57=33,0,FORECAST(G57,INDEX($F$21:$F$53,H57,1):INDEX($F$21:$F$53,H57+1,1),INDEX($E$21:$E$53,H57,1):INDEX($E$21:$E$53,H57+1))) -> 0 | J57: 3.6 | K57: 0.06687 | L57: 0.10147 | M57: 0.04248 | N57: 0.03792 | O57: 0.57456 | P57: =IF($C$1="Type I",IF(O56=24,1,FORECAST(O57,INDEX(TypeI,MATCH(O57,TypeTime,1),1):INDEX(TypeI,MATCH(O57,TypeTime,1)+1,1),INDEX(TypeTime,MATCH(O57,TypeTime,1),1):INDEX(TypeTime,MATCH(O57,TypeTime)+1,1))), IF($C$1="Type IA",IF(O56=24,1,FORECAST(O57,INDEX(TypeIA,MATCH(O57,TypeTime,1),1):INDEX(TypeIA,MATCH(O57,TypeTime,1)+1,1),INDEX(TypeTime,MATCH(O57,TypeTime,1),1):INDEX(TypeTime,MATCH(O57,TypeTime)+1,1))), IF($C$1="Type II",IF(O56=24,1,FORECAST(O57,INDEX(TypeII,MATCH(O57,TypeTime,1),1):INDEX(TypeII,MATCH(O57,TypeTime,1)+1,1),INDEX(TypeTime,MATCH(O57,TypeTime,1),1):INDEX(TypeTime,MATCH(O57,TypeTime)+1,1))), IF($C$1="Type III",IF(O56=24,1,FORECAST(O57,INDEX(TypeIII,MATCH(O57,TypeTime,1),1):INDEX(TypeIII,MATCH(O57,TypeTime,1)+1,1),INDEX(TypeTime,MATCH(O57,TypeTime,1),1):INDEX(TypeTime,MATCH(O57,TypeTime)+1,1))), "Choose Type")))) -> 0.0057456 | Q57: 0.000617652 | R57: 0.022235472 | W57: 0.57456
B58: 38 | G58: 0.59052 | H58: 33 | I58: =IF(H58=33,0,FORECAST(G58,INDEX($F$21:$F$53,H58,1):INDEX($F$21:$F$53,H58+1,1),INDEX($E$21:$E$53,H58,1):INDEX($E$21:$E$53,H58+1))) -> 0 | J58: 3.7 | K58: 0.06911 | L58: 0.10502 | M58: 0.04385 | N58: 0.03917 | O58: 0.59052 | P58: =IF($C$1="Type I",IF(O57=24,1,FORECAST(O58,INDEX(TypeI,MATCH(O58,TypeTime,1),1):INDEX(TypeI,MATCH(O58,TypeTime,1)+1,1),INDEX(TypeTime,MATCH(O58,TypeTime,1),1):INDEX(TypeTime,MATCH(O58,TypeTime)+1,1))), IF($C$1="Type IA",IF(O57=24,1,FORECAST(O58,INDEX(TypeIA,MATCH(O58,TypeTime,1),1):INDEX(TypeIA,MATCH(O58,TypeTime,1)+1,1),INDEX(TypeTime,MATCH(O58,TypeTime,1),1):INDEX(TypeTime,MATCH(O58,TypeTime)+1,1))), IF($C$1="Type II",IF(O57=24,1,FORECAST(O58,INDEX(TypeII,MATCH(O58,TypeTime,1),1):INDEX(TypeII,MATCH(O58,TypeTime,1)+1,1),INDEX(TypeTime,MATCH(O58,TypeTime,1),1):INDEX(TypeTime,MATCH(O58,TypeTime)+1,1))), IF($C$1="Type III",IF(O57=24,1,FORECAST(O58,INDEX(TypeIII,MATCH(O58,TypeTime,1),1):INDEX(TypeIII,MATCH(O58,TypeTime,1)+1,1),INDEX(TypeTime,MATCH(O58,TypeTime,1),1):INDEX(TypeTime,MATCH(O58,TypeTime)+1,1))), "Choose Type")))) -> 0.0059052 | Q58: 0.000617652 | R58: 0.022853124 | W58: 0.59052
B59: 39 | G59: 0.60648 | H59: 33 | I59: =IF(H59=33,0,FORECAST(G59,INDEX($F$21:$F$53,H59,1):INDEX($F$21:$F$53,H59+1,1),INDEX($E$21:$E$53,H59,1):INDEX($E$21:$E$53,H59+1))) -> 0 | J59: 3.8 | K59: 0.07138 | L59: 0.10862 | M59: 0.04522 | N59: 0.04043 | O59: 0.60648 | P59: =IF($C$1="Type I",IF(O58=24,1,FORECAST(O59,INDEX(TypeI,MATCH(O59,TypeTime,1),1):INDEX(TypeI,MATCH(O59,TypeTime,1)+1,1),INDEX(TypeTime,MATCH(O59,TypeTime,1),1):INDEX(TypeTime,MATCH(O59,TypeTime)+1,1))), IF($C$1="Type IA",IF(O58=24,1,FORECAST(O59,INDEX(TypeIA,MATCH(O59,TypeTime,1),1):INDEX(TypeIA,MATCH(O59,TypeTime,1)+1,1),INDEX(TypeTime,MATCH(O59,TypeTime,1),1):INDEX(TypeTime,MATCH(O59,TypeTime)+1,1))), IF($C$1="Type II",IF(O58=24,1,FORECAST(O59,INDEX(TypeII,MATCH(O59,TypeTime,1),1):INDEX(TypeII,MATCH(O59,TypeTime,1)+1,1),INDEX(TypeTime,MATCH(O59,TypeTime,1),1):INDEX(TypeTime,MATCH(O59,TypeTime)+1,1))), IF($C$1="Type III",IF(O58=24,1,FORECAST(O59,INDEX(TypeIII,MATCH(O59,TypeTime,1),1):INDEX(TypeIII,MATCH(O59,TypeTime,1)+1,1),INDEX(TypeTime,MATCH(O59,TypeTime,1),1):INDEX(TypeTime,MATCH(O59,TypeTime)+1,1))), "Choose Type")))) -> 0.0060648 | Q59: 0.000617652 | R59: 0.023470776 | W59: 0.60648
B60: 40 | G60: 0.62244 | H60: 33 | I60: =IF(H60=33,0,FORECAST(G60,INDEX($F$21:$F$53,H60,1):INDEX($F$21:$F$53,H60+1,1),INDEX($E$21:$E$53,H60,1):INDEX($E$21:$E$53,H60+1))) -> 0 | J60: 3.9 | K60: 0.07367 | L60: 0.11229 | M60: 0.04661 | N60: 0.04171 | O60: 0.62244 | P60: =IF($C$1="Type I",IF(O59=24,1,FORECAST(O60,INDEX(TypeI,MATCH(O60,TypeTime,1),1):INDEX(TypeI,MATCH(O60,TypeTime,1)+1,1),INDEX(TypeTime,MATCH(O60,TypeTime,1),1):INDEX(TypeTime,MATCH(O60,TypeTime)+1,1))), IF($C$1="Type IA",IF(O59=24,1,FORECAST(O60,INDEX(TypeIA,MATCH(O60,TypeTime,1),1):INDEX(TypeIA,MATCH(O60,TypeTime,1)+1,1),INDEX(TypeTime,MATCH(O60,TypeTime,1),1):INDEX(TypeTime,MATCH(O60,TypeTime)+1,1))), IF($C$1="Type II",IF(O59=24,1,FORECAST(O60,INDEX(TypeII,MATCH(O60,TypeTime,1),1):INDEX(TypeII,MATCH(O60,TypeTime,1)+1,1),INDEX(TypeTime,MATCH(O60,TypeTime,1),1):INDEX(TypeTime,MATCH(O60,TypeTime)+1,1))), IF($C$1="Type III",IF(O59=24,1,FORECAST(O60,INDEX(TypeIII,MATCH(O60,TypeTime,1),1):INDEX(TypeIII,MATCH(O60,TypeTime,1)+1,1),INDEX(TypeTime,MATCH(O60,TypeTime,1),1):INDEX(TypeTime,MATCH(O60,TypeTime)+1,1))), "Choose Type")))) -> 0.0062244 | Q60: 0.000617652 | R60: 0.024088428 | W60: 0.62244
B61: 41 | G61: 0.6384 | H61: 33 | I61: =IF(H61=33,0,FORECAST(G61,INDEX($F$21:$F$53,H61,1):INDEX($F$21:$F$53,H61+1,1),INDEX($E$21:$E$53,H61,1):INDEX($E$21:$E$53,H61+1))) -> 0 | J61: 4 | K61: 0.076 | L61: 0.116 | M61: 0.048 | N61: 0.043 | O61: 0.6384 | P61: =IF($C$1="Type I",IF(O60=24,1,FORECAST(O61,INDEX(TypeI,MATCH(O61,TypeTime,1),1):INDEX(TypeI,MATCH(O61,TypeTime,1)+1,1),INDEX(TypeTime,MATCH(O61,TypeTime,1),1):INDEX(TypeTime,MATCH(O61,TypeTime)+1,1))), IF($C$1="Type IA",IF(O60=24,1,FORECAST(O61,INDEX(TypeIA,MATCH(O61,TypeTime,1),1):INDEX(TypeIA,MATCH(O61,TypeTime,1)+1,1),INDEX(TypeTime,MATCH(O61,TypeTime,1),1):INDEX(TypeTime,MATCH(O61,TypeTime)+1,1))), IF($C$1="Type II",IF(O60=24,1,FORECAST(O61,INDEX(TypeII,MATCH(O61,TypeTime,1),1):INDEX(TypeII,MATCH(O61,TypeTime,1)+1,1),INDEX(TypeTime,MATCH(O61,TypeTime,1),1):INDEX(TypeTime,MATCH(O61,TypeTime)+1,1))), IF($C$1="Type III",IF(O60=24,1,FORECAST(O61,INDEX(TypeIII,MATCH(O61,TypeTime,1),1):INDEX(TypeIII,MATCH(O61,TypeTime,1)+1,1),INDEX(TypeTime,MATCH(O61,TypeTime,1),1):INDEX(TypeTime,MATCH(O61,TypeTime)+1,1))), "Choose Type")))) -> 0.006384 | Q61: 0.000617652 | R61: 0.02470608 | W61: 0.6384
B62: 42 | G62: 0.65436 | H62: 33 | I62: =IF(H62=33,0,FORECAST(G62,INDEX($F$21:$F$53,H62,1):INDEX($F$21:$F$53,H62+1,1),INDEX($E$21:$E$53,H62,1):INDEX($E$21:$E$53,H62+1))) -> 0 | J62: 4.1 | K62: 0.07835 | L62: 0.11969 | M62: 0.04941 | N62: 0.04431 | O62: 0.65436 | P62: =IF($C$1="Type I",IF(O61=24,1,FORECAST(O62,INDEX(TypeI,MATCH(O62,TypeTime,1),1):INDEX(TypeI,MATCH(O62,TypeTime,1)+1,1),INDEX(TypeTime,MATCH(O62,TypeTime,1),1):INDEX(TypeTime,MATCH(O62,TypeTime)+1,1))), IF($C$1="Type IA",IF(O61=24,1,FORECAST(O62,INDEX(TypeIA,MATCH(O62,TypeTime,1),1):INDEX(TypeIA,MATCH(O62,TypeTime,1)+1,1),INDEX(TypeTime,MATCH(O62,TypeTime,1),1):INDEX(TypeTime,MATCH(O62,TypeTime)+1,1))), IF($C$1="Type II",IF(O61=24,1,FORECAST(O62,INDEX(TypeII,MATCH(O62,TypeTime,1),1):INDEX(TypeII,MATCH(O62,TypeTime,1)+1,1),INDEX(TypeTime,MATCH(O62,TypeTime,1),1):INDEX(TypeTime,MATCH(O62,TypeTime)+1,1))), IF($C$1="Type III",IF(O61=24,1,FORECAST(O62,INDEX(TypeIII,MATCH(O62,TypeTime,1),1):INDEX(TypeIII,MATCH(O62,TypeTime,1)+1,1),INDEX(TypeTime,MATCH(O62,TypeTime,1),1):INDEX(TypeTime,MATCH(O62,TypeTime)+1,1))), "Choose Type")))) -> 0.0065436 | Q62: 0.000617652 | R62: 0.025323732 | W62: 0.65436
B63: 43 | G63: 0.67032 | H63: 33 | I63: =IF(H63=33,0,FORECAST(G63,INDEX($F$21:$F$53,H63,1):INDEX($F$21:$F$53,H63+1,1),INDEX($E$21:$E$53,H63,1):INDEX($E$21:$E$53,H63+1))) -> 0 | J63: 4.2 | K63: 0.0807 | L63: 0.12342 | M63: 0.05084 | N63: 0.04563 | O63: 0.67032 | P63: =IF($C$1="Type I",IF(O62=24,1,FORECAST(O63,INDEX(TypeI,MATCH(O63,TypeTime,1),1):INDEX(TypeI,MATCH(O63,TypeTime,1)+1,1),INDEX(TypeTime,MATCH(O63,TypeTime,1),1):INDEX(TypeTime,MATCH(O63,TypeTime)+1,1))), IF($C$1="Type IA",IF(O62=24,1,FORECAST(O63,INDEX(TypeIA,MATCH(O63,TypeTime,1),1):INDEX(TypeIA,MATCH(O63,TypeTime,1)+1,1),INDEX(TypeTime,MATCH(O63,TypeTime,1),1):INDEX(TypeTime,MATCH(O63,TypeTime)+1,1))), IF($C$1="Type II",IF(O62=24,1,FORECAST(O63,INDEX(TypeII,MATCH(O63,TypeTime,1),1):INDEX(TypeII,MATCH(O63,TypeTime,1)+1,1),INDEX(TypeTime,MATCH(O63,TypeTime,1),1):INDEX(TypeTime,MATCH(O63,TypeTime)+1,1))), IF($C$1="Type III",IF(O62=24,1,FORECAST(O63,INDEX(TypeIII,MATCH(O63,TypeTime,1),1):INDEX(TypeIII,MATCH(O63,TypeTime,1)+1,1),INDEX(TypeTime,MATCH(O63,TypeTime,1),1):INDEX(TypeTime,MATCH(O63,TypeTime)+1,1))), "Choose Type")))) -> 0.0067032 | Q63: 0.000617652 | R63: 0.025941384 | W63: 0.67032
B64: 44 | G64: 0.68628 | H64: 33 | I64: =IF(H64=33,0,FORECAST(G64,INDEX($F$21:$F$53,H64,1):INDEX($F$21:$F$53,H64+1,1),INDEX($E$21:$E$53,H64,1):INDEX($E$21:$E$53,H64+1))) -> 0 | J64: 4.3 | K64: 0.08307 | L64: 0.12721 | M64: 0.05229 | N64: 0.04697 | O64: 0.68628 | P64: =IF($C$1="Type I",IF(O63=24,1,FORECAST(O64,INDEX(TypeI,MATCH(O64,TypeTime,1),1):INDEX(TypeI,MATCH(O64,TypeTime,1)+1,1),INDEX(TypeTime,MATCH(O64,TypeTime,1),1):INDEX(TypeTime,MATCH(O64,TypeTime)+1,1))), IF($C$1="Type IA",IF(O63=24,1,FORECAST(O64,INDEX(TypeIA,MATCH(O64,TypeTime,1),1):INDEX(TypeIA,MATCH(O64,TypeTime,1)+1,1),INDEX(TypeTime,MATCH(O64,TypeTime,1),1):INDEX(TypeTime,MATCH(O64,TypeTime)+1,1))), IF($C$1="Type II",IF(O63=24,1,FORECAST(O64,INDEX(TypeII,MATCH(O64,TypeTime,1),1):INDEX(TypeII,MATCH(O64,TypeTime,1)+1,1),INDEX(TypeTime,MATCH(O64,TypeTime,1),1):INDEX(TypeTime,MATCH(O64,TypeTime)+1,1))), IF($C$1="Type III",IF(O63=24,1,FORECAST(O64,INDEX(TypeIII,MATCH(O64,TypeTime,1),1):INDEX(TypeIII,MATCH(O64,TypeTime,1)+1,1),INDEX(TypeTime,MATCH(O64,TypeTime,1),1):INDEX(TypeTime,MATCH(O64,TypeTime)+1,1))), "Choose Type")))) -> 0.0068628 | Q64: 0.000617652 | R64: 0.026559036 | W64: 0.68628
B65: 45 | G65: 0.70224 | H65: 33 | I65: =IF(H65=33,0,FORECAST(G65,INDEX($F$21:$F$53,H65,1):INDEX($F$21:$F$53,H65+1,1),INDEX($E$21:$E$53,H65,1):INDEX($E$21:$E$53,H65+1))) -> 0 | J65: 4.4 | K65: 0.08545 | L65: 0.13107 | M65: 0.05376 | N65: 0.04832 | O65: 0.70224 | P65: =IF($C$1="Type I",IF(O64=24,1,FORECAST(O65,INDEX(TypeI,MATCH(O65,TypeTime,1),1):INDEX(TypeI,MATCH(O65,TypeTime,1)+1,1),INDEX(TypeTime,MATCH(O65,TypeTime,1),1):INDEX(TypeTime,MATCH(O65,TypeTime)+1,1))), IF($C$1="Type IA",IF(O64=24,1,FORECAST(O65,INDEX(TypeIA,MATCH(O65,TypeTime,1),1):INDEX(TypeIA,MATCH(O65,TypeTime,1)+1,1),INDEX(TypeTime,MATCH(O65,TypeTime,1),1):INDEX(TypeTime,MATCH(O65,TypeTime)+1,1))), IF($C$1="Type II",IF(O64=24,1,FORECAST(O65,INDEX(TypeII,MATCH(O65,TypeTime,1),1):INDEX(TypeII,MATCH(O65,TypeTime,1)+1,1),INDEX(TypeTime,MATCH(O65,TypeTime,1),1):INDEX(TypeTime,MATCH(O65,TypeTime)+1,1))), IF($C$1="Type III",IF(O64=24,1,FORECAST(O65,INDEX(TypeIII,MATCH(O65,TypeTime,1),1):INDEX(TypeIII,MATCH(O65,TypeTime,1)+1,1),INDEX(TypeTime,MATCH(O65,TypeTime,1),1):INDEX(TypeTime,MATCH(O65,TypeTime)+1,1))), "Choose Type")))) -> 0.0070224 | Q65: 0.000617652 | R65: 0.027176688 | W65: 0.70224
B66: 46 | G66: 0.7182 | H66: 33 | I66: =IF(H66=33,0,FORECAST(G66,INDEX($F$21:$F$53,H66,1):INDEX($F$21:$F$53,H66+1,1),INDEX($E$21:$E$53,H66,1):INDEX($E$21:$E$53,H66+1))) -> 0 | J66: 4.5 | K66: 0.08784 | L66: 0.135 | M66: 0.05525 | N66: 0.04969 | O66: 0.7182 | P66: =IF($C$1="Type I",IF(O65=24,1,FORECAST(O66,INDEX(TypeI,MATCH(O66,TypeTime,1),1):INDEX(TypeI,MATCH(O66,TypeTime,1)+1,1),INDEX(TypeTime,MATCH(O66,TypeTime,1),1):INDEX(TypeTime,MATCH(O66,TypeTime)+1,1))), IF($C$1="Type IA",IF(O65=24,1,FORECAST(O66,INDEX(TypeIA,MATCH(O66,TypeTime,1),1):INDEX(TypeIA,MATCH(O66,TypeTime,1)+1,1),INDEX(TypeTime,MATCH(O66,TypeTime,1),1):INDEX(TypeTime,MATCH(O66,TypeTime)+1,1))), IF($C$1="Type II",IF(O65=24,1,FORECAST(O66,INDEX(TypeII,MATCH(O66,TypeTime,1),1):INDEX(TypeII,MATCH(O66,TypeTime,1)+1,1),INDEX(TypeTime,MATCH(O66,TypeTime,1),1):INDEX(TypeTime,MATCH(O66,TypeTime)+1,1))), IF($C$1="Type III",IF(O65=24,1,FORECAST(O66,INDEX(TypeIII,MATCH(O66,TypeTime,1),1):INDEX(TypeIII,MATCH(O66,TypeTime,1)+1,1),INDEX(TypeTime,MATCH(O66,TypeTime,1),1):INDEX(TypeTime,MATCH(O66,TypeTime)+1,1))), "Choose Type")))) -> 0.007182 | Q66: 0.000617652 | R66: 0.02779434 | W66: 0.7182
